Workbook

Sheet Menu

Sheet Tamaño
Y3: PARTICIPACIÓN DE
W4: BOGOTÁ D.C | X4: =VLOOKUP(W4,$U$6:$V$24,2,0) -> 1 | Y4: TASA CRECIMIENTO ANUAL (%) | AB4: AÑO | AC4: =AB5-1984 -> 21 | AI4: AÑO | AJ4: 2005
X5: Total Pobla | Y5: Participa | AB5: 2005 | AJ5: No. Hogares | AK5: Personas X Hogar
U6: BOGOTÁ D.C | V6: 1 | W6: ANO | X6: POBLACIÓN (Volumen) | Y6: =Y4 -> TASA CRECIMIENTO ANUAL (%) | AH6: 2 | AI6: BOGOTÁ D.C | AJ6: =+VLOOKUP($AJ$4,DataHogar,AH6,FALSE) -> 1959811 | AK6: =VLOOKUP($AJ$4,DataPersHogar,AH6,FALSE) -> 3.490191146
U7: BOJACÁ | V7: 2 | W7: 1985 | X7: =VLOOKUP($W7,DataPobTotal,$X$4+1,FALSE) -> 4225651 | Y7: =VLOOKUP($W7,DataPobTotal,$X$4+39,FALSE) -> 0 | Z7: =VLOOKUP($W7,DataPobTotal,$X$4+20,FALSE) -> 89.86209729 | AA7: =100-Z7 -> 10.13790271 | AB7: =VLOOKUP(AB5*1,$W$6:$Y$122,2,FALSE) -> 6840115 | AC7: =VLOOKUP(AB5*1,$W$6:$Y$122,3,FALSE) -> 1.562883813 | AD7: =VLOOKUP(AB5*1,$W$6:$Z$122,4,FALSE) -> 86.11673078 | AE7: 80 | AF7: 0.1 | AG7: 1 | AH7: 3 | AI7: BOJACÁ | AJ7: 2243 | AK7: 3.959875167
U8: CAJICÁ | V8: 3 | W8: 1986 | X8: 4360949 | Y8: =VLOOKUP($W8,DataPobTotal,$X$4+39,FALSE) -> 3.151636245 | Z8: 89.6333069 | AA8: =100-Z8 -> 10.3666931 | AD8: 100 | AE8: 100 | AF8: 0.2 | AG8: 1 | AH8: 4 | AI8: CAJICÁ | AJ8: 12133 | AK8: 3.741284101
U9: CHÍA | V9: 4 | W9: 1987 | X9: 4502390 | Y9: 3.191867267 | Z9: 89.4389888 | AA9: 10.5610112 | AF9: 0.3 | AG9: 1 | AH9: 5 | AI9: CHÍA | AJ9: 26110 | AK9: 3.749674454
U10: COTA | V10: 5 | W10: 1988 | X10: 4648463 | Y10: 3.192826043 | Z10: 89.26804613 | AA10: 10.73195387 | AF10: 0.4 | AG10: 1 | AH10: 6 | AI10: COTA | AJ10: 5416 | AK10: 3.675960118
U11: FACATATIVÁ | V11: 6 | W11: 1989 | X11: 4797533 | Y11: 3.156520013 | Z11: 89.11083324 | AA11: 10.88916676 | AD11: =AC7/100 -> 0.01562883813 | AF11: 0.5 | AG11: 1 | AH11: 7 | AI11: FACATATIVÁ | AJ11: 29811 | AK11: 3.60477676
U12: FUNZA | V12: 7 | W12: 1990 | X12: 4947894 | Y12: 3.086020405 | Z12: 88.95781209 | AA12: 11.04218791 | AF12: 0.6 | AG12: 1 | AH12: 8 | AI12: FUNZA | AJ12: 16879 | AK12: 3.637063807
U13: GACHANCIPÁ | V13: 8 | W13: 1991 | X13: 5105937 | Y13: 3.144194881 | Z13: 88.82854991 | AA13: 11.17145009 | AF13: 0.7 | AG13: 1 | AH13: 9 | AI13: GACHANCIPÁ | AJ13: 2747 | AK13: 3.963960684
U14: LA CALERA | V14: 9 | W14: 1992 | X14: 5261693 | Y14: 3.004885776 | Z14: 88.68748849 | AA14: 11.31251151 | AD14: =AD11*PI() -> 0.04909944307 | AF14: 0.8 | AG14: 1 | AH14: 10 | AI14: LA CALERA | AJ14: 6614 | AK14: 3.593891745
U15: MADRID | V15: 10 | W15: 1993 | X15: 5413486 | Y15: 2.844040956 | Z15: 88.52816858 | AA15: 11.47183142 | AF15: 0.9 | AG15: 1 | AH15: 11 | AI15: MADRID | AJ15: 17073 | AK15: 3.65688514
U16: MOSQUERA | V16: 11 | W16: 1994 | X16: 5559853 | Y16: 2.667842143 | Z16: 88.34671281 | AA16: 11.65328719 | AC16: periodo | AD16: x | AE16: y | AF16: 1 | AG16: 9 | AH16: 12 | AI16: MOSQUERA | AJ16: 16705 | AK16: 3.785393595
U17: SIBATÉ | V17: 12 | W17: 1995 | X17: 5699655 | Y17: 2.483397763 | Z17: 88.14384276 | AA17: 11.85615724 | AC17: inicial | AD17: 0 | AE17: 0 | AH17: 13 | AI17: SIBATÉ | AJ17: 8179 | AK17: 3.872600562
U18: SOACHA | V18: 13 | W18: 1996 | X18: 5828530 | Y18: 2.235917779 | Z18: 87.96167948 | AA18: 12.03832052 | AC18: final | AD18: =-COS(AD14) -> -0.9987948645 | AE18: =SIN(AD14) -> 0.04907971765 | AH18: 14 | AI18: SOACHA | AJ18: 106156 | AK18: 3.786851426
U19: SOPÓ | V19: 14 | W19: 1997 | X19: 5952563 | Y19: 2.105705862 | Z19: 87.71161816 | AA19: 12.28838184 | AH19: 15 | AI19: SOPÓ | AJ19: 5715 | AK19: 3.714085739
U20: TABIO | V20: 15 | W20: 1998 | X20: 6072487 | Y20: 1.994635798 | Z20: 87.46458739 | AA20: 12.53541261 | AH20: 16 | AI20: TABIO | AJ20: 5370 | AK20: 3.882309125
U21: TOCANCIPÁ | V21: 16 | W21: 1999 | X21: 6189031 | Y21: 1.901029054 | Z21: 87.22706971 | AA21: 12.77293029 | AH21: 17 | AI21: TOCANCIPÁ | AJ21: 6056 | AK21: 3.988606341
U22: ZIPAQUIRÁ | V22: 17 | W22: 2000 | X22: 6302882 | Y22: 1.822845748 | Z22: 87.00441891 | AA22: 12.99558109 | AH22: 18 | AI22: ZIPAQUIRÁ | AJ22: 27248 | AK22: 3.727172637
U23: REGIÓN | V23: 18 | W23: 2001 | X23: 6412401 | Y23: 1.722678267 | Z23: 86.79166755 | AA23: 13.20833245 | AH23: 19 | AI23: REGIÓN | AJ23: =+VLOOKUP($AJ$4,DataHogar2,AH23,FALSE) -> 294455 | AK23: =VLOOKUP($AJ$4,DataPersHogar2,AH23,FALSE) -> 3.744972916
U24: TOTAL | V24: 19 | W24: 2002 | X24: 6520472 | Y24: 1.671299418 | Z24: 86.59589868 | AA24: 13.40410132 | AH24: 20 | AI24: REGIÓN-BTÁ | AJ24: =+VLOOKUP($AJ$4,DataHogar2,AH24,FALSE) -> 2254266 | AK24: =VLOOKUP($AJ$4,DataPersHogar2,AH24,FALSE) -> 3.523471054
W25: 2003 | X25: 6627569 | Y25: 1.629130434 | Z25: 86.41856008 | AA25: 13.58143992
W26: 2004 | X26: 6734043 | Y26: 1.593763593 | Z26: 86.25924825 | AA26: 13.74075175
W27: 2005 | X27: 6840115 | Y27: 1.562883813 | Z27: 86.11673078 | AA27: 13.88326922
W28: 2006 | X28: 6945215 | Y28: 1.524838889 | Z28: 85.9918478 | AA28: 14.0081522
W29: 2007 | X29: 7050228 | Y29: 1.500702348 | Z29: 85.87768295 | AA29: 14.12231705
W30: 2008 | X30: 7155052 | Y30: 1.47587239 | Z30: 85.76654839 | AA30: 14.23345161
W31: 2009 | X31: 7259594 | Y31: 1.450522378 | Z31: 85.65772351 | AA31: 14.34227649
W32: 2010 | X32: 7363783 | Y32: 1.424989085 | Z32: 85.550855 | AA32: 14.449145
W33: 2011 | X33: 7467805 | Y33: 1.402731867 | Z33: 85.4432697 | AA33: 14.5567303
W34: 2012 | X34: 7571344 | Y34: 1.376948069 | Z34: 85.33735125 | AA34: 14.66264875
W35: 2013 | X35: 7674367 | Y35: 1.351521988 | Z35: 85.23251293 | AA35: 14.76748707
W36: 2014 | X36: 7776847 | Y36: 1.326517162 | Z36: 85.1288183 | AA36: 14.8711817
W37: 2015 | X37: 7878784 | Y37: 1.302259112 | Z37: 85.02550673 | AA37: 14.97449327
W38: 2016 | X38: 7980001 | Y38: 1.276495953 | Z38: 84.92354062 | AA38: 15.07645938
W39: 2017 | X39: =VLOOKUP($W39,DataPobTotal,$X$4+1,FALSE) -> 8080732 | Y39: =VLOOKUP($W39,DataPobTotal,$X$4+39,FALSE) -> 1.254392571 | Z39: =VLOOKUP($W39,DataPobTotal,$X$4+20,FALSE) -> 84.82147065 | AA39: 15.17852935
W40: 2018 | X40: 8181046 | Y40: 1.233755281 | Z40: 84.72076221 | AA40: 15.27923779
W41: 2019 | X41: 8281029 | Y41: 1.214722074 | Z41: 84.62183187 | AA41: 15.37816813
W42: 2020 | X42: 8380801 | Y42: 1.197625861 | Z42: 84.64122106 | AA42: 15.35877894
W43: 2021 | X43: 8480124 | Y43: 1.178310579 | Z43: 84.66061026 | AA43: 15.33938974
W44: 2022 | X44: 8578980 | Y44: 1.158995298 | Z44: 84.61740053 | AA44: 15.38259947
W45: 2023 | X45: 8677525 | Y45: 1.142132445 | Z45: 84.57899568 | AA45: 15.42100432
W46: 2024 | X46: 8775928 | Y46: 1.127616898 | Z46: 84.54510344 | AA46: 15.45489656
W47: 2025 | X47: 8874346 | Y47: 1.115212376 | Z47: 84.51548014 | AA47: 15.48451986
W48: 2026 | X48: 8972653 | Y48: 1.101675349 | Z48: 84.49004009 | AA48: 15.50995991
W49: 2027 | X49: 9070590 | Y49: 1.085591563 | Z49: 84.46865825 | AA49: 15.53134175
W50: 2028 | X50: 9168152 | Y50: 1.069842762 | Z50: 84.45087805 | AA50: 15.54912195
W51: 2029 | X51: 9265331 | Y51: 1.054384571 | Z51: 84.43686813 | AA51: 15.56313187
B52: Tamaño del hogar | W52: 2030 | X52: 9362126 | Y52: 1.03928165 | Z52: 84.42611619 | AA52: 15.57388381
W53: 2031 | X53: 9458567 | Y53: 1.024849022 | Z53: 84.41868085 | AA53: 15.58131915
B54: Número de Hogares | C54: Municipio | D54: Tamaño promedio del Hogar | W54: 2032 | X54: 9554539 | Y54: 1.009543786 | Z54: 84.41430828 | AA54: 15.58569172
W55: 2033 | X55: 9649768 | Y55: 0.9917544074 | Z55: 84.41279778 | AA55: 15.58720222
B56: =AJ6 -> 1959811 | C56: BOGOTÁ D.C | W56: 2034 | X56: 9744007 | Y56: 0.9718555747 | Z56: 84.41404575 | AA56: 15.58595425
B57: 2243 | C57: BOJACÁ | W57: 2035 | X57: 9836993 | Y57: 0.9497645573 | Z57: 84.41793334 | AA57: 15.58206666
B58: 12133 | C58: CAJICÁ | W58: 2036 | X58: 9928620 | Y58: 0.9271420658 | Z58: 84.42398978 | AA58: 15.57601022
B59: 26110 | C59: CHÍA | W59: 2037 | X59: 10018936 | Y59: 0.9055406804 | Z59: 84.43233576 | AA59: 15.56766424
B60: 5416 | C60: COTA | W60: 2038 | X60: 10107880 | Y60: 0.8838415277 | Z60: 84.44270121 | AA60: 15.55729879
B61: 29811 | C61: FACATATIVÁ | W61: 2039 | X61: 10195380 | Y61: 0.8619358834 | Z61: 84.45505821 | AA61: 15.54494179
B62: 16879 | C62: FUNZA | W62: 2040 | X62: 10281378 | Y62: 0.8399621231 | Z62: 84.46919173 | AA62: 15.53080827
B63: 2747 | C63: GACHANCIPÁ | W63: 2041 | X63: 10365697 | Y63: 0.8167691429 | Z63: 84.48485553 | AA63: 15.51514447
B64: 6614 | C64: LA CALERA | W64: 2042 | X64: 10448242 | Y64: 0.7931745429 | Z64: 84.50218303 | AA64: 15.49781697
B65: 17073 | C65: MADRID | W65: 2043 | X65: 10529096 | Y65: 0.7708737914 | Z65: 84.52076066 | AA65: 15.47923934
B66: 16705 | C66: MOSQUERA | W66: 2044 | X66: 10608354 | Y66: 0.7499331419 | Z66: 84.54072798 | AA66: 15.45927202
B67: 8179 | C67: SIBATÉ | W67: 2045 | X67: 10686090 | Y67: 0.7301091807 | Z67: 84.56186781 | AA67: 15.43813219
B68: 106156 | C68: SOACHA | W68: 2046 | X68: 10762080 | Y68: 0.7085948867 | Z68: 84.5842732 | AA68: 15.4157268
B69: 5715 | C69: SOPÓ | W69: 2047 | X69: 10836151 | Y69: 0.6859014555 | Z69: 84.60763677 | AA69: 15.39236323
B70: 5370 | C70: TABIO | W70: 2048 | X70: 10908480 | Y70: 0.6652609258 | Z70: 84.63209198 | AA70: 15.36790802
B71: 6056 | C71: TOCANCIPÁ | W71: 2049 | X71: =VLOOKUP($W71,DataPobTotal,$X$4+1,FALSE) -> 10979273 | Y71: =VLOOKUP($W71,DataPobTotal,$X$4+39,FALSE) -> 0.646875418 | Z71: =VLOOKUP($W71,DataPobTotal,$X$4+20,FALSE) -> 84.65737862 | AA71: 15.34262138
B72: 27248 | C72: ZIPAQUIRÁ | W72: 2050 | X72: 11048723 | Y72: 0.6305633079 | Z72: 84.68366765 | AA72: =100-Z72 -> 15.31633235
B73: 294455 | C73: REGIÓN | W73: 2051 | X73: 11116655 | Y73: 0.6129578543 | Z73: 84.71078033 | AA73: 15.28921967
B74: 2254266 | C74: REGIÓN-BTÁ | W74: 2052 | X74: 11182843 | Y74: 0.5936294563 | Z74: 84.73872932 | AA74: 15.26127068
W75: 2053 | X75: 11247418 | Y75: 0.5757862417 | Z75: 84.76732021 | AA75: 15.23267979
W76: 2054 | X76: 11310514 | Y76: 0.5594144405 | Z76: 84.7967785 | AA76: 15.2032215
W77: 2055 | X77: 11372277 | Y77: 0.5445815962 | Z77: 84.82691427 | AA77: 15.17308573
W78: 2056 | X78: 11432540 | Y78: 0.5285123777 | Z78: 84.85754115 | AA78: 15.14245885
W79: 2057 | X79: 11491140 | Y79: 0.5112628308 | Z79: 84.88893433 | AA79: 15.11106567
W80: 2058 | X80: 11548200 | Y80: 0.4953277018 | Z80: 84.92075952 | AA80: 15.07924048
W81: 2059 | X81: 11603848 | Y81: 0.4807186575 | Z81: 84.95311557 | AA81: 15.04688443
W82: 2060 | X82: 11658223 | Y82: 0.4675000694 | Z82: 84.98613553 | AA82: 15.01386447
W83: 2061 | X83: 11711256 | Y83: 0.4538662675 | Z83: 85.01937123 | AA83: 14.98062877
W84: 2062 | X84: 11762800 | Y84: 0.4391578757 | Z84: 85.05307285 | AA84: 14.94692715
W85: 2063 | X85: 11812857 | Y85: 0.4246505217 | Z85: 85.08718319 | AA85: 14.91281681
W86: 2064 | X86: 11861437 | Y86: 0.410403522 | Z86: 85.12155083 | AA86: 14.87844917
W87: 2065 | X87: 11908538 | Y87: 0.3963072039 | Z87: 85.15598939 | AA87: 14.84401061
W88: 2066 | X88: 11954015 | Y88: 0.3811583367 | Z88: 85.19091678 | AA88: 14.80908322
W89: 2067 | X89: 11997807 | Y89: 0.3656677876 | Z89: 85.22595221 | AA89: 14.77404779
W90: 2068 | X90: 12040055 | Y90: 0.3515124889 | Z90: 85.26120863 | AA90: 14.73879137
W91: 2069 | X91: 12080915 | Y91: 0.3387926695 | Z91: 85.29658299 | AA91: 14.70341701
W92: 2070 | X92: 12120544 | Y92: 0.3274929451 | Z92: 85.33210476 | AA92: 14.66789524
W93: 2071 | X93: 12158800 | Y93: 0.3151323336 | Z93: 85.36758409 | AA93: 14.63241591
W94: 2072 | X94: 12195523 | Y94: 0.3015729719 | Z94: 85.40318695 | AA94: 14.59681305
W95: 2073 | X95: 12230877 | Y95: 0.2894738863 | Z95: 85.43895569 | AA95: 14.56104431
W96: 2074 | X96: 12265028 | Y96: 0.2788304586 | Z96: 85.47476577 | AA96: 14.52523423
W97: 2075 | X97: 12298135 | Y97: 0.2695664239 | Z97: 85.51050246 | AA97: 14.48949754
W98: 2076 | X98: 12329990 | Y98: 0.258688128 | Z98: 85.54631112 | AA98: 14.45368888
W99: 2077 | X99: 12360443 | Y99: 0.2466786665 | Z99: 85.58210606 | AA99: 14.41789394
W100: 2078 | X100: 12389777 | Y100: 0.2370404282 | Z100: 85.6179798 | AA100: 14.3820202
W101: 2079 | X101: 12418280 | Y101: 0.229788351 | Z101: 85.65393734 | AA101: 14.34606266
W102: 2080 | X102: 12446248 | Y102: 0.2249631426 | Z102: 85.68972867 | AA102: 14.31027133
W103: 2081 | X103: =VLOOKUP($W103,DataPobTotal,$X$4+1,FALSE) -> 12473527 | Y103: =VLOOKUP($W103,DataPobTotal,$X$4+39,FALSE) -> 0.2189346485 | Z103: =VLOOKUP($W103,DataPobTotal,$X$4+20,FALSE) -> 85.7256206 | AA103: 14.2743794
W104: 2082 | X104: 12499892 | Y104: 0.2111445757 | Z104: 85.76152259 | AA104: 14.23847741
W105: 2083 | X105: 12525579 | Y105: 0.2052869176 | Z105: 85.79735485 | AA105: 14.20264515
W106: 2084 | X106: 12550805 | Y106: 0.20119335 | Z106: 85.83318123 | AA106: 14.16681877
W107: 2085 | X107: 12575805 | Y107: 0.1989922894 | Z107: 85.86878696 | AA107: 14.13121304
W108: 2086 | X108: 12600440 | Y108: 0.1957004141 | Z108: 85.90463283 | AA108: 14.09536717
W109: 2087 | X109: 12624545 | Y109: 0.1911200925 | Z109: 85.94020647 | AA109: 14.05979353
W110: 2088 | X110: 12648338 | Y110: 0.1882888235 | Z110: 85.97590822 | AA110: 14.02409178
W111: 2089 | X111: 12672039 | Y111: 0.1872089576 | Z111: 86.0112546 | AA111: 13.9887454
W112: 2090 | X112: 12695863 | Y112: 0.1878279647 | Z112: 86.0467542 | AA112: 13.9532458
W113: 2091 | X113: 12719723 | Y113: 0.187758858 | Z113: 86.08204407 | AA113: 13.91795593
W114: 2092 | X114: 12743478 | Y114: 0.1865830372 | Z114: 86.11711461 | AA114: 13.88288539
W115: 2093 | X115: 12767281 | Y115: 0.1866115148 | Z115: 86.15211049 | AA115: 13.84788951
W116: 2094 | X116: 12791297 | Y116: 0.1879291334 | Z116: 86.18706329 | AA116: 13.81293671
W117: 2095 | X117: 12815689 | Y117: 0.1905105691 | Z117: 86.22186738 | AA117: 13.77813262
W118: 2096 | X118: 12840362 | Y118: 0.1923367521 | Z118: 86.2564384 | AA118: 13.7435616
W119: 2097 | X119: 12865222 | Y119: 0.1934210695 | Z119: 86.29094901 | AA119: 13.70905099
W120: 2098 | X120: 12890438 | Y120: 0.1958094497 | Z120: 86.32536203 | AA120: 13.67463797
W121: 2099 | X121: 12916171 | Y121: 0.1994295998 | Z121: 86.35958516 | AA121: 13.64041484
W122: 2100 | X122: 12942601 | Y122: 0.2044181309 | Z122: 86.39344412 | AA122: 13.60655588

Sheet DataBogReg (hidden)
A1: ANO | B1: BOGOTÁ D.C | C1: BOJACÁ | D1: CAJICÁ | E1: CHÍA | F1: COTA | G1: FACATATIVÁ | H1: FUNZA | I1: GACHANCIPÁ | J1: LA CALERA | K1: MADRID | L1: MOSQUERA | M1: SIBATÉ | N1: SOACHA | O1: SOPÓ | P1: TABIO | Q1: TOCANCIPÁ | R1: ZIPAQUIRÁ | S1: REGIÓN | T1: TOTAL | U1: PARTICIPACIÓN DE BOGOTÁ D.C | V1: PARTICIPACIÓN DE BOJACÁ | W1: PARTICIPACIÓN DE CAJICÁ | X1: PARTICIPACIÓN DE CHÍA | Y1: PARTICIPACIÓN DE COTA | Z1: PARTICIPACIÓN DE FACATATIVÁ | AA1: PARTICIPACIÓN DE FUNZA | AB1: PARTICIPACIÓN DE GACHANCIPÁ | AC1: PARTICIPACIÓN DE LA CALERA | AD1: PARTICIPACIÓN DE MADRID | AE1: PARTICIPACIÓN DE MOSQUERA | AF1: PARTICIPACIÓN DE SIBATÉ | AG1: PARTICIPACIÓN DE SOACHA | AH1: PARTICIPACIÓN DE SOPÓ | AI1: PARTICIPACIÓN DE TABIO | AJ1: PARTICIPACIÓN DE TOCANCIPÁ | AK1: PARTICIPACIÓN DE ZIPAQUIRÁ | AL1: PARTICIPACIÓN DE ZIPAQUIRÁ | AM1: PARTICIPACIÓN DE TOTAL | AN1: TASA BOGOTÁ D.C | AO1: TASA CRECIMIENTO DE BOJACÁ | AP1: TASA CRECIMIENTO DE CAJICÁ | AQ1: TASA CRECIMIENTO DE CHÍA | AR1: TASA CRECIMIENTO DE COTA | AS1: TASA CRECIMIENTO DE FACATATIVÁ | AT1: TASA CRECIMIENTO DE FUNZA | AU1: TASA CRECIMIENTO DE GACHANCIPÁ | AV1: TASA CRECIMIENTO DE LA CALERA | AW1: TASA CRECIMIENTO DE MADRID | AX1: TASA CRECIMIENTO DE MOSQUERA | AY1: TASA CRECIMIENTO DE SIBATÉ | AZ1: TASA CRECIMIENTO DE SOACHA | BA1: TASA CRECIMIENTO DE SOPÓ | BB1: TASA CRECIMIENTO DE TABIO | BC1: TASA CRECIMIENTO DE TOCANCIPÁ | BD1: TASA CRECIMIENTO DE ZIPAQUIRÁ | BE1: TASA REGION | BF1: TASA TOTAL | BH1: Hogares | BI1: Bogotá | BJ1: Bojacá | BK1: Cajicá | BL1: Chía | BM1: Cota | BN1: Facatativa | BO1: Funza | BP1: Gachancipá | BQ1: La Calera | BR1: Madrid | BS1: Mosquera | BT1: Sibaté | BU1: Soacha | BV1: Sopó | BW1: Tabio | BX1: Tocancipá | BY1: Zipaquirá | CU1: PERS HOGAR
A2: 1985 | B2: 4225651 | C2: 4192 | D2: 23617 | E2: 38862 | F2: 9304 | G2: 55324 | H2: 31365 | I2: 4386 | J2: 17262 | K2: 33793 | L2: 16506 | M2: 21803 | N2: 132757 | O2: 9502 | P2: 9032 | Q2: 8815 | R2: 60202 | S2: =SUM(C2:R2) -> 476722 | T2: =S2+B2 -> 4702373 | U2: =B2/$T2*100 -> 89.86209729 | V2: =C2/$T2*100 -> 0.08914647987 | W2: 0.5022357861 | X2: 0.8264338027 | Y2: 0.1978575498 | Z2: 1.176512369 | AA2: 0.6670036596 | AB2: 0.09327205647 | AC2: 0.3670912537 | AD2: 0.7186371647 | AE2: 0.3510142645 | AF2: 0.4636595183 | AG2: 2.82319161 | AH2: 0.2020681898 | AI2: 0.1920732362 | AJ2: 0.1874585449 | AK2: 1.280247228 | AL2: =S2/$T2*100 -> 10.13790271 | AM2: 100 | BH2: AÑO | BI2: BOGOTÁ D.C | BJ2: BOJACÁ | BK2: CAJICÁ | BL2: CHÍA | BM2: COTA | BN2: FACATATIVÁ | BO2: FUNZA | BP2: GACHANCIPÁ | BQ2: LA CALERA | BR2: MADRID | BS2: MOSQUERA | BT2: SIBATÉ | BU2: SOACHA | BV2: SOPÓ | BW2: TABIO | BX2: TOCANCIPÁ | BY2: ZIPAQUIRÁ | BZ2: REGIÓN | CA2: REGIÓN-BTÁ | CU2: AÑO | CV2: BOGOTÁ D.C | CW2: BOJACÁ | CX2: CAJICÁ | CY2: CHÍA | CZ2: COTA | DA2: FACATATIVÁ | DB2: FUNZA | DC2: GACHANCIPÁ | DD2: LA CALERA | DE2: MADRID | DF2: MOSQUERA | DG2: SIBATÉ | DH2: SOACHA | DI2: SOPÓ | DJ2: TABIO | DK2: TOCANCIPÁ | DL2: ZIPAQUIRÁ | DM2: REGIÓN | DN2: REGION-BTÁ
A3: 1986 | B3: 4360949 | C3: 4299 | D3: 24592 | E3: 40713 | F3: 9617 | G3: 58092 | H3: 32479 | I3: 4550 | J3: 17570 | K3: 34771 | L3: 16497 | M3: 21810 | N3: 148855 | O3: 9775 | P3: 9092 | Q3: 9500 | R3: 62161 | S3: =SUM(C3:R3) -> 504373 | T3: =S3+B3 -> 4865322 | U3: =B3/$T3*100 -> 89.6333069 | V3: =C3/$T3*100 -> 0.08836003044 | W3: =D3/$T3*100 -> 0.5054547263 | X3: =E3/$T3*100 -> 0.8367997021 | Y3: =F3/$T3*100 -> 0.1976642039 | Z3: =G3/$T3*100 -> 1.194001137 | AA3: =H3/$T3*100 -> 0.6675611604 | AB3: =I3/$T3*100 -> 0.09351899011 | AC3: =J3/$T3*100 -> 0.3611271772 | AD3: =K3/$T3*100 -> 0.7146700671 | AE3: =L3/$T3*100 -> 0.3390731384 | AF3: =M3/$T3*100 -> 0.4482745438 | AG3: =N3/$T3*100 -> 3.05950973 | AH3: =O3/$T3*100 -> 0.2009116766 | AI3: =P3/$T3*100 -> 0.1868735512 | AJ3: =Q3/$T3*100 -> 0.1952594299 | AK3: =R3/$T3*100 -> 1.277633834 | AL3: =S3/$T3*100 -> 10.3666931 | AM3: =T3/$T3*100 -> 100 | AN3: =100*LN(B3/B2) -> 3.151636245 | AO3: =100*LN(C3/C2) -> 2.52044905 | AP3: 4.04543951 | AQ3: 4.653054234 | AR3: 3.308795051 | AS3: 4.882114998 | AT3: 3.490110509 | AU3: 3.670958297 | AV3: 1.76853484 | AW3: 2.853002558 | AX3: -0.05454049767 | AY3: 0.03210052076 | AZ3: 11.44522883 | BA3: 2.832580311 | BB3: 0.6621079143 | BC3: 7.483698276 | BD3: =100*LN(R3/R2) -> 3.202221909 | BE3: =100*LN(S3/S2) -> 5.638256195 | BF3: =100*LN(T3/T2) -> 3.406562558 | BH3: 2005 | BI3: 1959811 | BJ3: 2243 | BK3: 12133 | BL3: 26110 | BM3: 5416 | BN3: 29811 | BO3: 16879 | BP3: 2747 | BQ3: 6614 | BR3: 17073 | BS3: 16705 | BT3: 8179 | BU3: 106156 | BV3: 5715 | BW3: 5370 | BX3: 6056 | BY3: 27248 | BZ3: 294455 | CA3: 2254266 | CB3: 6840115 | CC3: 8882 | CD3: 45393 | CE3: 97904 | CF3: 19909 | CG3: 107462 | CH3: 61390 | CI3: 10889 | CJ3: 23770 | CK3: 62434 | CL3: 63235 | CM3: 31674 | CN3: 401997 | CO3: 21226 | CP3: 20848 | CQ3: 24155 | CR3: 101558 | CS3: 1102726 | CT3: 7942841 | CU3: 2005 | CV3: =CB3/BI3 -> 3.490191146 | CW3: 3.959875167 | CX3: 3.741284101 | CY3: 3.749674454 | CZ3: 3.675960118 | DA3: 3.60477676 | DB3: 3.637063807 | DC3: 3.963960684 | DD3: 3.593891745 | DE3: 3.65688514 | DF3: 3.785393595 | DG3: 3.872600562 | DH3: 3.786851426 | DI3: 3.714085739 | DJ3: 3.882309125 | DK3: 3.988606341 | DL3: =CR3/BY3 -> 3.727172637 | DM3: 3.744972916 | DN3: =CT3/CA3 -> 3.523471054
A4: 1987 | B4: 4502390 | C4: 4404 | D4: 25546 | E4: 42563 | F4: 9921 | G4: 60796 | H4: 33573 | I4: 4709 | J4: 17857 | K4: 35729 | L4: 16544 | M4: 21809 | N4: 164752 | O4: 10048 | P4: 9156 | Q4: 10180 | R4: 64058 | S4: 531645 | T4: 5034035 | U4: 89.4389888 | V4: 0.08748449306 | W4: 0.5074656811 | X4: 0.8455046498 | Y4: 0.1970784867 | Z4: 1.207699192 | AA4: 0.6669202737 | AB4: 0.09354325109 | AC4: 0.3547253843 | AD4: 0.7097487403 | AE4: 0.3286429276 | AF4: 0.4332309966 | AG4: 3.272762307 | AH4: 0.1996013139 | AI4: 0.1818819297 | AJ4: 0.2022234649 | AK4: 1.272498105 | AL4: 10.5610112 | AM4: 100 | AN4: =100*LN(B4/B3) -> 3.191867267 | AO4: =100*LN(C4/C3) -> 2.413078135 | AP4: =100*LN(D4/D3) -> 3.805956182 | AQ4: =100*LN(E4/E3) -> 4.44378795 | AR4: =100*LN(F4/F3) -> 3.112135694 | AS4: =100*LN(G4/G3) -> 4.549603659 | AT4: =100*LN(H4/H3) -> 3.312844586 | AU4: =100*LN(I4/I3) -> 3.43483383 | AV4: =100*LN(J4/J3) -> 1.620268602 | AW4: =100*LN(K4/K3) -> 2.717897793 | AX4: =100*LN(L4/L3) -> 0.2844952132 | AY4: =100*LN(M4/M3) -> -0.004585157845 | AZ4: =100*LN(N4/N3) -> 10.14686352 | BA4: =100*LN(O4/O3) -> 2.754550385 | BB4: =100*LN(P4/P3) -> 0.70144961 | BC4: =100*LN(Q4/Q3) -> 6.913321252 | BD4: =100*LN(R4/R3) -> 3.006112952 | BE4: =100*LN(S4/S3) -> 5.265989966 | BF4: =100*LN(T4/T3) -> 3.408894891 | BH4: 2006 | BI4: 2009510 | BJ4: 2332 | BK4: 12565 | BL4: 27150 | BM4: 5600 | BN4: 30815 | BO4: 17461 | BP4: 2858 | BQ4: 6793 | BR4: 17680 | BS4: 17381 | BT4: 8432 | BU4: 110097 | BV4: 5914 | BW4: 5576 | BX4: 6313 | BY4: 28101 | BZ4: 305068 | CA4: 2314578 | CB4: 6945215 | CC4: 9145 | CD4: 46547 | CE4: 100814 | CF4: 20388 | CG4: 109997 | CH4: 62888 | CI4: 11217 | CJ4: 24175 | CK4: 64024 | CL4: 65155 | CM4: 32338 | CN4: 412854 | CO4: 21748 | CP4: 21437 | CQ4: 24936 | CR4: 103719 | CS4: 1131382 | CT4: 8076597 | CU4: 2006 | CV4: =CB4/BI4 -> 3.456173396 | CW4: =CC4/BJ4 -> 3.921526587 | CX4: =CD4/BK4 -> 3.704496618 | CY4: =CE4/BL4 -> 3.713222836 | CZ4: =CF4/BM4 -> 3.640714286 | DA4: =CG4/BN4 -> 3.569592731 | DB4: =CH4/BO4 -> 3.601626482 | DC4: =CI4/BP4 -> 3.924772568 | DD4: =CJ4/BQ4 -> 3.55881054 | DE4: =CK4/BR4 -> 3.621266968 | DF4: =CL4/BS4 -> 3.748633565 | DG4: =CM4/BT4 -> 3.835151803 | DH4: =CN4/BU4 -> 3.749911442 | DI4: =CO4/BV4 -> 3.677375719 | DJ4: =CP4/BW4 -> 3.844512195 | DK4: =CQ4/BX4 -> 3.949944559 | DL4: =CR4/BY4 -> 3.690936266 | DM4: =CS4/BZ4 -> 3.70862234 | DN4: =CT4/CA4 -> 3.489446888
A5: 1988 | B5: 4648463 | C5: 4516 | D5: 26490 | E5: 44441 | F5: 10237 | G5: 63436 | H5: 34677 | I5: 4878 | J5: 18130 | K5: 36696 | L5: 16720 | M5: 21823 | N5: 180443 | O5: 10335 | P5: 9243 | Q5: 10864 | R5: 65917 | S5: 558846 | T5: 5207309 | U5: 89.26804613 | V5: 0.08672425623 | W5: 0.5087080486 | X5: 0.8534350468 | Y5: 0.1965890636 | Z5: 1.218210788 | AA5: 0.6659293697 | AB5: 0.09367602345 | AC5: 0.3481644742 | AD5: 0.7047017951 | AE5: 0.3210871489 | AF5: 0.4190840221 | AG5: 3.465187105 | AH5: 0.1984710337 | AI5: 0.1775005094 | AJ5: 0.2086298316 | AK5: 1.265855358 | AL5: 10.73195387 | AM5: 100 | AN5: 3.192826043 | AO5: 2.511342743 | AP5: 3.628655466 | AQ5: 4.31771355 | AR5: 3.135488527 | AS5: 4.25075263 | AT5: 3.235447048 | AU5: 3.525972853 | AV5: 1.517243655 | AW5: 2.670507334 | AX5: 1.058210933 | AY5: 0.06417308618 | AZ5: 9.097362551 | BA5: 2.816258341 | BB5: 0.9457106192 | BC5: 6.502955969 | BD5: 2.860745189 | BE5: =100*LN(S5/S4) -> 4.989796988 | BF5: 3.38413662 | BH5: 2007 | BI5: 2059971 | BJ5: 2420 | BK5: 12997 | BL5: 28166 | BM5: 5791 | BN5: 31822 | BO5: 18023 | BP5: 2973 | BQ5: 6968 | BR5: 18276 | BS5: 18055 | BT5: 8688 | BU5: 114075 | BV5: 6121 | BW5: 5787 | BX5: 6567 | BY5: 28954 | BZ5: 315683 | CA5: 2375654 | CB5: 7050228 | CC5: 9390 | CD5: 47684 | CE5: 103572 | CF5: 20874 | CG5: 112485 | CH5: 64280 | CI5: 11555 | CJ5: 24557 | CK5: 65538 | CL5: 67021 | CM5: 32993 | CN5: 423603 | CO5: 22287 | CP5: 22034 | CQ5: 25684 | CR5: 105831 | CS5: 1159388 | CT5: 8209616 | CU5: 2007 | CV5: 3.422488957 | CW5: 3.880165289 | CX5: 3.668846657 | CY5: 3.67719946 | CZ5: 3.604558798 | DA5: 3.534818679 | DB5: 3.566553848 | DC5: 3.886646485 | DD5: 3.524253731 | DE5: 3.586014445 | DF5: 3.712046525 | DG5: 3.797536832 | DH5: 3.713372781 | DI5: 3.64107172 | DJ5: 3.807499568 | DK5: 3.911070504 | DL5: 3.65514264 | DM5: 3.672633623 | DN5: 3.455728822
A6: 1989 | B6: 4797533 | C6: 4631 | D6: 27439 | E6: 46406 | F6: 10562 | G6: 66028 | H6: 35815 | I6: 5056 | J6: 18394 | K6: 37706 | L6: 17108 | M6: 21878 | N6: 195896 | O6: 10646 | P6: 9374 | Q6: 11546 | R6: 67764 | S6: 586249 | T6: 5383782 | U6: 89.11083324 | V6: 0.08601759878 | W6: 0.5096603094 | X6: 0.8619591209 | Y6: 0.1961817919 | Z6: 1.226424101 | AA6: 0.6652386742 | AB6: 0.0939116777 | AC6: 0.3416557357 | AD6: 0.7003626818 | AE6: 0.3177691816 | AF6: 0.4063686085 | AG6: 3.638631728 | AH6: 0.1977420334 | AI6: 0.1741155195 | AJ6: 0.2144589064 | AK6: 1.258669092 | AL6: 10.88916676 | AM6: 100 | AN6: 3.156520013 | AO6: 2.514618121 | AP6: 3.519805576 | AQ6: 4.326629445 | AR6: 3.125404635 | AS6: 4.004737085 | AT6: 3.229015709 | AU6: 3.584035705 | AV6: 1.445649971 | AW6: 2.715147569 | AX6: 2.294058271 | AY6: 0.2517106201 | AZ6: 8.216896773 | BA6: 2.964804162 | BB6: 1.407339122 | BC6: 6.088448582 | BD6: 2.763470562 | BE6: 4.787067075 | BF6: 3.332788557 | BH6: 2008 | BI6: 2111176 | BJ6: 2512 | BK6: 13438 | BL6: 29209 | BM6: 5989 | BN6: 32837 | BO6: 18587 | BP6: 3091 | BQ6: 7147 | BR6: 18879 | BS6: 18741 | BT6: 8951 | BU6: 118122 | BV6: 6335 | BW6: 6005 | BX6: 6825 | BY6: 29816 | BZ6: 326484 | CA6: 2437660 | CB6: 7155052 | CC6: 9652 | CD6: 48817 | CE6: 106356 | CF6: 21376 | CG6: 114943 | CH6: 65645 | CI6: 11896 | CJ6: 24945 | CK6: 67047 | CL6: 68891 | CM6: 33660 | CN6: 434358 | CO6: 22842 | CP6: 22638 | CQ6: 26438 | CR6: 107918 | CS6: 1187422 | CT6: 8342474 | CU6: 2008 | CV6: 3.389130987 | CW6: 3.842356688 | CX6: 3.632757851 | CY6: 3.641206477 | CZ6: 3.569210219 | DA6: 3.500411122 | DB6: 3.531769516 | DC6: 3.848592688 | DD6: 3.49027564 | DE6: 3.551406324 | DF6: 3.675951123 | DG6: 3.76047369 | DH6: 3.677198151 | DI6: 3.605682715 | DJ6: 3.769858451 | DK6: 3.873699634 | DL6: 3.619466058 | DM6: 3.636999057 | DN6: 3.422328791
A7: 1990 | B7: 4947894 | C7: 4767 | D7: 28390 | E7: 48488 | F7: 10920 | G7: 68567 | H7: 37020 | I7: 5256 | J7: 18654 | K7: 38789 | L7: 17786 | M7: 21991 | N7: 211139 | O7: 10991 | P7: 9569 | Q7: 12232 | R7: 69615 | S7: 614174 | T7: 5562068 | U7: 88.95781209 | V7: 0.08570553255 | W7: 0.5104216633 | X7: 0.8717620856 | Y7: 0.1963298543 | Z7: 1.232760908 | AA7: 0.6655797808 | AB7: 0.09449722657 | AC7: 0.3353788555 | AD7: 0.697384498 | AE7: 0.3197731491 | AF7: 0.3953745262 | AG7: 3.796052116 | AH7: 0.1976063579 | AI7: 0.1720403274 | AJ7: 0.2199182031 | AK7: 1.251602821 | AL7: 11.04218791 | AM7: 100 | AN7: 3.086020405 | AO7: 2.894434872 | AP7: 3.407161144 | AQ7: 4.388758343 | AR7: 3.333331603 | AS7: 3.773247494 | AT7: 3.309150708 | AU7: 3.879462434 | AV7: 1.403607582 | AW7: 2.83174683 | AX7: 3.886544061 | AY7: 0.5151713051 | AZ7: 7.49327782 | BA7: 3.189252134 | BB7: 2.05888073 | BC7: 5.771641199 | BD7: 2.694898088 | BE7: 4.653366162 | BF7: 3.257888037 | BH7: 2009 | BI7: 2163106 | BJ7: 2603 | BK7: 13887 | BL7: 30274 | BM7: 6188 | BN7: 33868 | BO7: 19165 | BP7: 3212 | BQ7: 7327 | BR7: 19493 | BS7: 19447 | BT7: 9219 | BU7: 122248 | BV7: 6549 | BW7: 6228 | BX7: 7090 | BY7: 30691 | BZ7: 337489 | CA7: 2500595 | CB7: 7259594 | CC7: 9909 | CD7: 49962 | CE7: 109157 | CF7: 21874 | CG7: 117395 | CH7: 67028 | CI7: 12240 | CJ7: 25319 | CK7: 68545 | CL7: 70787 | CM7: 34331 | CN7: 445145 | CO7: 23386 | CP7: 23251 | CQ7: 27189 | CR7: 110007 | CS7: 1215525 | CT7: 8475119 | CU7: 2009 | CV7: 3.356097205 | CW7: 3.806761429 | CX7: 3.597753294 | CY7: 3.605635199 | CZ7: 3.53490627 | DA7: 3.466251329 | DB7: 3.497417167 | DC7: 3.810709838 | DD7: 3.45557527 | DE7: 3.516390499 | DF7: 3.639995886 | DG7: 3.72393969 | DH7: 3.641327465 | DI7: 3.570926859 | DJ7: 3.73330122 | DK7: 3.8348378 | DL7: 3.584340686 | DM7: 3.601672943 | DN7: 3.389240961
A8: 1991 | B8: 5105937 | C8: 4911 | D8: 29336 | E8: 50688 | F8: 11295 | G8: 70989 | H8: 38271 | I8: 5465 | J8: 18895 | K8: 39925 | L8: 18812 | M8: 22167 | N8: 225853 | O8: 11373 | P8: 9830 | Q8: 12922 | R8: 71412 | S8: 642144 | T8: 5748081 | U8: 88.82854991 | V8: 0.08543720939 | W8: 0.510361632 | X8: 0.8818247342 | Y8: 0.1965003625 | Z8: 1.235003473 | AA8: 0.6658048138 | AB8: 0.09507520858 | AC8: 0.3287184018 | AD8: 0.6945796345 | AE8: 0.3272744417 | AF8: 0.3856417472 | AG8: 3.929189585 | AH8: 0.1978573371 | AI8: 0.1710135957 | AJ8: 0.2248054612 | AK8: 1.242362451 | AL8: 11.17145009 | AM8: 100 | AN8: 3.144194881 | AO8: 2.976041083 | AP8: 3.277846028 | AQ8: 4.437285154 | AR8: 3.37641796 | AS8: 3.471356603 | AT8: 3.323412208 | AU8: 3.899384045 | AV8: 1.28367365 | AW8: 2.886599282 | AX8: 5.608333311 | AY8: 0.7971417726 | AZ8: 6.736766081 | BA8: 3.416536912 | BB8: 2.691022736 | BC8: 5.487581651 | BD8: 2.548586109 | BE8: 4.453430198 | BF8: 3.289607842 | BH8: 2010 | BI8: 2215746 | BJ8: 2698 | BK8: 14344 | BL8: 31367 | BM8: 6391 | BN8: 34916 | BO8: 19750 | BP8: 3334 | BQ8: 7507 | BR8: 20115 | BS8: 20168 | BT8: 9492 | BU8: 126459 | BV8: 6770 | BW8: 6455 | BX8: 7357 | BY8: 31575 | BZ8: 348698 | CA8: 2564444 | CB8: 7363783 | CC8: 10166 | CD8: 51098 | CE8: 111999 | CF8: 22370 | CG8: 119852 | CH8: 68398 | CI8: 12586 | CJ8: 25689 | CK8: 70043 | CL8: 72700 | CM8: 35003 | CN8: 455992 | CO8: 23939 | CP8: 23865 | CQ8: 27942 | CR8: 112067 | CS8: 1243709 | CT8: 8607492 | CU8: 2010 | CV8: 3.323387699 | CW8: 3.767976279 | CX8: 3.562325711 | CY8: 3.570599675 | CZ8: 3.500234705 | DA8: 3.432581052 | DB8: 3.463189873 | DC8: 3.775044991 | DD8: 3.422006128 | DE8: 3.482127765 | DF8: 3.604720349 | DG8: 3.68763169 | DH8: 3.605848536 | DI8: 3.536041359 | DJ8: 3.697134005 | DK8: 3.798015495 | DL8: 3.549231987 | DM8: 3.566722493 | DN8: 3.356474932
A9: 1992 | B9: 5261693 | C9: 5077 | D9: 30305 | E9: 53086 | F9: 11719 | G9: 73366 | H9: 39628 | I9: 5712 | J9: 19135 | K9: 41181 | L9: 20274 | M9: 22443 | N9: 240349 | O9: 11814 | P9: 10186 | Q9: 13618 | R9: 73261 | S9: 671154 | T9: 5932847 | U9: 88.68748849 | V9: 0.08557442995 | W9: 0.5108002954 | X9: 0.8947812071 | Y9: 0.1975274265 | Z9: 1.236606978 | AA9: 0.6679423892 | AB9: 0.09627755444 | AC9: 0.3225264363 | AD9: 0.6941186921 | AE9: 0.3417246391 | AF9: 0.3782838155 | AG9: 4.051157901 | AH9: 0.1991286814 | AI9: 0.17168823 | AJ9: 0.2295356681 | AK9: 1.23483717 | AL9: 11.31251151 | AM9: 100 | AN9: 3.004885776 | AO9: 3.324294891 | AP9: 3.249728463 | AQ9: 4.622404381 | AR9: 3.685130636 | AS9: 3.293567758 | AT9: 3.484350989 | AU9: 4.420510341 | AV9: 1.262178208 | AW9: 3.097429084 | AX9: 7.484431288 | AY9: 1.237406508 | AZ9: 6.220768857 | BA9: 3.804314368 | BB9: 3.55752943 | BC9: 5.246116192 | BD9: 2.556248482 | BE9: 4.418604123 | BF9: 3.1638139 | BH9: 2011 | BI9: 2269162 | BJ9: 2795 | BK9: 14810 | BL9: 32491 | BM9: 6601 | BN9: 35987 | BO9: 20348 | BP9: 3463 | BQ9: 7695 | BR9: 20754 | BS9: 20914 | BT9: 9771 | BU9: 130769 | BV9: 6994 | BW9: 6689 | BX9: 7640 | BY9: 32481 | BZ9: 360202 | CA9: 2629364 | CB9: 7467805 | CC9: 10433 | CD9: 52245 | CE9: 114883 | CF9: 22880 | CG9: 122321 | CH9: 69785 | CI9: 12944 | CJ9: 26077 | CK9: 71560 | CL9: 74657 | CM9: 35682 | CN9: 466939 | CO9: 24487 | CP9: 24485 | CQ9: 28732 | CR9: 114159 | CS9: 1272269 | CT9: 8740074 | CU9: 2011 | CV9: 3.290996853 | CW9: 3.73273703 | CX9: 3.527683997 | CY9: 3.535840694 | CZ9: 3.466141494 | DA9: 3.399032984 | DB9: 3.429575388 | DC9: 3.737799596 | DD9: 3.388823912 | DE9: 3.448010022 | DF9: 3.569714067 | DG9: 3.651826835 | DH9: 3.570716301 | DI9: 3.501143838 | DJ9: 3.660487367 | DK9: 3.760732984 | DL9: 3.514639328 | DM9: 3.532098656 | DN9: 3.324025886
A10: 1993 | B10: 5413486 | C10: 5274 | D10: 31314 | E10: 55743 | F10: 12185 | G10: 75711 | H10: 41122 | I10: 5992 | J10: 19381 | K10: 42580 | L10: 22250 | M10: 22848 | N10: 254626 | O10: 12326 | P10: 10654 | Q10: 14331 | R10: 75164 | S10: 701501 | T10: 6114987 | U10: 88.52816858 | V10: 0.08624711712 | W10: 0.5120861254 | X10: 0.9115800246 | Y10: 0.1992645283 | Z10: 1.238122011 | AA10: 0.6724789439 | AB10: 0.09798876106 | AC10: 0.3169426198 | AD10: 0.6963220036 | AE10: 0.3638601358 | AF10: 0.3736393879 | AG10: 4.163966334 | AH10: 0.2015703386 | AI10: 0.1742276803 | AJ10: 0.234358634 | AK10: 1.229176775 | AL10: 11.47183142 | AM10: 100 | AN10: 2.844040956 | AO10: 3.806855197 | AP10: 3.275256649 | AQ10: 4.883860192 | AR10: 3.89942308 | AS10: 3.146284728 | AT10: 3.700731899 | AU10: 4.785602118 | AV10: 1.277408584 | AW10: 3.340767453 | AX10: 9.300273165 | AY10: 1.78848246 | AZ10: 5.770376815 | BA10: 4.242558366 | BB10: 4.492118003 | BC10: 5.103257602 | BD10: 2.564398566 | BE10: 4.422370622 | BF10: 3.023844424 | BH10: 2012 | BI10: 2323268 | BJ10: 2897 | BK10: 15286 | BL10: 33641 | BM10: 6813 | BN10: 37072 | BO10: 20957 | BP10: 3597 | BQ10: 7882 | BR10: 21404 | BS10: 21685 | BT10: 10054 | BU10: 135161 | BV10: 7226 | BW10: 6930 | BX10: 7924 | BY10: 33391 | BZ10: 371920 | CA10: 2695188 | CB10: 7571344 | CC10: 10708 | CD10: 53399 | CE10: 117787 | CF10: 23385 | CG10: 124778 | CH10: 71171 | CI10: 13312 | CJ10: 26451 | CK10: 73088 | CL10: 76651 | CM10: 36353 | CN10: 477919 | CO10: 25054 | CP10: 25122 | CQ10: 29511 | CR10: 116218 | CS10: 1300907 | CT10: 8872251 | CU10: 2012 | CV10: 3.258919763 | CW10: 3.696237487 | CX10: 3.493327228 | CY10: 3.501293065 | CZ10: 3.432408631 | DA10: 3.365828658 | DB10: 3.396049053 | DC10: 3.700861829 | DD10: 3.355874144 | DE10: 3.414688843 | DF10: 3.534747521 | DG10: 3.615774816 | DH10: 3.535923824 | DI10: 3.467201771 | DJ10: 3.625108225 | DK10: 3.724255427 | DL10: 3.480518703 | DM10: 3.497814046 | DN10: 3.291885761
A11: 1994 | B11: 5559853 | C11: 5500 | D11: 32369 | E11: 58671 | F11: 12712 | G11: 78036 | H11: 42744 | I11: 6313 | J11: 19641 | K11: 44132 | L11: 24791 | M11: 23386 | N11: 268703 | O11: 12915 | P11: 11245 | Q11: 15060 | R11: 77149 | S11: 733367 | T11: 6293220 | U11: 88.34671281 | V11: 0.08739564166 | W11: 0.5143471863 | X11: 0.9322890349 | Y11: 0.201995163 | Z11: 1.240001144 | AA11: 0.6792071467 | AB11: 0.1003143065 | AC11: 0.3120977814 | AD11: 0.7012626287 | AE11: 0.3939318822 | AF11: 0.3716062683 | AG11: 4.269722018 | AH11: 0.2052208567 | AI11: 0.1786843619 | AJ11: 0.239305157 | AK11: 1.225906611 | AL11: 11.65328719 | AM11: 100 | AN11: 2.667842143 | AO11: 4.195900431 | AP11: 3.313589277 | AQ11: 5.119372536 | AR11: 4.234074216 | AS11: 3.024679835 | AT11: 3.868557656 | AU11: 5.218575317 | AV11: 1.332601341 | AW11: 3.580048343 | AX11: 10.81386755 | AY11: 2.327396656 | AZ11: 5.381087854 | BA11: 4.667857401 | BB11: 5.398817692 | BC11: 4.96171993 | BD11: 2.606622404 | BE11: 4.442393366 | BF11: 2.87302202 | BH11: 2013 | BI11: 2378058 | BJ11: 2999 | BK11: 15770 | BL11: 34818 | BM11: 7031 | BN11: 38171 | BO11: 21578 | BP11: 3732 | BQ11: 8068 | BR11: 22062 | BS11: 22472 | BT11: 10341 | BU11: 139655 | BV11: 7459 | BW11: 7175 | BX11: 8223 | BY11: 34315 | BZ11: 383869 | CA11: 2761927 | CB11: 7674367 | CC11: 10977 | CD11: 54550 | CE11: 120717 | CF11: 23895 | CG11: 127230 | CH11: 72569 | CI11: 13678 | CJ11: 26810 | CK11: 74601 | CL11: 78654 | CM11: 37033 | CN11: 488997 | CO11: 25610 | CP11: 25756 | CQ11: 30324 | CR11: 118269 | CS11: 1329670 | CT11: 9004037 | CU11: 2013 | CV11: 3.227157201 | CW11: 3.660220073 | CX11: 3.459099556 | CY11: 3.46708599 | CZ11: 3.398520836 | DA11: 3.333158681 | DB11: 3.363101307 | DC11: 3.66505895 | DD11: 3.323004462 | DE11: 3.381425075 | DF11: 3.500089 | DG11: 3.581181704 | DH11: 3.501464323 | DI11: 3.433436117 | DJ11: 3.589686411 | DK11: 3.687705217 | DL11: 3.446568556 | DM11: 3.463863974 | DN11: 3.260056113
A12: 1995 | B12: 5699655 | C12: 5755 | D12: 33472 | E12: 61873 | F12: 13298 | G12: 80473 | H12: 44406 | I12: 6668 | J12: 19916 | K12: 45646 | L12: 27829 | M12: 24043 | N12: 282694 | O12: 13584 | P12: 11947 | Q12: 15815 | R12: 79237 | S12: 766656 | T12: 6466311 | U12: 88.14384276 | V12: 0.08899974035 | W12: 0.5176367174 | X12: 0.9568515959 | Y12: 0.205650486 | Z12: 1.244496282 | AA12: 0.6867284917 | AB12: 0.1031190736 | AC12: 0.3079963212 | AD12: 0.7059048041 | AE12: 0.4303690311 | AF12: 0.3718194191 | AG12: 4.37179715 | AH12: 0.2100734097 | AI12: 0.1847575843 | AJ12: 0.2445753073 | AK12: 1.225381829 | AL12: 11.85615724 | AM12: 100 | AN12: 2.483397763 | AO12: 4.532094994 | AP12: 3.350809378 | AQ12: 5.313832986 | AR12: 4.506721875 | AS12: 3.075146576 | AT12: 3.814576079 | AU12: 5.47089655 | AV12: 1.390421065 | AW12: =(AW11+AW13)/2 -> 3.640514358 | AX12: 11.55979584 | AY12: 2.770634118 | AZ12: 5.075836014 | BA12: 5.050320302 | BB12: 6.055661542 | BC12: 4.891663439 | BD12: 2.670474448 | BE12: 4.439194139 | BF12: 2.713291248 | BH12: 2014 | BI12: 2433532 | BJ12: 3105 | BK12: 16263 | BL12: 36021 | BM12: 7251 | BN12: 39287 | BO12: 22210 | BP12: 3874 | BQ12: 8257 | BR12: 22731 | BS12: 23279 | BT12: 10635 | BU12: 144231 | BV12: 7702 | BW12: 7424 | BX12: 8529 | BY12: 35252 | BZ12: 396051 | CA12: 2829583 | CB12: 7776847 | CC12: 11255 | CD12: 55708 | CE12: 123675 | CF12: 24407 | CG12: 129671 | CH12: 73961 | CI12: 14054 | CJ12: 27169 | CK12: 76113 | CL12: 80687 | CM12: 37711 | CN12: 500094 | CO12: 26187 | CP12: 26390 | CQ12: 31148 | CR12: 120310 | CS12: 1358540 | CT12: 9135387 | CU12: 2014 | CV12: 3.195703611 | CW12: 3.624798712 | CX12: 3.42544426 | CY12: 3.433413842 | CZ12: 3.36601848 | DA12: 3.300608344 | DB12: 3.330076542 | DC12: 3.62777491 | DD12: 3.290420249 | DE12: 3.348422859 | DF12: 3.466085313 | DG12: 3.545933239 | DH12: 3.467312852 | DI12: 3.400025967 | DJ12: 3.5546875 | DK12: 3.652010787 | DL12: 3.412856008 | DM12: 3.430214796 | DN12: 3.228527666
A13: 1996 | B13: 5828530 | C13: 6044 | D13: 34665 | E13: 65394 | F13: 13944 | G13: 83260 | H13: 46252 | I13: 7067 | J13: 20240 | K13: 47367 | L13: 31319 | M13: 24827 | N13: 292081 | O13: 14330 | P13: 12767 | Q13: 16613 | R13: 81515 | S13: 797685 | T13: 6626215 | U13: 87.96167948 | V13: 0.09121346047 | W13: 0.5231493394 | X13: 0.9868982519 | Y13: 0.2104368784 | Z13: 1.256524275 | AA13: 0.6980153828 | AB13: 0.1066521385 | AC13: 0.305453415 | AD13: 0.7148424855 | AE13: 0.4726529399 | AF13: 0.3746784552 | AG13: 4.407961408 | AH13: 0.2162622251 | AI13: 0.1926740983 | AJ13: 0.2507162837 | AK13: 1.230189482 | AL13: 12.03832052 | AM13: 100 | AN13: 2.235917779 | AO13: 4.899700224 | AP13: =(AP12+AP14)/2 -> 3.396486376 | AQ13: 5.5346614 | AR13: 4.743566024 | AS13: =(AS12+AS14)/2 -> 3.207662645 | AT13: =(AT12+AT14)/2 -> 3.856805197 | AU13: 5.811609682 | AV13: 1.613741564 | AW13: 3.700980373 | AX13: 11.81462997 | AY13: 3.208787674 | AZ13: =(AZ12+AZ14)/2 -> 4.84682067 | BA13: 5.346261227 | BB13: 6.6383516 | BC13: 4.922666465 | BD13: =(BD12+BD14)/2 -> 2.731852738 | BE13: =(BE12+BE14)/2 -> 4.442760228 | BF13: 2.44279754 | BH13: 2015 | BI13: 2489696 | BJ13: 3220 | BK13: 16767 | BL13: 37250 | BM13: 7475 | BN13: 40419 | BO13: 22849 | BP13: 4019 | BQ13: 8448 | BR13: 23411 | BS13: 24109 | BT13: 10939 | BU13: 148903 | BV13: 7951 | BW13: 7679 | BX13: 8842 | BY13: 36201 | BZ13: 408482 | CA13: 2898178 | CB13: 7878784 | CC13: 11557 | CD13: 56872 | CE13: 126646 | CF13: 24915 | CG13: 132107 | CH13: 75350 | CI13: 14442 | CJ13: 27526 | CK13: 77625 | CL13: 82751 | CM13: 38412 | CN13: 511262 | CO13: 26770 | CP13: 27032 | CQ13: 31978 | CR13: 122348 | CS13: 1387593 | CT13: 9266377 | CU13: 2015 | CV13: 3.164556637 | CW13: 3.589130435 | CX13: 3.391900757 | CY13: 3.399892617 | CZ13: 3.333110368 | DA13: 3.268438111 | DB13: 3.297737319 | DC13: 3.593431202 | DD13: 3.258285985 | DE13: 3.315749007 | DF13: 3.432369654 | DG13: 3.511472712 | DH13: 3.433523838 | DI13: 3.366872092 | DJ13: 3.520250033 | DK13: 3.616602579 | DL13: 3.379685644 | DM13: 3.396950172 | DN13: 3.197311207
A14: 1997 | B14: 5952563 | C14: 6352 | D14: 35879 | E14: 69080 | F14: 14624 | G14: 86088 | H14: 48091 | I14: 7482 | J14: 20579 | K14: 49103 | L14: 35099 | M14: 25660 | N14: 305885 | O14: 15120 | P14: 13655 | Q14: 17432 | R14: 83824 | S14: 833953 | T14: 6786516 | U14: 87.71161816 | V14: 0.09359736277 | W14: 0.5286806957 | X14: 1.01790079 | Y14: 0.2154861198 | Z14: 1.268515391 | AA14: 0.7086257514 | AB14: 0.1102480271 | AC14: 0.3032336474 | AD14: 0.7235376738 | AE14: 0.5171873167 | AF14: 0.3781026966 | AG14: 4.507246428 | AH14: 0.22279473 | AI14: 0.2012078068 | AJ14: 0.256862284 | AK14: 1.235155122 | AL14: 12.28838184 | AM14: 100 | AN14: 2.105705862 | AO14: 4.970367953 | AP14: 3.442163373 | AQ14: 5.483474214 | AR14: 4.761470649 | AS14: 3.340178713 | AT14: 3.899034315 | AU14: 5.706407422 | AV14: 1.661029394 | AW14: 3.599434902 | AX14: 11.39476979 | AY14: 3.300158855 | AZ14: 4.617805326 | BA14: 5.366312891 | BB14: 6.724203809 | BC14: 4.812207624 | BD14: 2.793231027 | BE14: 4.446326318 | BF14: 2.390395109 | BH14: 2016 | BI14: 2546501 | BJ14: 3333 | BK14: 17278 | BL14: 38509 | BM14: 7705 | BN14: 41563 | BO14: 23500 | BP14: 4168 | BQ14: 8640 | BR14: 24096 | BS14: 24961 | BT14: 11249 | BU14: 153657 | BV14: 8200 | BW14: 7947 | BX14: 9165 | BY14: 37164 | BZ14: 421135 | CA14: 2967636 | CB14: 7980001 | CC14: 11844 | CD14: 58035 | CE14: 129652 | CF14: 25430 | CG14: 134521 | CH14: 76742 | CI14: 14832 | CJ14: 27880 | CK14: 79117 | CL14: 84842 | CM14: 39118 | CN14: 522440 | CO14: 27337 | CP14: 27702 | CQ14: 32821 | CR14: 124375 | CS14: 1416688 | CT14: 9396689 | CU14: 2016 | CV14: 3.133712101 | CW14: 3.553555356 | CX14: 3.358895706 | CY14: 3.366797372 | CZ14: 3.30045425 | DA14: 3.236556553 | DB14: 3.265617021 | DC14: 3.558541267 | DD14: 3.226851852 | DE14: 3.283408035 | DF14: 3.398982413 | DG14: 3.477464664 | DH14: 3.40004035 | DI14: 3.333780488 | DJ14: 3.485843715 | DK14: 3.581123841 | DL14: 3.346652675 | DM14: 3.363975922 | DN14: 3.166388668
A15: 1998 | B15: 6072487 | C15: 6672 | D15: 37105 | E15: 72864 | F15: 15326 | G15: 88903 | H15: 49909 | I15: 7921 | J15: 20935 | K15: 50837 | L15: 39064 | M15: 26515 | N15: 319329 | O15: 15942 | P15: 14594 | Q15: 18258 | R15: 86134 | S15: 870308 | T15: 6942795 | U15: 87.46458739 | V15: 0.09609962558 | W15: 0.5344389399 | X15: 1.049490875 | Y15: 0.2207468318 | Z15: 1.280507346 | AA15: 0.7188603437 | AB15: 0.1140894985 | AC15: 0.3015356207 | AD15: 0.7322267185 | AE15: 0.5626552419 | AF15: 0.3819067105 | AG15: 4.599430057 | AH15: 0.2296193392 | AI15: 0.2102035275 | AJ15: 0.2629776625 | AK15: 1.240624273 | AL15: 12.53541261 | AM15: 100 | AN15: 1.994635798 | AO15: 4.914994111 | AP15: 3.35995653 | AQ15: 5.33294366 | AR15: 4.688671784 | AS15: 3.217585883 | AT15: 3.71062978 | AU15: 5.701732456 | AV15: 1.715126111 | AW15: 3.47043032 | AX15: 10.70286867 | AY15: 3.27772514 | AZ15: 4.301270495 | BA15: 5.293876525 | BB15: 6.650473042 | BC15: 4.62957425 | BD15: 2.718486048 | BE15: 4.267012613 | BF15: 2.276672882 | BH15: 2017 | BI15: 2604026 | BJ15: 3450 | BK15: 17797 | BL15: 39800 | BM15: 7938 | BN15: 42730 | BO15: 24166 | BP15: 4320 | BQ15: 8833 | BR15: 24796 | BS15: 25835 | BT15: 11563 | BU15: 158518 | BV15: 8460 | BW15: 8220 | BX15: 9497 | BY15: 38143 | BZ15: 434066 | CA15: 3038092 | CB15: 8080732 | CC15: 12140 | CD15: 59199 | CE15: 132690 | CF15: 25943 | CG15: 136953 | CH15: 78145 | CI15: 15224 | CJ15: 28227 | CK15: 80618 | CL15: 86955 | CM15: 39820 | CN15: 533716 | CO15: 27932 | CP15: 28373 | CQ15: 33677 | CR15: 126409 | CS15: 1446021 | CT15: 9526753 | CU15: 2017 | CV15: 3.103168709 | CW15: 3.51884058 | CX15: 3.326347137 | CY15: 3.333919598 | CZ15: 3.268203578 | DA15: 3.205078399 | DB15: 3.233675412 | DC15: 3.524074074 | DD15: 3.195630024 | DE15: 3.251250202 | DF15: 3.365782853 | DG15: 3.443742973 | DH15: 3.366911013 | DI15: 3.301654846 | DJ15: 3.451703163 | DK15: 3.546067179 | DL15: 3.314081221 | DM15: 3.331339013 | DN15: 3.135768436
A16: 1999 | B16: 6189031 | C16: 7003 | D16: 38314 | E16: 76708 | F16: 16038 | G16: 91679 | H16: 51683 | I16: 8367 | J16: 21306 | K16: 52552 | L16: 43107 | M16: 27351 | N16: 332317 | O16: 16773 | P16: 15571 | Q16: 19096 | R16: 88414 | S16: 906279 | T16: 7095310 | U16: 87.22706971 | V16: 0.09869899976 | W16: 0.5399905008 | X16: 1.081108507 | Y16: 0.2260366355 | Z16: 1.29210704 | AA16: 0.7284107389 | AB16: 0.117922966 | AC16: 0.3002828629 | AD16: 0.7406582658 | AE16: 0.6075421652 | AF16: 0.3854799861 | AG16: 4.683614951 | AH16: 0.2363955909 | AI16: 0.219454823 | AJ16: 0.2691355276 | AK16: 1.246090728 | AL16: 12.77293029 | AM16: 100 | AN16: 1.901029054 | AO16: 4.841896362 | AP16: 3.206363322 | AQ16: 5.141131553 | AR16: 4.541017384 | AS16: 3.074745767 | AT16: 3.492756011 | AU16: 5.477793683 | AV16: 1.756632372 | AW16: 3.317871966 | AX16: 9.848407016 | AY16: 3.104248068 | AZ16: 3.986741337 | BA16: 5.081331471 | BB16: 6.479972452 | BC16: 4.487554889 | BD16: 2.6126105 | BE16: 4.050003367 | BF16: 2.172957121 | BH16: 2018 | BI16: 2662301 | BJ16: 3572 | BK16: 18331 | BL16: 41119 | BM16: 8176 | BN16: 43911 | BO16: 24841 | BP16: 4479 | BQ16: 9029 | BR16: 25504 | BS16: 26735 | BT16: 11888 | BU16: 163461 | BV16: 8723 | BW16: 8496 | BX16: 9840 | BY16: 39133 | BZ16: 447238 | CA16: 3109539 | CB16: 8181046 | CC16: 12445 | CD16: 60380 | CE16: 135752 | CF16: 26464 | CG16: 139363 | CH16: 79544 | CI16: 15628 | CJ16: 28566 | CK16: 82116 | CL16: 89107 | CM16: 40534 | CN16: 544997 | CO16: 28518 | CP16: 29041 | CQ16: 34556 | CR16: 128426 | CS16: 1475437 | CT16: 9656483 | CU16: 2018 | CV16: 3.072923009 | CW16: 3.484042553 | CX16: 3.293873766 | CY16: 3.301442156 | CZ16: 3.236790607 | DA16: 3.173760561 | DB16: 3.202125518 | DC16: 3.48917169 | DD16: 3.163805516 | DE16: 3.219730238 | DF16: 3.33297176 | DG16: 3.409656797 | DH16: 3.334110277 | DI16: 3.269288089 | DJ16: 3.418196798 | DK16: 3.511788618 | DL16: 3.281782639 | DM16: 3.298997402 | DN16: 3.10543878
A17: 2000 | B17: 6302882 | C17: 7329 | D17: 39515 | E17: 80551 | F17: 16749 | G17: 94381 | H17: 53392 | I17: 8818 | J17: 21702 | K17: 54234 | L17: 47098 | M17: 28146 | N17: 344760 | O17: 17606 | P17: 16559 | Q17: 19953 | R17: 90649 | S17: 941442 | T17: 7244324 | U17: 87.00441891 | V17: 0.1011688599 | W17: 0.5454615227 | X17: 1.111918793 | Y17: 0.2312016967 | Z17: 1.302826875 | AA17: 0.7370183885 | AB17: 0.1217228826 | AC17: 0.2995724653 | AD17: 0.7486412811 | AE17: 0.6501365759 | AF17: 0.3885248644 | AG17: 4.759036178 | AH17: 0.2430316479 | AI17: 0.2285789537 | AJ17: 0.2754294259 | AK17: 1.251310681 | AL17: 12.99558109 | AM17: 100 | AN17: 1.822845748 | AO17: 4.550045227 | AP17: 3.086498201 | AQ17: 4.888451878 | AR17: 4.337764861 | AS17: 2.90464363 | AT17: 3.253201468 | AU17: 5.249968962 | AV17: 1.841569901 | AW17: 3.150486245 | AX17: 8.854514036 | AY17: 2.86521573 | AZ17: 3.675919014 | BA17: 4.846930233 | BB17: 6.15195508 | BC17: 4.390061893 | BD17: 2.496457756 | BE17: 3.806553672 | BF17: 2.078426329 | BH17: 2019 | BI17: 2721361 | BJ17: 3694 | BK17: 18870 | BL17: 42463 | BM17: 8418 | BN17: 45106 | BO17: 25524 | BP17: 4643 | BQ17: 9226 | BR17: 26224 | BS17: 27657 | BT17: 12218 | BU17: 168484 | BV17: 8995 | BW17: 8783 | BX17: 10191 | BY17: 40136 | BZ17: 460632 | CA17: 3181993 | CB17: 8281029 | CC17: 12749 | CD17: 61549 | CE17: 138827 | CF17: 26978 | CG17: 141760 | CH17: 80935 | CI17: 16048 | CJ17: 28908 | CK17: 83611 | CL17: 91285 | CM17: 41254 | CN17: 556268 | CO17: 29120 | CP17: 29733 | CQ17: 35441 | CR17: 130430 | CS17: 1504896 | CT17: 9785925 | CU17: 2019 | CV17: 3.04297335 | CW17: 3.451272334 | CX17: 3.261738209 | CY17: 3.269363917 | CZ17: 3.20479924 | DA17: 3.142819137 | DB17: 3.170937157 | DC17: 3.456385957 | DD17: 3.133318881 | DE17: 3.188338926 | DF17: 3.300611057 | DG17: 3.376493698 | DH17: 3.301607274 | DI17: 3.237354086 | DJ17: 3.385289764 | DK17: 3.477676381 | DL17: 3.249701017 | DM17: 3.267024436 | DN17: 3.075407457
A18: 2001 | B18: 6412401 | C18: 7660 | D18: 40701 | E18: 84392 | F18: 17458 | G18: 97068 | H18: 55062 | I18: 9267 | J18: 22108 | K18: 55910 | L18: 50955 | M18: 28881 | N18: 356763 | O18: 18427 | P18: 17540 | Q18: 20815 | R18: 92860 | S18: 975867 | T18: 7388268 | U18: 86.79166755 | V18: 0.103677885 | W18: 0.5508868926 | X18: 1.142243351 | Y18: 0.23629354 | Z18: 1.313812655 | AA18: 0.7452626245 | AB18: 0.1254285849 | AC18: 0.2992311595 | AD18: 0.7567402807 | AE18: 0.6896744948 | AF18: 0.3909035243 | AG18: 4.828777191 | AH18: 0.2494089278 | AI18: 0.2374034077 | AJ18: 0.2817304407 | AK18: 1.256857494 | AL18: 13.20833245 | AM18: 100 | AN18: 1.722678267 | AO18: 4.417290281 | AP18: 2.957231551 | AQ18: 4.658208618 | AR18: 4.145944132 | AS18: 2.807198212 | AT18: 3.079890106 | AU18: 4.966461567 | AV18: 1.853511177 | AW18: 3.043523699 | AX18: 7.8712353 | AY18: 2.577869089 | AZ18: 3.4223173 | BA18: 4.557722731 | BB18: 5.755422628 | BC18: 4.229437268 | BD18: 2.409807689 | BE18: 3.591356426 | BF18: 1.967507103 | BH18: 2020 | BI18: 2781257 | BJ18: 3822 | BK18: 19416 | BL18: 43837 | BM18: 8664 | BN18: 46317 | BO18: 26216 | BP18: 4809 | BQ18: 9422 | BR18: 26950 | BS18: 28596 | BT18: 12554 | BU18: 173592 | BV18: 9268 | BW18: 9075 | BX18: 10554 | BY18: 41148 | BZ18: 474240 | CA18: 3255497 | CB18: 8380801 | CC18: 13060 | CD18: 62714 | CE18: 141918 | CF18: 27496 | CG18: 144147 | CH18: 82322 | CI18: 16457 | CJ18: 29236 | CK18: 85089 | CL18: 93460 | CM18: 41973 | CN18: 567547 | CO18: 29712 | CP18: 30420 | CQ18: 36344 | CR18: 132417 | CS18: 1534312 | CT18: 9915113 | CU18: 2020 | CV18: 3.013314124 | CW18: 3.417059131 | CX18: 3.230016481 | CY18: 3.237402194 | CZ18: 3.173591874 | DA18: 3.112183432 | DB18: 3.140143424 | DC18: 3.422125182 | DD18: 3.102950541 | DE18: 3.15729128 | DF18: 3.268289271 | DG18: 3.343396527 | DH18: 3.269430619 | DI18: 3.205869659 | DJ18: 3.352066116 | DK18: 3.443623271 | DL18: 3.218066492 | DM18: 3.235307018 | DN18: 3.04565263
A19: 2002 | B19: 6520472 | C19: 7986 | D19: 41885 | E19: 88049 | F19: 18135 | G19: 99705 | H19: 56692 | I19: 9709 | J19: 22526 | K19: 57564 | L19: 54590 | M19: 29605 | N19: 368444 | O19: 19209 | P19: 18481 | Q19: 21677 | R19: 95041 | S19: 1009298 | T19: 7529770 | U19: 86.59589868 | V19: 0.1060590164 | W19: 0.5562586905 | X19: 1.169345146 | Y19: 0.2408440098 | Z19: 1.324144031 | AA19: 0.7529048032 | AB19: 0.1289415215 | AC19: 0.2991592041 | AD19: 0.7644855022 | AE19: 0.7249889439 | AF19: 0.3931726998 | AG19: 4.893164067 | AH19: 0.2551073937 | AI19: 0.2454391037 | AJ19: 0.2878839593 | AK19: 1.262203228 | AL19: 13.40410132 | AM19: 100 | AN19: 1.671299418 | AO19: 4.167802489 | AP19: 2.867510543 | AQ19: 4.242086731 | AR19: 3.804577642 | AS19: 2.680406234 | AT19: 2.917328424 | AU19: 4.659358778 | AV19: 1.873066365 | AW19: 2.915411727 | AX19: 6.890782551 | AY19: 2.475932652 | AZ19: 3.221703687 | BA19: 4.156193885 | BB19: 5.225919036 | BC19: 4.057790997 | BD19: 2.321539485 | BE19: 3.368401204 | BF19: 1.897116014 | BH19: 2021 | BI19: 2841917 | BJ19: 3884 | BK19: 19622 | BL19: 44450 | BM19: 8757 | BN19: 46717 | BO19: 26454 | BP19: 4893 | BQ19: 9452 | BR19: 27205 | BS19: 29037 | BT19: 12669 | BU19: 175665 | BV19: 9380 | BW19: 9208 | BX19: 10736 | BY19: 41441 | BZ19: 479570 | CA19: 3321487 | CB19: 8480124 | CC19: 13141 | CD19: 62758 | CE19: 142500 | CF19: 27518 | CG19: 143978 | CH19: 82259 | CI19: 16580 | CJ19: 29041 | CK19: 85059 | CL19: 93976 | CM19: 41946 | CN19: 568726 | CO19: 29775 | CP19: 30560 | CQ19: 36610 | CR19: 132060 | CS19: 1536487 | CT19: 10016611 | CU19: 2021 | CV19: 2.983944992 | CW19: 3.383367662 | CX19: 3.198348792 | CY19: 3.205849269 | CZ19: 3.142400365 | DA19: 3.081918788 | DB19: 3.109510849 | DC19: 3.388514204 | DD19: 3.072471435 | DE19: 3.126594376 | DF19: 3.236422495 | DG19: 3.31091641 | DH19: 3.237560129 | DI19: 3.174307036 | DJ19: 3.318853171 | DK19: 3.410022355 | DL19: 3.186699163 | DM19: 3.20388473 | DN19: 3.015700799
A20: 2003 | B20: 6627569 | C20: 8302 | D20: 43057 | E20: 91509 | F20: 18778 | G20: 102303 | H20: 58283 | I20: 10131 | J20: 22945 | K20: 59192 | L20: 57900 | M20: 30306 | N20: 379828 | O20: 19951 | P20: 19363 | Q20: 22522 | R20: 97211 | S20: 1041581 | T20: 7669150 | U20: 86.41856008 | V20: 0.1082518923 | W20: 0.5614311886 | X20: 1.193209156 | Y20: 0.2448511243 | Z20: 1.333954871 | AA20: 0.7599668803 | AB20: 0.1321006891 | AC20: 0.2991856985 | AD20: 0.7718195628 | AE20: 0.7549728458 | AF20: 0.3951676522 | AG20: 4.952674025 | AH20: 0.26014617 | AI20: 0.2524790883 | AJ20: 0.2936700938 | AK20: 1.267558986 | AL20: 13.58143992 | AM20: 100 | AN20: 1.629130434 | AO20: 3.880644099 | AP20: 2.759705168 | AQ20: 3.854385041 | AR20: 3.48421991 | AS20: 2.572317188 | AT20: 2.767734833 | AU20: 4.254673968 | AV20: 1.842985022 | AW20: 2.788902532 | AX20: 5.886666879 | AY20: 2.340244673 | AZ20: 3.042978603 | BA20: 3.790034819 | BB20: 4.662085122 | BC20: 3.824081866 | BD20: 2.257549634 | BE20: 3.148471145 | BF20: 1.8341291 | BH20: 2022 | BI20: 2903344 | BJ20: 4001 | BK20: 20098 | BL20: 45682 | BM20: 8971 | BN20: 47764 | BO20: 27063 | BP20: 5044 | BQ20: 9611 | BR20: 27834 | BS20: 29882 | BT20: 12959 | BU20: 180170 | BV20: 9620 | BW20: 9466 | BX20: 11069 | BY20: 42309 | BZ20: 491543 | CA20: 3394887 | CB20: 8578980 | CC20: 13405 | CD20: 63658 | CE20: 145021 | CF20: 27919 | CG20: 145765 | CH20: 83335 | CI20: 16926 | CJ20: 29242 | CK20: 86173 | CL20: 95767 | CM20: 42493 | CN20: 577622 | CO20: 30243 | CP20: 31114 | CQ20: 37376 | CR20: 133514 | CS20: 1559573 | CT20: 10138553 | CU20: 2022 | CV20: 2.954861704 | CW20: 3.350412397 | CX20: 3.167379839 | CY20: 3.17457642 | CZ20: 3.112139115 | DA20: 3.051775396 | DB20: 3.079296456 | DC20: 3.355670103 | DD20: 3.042555405 | DE20: 3.095961773 | DF20: 3.204839034 | DG20: 3.279033876 | DH20: 3.205983238 | DI20: 3.143762994 | DJ20: 3.286921614 | DK20: 3.376637456 | DL20: 3.155687915 | DM20: 3.172810924 | DN20: 2.986418399
A21: 2004 | B21: 6734043 | C21: 8598 | D21: 44224 | E21: 94786 | F21: 19375 | G21: 104880 | H21: 59839 | I21: 10524 | J21: 23360 | K21: 60810 | L21: 60809 | M21: 30995 | N21: 391003 | O21: 20624 | P21: 20158 | Q21: 23349 | R21: 99372 | S21: 1072706 | T21: 7806749 | U21: 86.25924825 | V21: 0.1101354738 | W21: 0.5664842049 | X21: 1.214154573 | Y21: 0.2481826942 | Z21: 1.343452953 | AA21: 0.7665034446 | AB21: 0.1348064348 | AC21: 0.2992282703 | AD21: 0.7789414006 | AE21: 0.7789285911 | AF21: 0.3970282636 | AG21: 5.008525316 | AH21: 0.2641816715 | AI21: 0.2582124774 | AJ21: 0.2990873666 | AK21: 1.272898616 | AL21: 13.74075175 | AM21: 100 | AN21: 1.593763593 | AO21: 3.503316844 | AP21: 2.674280886 | AQ21: 3.518439093 | AR21: 3.12976034 | AS21: 2.487784141 | AT21: 2.634716666 | AU21: 3.805833311 | AV21: 1.792511011 | AW21: 2.696785151 | AX21: 4.902041975 | AY21: 2.248018844 | AZ21: 2.899671392 | BA21: 3.31761788 | BB21: 4.023720341 | BC21: 3.606154737 | BD21: 2.198651005 | BE21: 2.944467683 | BF21: 1.778282813 | BH21: 2023 | BI21: 2965599 | BJ21: 4119 | BK21: 20575 | BL21: 46920 | BM21: 9185 | BN21: 48811 | BO21: 27680 | BP21: 5197 | BQ21: 9768 | BR21: 28461 | BS21: 30731 | BT21: 13248 | BU21: 184685 | BV21: 9859 | BW21: 9725 | BX21: 11405 | BY21: 43179 | BZ21: 503548 | CA21: 3469147 | CB21: 8677525 | CC21: 13669 | CD21: 64535 | CE21: 147493 | CF21: 28306 | CG21: 147514 | CH21: 84400 | CI21: 17272 | CJ21: 29432 | CK21: 87257 | CL21: 97532 | CM21: 43010 | CN21: 586325 | CO21: 30691 | CP21: 31648 | CQ21: 38131 | CR21: 134929 | CS21: 1582144 | CT21: 10259669 | CU21: 2023 | CV21: 2.92606148 | CW21: 3.318523914 | CX21: 3.136573512 | CY21: 3.143499574 | CZ21: 3.081763745 | DA21: 3.022146647 | DB21: 3.049132948 | DC21: 3.32345584 | DD21: 3.013104013 | DE21: 3.065844489 | DF21: 3.173733364 | DG21: 3.246527778 | DH21: 3.174729946 | DI21: 3.112993204 | DJ21: 3.254293059 | DK21: 3.343358176 | DL21: 3.124875518 | DM21: 3.141992422 | DN21: 2.957403938
A22: 2005 | B22: 6840115 | C22: 8882 | D22: 45393 | E22: 97904 | F22: 19909 | G22: 107462 | H22: 61390 | I22: 10889 | J22: 23770 | K22: 62434 | L22: 63235 | M22: 31674 | N22: 401997 | O22: 21226 | P22: 20848 | Q22: 24155 | R22: 101558 | S22: 1102726 | T22: 7942841 | U22: 86.11673078 | V22: 0.1118239683 | W22: 0.5714957658 | X22: 1.232606822 | Y22: 0.2506533871 | Z22: 1.352941599 | AA22: 0.7728972543 | AB22: 0.1370920052 | AC22: 0.2992631981 | AD22: 0.7860411659 | AE22: 0.7961257187 | AF22: 0.3987741918 | AG22: 5.061123595 | AH22: 0.2672343561 | AI22: 0.2624753536 | AJ22: 0.3041103303 | AK22: 1.278610512 | AL22: 13.88326922 | AM22: 100 | AN22: 1.562883813 | AO22: 3.24971388 | AP22: 2.609027999 | AQ22: 3.236568769 | AR22: 2.718831556 | AS22: 2.432045725 | AT22: 2.558933314 | AU22: 3.409474219 | AV22: 1.739912341 | AW22: 2.635574965 | AX22: 3.9120141 | AY22: 2.167025392 | AZ22: 2.772939331 | BA22: 2.877139914 | BB22: 3.365678845 | BC22: 3.393724136 | BD22: 2.175968001 | BE22: 2.760086803 | BF22: 1.728240384 | BH22: 2024 | BI22: 3028748 | BJ22: 4238 | BK22: 21053 | BL22: 48161 | BM22: 9398 | BN22: 49860 | BO22: 28305 | BP22: 5351 | BQ22: 9924 | BR22: 29089 | BS22: 31586 | BT22: 13535 | BU22: 189213 | BV22: 10098 | BW22: 9982 | BX22: 11744 | BY22: 44053 | BZ22: 515590 | CA22: 3544338 | CB22: 8775928 | CC22: 13926 | CD22: 65389 | CE22: 149922 | CF22: 28680 | CG22: 149211 | CH22: 85463 | CI22: 17609 | CJ22: 29607 | CK22: 88312 | CL22: 99261 | CM22: 43517 | CN22: 594841 | CO22: 31130 | CP22: 32170 | CQ22: 38888 | CR22: 136319 | CS22: 1604245 | CT22: 10380173 | CU22: 2024 | CV22: 2.897543143 | CW22: 3.285983955 | CX22: 3.105923146 | CY22: 3.112933702 | CZ22: 3.05171313 | DA22: 2.992599278 | DB22: 3.019360537 | DC22: 3.290786769 | DD22: 2.98337364 | DE22: 3.035924233 | DF22: 3.142563161 | DG22: 3.215145918 | DH22: 3.143763906 | DI22: 3.082788671 | DJ22: 3.222801042 | DK22: 3.311307902 | DL22: 3.094431707 | DM22: 3.111474233 | DN22: 2.928663406
A23: 2006 | B23: 6945215 | C23: 9145 | D23: 46547 | E23: 100814 | F23: 20388 | G23: 109997 | H23: 62888 | I23: 11217 | J23: 24175 | K23: 64024 | L23: 65155 | M23: 32338 | N23: 412854 | O23: 21748 | P23: 21437 | Q23: 24936 | R23: 103719 | S23: 1131382 | T23: 8076597 | U23: 85.9918478 | V23: 0.1132283807 | W23: 0.5763194573 | X23: 1.248223726 | Y23: 0.2524330482 | Z23: 1.361922602 | AA23: 0.7786447683 | AB23: 0.1388827498 | AC23: 0.2993216079 | AD23: 0.7927100981 | AE23: 0.8067135206 | AF23: 0.4003914025 | AG23: 5.111732082 | AH23: 0.2692718233 | AI23: 0.2654211916 | AJ23: 0.308743893 | AK23: 1.284191845 | AL23: 14.0081522 | AM23: 100 | AN23: 1.524838889 | AO23: 2.918052497 | AP23: 2.510464668 | AQ23: 2.928982816 | AR23: 2.377460168 | AS23: 2.331579599 | AT23: 2.410841105 | AU23: 2.96773793 | AV23: 1.689475997 | AW23: 2.514801428 | AX23: 2.991110126 | AY23: 2.074685425 | AZ23: 2.664939366 | BA23: 2.429495394 | BB23: 2.786038066 | BC23: 3.182114446 | BD23: 2.105525543 | BE23: 2.565459831 | BF23: 1.669960063 | BH23: 2025 | BI23: 3092860 | BJ23: 4359 | BK23: 21533 | BL23: 49407 | BM23: 9612 | BN23: 50912 | BO23: 28938 | BP23: 5506 | BQ23: 10079 | BR23: 29716 | BS23: 32445 | BT23: 13822 | BU23: 193758 | BV23: 10337 | BW23: 10239 | BX23: 12086 | BY23: 44930 | BZ23: 527679 | CA23: 3620539 | CB23: 8874346 | CC23: 14184 | CD23: 66222 | CE23: 152302 | CF23: 29048 | CG23: 150874 | CH23: 86523 | CI23: 17939 | CJ23: 29778 | CK23: 89337 | CL23: 100972 | CM23: 44007 | CN23: 603190 | CO23: 31558 | CP23: 32682 | CQ23: 39624 | CR23: 137675 | CS23: 1625915 | CT23: 10500261 | CU23: 2025 | CV23: 2.869300906 | CW23: 3.25395733 | CX23: 3.075372684 | CY23: 3.082599632 | CZ23: 3.022055764 | DA23: 2.96342709 | DB23: 2.989944018 | DC23: 3.258082092 | DD23: 2.954459768 | DE23: 3.00636021 | DF23: 3.112097396 | DG23: 3.183837361 | DH23: 3.113110168 | DI23: 3.052916707 | DJ23: 3.191913273 | DK23: 3.278504054 | DL23: 3.064210995 | DM23: 3.081257734 | DN23: 2.900192761
A24: 2007 | B24: 7050228 | C24: 9390 | D24: 47684 | E24: 103572 | F24: 20874 | G24: 112485 | H24: 64280 | I24: 11555 | J24: 24557 | K24: 65538 | L24: 67021 | M24: 32993 | N24: 423603 | O24: 22287 | P24: 22034 | Q24: 25684 | R24: 105831 | S24: 1159388 | T24: 8209616 | U24: 85.87768295 | V24: 0.1143780659 | W24: 0.5808310644 | X24: 1.261593721 | Y24: 0.254262806 | Z24: 1.370161528 | AA24: 0.7829842468 | AB24: 0.1407495795 | AC24: 0.2991248312 | AD24: 0.7983077406 | AE24: 0.8163719229 | AF24: 0.4018823779 | AG24: 5.159839388 | AH24: 0.2714743296 | AI24: 0.2683925777 | AJ24: 0.3128526353 | AK24: 1.289110234 | AL24: 14.12231705 | AM24: 100 | AN24: 1.500702348 | AO24: 2.643801138 | AP24: 2.413335704 | AQ24: 2.698978814 | AR24: 2.355787292 | AS24: 2.236678673 | AT24: 2.189317438 | AU24: 2.968775906 | AV24: 1.567790464 | AW24: 2.337211402 | AX24: 2.823695652 | AY24: 2.005240844 | AZ24: 2.570267629 | BA24: 2.448174955 | BB24: 2.746831388 | BC24: 2.955568747 | BD24: 2.01581629 | BE24: 2.445238538 | BF24: 1.633552969 | BH24: 2026 | BI24: 3157900 | BJ24: 4481 | BK24: 22013 | BL24: 50653 | BM24: 9825 | BN24: 51966 | BO24: 29580 | BP24: 5661 | BQ24: 10234 | BR24: 30345 | BS24: 33309 | BT24: 14108 | BU24: 198318 | BV24: 10575 | BW24: 10496 | BX24: 12430 | BY24: 45810 | BZ24: 539804 | CA24: 3697704 | CB24: 8972653 | CC24: 14442 | CD24: 67045 | CE24: 154622 | CF24: 29399 | CG24: 152494 | CH24: 87581 | CI24: 18267 | CJ24: 29943 | CK24: 90337 | CL24: 102647 | CM24: 44473 | CN24: 611370 | CO24: 31970 | CP24: 33172 | CQ24: 40356 | CR24: 139005 | CS24: 1647123 | CT24: 10619776 | CU24: 2026 | CV24: 2.841335381 | CW24: 3.222941308 | CX24: 3.045700268 | CY24: 3.052573392 | CZ24: 2.992264631 | DA24: 2.934495632 | DB24: 2.96081812 | DC24: 3.22681505 | DD24: 2.92583545 | DE24: 2.976997858 | DF24: 3.081659612 | DG24: 3.152324922 | DH24: 3.082776147 | DI24: 3.023167849 | DJ24: 3.160442073 | DK24: 3.246661303 | DL24: 3.034381139 | DM24: 3.051335299 | DN24: 2.871991917
A25: 2008 | B25: 7155052 | C25: 9652 | D25: 48817 | E25: 106356 | F25: 21376 | G25: 114943 | H25: 65645 | I25: 11896 | J25: 24945 | K25: 67047 | L25: 68891 | M25: 33660 | N25: 434358 | O25: 22842 | P25: 22638 | Q25: 26438 | R25: 107918 | S25: 1187422 | T25: 8342474 | U25: 85.76654839 | V25: 0.1156970942 | W25: 0.5851621473 | X25: 1.274873617 | Y25: 0.2562309454 | Z25: 1.377804714 | AA25: 0.7868768905 | AB25: 0.1425955897 | AC25: 0.2990120197 | AD25: 0.8036824568 | AE25: 0.8257862116 | AF25: 0.4034774337 | AG25: 5.206585001 | AH25: 0.2738036702 | AI25: 0.2713583525 | AJ25: 0.3169083895 | AK25: 1.293597079 | AL25: 14.23345161 | AM25: 100 | AN25: 1.47587239 | AO25: 2.751985454 | AP25: 2.3482701 | AQ25: 2.652493452 | AR25: 2.376443196 | AS25: 2.161647389 | AT25: 2.101289552 | AU25: 2.908396543 | AV25: 1.567645533 | AW25: 2.276373891 | AX25: 2.751954228 | AY25: 2.001477101 | AZ25: 2.507238301 | BA25: 2.459739779 | BB25: 2.704319529 | BC25: 2.893413923 | BD25: 1.95281973 | BE25: 2.389229087 | BF25: 1.605366493 | BH25: 2027 | BI25: 3223789 | BJ25: 4604 | BK25: 22495 | BL25: 51899 | BM25: 10038 | BN25: 53021 | BO25: 30229 | BP25: 5818 | BQ25: 10387 | BR25: 30973 | BS25: 34176 | BT25: 14393 | BU25: 202888 | BV25: 10813 | BW25: 10751 | BX25: 12776 | BY25: 46692 | BZ25: 551953 | CA25: 3775742 | CB25: 9070590 | CC25: 14691 | CD25: 67840 | CE25: 156877 | CF25: 29748 | CG25: 154076 | CH25: 88626 | CI25: 18588 | CJ25: 30092 | CK25: 91306 | CL25: 104290 | CM25: 44934 | CN25: 619359 | CO25: 32369 | CP25: 33646 | CQ25: 41078 | CR25: 140299 | CS25: 1667819 | CT25: 10738409 | CU25: 2027 | CV25: 2.81364258 | CW25: 3.190920938 | CX25: 3.015781285 | CY25: 3.022736469 | CZ25: 2.963538553 | DA25: 2.905942928 | DB25: 2.931820437 | DC25: 3.194912341 | DD25: 2.897082892 | DE25: 2.947922384 | DF25: 3.051556648 | DG25: 3.121934274 | DH25: 3.052713813 | DI25: 2.993526311 | DJ25: 3.129569342 | DK25: 3.215247339 | DL25: 3.004775979 | DM25: 3.021668512 | DN25: 2.844052639
A26: 2009 | B26: 7259594 | C26: 9909 | D26: 49962 | E26: 109157 | F26: 21874 | G26: 117395 | H26: 67028 | I26: 12240 | J26: 25319 | K26: 68545 | L26: 70787 | M26: 34331 | N26: 445145 | O26: 23386 | P26: 23251 | Q26: 27189 | R26: 110007 | S26: 1215525 | T26: 8475119 | U26: 85.65772351 | V26: 0.1169187123 | W26: 0.5895138464 | X26: 1.287970116 | Y26: 0.258096671 | Z26: 1.385172291 | AA26: 0.7908797505 | AB26: 0.1444227509 | AC26: 0.2987450678 | AD26: 0.8087792042 | AE26: 0.83523311 | AF26: 0.4050798579 | AG26: 5.252374627 | AH26: 0.2759371284 | AI26: 0.2743442304 | AJ26: 0.3208096547 | AK26: 1.297999474 | AL26: 14.34227649 | AM26: 100 | AN26: 1.450522378 | AO26: 2.627828731 | AP26: 2.318410363 | AQ26: 2.599525532 | AR26: 2.302991956 | AS26: 2.110796374 | AT26: 2.084900615 | AU26: 2.850706793 | AV26: 1.488170071 | AW26: 2.209659789 | AX26: 2.714982263 | AY26: 1.973854732 | AZ26: 2.453099293 | BA26: 2.353660609 | BB26: 2.671823165 | BC26: 2.801011058 | BD26: 1.917232065 | BE26: 2.339151167 | BF26: 1.57748794 | BH26: 2028 | BI26: 3290535 | BJ26: 4727 | BK26: 22977 | BL26: 53142 | BM26: 10251 | BN26: 54077 | BO26: 30883 | BP26: 5975 | BQ26: 10540 | BR26: 31602 | BS26: 35046 | BT26: 14678 | BU26: 207468 | BV26: 11051 | BW26: 11006 | BX26: 13123 | BY26: 47576 | BZ26: 564122 | CA26: 3854657 | CB26: 9168152 | CC26: 14938 | CD26: 68617 | CE26: 159070 | CF26: 30082 | CG26: 155612 | CH26: 89665 | CI26: 18902 | CJ26: 30241 | CK26: 92253 | CL26: 105905 | CM26: 45376 | CN26: 627167 | CO26: 32760 | CP26: 34109 | CQ26: 41784 | CR26: 141562 | CS26: 1688043 | CT26: 10856195 | CU26: 2028 | CV26: 2.786219262 | CW26: 3.160143854 | CX26: 2.98633416 | CY26: 2.993300967 | CZ26: 2.934542971 | DA26: 2.877600459 | DB26: 2.903377263 | DC26: 3.163514644 | DD26: 2.869165085 | DE26: 2.919213974 | DF26: 3.021885522 | DG26: 3.09142935 | DH26: 3.022957757 | DI26: 2.964437607 | DJ26: 3.099127749 | DK26: 3.184028042 | DL26: 2.975491845 | DM26: 2.992336764 | DN26: 2.816384182
A27: 2010 | B27: 7363783 | C27: 10166 | D27: 51098 | E27: 111999 | F27: 22370 | G27: 119852 | H27: 68398 | I27: 12586 | J27: 25689 | K27: 70043 | L27: 72700 | M27: 35003 | N27: 455992 | O27: 23939 | P27: 23865 | Q27: 27942 | R27: 112067 | S27: 1243709 | T27: 8607492 | U27: 85.550855 | V27: 0.1181064124 | W27: 0.5936456287 | X27: 1.301180414 | Y27: 0.2598898727 | Z27: 1.392414887 | AA27: 0.7946333264 | AB27: 0.1462214545 | AC27: 0.2984493044 | AD27: 0.8137445844 | AE27: 0.8446130418 | AF27: 0.4066573631 | AG27: 5.297617471 | AH27: 0.2781181789 | AI27: 0.2772584627 | AJ27: 0.3246241762 | AK27: 1.301970423 | AL27: 14.449145 | AM27: 100 | AN27: 1.424989085 | AO27: 2.560538395 | AP27: 2.248264102 | AQ27: 2.570272982 | AR27: 2.242205859 | AS27: 2.071333122 | AT27: 2.02331419 | AU27: 2.787580802 | AV27: 1.450778269 | AW27: 2.161887528 | AX27: 2.666601652 | AY27: 1.938503601 | AZ27: 2.407519371 | BA27: 2.337137544 | BB27: 2.60648086 | BC27: 2.731845349 | BD27: 1.855290659 | BE27: 2.292196189 | BF27: 1.549829234 | BH27: 2029 | BI27: 3358144 | BJ27: 4851 | BK27: 23460 | BL27: 54384 | BM27: 10464 | BN27: 55135 | BO27: 31542 | BP27: 6133 | BQ27: 10692 | BR27: 32231 | BS27: 35918 | BT27: 14962 | BU27: 212059 | BV27: 11289 | BW27: 11261 | BX27: 13472 | BY27: 48461 | BZ27: 576314 | CA27: 3934458 | CB27: 9265331 | CC27: 15178 | CD27: 69378 | CE27: 161199 | CF27: 30406 | CG27: 157103 | CH27: 90684 | CI27: 19216 | CJ27: 30377 | CK27: 93170 | CL27: 107485 | CM27: 45805 | CN27: 634791 | CO27: 33138 | CP27: 34560 | CQ27: 42477 | CR27: 142789 | CS27: 1707756 | CT27: 10973087 | CU27: 2029 | CV27: 2.759063042 | CW27: 3.128839415 | CX27: 2.957289003 | CY27: 2.964088703 | CZ27: 2.905772171 | DA27: 2.849424141 | DB27: 2.875023778 | DC27: 3.133213762 | DD27: 2.841096147 | DE27: 2.890695293 | DF27: 2.992510719 | DG27: 3.06142227 | DH27: 2.993464083 | DI27: 2.935423864 | DJ27: 3.068999201 | DK27: 3.152983967 | DL27: 2.946472421 | DM27: 2.96323879 | DN27: 2.788970425
A28: 2011 | B28: 7467805 | C28: 10433 | D28: 52245 | E28: 114883 | F28: 22880 | G28: 122321 | H28: 69785 | I28: 12944 | J28: 26077 | K28: 71560 | L28: 74657 | M28: 35682 | N28: 466939 | O28: 24487 | P28: 24485 | Q28: 28732 | R28: 114159 | S28: 1272269 | T28: 8740074 | U28: 85.4432697 | V28: 0.1193696987 | W28: 0.5977638176 | X28: 1.314439672 | Y28: 0.2617826806 | Z28: 1.399541926 | AA28: 0.7984486173 | AB28: 0.1480994326 | AC28: 0.2983613182 | AD28: 0.8187573698 | AE28: 0.8541918524 | AF28: 0.4082574129 | AG28: 5.342506253 | AH28: 0.2801692526 | AI28: 0.2801463695 | AJ28: 0.3287386354 | AK28: 1.306155989 | AL28: 14.5567303 | AM28: 100 | AN28: 1.402731867 | AO28: 2.592504046 | AP28: 2.219883499 | AQ28: 2.542427648 | AR28: 2.254239101 | AS28: 2.03910886 | AT28: 2.007550253 | AU28: 2.804727521 | AV28: 1.499081505 | AW28: 2.142691947 | AX28: 2.656290598 | AY28: 1.921258785 | AZ28: 2.372336265 | BA28: 2.263343632 | BB28: 2.56477347 | BC28: 2.788055098 | BD28: 1.849530677 | BE28: 2.270387642 | BF28: 1.528566964 | BH28: 2030 | BI28: 3426623 | BJ28: 4976 | BK28: 23944 | BL28: 55623 | BM28: 10676 | BN28: 56194 | BO28: 32204 | BP28: 6291 | BQ28: 10844 | BR28: 32861 | BS28: 36793 | BT28: 15247 | BU28: 216660 | BV28: 11528 | BW28: 11515 | BX28: 13822 | BY28: 49349 | BZ28: 588527 | CA28: 4015150 | CB28: 9362126 | CC28: 15421 | CD28: 70119 | CE28: 163266 | CF28: 30725 | CG28: 158566 | CH28: 91689 | CI28: 19516 | CJ28: 30503 | CK28: 94069 | CL28: 109027 | CM28: 46223 | CN28: 642241 | CO28: 33508 | CP28: 34994 | CQ28: 43155 | CR28: 143987 | CS28: 1727009 | CT28: 11089135 | CU28: 2030 | CV28: 2.732172754 | CW28: 3.099075563 | CX28: 2.928458069 | CY28: 2.935224637 | CZ28: 2.877950543 | DA28: 2.82176033 | DB28: 2.847130791 | DC28: 3.102209506 | DD28: 2.812891922 | DE28: 2.862633517 | DF28: 2.96325388 | DG28: 3.031612776 | DH28: 2.964280439 | DI28: 2.90666204 | DJ28: 3.038992618 | DK28: 3.122196498 | DL28: 2.917728829 | DM28: 2.934460101 | DN28: 2.761823344
A29: 2012 | B29: 7571344 | C29: 10708 | D29: 53399 | E29: 117787 | F29: 23385 | G29: 124778 | H29: 71171 | I29: 13312 | J29: 26451 | K29: 73088 | L29: 76651 | M29: 36353 | N29: 477919 | O29: 25054 | P29: 25122 | Q29: 29511 | R29: 116218 | S29: 1300907 | T29: 8872251 | U29: 85.33735125 | V29: 0.1206909047 | W29: 0.6018652989 | X29: 1.327588681 | Y29: 0.2635745991 | Z29: 1.406384919 | AA29: 0.8021752315 | AB29: 0.1500408408 | AC29: 0.2981317819 | AD29: 0.8237819241 | AE29: 0.8639408421 | AF29: 0.4097381826 | AG29: 5.386671319 | AH29: 0.2823860596 | AI29: 0.2831524942 | AJ29: 0.3326213381 | AK29: 1.30990433 | AL29: 14.66264875 | AM29: 100 | AN29: 1.376948069 | AO29: 2.601726617 | AP29: 2.184782671 | AQ29: 2.496368943 | AR29: 2.183162467 | AS29: 1.988742148 | AT29: 1.966634512 | AU29: 2.803352376 | AV29: 1.424026501 | AW29: 2.112793595 | AX29: 2.635836103 | AY29: 1.863037157 | AZ29: 2.324263391 | BA29: 2.289113094 | BB29: 2.568327111 | BC29: 2.675159099 | BD29: 1.787552426 | BE29: 2.225979295 | BF29: 1.500988445 | BH29: 2031 | BI29: 3495998 | BJ29: 5102 | BK29: 24429 | BL29: 56861 | BM29: 10888 | BN29: 57255 | BO29: 32868 | BP29: 6450 | BQ29: 10996 | BR29: 33492 | BS29: 37670 | BT29: 15532 | BU29: 221273 | BV29: 11767 | BW29: 11770 | BX29: 14174 | BY29: 50238 | BZ29: 600765 | CA29: 4096763 | CB29: 9458567 | CC29: 15654 | CD29: 70846 | CE29: 165276 | CF29: 31027 | CG29: 159984 | CH29: 92663 | CI29: 19817 | CJ29: 30631 | CK29: 94937 | CL29: 110537 | CM29: 46627 | CN29: 649522 | CO29: 33870 | CP29: 35422 | CQ29: 43820 | CR29: 145153 | CS29: 1745786 | CT29: 11204353 | CU29: 2031 | CV29: 2.705541308 | CW29: 3.068208546 | CX29: 2.900077776 | CY29: 2.906667136 | CZ29: 2.849650992 | DA29: 2.794236311 | DB29: 2.819246684 | DC29: 3.072403101 | DD29: 2.785649327 | DE29: 2.834617222 | DF29: 2.934350942 | DG29: 3.001995879 | DH29: 2.935387508 | DI29: 2.878388714 | DJ29: 3.009515718 | DK29: 3.091576125 | DL29: 2.889306899 | DM29: 2.905938262 | DN29: 2.734928284
A30: 2013 | B30: 7674367 | C30: 10977 | D30: 54550 | E30: 120717 | F30: 23895 | G30: 127230 | H30: 72569 | I30: 13678 | J30: 26810 | K30: 74601 | L30: 78654 | M30: 37033 | N30: 488997 | O30: 25610 | P30: 25756 | Q30: 30324 | R30: 118269 | S30: 1329670 | T30: 9004037 | U30: 85.23251293 | V30: 0.1219119824 | W30: 0.6058393585 | X30: 1.340698622 | Y30: 0.2653809619 | Z30: 1.413032843 | AA30: 0.8059607041 | AB30: 0.1519096379 | AC30: 0.2977553291 | AD30: 0.828528359 | AE30: 0.8735415014 | AF30: 0.4112932899 | AG30: 5.430863956 | AH30: 0.2844279738 | AI30: 0.2860494687 | AJ30: 0.3367822678 | AK30: 1.313510817 | AL30: 14.76748707 | AM30: 100 | AN30: 1.351521988 | AO30: 2.481104905 | AP30: 2.132569308 | AQ30: 2.457105466 | AR30: 2.157444085 | AS30: 1.946031381 | AT30: 1.945240132 | AU30: 2.71228186 | AV30: 1.348098747 | AW30: 2.048971735 | AX30: 2.57958349 | AY30: 1.853267551 | AZ30: 2.291509242 | BA30: 2.194940479 | BB30: 2.492365341 | BC30: 2.7176403 | BD30: 1.749395324 | BE30: 2.186907764 | BF30: 1.474449142 | BH30: 2032 | BI30: 3566227 | BJ30: 5228 | BK30: 24915 | BL30: 58098 | BM30: 11100 | BN30: 58317 | BO30: 33531 | BP30: 6610 | BQ30: 11146 | BR30: 34124 | BS30: 38549 | BT30: 15818 | BU30: 225897 | BV30: 12007 | BW30: 12025 | BX30: 14527 | BY30: 51128 | BZ30: 613020 | CA30: 4179247 | CB30: 9554539 | CC30: 15887 | CD30: 71548 | CE30: 167223 | CF30: 31322 | CG30: 161365 | CH30: 93612 | CI30: 20109 | CJ30: 30745 | CK30: 95788 | CL30: 112018 | CM30: 47026 | CN30: 656627 | CO30: 34221 | CP30: 35835 | CQ30: 44477 | CR30: 146283 | CS30: 1764086 | CT30: 11318625 | CU30: 2032 | CV30: 2.679172975 | CW30: 3.03882938 | CX30: 2.871683725 | CY30: 2.878291852 | CZ30: 2.821801802 | DA30: 2.767031912 | DB30: 2.791804599 | DC30: 3.042208775 | DD30: 2.75838866 | DE30: 2.807056617 | DF30: 2.905860074 | DG30: 2.972942218 | DH30: 2.906753963 | DI30: 2.850087449 | DJ30: 2.98004158 | DK30: 3.061678254 | DL30: 2.861113284 | DM30: 2.877697302 | DN30: 2.708292905
A31: 2014 | B31: 7776847 | C31: 11255 | D31: 55708 | E31: 123675 | F31: 24407 | G31: 129671 | H31: 73961 | I31: 14054 | J31: 27169 | K31: 76113 | L31: 80687 | M31: 37711 | N31: 500094 | O31: 26187 | P31: 26390 | Q31: 31148 | R31: 120310 | S31: 1358540 | T31: 9135387 | U31: 85.1288183 | V31: 0.1232022245 | W31: 0.6098044889 | X31: 1.353801432 | Y31: 0.2671698528 | Z31: 1.419436309 | AA31: 0.8096099268 | AB31: 0.1538413206 | AC31: 0.2974039305 | AD31: 0.8331666737 | AE31: 0.8832357075 | AF31: 0.4128013405 | AG31: 5.474250845 | AH31: 0.2866545227 | AI31: 0.2888766508 | AJ31: 0.3409598302 | AK31: 1.316966648 | AL31: 14.8711817 | AM31: 100 | AN31: 1.326517162 | AO31: 2.501029965 | AP31: 2.100605091 | AQ31: 2.420819386 | AR31: 2.120074437 | AS31: 1.900400126 | AT31: 1.900009385 | AU31: 2.711835009 | AV31: 1.330166521 | AW31: 2.006516619 | AX31: 2.55189854 | AY31: 1.814242205 | AZ31: 2.243972627 | BA31: 2.228020421 | BB31: 2.431754084 | BC31: 2.681055952 | BD31: 1.711005405 | BE31: 2.147980254 | BF31: 1.448252114 | BH31: 2033 | BI31: 3637224 | BJ31: 5355 | BK31: 25401 | BL31: 59333 | BM31: 11312 | BN31: 59379 | BO31: 34191 | BP31: 6770 | BQ31: 11297 | BR31: 34755 | BS31: 39428 | BT31: 16105 | BU31: 230524 | BV31: 12248 | BW31: 12281 | BX31: 14881 | BY31: 52019 | BZ31: 625279 | CA31: 4262503 | CB31: 9649768 | CC31: 16112 | CD31: 72233 | CE31: 169109 | CF31: 31612 | CG31: 162703 | CH31: 94524 | CI31: 20396 | CJ31: 30860 | CK31: 96608 | CL31: 113453 | CM31: 47409 | CN31: 663545 | CO31: 34570 | CP31: 36243 | CQ31: 45114 | CR31: 147382 | CS31: 1781873 | CT31: 11431641 | CU31: 2033 | CV31: 2.653058486 | CW31: 3.008776844 | CX31: 2.843706941 | CY31: 2.850167698 | CZ31: 2.794554455 | DA31: 2.740076458 | DB31: 2.764587172 | DC31: 3.012703102 | DD31: 2.731698681 | DE31: 2.779686376 | DF31: 2.877472862 | DG31: 2.943744179 | DH31: 2.878420468 | DI31: 2.822501633 | DJ31: 2.951144044 | DK31: 3.031651099 | DL31: 2.833234011 | DM31: 2.849724683 | DN31: 2.681908024
A32: 2015 | B32: 7878784 | C32: 11557 | D32: 56872 | E32: 126646 | F32: 24915 | G32: 132107 | H32: 75350 | I32: 14442 | J32: 27526 | K32: 77625 | L32: 82751 | M32: 38412 | N32: 511262 | O32: 26770 | P32: 27032 | Q32: 31978 | R32: 122348 | S32: 1387593 | T32: 9266377 | U32: 85.02550673 | V32: 0.124719726 | W32: 0.6137458038 | X32: 1.366726176 | Y32: 0.2688753112 | Z32: 1.425659673 | AA32: 0.8131549148 | AB32: 0.1558537927 | AC32: 0.297052451 | AD32: 0.837706042 | AE32: 0.8930243179 | AF32: 0.4145309434 | AG32: 5.517388295 | AH32: 0.2888939226 | AI32: 0.2917213491 | AJ32: 0.3450971183 | AK32: 1.320343431 | AL32: 14.97449327 | AM32: 100 | AN32: 1.302259112 | AO32: 2.647883963 | AP32: 2.067936544 | AQ32: 2.373863573 | AR32: 2.060005533 | AS32: 1.861172687 | AT32: 1.860599782 | AU32: 2.723357526 | AV32: 1.30543951 | AW32: 1.967046212 | AX32: 2.525862694 | AY32: 1.841808169 | AZ32: 2.208609821 | BA32: 2.201875311 | BB32: 2.40361989 | BC32: 2.629812865 | BD32: 1.679769816 | BE32: 2.115999773 | BF32: 1.423691908 | BH32: 2034 | BI32: 3708893 | BJ32: 5482 | BK32: 25887 | BL32: 60565 | BM32: 11523 | BN32: 60440 | BO32: 34847 | BP32: 6930 | BQ32: 11446 | BR32: 35386 | BS32: 40305 | BT32: 16392 | BU32: 235150 | BV32: 12489 | BW32: 12537 | BX32: 15235 | BY32: 52908 | BZ32: 637522 | CA32: 4346415 | CB32: 9744007 | CC32: 16332 | CD32: 72898 | CE32: 170944 | CF32: 31883 | CG32: 163992 | CH32: 95395 | CI32: 20673 | CJ32: 30968 | CK32: 97405 | CL32: 114842 | CM32: 47786 | CN32: 670266 | CO32: 34908 | CP32: 36632 | CQ32: 45738 | CR32: 148442 | CS32: 1799104 | CT32: 11543111 | CU32: 2034 | CV32: 2.627200893 | CW32: 2.97920467 | CX32: 2.816008035 | CY32: 2.822488236 | CZ32: 2.766900981 | DA32: 2.713302449 | DB32: 2.737538382 | DC32: 2.983116883 | DD32: 2.705574 | DE32: 2.752642288 | DF32: 2.849323905 | DG32: 2.915202538 | DH32: 2.850376356 | DI32: 2.795099688 | DJ32: 2.921911143 | DK32: 3.002166065 | DL32: 2.80566266 | DM32: 2.822026534 | DN32: 2.655777463
A33: 2016 | B33: 7980001 | C33: 11844 | D33: 58035 | E33: 129652 | F33: 25430 | G33: 134521 | H33: 76742 | I33: 14832 | J33: 27880 | K33: 79117 | L33: 84842 | M33: 39118 | N33: 522440 | O33: 27337 | P33: 27702 | Q33: 32821 | R33: 124375 | S33: 1416688 | T33: 9396689 | U33: 84.92354062 | V33: 0.1260443971 | W33: 0.6176111607 | X33: 1.379762595 | Y33: 0.270627239 | Z33: 1.431578719 | AA33: 0.816691922 | AB33: 0.1578428317 | AC33: 0.2967002526 | AD33: 0.8419667821 | AE33: 0.9028924976 | AF33: 0.4162955696 | AG33: 5.559830702 | AH33: 0.2909216214 | AI33: 0.2948059684 | AJ33: 0.3492826037 | AK33: 1.323604516 | AL33: 15.07645938 | AM33: 100 | AN33: 1.276495953 | AO33: 2.453009625 | AP33: 2.024314819 | AQ33: 2.345814517 | AR33: 2.04595477 | AS33: 1.81081204 | AT33: 1.830522143 | AU33: 2.664638079 | AV33: 1.277857333 | AW33: 1.903822925 | AX33: 2.495460443 | AY33: 1.821280834 | AZ33: 2.162796575 | BA33: 2.095923841 | BB33: 2.448326334 | BC33: 2.602038806 | BD33: 1.643175227 | BE33: 2.075116156 | BF33: 1.396492064 | BH33: 2035 | BI33: 3781138 | BJ33: 5609 | BK33: 26372 | BL33: 61795 | BM33: 11733 | BN33: 61498 | BO33: 35497 | BP33: 7091 | BQ33: 11595 | BR33: 36015 | BS33: 41181 | BT33: 16678 | BU33: 239768 | BV33: 12730 | BW33: 12793 | BX33: 15589 | BY33: 53795 | BZ33: 649739 | CA33: 4430877 | CB33: 9836993 | CC33: 16545 | CD33: 73536 | CE33: 172711 | CF33: 32150 | CG33: 165235 | CH33: 96228 | CI33: 20946 | CJ33: 31058 | CK33: 98170 | CL33: 116199 | CM33: 48141 | CN33: 676763 | CO33: 35234 | CP33: 37022 | CQ33: 46344 | CR33: 149454 | CS33: 1815736 | CT33: 11652729 | CU33: 2035 | CV33: 2.601595869 | CW33: 2.949723658 | CX33: 2.788411952 | CY33: 2.7949025 | CZ33: 2.740134663 | DA33: 2.686835344 | DB33: 2.710876976 | DC33: 2.953885207 | DD33: 2.678568348 | DE33: 2.725808691 | DF33: 2.821665331 | DG33: 2.886497182 | DH33: 2.822574322 | DI33: 2.767792616 | DJ33: 2.893926366 | DK33: 2.972865482 | DL33: 2.778213589 | DM33: 2.794562124 | DN33: 2.629892231
A34: 2017 | B34: 8080732 | C34: 12140 | D34: 59199 | E34: 132690 | F34: 25943 | G34: 136953 | H34: 78145 | I34: 15224 | J34: 28227 | K34: 80618 | L34: 86955 | M34: 39820 | N34: 533716 | O34: 27932 | P34: 28373 | Q34: 33677 | R34: 126409 | S34: 1446021 | T34: 9526753 | U34: 84.82147065 | V34: 0.1274306157 | W34: 0.6213974478 | X34: 1.39281453 | Y34: 0.2723173362 | Z34: 1.4375622 | AA34: 0.8202689836 | AB34: 0.1598026106 | AC34: 0.2962919265 | AD34: 0.8462274607 | AE34: 0.9127454023 | AF34: 0.4179808168 | AG34: 5.602286529 | AH34: 0.2931953836 | AI34: 0.2978244529 | AJ34: 0.3534992458 | AK34: 1.326884406 | AL34: 15.17852935 | AM34: 100 | AN34: 1.254392571 | AO34: 2.468437539 | AP34: 1.985837303 | AQ34: 2.316164254 | AR34: 1.997224427 | AS34: 1.791748059 | AT34: 1.811692879 | AU34: 2.608612117 | AV34: 1.23693808 | AW34: 1.879418013 | AX34: 2.460004026 | AY34: 1.778657952 | AZ34: 2.135371757 | BA34: 2.153188904 | BB34: 2.393337598 | BC34: 2.574655735 | BD34: 1.622148623 | BE34: 2.049389347 | BF34: 1.374655289 | BH34: 2036 | BI34: 3853921 | BJ34: 5736 | BK34: 26855 | BL34: 63022 | BM34: 11943 | BN34: 62552 | BO34: 36139 | BP34: 7251 | BQ34: 11742 | BR34: 36642 | BS34: 42055 | BT34: 16965 | BU34: 244376 | BV34: 12972 | BW34: 13049 | BX34: 15943 | BY34: 54678 | BZ34: 661920 | CA34: 4515841 | CB34: 9928620 | CC34: 16758 | CD34: 74158 | CE34: 174427 | CF34: 32405 | CG34: 166428 | CH34: 97014 | CI34: 21212 | CJ34: 31146 | CK34: 98902 | CL34: 117506 | CM34: 48494 | CN34: 683045 | CO34: 35553 | CP34: 37393 | CQ34: 46936 | CR34: 150428 | CS34: 1831805 | CT34: 11760425 | CU34: 2036 | CV34: 2.576238589 | CW34: 2.921548117 | CX34: 2.761422454 | CY34: 2.767716036 | CZ34: 2.713304865 | DA34: 2.660634352 | DB34: 2.684468303 | DC34: 2.925389601 | DD34: 2.652529382 | DE34: 2.69914306 | DF34: 2.79410296 | DG34: 2.858473327 | DH34: 2.795057616 | DI34: 2.740749306 | DJ34: 2.86558357 | DK34: 2.943987957 | DL34: 2.751161345 | DM34: 2.76741147 | DN34: 2.604260203
A35: 2018 | B35: 8181046 | C35: 12445 | D35: 60380 | E35: 135752 | F35: 26464 | G35: 139363 | H35: 79544 | I35: 15628 | J35: 28566 | K35: 82116 | L35: 89107 | M35: 40534 | N35: 544997 | O35: 28518 | P35: 29041 | Q35: 34556 | R35: 128426 | S35: 1475437 | T35: 9656483 | U35: 84.72076221 | V35: 0.1288771492 | W35: 0.6252794107 | X35: 1.405812033 | Y35: 0.2740542286 | Z35: 1.4432066 | AA35: 0.823736758 | AB35: 0.1618394606 | AC35: 0.2958219882 | AD35: 0.850371714 | AE35: 0.9227686726 | AF35: 0.4197594507 | AG35: 5.643845694 | AH35: 0.2953249128 | AI35: 0.3007409634 | AJ35: 0.3578528539 | AK35: 1.329945903 | AL35: 15.27923779 | AM35: 100 | AN35: 1.233755281 | AO35: 2.481315019 | AP35: 1.975327442 | AQ35: 2.281411112 | AR35: 1.988349514 | AS35: 1.744423858 | AT35: 1.774425238 | AU35: 2.61910472 | AV35: 1.193823275 | AW35: 1.841093212 | AX35: 2.444715134 | AY35: 1.777182946 | AZ35: 2.091642778 | BA35: 2.076248188 | BB35: 2.327063589 | BC35: 2.576608472 | BD35: 1.583018126 | BE35: 2.013857065 | BF35: 1.352555718 | BH35: 2037 | BI35: 3927257 | BJ35: 5863 | BK35: 27337 | BL35: 64249 | BM35: 12151 | BN35: 63602 | BO35: 36774 | BP35: 7411 | BQ35: 11888 | BR35: 37267 | BS35: 42927 | BT35: 17251 | BU35: 248975 | BV35: 13214 | BW35: 13306 | BX35: 16297 | BY35: 55559 | BZ35: 674071 | CA35: 4601328 | CB35: 10018936 | CC35: 16960 | CD35: 74753 | CE35: 176088 | CF35: 32648 | CG35: 167576 | CH35: 97761 | CI35: 21466 | CJ35: 31226 | CK35: 99610 | CL35: 118772 | CM35: 48830 | CN35: 689112 | CO35: 35864 | CP35: 37755 | CQ35: 47512 | CR35: 151362 | CS35: 1847295 | CT35: 11866231 | CU35: 2037 | CV35: 2.551128179 | CW35: 2.892717039 | CX35: 2.734499031 | CY35: 2.740711918 | CZ35: 2.686857049 | DA35: 2.634759913 | DB35: 2.65842715 | DC35: 2.896505195 | DD35: 2.626682369 | DE35: 2.672874125 | DF35: 2.766836723 | DG35: 2.830560547 | DH35: 2.767795963 | DI35: 2.714091115 | DJ35: 2.837441756 | DK35: 2.915383199 | DL35: 2.72434709 | DM35: 2.74050508 | DN35: 2.578870926
A36: 2019 | B36: 8281029 | C36: 12749 | D36: 61549 | E36: 138827 | F36: 26978 | G36: 141760 | H36: 80935 | I36: 16048 | J36: 28908 | K36: 83611 | L36: 91285 | M36: 41254 | N36: 556268 | O36: 29120 | P36: 29733 | Q36: 35441 | R36: 130430 | S36: 1504896 | T36: 9785925 | U36: 84.62183187 | V36: 0.1302789465 | W36: 0.62895434 | X36: 1.418639526 | Y36: 0.275681655 | Z36: 1.448611143 | AA36: 0.8270551838 | AB36: 0.1639906294 | AC36: 0.2954038581 | AD36: 0.8544005804 | AE36: 0.9328193298 | AF36: 0.4215646451 | AG36: 5.68436811 | AH36: 0.2975702348 | AI36: 0.3038343335 | AJ36: 0.3621630045 | AK36: 1.332832614 | AL36: 15.37816813 | AM36: 100 | AN36: 1.214722074 | AO36: 2.413390134 | AP36: 1.917568127 | AQ36: 2.239886198 | AR36: 1.923640021 | AS36: 1.7053447 | AT36: 1.733603571 | AU36: 2.652005403 | AV36: 1.190117398 | AW36: 1.804220862 | AX36: 2.414858576 | AY36: 1.760694968 | AZ36: 2.046990245 | BA36: 2.088975647 | BB36: 2.354891547 | BC36: 2.528814555 | BD36: 1.548382141 | BE36: 1.976957572 | BF36: 1.331562557 | BH36: 2038 | BI36: 4001118 | BJ36: 5990 | BK36: 27818 | BL36: 65475 | BM36: 12358 | BN36: 64649 | BO36: 37402 | BP36: 7571 | BQ36: 12033 | BR36: 37890 | BS36: 43796 | BT36: 17536 | BU36: 253563 | BV36: 13457 | BW36: 13563 | BX36: 16650 | BY36: 56436 | BZ36: 686187 | CA36: 4687305 | CB36: 10107880 | CC36: 17163 | CD36: 75325 | CE36: 177699 | CF36: 32880 | CG36: 168670 | CH36: 98458 | CI36: 21720 | CJ36: 31301 | CK36: 100283 | CL36: 119995 | CM36: 49157 | CN36: 694973 | CO36: 36167 | CP36: 38112 | CQ36: 48068 | CR36: 152254 | CS36: 1862225 | CT36: 11970105 | CU36: 2038 | CV36: 2.526263909 | CW36: 2.865275459 | CX36: 2.707779136 | CY36: 2.713997709 | CZ36: 2.660624697 | DA36: 2.60901174 | DB36: 2.632426073 | DC36: 2.868841633 | DD36: 2.601263193 | DE36: 2.64668778 | DF36: 2.739862088 | DG36: 2.803204836 | DH36: 2.740829695 | DI36: 2.687597533 | DJ36: 2.809997788 | DK36: 2.886966967 | DL36: 2.697816996 | DM36: 2.713873915 | DN36: 2.553728635
A37: 2020 | B37: 8380801 | C37: 13060 | D37: 62714 | E37: 141918 | F37: 27496 | G37: 144147 | H37: 82322 | I37: 16457 | J37: 29236 | K37: 85089 | L37: 93460 | M37: 41973 | N37: 567547 | O37: 29712 | P37: 30420 | Q37: 36344 | R37: 132417 | S37: 1534312 | T37: 9915113 | U37: =(U36+U38)/2 -> 84.64122106 | V37: =(V36+V38)/2 -> 0.1307355117 | W37: 0.6277467978 | X37: 1.420638192 | Y37: 0.2752026558 | Z37: 1.443001745 | AA37: 0.8241405228 | AB37: 0.1647578379 | AC37: 0.292666129 | AD37: 0.8517900042 | AE37: 0.9355104416 | AF37: 0.4201645178 | AG37: 5.681098335 | AH37: 0.2974132312 | AI37: 0.3044637716 | AJ37: 0.3638279421 | AK37: 1.325621302 | AL37: 15.4744782 | AM37: 100 | AN37: 1.197625861 | AO37: 2.410128669 | AP37: 1.875110266 | AQ37: 2.202087236 | AR37: 1.90188205 | AS37: 1.669812536 | AT37: 1.699202328 | AU37: 2.516668739 | AV37: 1.12824532 | AW37: 1.752267715 | AX37: 2.354705671 | AY37: 1.727847664 | AZ37: 2.00733728 | BA37: 2.012578128 | BB37: 2.284274674 | BC37: 2.515978641 | BD37: 1.511934967 | BE37: 1.935827927 | BF37: 1.311502995 | BH37: 2039 | BI37: 4075476 | BJ37: 6117 | BK37: 28298 | BL37: 66702 | BM37: 12564 | BN37: 65693 | BO37: 38023 | BP37: 7731 | BQ37: 12177 | BR37: 38510 | BS37: 44663 | BT37: 17820 | BU37: 258138 | BV37: 13699 | BW37: 13821 | BX37: 17003 | BY37: 57310 | BZ37: 698269 | CA37: 4773745 | CB37: 10195380 | CC37: 17352 | CD37: 75875 | CE37: 179261 | CF37: 33103 | CG37: 169727 | CH37: 99116 | CI37: 21962 | CJ37: 31365 | CK37: 100940 | CL37: 121179 | CM37: 49463 | CN37: 700610 | CO37: 36461 | CP37: 38453 | CQ37: 48609 | CR37: 153103 | CS37: 1876579 | CT37: 12071959 | CU37: 2039 | CV37: 2.501641526 | CW37: 2.836684649 | CX37: 2.681284896 | CY37: 2.68749063 | CZ37: 2.63475008 | DA37: 2.583639048 | DB37: 2.606738027 | DC37: 2.840770922 | DD37: 2.575757576 | DE37: 2.621137367 | DF37: 2.713185411 | DG37: 2.775701459 | DH37: 2.714090913 | DI37: 2.661581137 | DJ37: 2.782215469 | DK37: 2.858848439 | DL37: 2.671488396 | DM37: 2.687472879 | DN37: 2.528823597
A38: 2021 | B38: 8480124 | C38: 13141 | D38: 62758 | E38: 142500 | F38: 27518 | G38: 143978 | H38: 82259 | I38: 16580 | J38: 29041 | K38: 85059 | L38: 93976 | M38: 41946 | N38: 568726 | O38: 29775 | P38: 30560 | Q38: 36610 | R38: 132060 | S38: 1536487 | T38: 10016611 | U38: 84.66061026 | V38: 0.1311920768 | W38: 0.6265392556 | X38: 1.422636858 | Y38: 0.2747236565 | Z38: 1.437392348 | AA38: 0.8212258617 | AB38: 0.1655250463 | AC38: 0.2899283999 | AD38: 0.8491794281 | AE38: 0.9382015534 | AF38: 0.4187643905 | AG38: 5.677828559 | AH38: 0.2972562277 | AI38: 0.3050932097 | AJ38: 0.3654928798 | AK38: 1.318409989 | AL38: 15.33938974 | AM38: 100 | AN38: =(AN37+AN39)/2 -> 1.178310579 | AO38: =(AO37+AO39)/2 -> 2.199597236 | AP38: 1.649502359 | AQ38: 1.977871609 | AR38: 1.674297256 | AS38: 1.451667556 | AT38: 1.499392306 | AU38: 2.291021947 | AV38: 0.9089930284 | AW38: 1.526722367 | AX38: 2.121289209 | AY38: 1.511737818 | AZ38: 1.779713836 | BA38: 1.786070939 | BB38: 2.040433055 | BC38: 2.293357324 | BD38: 1.303466308 | BE38: 1.713585168 | BF38: 1.260775043 | BH38: 2040 | BI38: 4150305 | BJ38: 6244 | BK38: 28775 | BL38: 67929 | BM38: 12769 | BN38: 66731 | BO38: 38638 | BP38: 7890 | BQ38: 12320 | BR38: 39128 | BS38: 45527 | BT38: 18104 | BU38: 262700 | BV38: 13941 | BW38: 14078 | BX38: 17356 | BY38: 58180 | BZ38: 710310 | CA38: 4860615 | CB38: 10281378 | CC38: 17539 | CD38: 76407 | CE38: 180781 | CF38: 33315 | CG38: 170724 | CH38: 99737 | CI38: 22194 | CJ38: 31421 | CK38: 101555 | CL38: 122321 | CM38: 49759 | CN38: 706040 | CO38: 36742 | CP38: 38792 | CQ38: 49129 | CR38: 153915 | CS38: 1890371 | CT38: 12171749 | CU38: 2040 | CV38: 2.477258418 | CW38: 2.808936579 | CX38: 2.655325804 | CY38: 2.661322852 | CZ38: 2.609053176 | DA38: 2.558391153 | DB38: 2.581318909 | DC38: 2.812927757 | DD38: 2.550405844 | DE38: 2.595455939 | DF38: 2.686779274 | DG38: 2.748508617 | DH38: 2.687628474 | DI38: 2.635535471 | DJ38: 2.755505043 | DK38: 2.830663747 | DL38: 2.645496734 | DM38: 2.661332376 | DN38: 2.504158219
A39: 2022 | B39: 8578980 | C39: 13405 | D39: 63658 | E39: 145021 | F39: 27919 | G39: 145765 | H39: 83335 | I39: 16926 | J39: 29242 | K39: 86173 | L39: 95767 | M39: 42493 | N39: 577622 | O39: 30243 | P39: 31114 | Q39: 37376 | R39: 133514 | S39: 1559573 | T39: 10138553 | U39: 84.61740053 | V39: 0.1322180789 | W39: 0.6278805269 | X39: 1.430391497 | Y39: 0.2753746023 | Z39: 1.437729822 | AA39: 0.8219614771 | AB39: 0.1669469006 | AC39: 0.2884238017 | AD39: 0.8499536374 | AE39: 0.9445825257 | AF39: 0.4191229261 | AG39: 5.697282443 | AH39: 0.2982970055 | AI39: 0.306887975 | AJ39: 0.368652213 | AK39: 1.316894038 | AL39: 15.38259947 | AM39: 100 | AN39: 1.158995298 | AO39: 1.989065803 | AP39: 1.423894453 | AQ39: 1.753655981 | AR39: 1.446712463 | AS39: 1.233522576 | AT39: 1.299582284 | AU39: 2.065375154 | AV39: 0.689740737 | AW39: 1.30117702 | AX39: 1.887872747 | AY39: 1.295627972 | AZ39: 1.552090392 | BA39: 1.55956375 | BB39: 1.796591437 | BC39: 2.070736007 | BD39: 1.094997649 | BE39: 1.491342408 | BF39: 1.210047092 | BH39: 2041 | BI39: 4225525 | BJ39: 6370 | BK39: 29251 | BL39: 69155 | BM39: 12973 | BN39: 67764 | BO39: 39247 | BP39: 8050 | BQ39: 12461 | BR39: 39743 | BS39: 46389 | BT39: 18386 | BU39: 267242 | BV39: 14183 | BW39: 14336 | BX39: 17707 | BY39: 59046 | BZ39: 722303 | CA39: 4947828 | CB39: 10365697 | CC39: 17720 | CD39: 76911 | CE39: 182250 | CF39: 33516 | CG39: 171678 | CH39: 100322 | CI39: 22425 | CJ39: 31474 | CK39: 102149 | CL39: 123419 | CM39: 50043 | CN39: 711248 | CO39: 37013 | CP39: 39119 | CQ39: 49637 | CR39: 154675 | CS39: 1903599 | CT39: 12269296 | CU39: 2041 | CV39: 2.453114583 | CW39: 2.781789639 | CX39: 2.629346005 | CY39: 2.635384282 | CZ39: 2.583519618 | DA39: 2.533469099 | DB39: 2.556169898 | DC39: 2.785714286 | DD39: 2.525800498 | DE39: 2.570238784 | DF39: 2.660522969 | DG39: 2.721799195 | DH39: 2.661437948 | DI39: 2.609673553 | DJ39: 2.728724888 | DK39: 2.803241656 | DL39: 2.619567795 | DM39: 2.635457696 | DN39: 2.479733734
A40: 2023 | B40: 8677525 | C40: 13669 | D40: 64535 | E40: 147493 | F40: 28306 | G40: 147514 | H40: 84400 | I40: 17272 | J40: 29432 | K40: 87257 | L40: 97532 | M40: 43010 | N40: 586325 | O40: 30691 | P40: 31648 | Q40: 38131 | R40: 134929 | S40: 1582144 | T40: 10259669 | U40: 84.57899568 | V40: 0.133230419 | W40: 0.6290163942 | X40: 1.437599985 | Y40: 0.2758958403 | Z40: 1.43780467 | AA40: 0.8226386251 | AB40: 0.168348511 | AC40: 0.2868708532 | AD40: 0.8504855274 | AE40: 0.9506349571 | AF40: 0.4192143041 | AG40: 5.714852984 | AH40: 0.2991422043 | AI40: 0.3084699906 | AJ40: 0.3716591637 | AK40: 1.315139894 | AL40: 15.42100432 | AM40: 100 | AN40: 1.142132445 | AO40: 1.950272348 | AP40: 1.368270783 | AQ40: 1.690215751 | AR40: 1.376633568 | AS40: 1.192735064 | AT40: 1.269877261 | AU40: 2.023579196 | AV40: 0.6476485807 | AW40: 1.250088354 | AX40: 1.826237129 | AY40: 1.209329031 | AZ40: 1.495456785 | BA40: 1.470469926 | BB40: 1.701707678 | BC40: 1.999881239 | BD40: 1.054237291 | BE40: 1.436882338 | BF40: 1.18752922 | BH40: 2042 | BI40: 4301096 | BJ40: 6496 | BK40: 29724 | BL40: 70379 | BM40: 13175 | BN40: 68792 | BO40: 39851 | BP40: 8208 | BQ40: 12601 | BR40: 40354 | BS40: 47248 | BT40: 18666 | BU40: 271764 | BV40: 14424 | BW40: 14593 | BX40: 18058 | BY40: 59905 | BZ40: 734238 | CA40: 5035334 | CB40: 10448242 | CC40: 17890 | CD40: 77393 | CE40: 183668 | CF40: 33706 | CG40: 172580 | CH40: 100874 | CI40: 22644 | CJ40: 31515 | CK40: 102704 | CL40: 124476 | CM40: 50310 | CN40: 716233 | CO40: 37275 | CP40: 39430 | CQ40: 50123 | CR40: 155401 | CS40: 1916222 | CT40: 12364464 | CU40: 2042 | CV40: 2.429204556 | CW40: 2.754002463 | CX40: 2.603720899 | CY40: 2.609698916 | CZ40: 2.558330171 | DA40: 2.508721944 | DB40: 2.531279014 | DC40: 2.75877193 | DD40: 2.500991985 | DE40: 2.545076077 | DF40: 2.634524213 | DG40: 2.695274831 | DH40: 2.635496239 | DI40: 2.584234609 | DJ40: 2.701980402 | DK40: 2.775667294 | DL40: 2.59412403 | DM40: 2.609810443 | DN40: 2.45553999
A41: 2024 | B41: 8775928 | C41: 13926 | D41: 65389 | E41: 149922 | F41: 28680 | G41: 149211 | H41: 85463 | I41: 17609 | J41: 29607 | K41: 88312 | L41: 99261 | M41: 43517 | N41: 594841 | O41: 31130 | P41: 32170 | Q41: 38888 | R41: 136319 | S41: 1604245 | T41: 10380173 | U41: 84.54510344 | V41: 0.1341596137 | W41: 0.6299413314 | X41: 1.444311188 | Y41: 0.2762959731 | Z41: 1.437461591 | AA41: 0.8233292451 | AB41: 0.1696407179 | AC41: 0.2852264601 | AD41: 0.8507758011 | AE41: 0.9562557387 | AF41: 0.4192319338 | AG41: 5.730549963 | AH41: 0.2998986626 | AI41: 0.3099177634 | AJ41: 0.3746373013 | AK41: 1.313263276 | AL41: 15.45489656 | AM41: 100 | AN41: 1.127616898 | AO41: 1.862710135 | AP41: 1.314633631 | AQ41: 1.633444182 | AR41: 1.312621942 | AS41: 1.143832506 | AT41: 1.251613214 | AU41: 1.932344177 | AV41: 0.5928302056 | AW41: 1.201821163 | AX41: 1.757221538 | AY41: 1.171901955 | AZ41: 1.44198996 | BA41: 1.420253245 | BB41: 1.635938581 | BC41: 1.965812015 | BD41: 1.024901321 | BE41: 1.38723517 | BF41: 1.167696625 | BH41: 2043 | BI41: 4377043 | BJ41: 6622 | BK41: 30195 | BL41: 71603 | BM41: 13376 | BN41: 69813 | BO41: 40452 | BP41: 8366 | BQ41: 12739 | BR41: 40963 | BS41: 48104 | BT41: 18944 | BU41: 276266 | BV41: 14663 | BW41: 14849 | BX41: 18407 | BY41: 60760 | BZ41: 746122 | CA41: 5123165 | CB41: 10529096 | CC41: 18062 | CD41: 77852 | CE41: 185036 | CF41: 33887 | CG41: 173440 | CH41: 101395 | CI41: 22853 | CJ41: 31553 | CK41: 103239 | CL41: 125497 | CM41: 50561 | CN41: 721000 | CO41: 37523 | CP41: 39732 | CQ41: 50600 | CR41: 156082 | CS41: 1928312 | CT41: 12457408 | CU41: 2043 | CV41: 2.405527202 | CW41: 2.727574751 | CX41: 2.578307667 | CY41: 2.5841934 | CZ41: 2.533418062 | DA41: 2.484351052 | DB41: 2.506550974 | DC41: 2.731651924 | DD41: 2.476882016 | DE41: 2.520298806 | DF41: 2.608868285 | DG41: 2.668971706 | DH41: 2.609803595 | DI41: 2.55902612 | DJ41: 2.67573574 | DK41: 2.748954202 | DL41: 2.568828176 | DM41: 2.584445975 | DN41: 2.431584382
A42: 2025 | B42: 8874346 | C42: 14184 | D42: 66222 | E42: 152302 | F42: 29048 | G42: 150874 | H42: 86523 | I42: 17939 | J42: 29778 | K42: 89337 | L42: 100972 | M42: 44007 | N42: 603190 | O42: 31558 | P42: 32682 | Q42: 39624 | R42: 137675 | S42: 1625915 | T42: 10500261 | U42: 84.51548014 | V42: 0.1350823565 | W42: 0.6306700376 | X42: 1.450459184 | Y42: 0.2766407425 | Z42: 1.436859522 | AA42: 0.8240080889 | AB42: 0.1708433724 | AC42: 0.2835929507 | AD42: 0.8508074228 | AE42: 0.9616141923 | AF42: 0.419103868 | AG42: 5.744523874 | AH42: 0.3005449103 | AI42: 0.3112494061 | AJ42: 0.3773620484 | AK42: 1.311157885 | AL42: 15.48451986 | AM42: 100 | AN42: 1.115212376 | AO42: 1.835697225 | AP42: 1.265868542 | AQ42: 1.575023294 | AR42: 1.274961838 | AS42: 1.10836398 | AT42: 1.232674081 | AU42: 1.856697874 | AV42: 0.5759045975 | AW42: 1.153973706 | AX42: 1.709050602 | AY42: 1.119704583 | AZ42: 1.393809536 | BA42: 1.365513816 | BB42: 1.579012638 | BC42: 1.874927554 | BD42: 0.9898107775 | BE42: 1.341749331 | BF42: 1.150256973 | BH42: 2044 | BI42: 4453395 | BJ42: 6747 | BK42: 30663 | BL42: 72825 | BM42: 13576 | BN42: 70830 | BO42: 41051 | BP42: 8524 | BQ42: 12877 | BR42: 41568 | BS42: 48958 | BT42: 19221 | BU42: 280751 | BV42: 14902 | BW42: 15105 | BX42: 18756 | BY42: 61611 | BZ42: 757965 | CA42: 5211360 | CB42: 10608354 | CC42: 18226 | CD42: 78290 | CE42: 186358 | CF42: 34057 | CG42: 174245 | CH42: 101893 | CI42: 23057 | CJ42: 31585 | CK42: 103744 | CL42: 126480 | CM42: 50805 | CN42: 725559 | CO42: 37766 | CP42: 40023 | CQ42: 51053 | CR42: 156722 | CS42: 1939863 | CT42: 12548217 | CU42: 2044 | CV42: 2.382082434 | CW42: 2.701348748 | CX42: 2.553240061 | CY42: 2.558983865 | CZ42: 2.50861815 | DA42: 2.460045179 | DB42: 2.482107622 | DC42: 2.704950727 | DD42: 2.452822862 | DE42: 2.495765974 | DF42: 2.583438866 | DG42: 2.643202747 | DH42: 2.584350546 | DI42: 2.534290699 | DJ42: 2.649652433 | DK42: 2.721955641 | DL42: 2.543734073 | DM42: 2.55930419 | DN42: 2.407858409
A43: 2026 | B43: 8972653 | C43: 14442 | D43: 67045 | E43: 154622 | F43: 29399 | G43: 152494 | H43: 87581 | I43: 18267 | J43: 29943 | K43: 90337 | L43: 102647 | M43: 44473 | N43: 611370 | O43: 31970 | P43: 33172 | Q43: 40356 | R43: 139005 | S43: 1647123 | T43: 10619776 | U43: 84.49004009 | V43: 0.1359915689 | W43: 0.6313221672 | X43: 1.455981746 | Y43: 0.276832581 | Z43: 1.435943658 | AA43: 0.8246972441 | AB43: 0.1720092778 | AC43: 0.2819550996 | AD43: 0.8506488272 | AE43: 0.9665646432 | AF43: 0.4187753113 | AG43: 5.756901087 | AH43: 0.3010421312 | AI43: 0.3123606374 | AJ43: 0.3800080152 | AK43: 1.308925913 | AL43: 15.50995991 | AM43: 100 | AN43: 1.101675349 | AO43: 1.802605926 | AP43: 1.235130171 | AQ43: 1.511803695 | AR43: 1.201102605 | AS43: 1.068019962 | AT43: 1.215380489 | AU43: 1.811903958 | AV43: 0.5525708539 | AW43: 1.113138602 | AX43: 1.645266683 | AY43: 1.053355128 | AZ43: 1.347010223 | BA43: 1.297084046 | BB43: 1.488167896 | BC43: 1.830508726 | BD43: 0.9614068558 | BE43: 1.295939541 | BF43: 1.131780932 | BH43: 2045 | BI43: 4530184 | BJ43: 6872 | BK43: 31131 | BL43: 74045 | BM43: 13775 | BN43: 71842 | BO43: 41649 | BP43: 8682 | BQ43: 13013 | BR43: 42171 | BS43: 49810 | BT43: 19497 | BU43: 285221 | BV43: 15139 | BW43: 15360 | BX43: 19103 | BY43: 62458 | BZ43: 769768 | CA43: 5299952 | CB43: 10686090 | CC43: 18381 | CD43: 78711 | CE43: 187637 | CF43: 34222 | CG43: 175016 | CH43: 102371 | CI43: 23252 | CJ43: 31605 | CK43: 104220 | CL43: 127433 | CM43: 51028 | CN43: 729928 | CO43: 37994 | CP43: 40299 | CQ43: 51494 | CR43: 157327 | CS43: 1950918 | CT43: 12637008 | CU43: 2045 | CV43: 2.358864452 | CW43: 2.674767171 | CX43: 2.528380071 | CY43: 2.534094132 | CZ43: 2.484355717 | DA43: 2.436123716 | DB43: 2.457946169 | DC43: 2.67818475 | DD43: 2.428725121 | DE43: 2.471366579 | DF43: 2.558381851 | DG43: 2.617223163 | DH43: 2.559166401 | DI43: 2.509676993 | DJ43: 2.623632812 | DK43: 2.69559755 | DL43: 2.518924717 | DM43: 2.534423359 | DN43: 2.384362726
A44: 2027 | B44: 9070590 | C44: 14691 | D44: 67840 | E44: 156877 | F44: 29748 | G44: 154076 | H44: 88626 | I44: 18588 | J44: 30092 | K44: 91306 | L44: 104290 | M44: 44934 | N44: 619359 | O44: 32369 | P44: 33646 | Q44: 41078 | R44: 140299 | S44: 1667819 | T44: 10738409 | U44: 84.46865825 | V44: 0.1368079759 | W44: 0.6317509419 | X44: 1.460896116 | Y44: 0.277024278 | Z44: 1.434812177 | AA44: 0.8253177915 | AB44: 0.1730982681 | AC44: 0.2802277321 | AD44: 0.8502749337 | AE44: 0.9711867 | AF44: 0.4184418753 | AG44: 5.76769799 | AH44: 0.3014319905 | AI44: 0.3133238825 | AJ44: 0.3825333902 | AK44: 1.306515705 | AL44: 15.53134175 | AM44: 100 | AN44: 1.085591563 | AO44: 1.709443336 | AP44: 1.178795575 | AQ44: 1.447863006 | AR44: 1.180124268 | AS44: 1.032073616 | AT44: 1.186118885 | AU44: 1.742005793 | AV44: 0.4963781325 | AW44: 1.066938106 | AX44: 1.587956262 | AY44: 1.031248304 | AZ44: 1.298273172 | BA44: 1.240321159 | BB44: 1.418803171 | BC44: 1.773261584 | BD44: 0.9265955793 | BE44: 1.248665521 | BF44: 1.110901699 | BH44: 2046 | BI44: 4607304 | BJ44: 6997 | BK44: 31595 | BL44: 75262 | BM44: 13972 | BN44: 72848 | BO44: 42248 | BP44: 8838 | BQ44: 13148 | BR44: 42770 | BS44: 50660 | BT44: 19770 | BU44: 289670 | BV44: 15375 | BW44: 15614 | BX44: 19450 | BY44: 63299 | BZ44: 781516 | CA44: 5388820 | CB44: 10762080 | CC44: 18531 | CD44: 79102 | CE44: 188862 | CF44: 34373 | CG44: 175735 | CH44: 102828 | CI44: 23442 | CJ44: 31623 | CK44: 104672 | CL44: 128337 | CM44: 51243 | CN44: 734084 | CO44: 38209 | CP44: 40566 | CQ44: 51917 | CR44: 157896 | CS44: 1961420 | CT44: 12723500 | CU44: 2046 | CV44: 2.335873648 | CW44: 2.648420752 | CX44: 2.503623991 | CY44: 2.509393851 | CZ44: 2.460134555 | DA44: 2.412351746 | DB44: 2.433914031 | DC44: 2.652410048 | DD44: 2.405156678 | DE44: 2.44732289 | DF44: 2.533300434 | DG44: 2.591957511 | DH44: 2.534207892 | DI44: 2.485138211 | DJ44: 2.598053029 | DK44: 2.669254499 | DL44: 2.49444699 | DM44: 2.509763076 | DN44: 2.361092039
A45: 2028 | B45: 9168152 | C45: 14938 | D45: 68617 | E45: 159070 | F45: 30082 | G45: 155612 | H45: 89665 | I45: 18902 | J45: 30241 | K45: 92253 | L45: 105905 | M45: 45376 | N45: 627167 | O45: 32760 | P45: 34109 | Q45: 41784 | R45: 141562 | S45: 1688043 | T45: 10856195 | U45: 84.45087805 | V45: 0.1375988548 | W45: 0.6320538642 | X45: 1.465246341 | Y45: 0.2770952438 | Z45: 1.43339356 | AA45: 0.8259339483 | AB45: 0.1741125689 | AC45: 0.2785598453 | AD45: 0.8497728716 | AE45: 0.9755259555 | AF45: 0.4179733323 | AG45: 5.777042509 | AH45: 0.3017631868 | AI45: 0.3141892717 | AJ45: 0.3848862332 | AK45: 1.303974367 | AL45: 15.54912195 | AM45: 100 | AN45: 1.069842762 | AO45: 1.667324055 | AP45: 1.138832596 | AQ45: 1.38822981 | AR45: 1.116508339 | AS45: 0.991974242 | AT45: 1.165523511 | AU45: 1.675152535 | AV45: 0.493926385 | AW45: 1.031829986 | AX45: 1.536698571 | AY45: 0.9788584414 | AZ45: 1.25277806 | BA45: 1.200708433 | BB45: 1.366710079 | BC45: 1.704079275 | BD45: 0.8961924163 | BE45: 1.205308492 | BF45: 1.090894448 | BH45: 2047 | BI45: 4684673 | BJ45: 7121 | BK45: 32057 | BL45: 76474 | BM45: 14168 | BN45: 73848 | BO45: 42846 | BP45: 8995 | BQ45: 13282 | BR45: 43365 | BS45: 51507 | BT45: 20042 | BU45: 294093 | BV45: 15609 | BW45: 15867 | BX45: 19795 | BY45: 64134 | BZ45: 793203 | CA45: 5477876 | CB45: 10836151 | CC45: 18680 | CD45: 79477 | CE45: 190032 | CF45: 34510 | CG45: 176408 | CH45: 103270 | CI45: 23628 | CJ45: 31634 | CK45: 105094 | CL45: 129212 | CM45: 51440 | CN45: 738024 | CO45: 38410 | CP45: 40821 | CQ45: 52325 | CR45: 158417 | CS45: 1971382 | CT45: 12807533 | CU45: 2047 | CV45: 2.313107233 | CW45: 2.623227075 | CX45: 2.479240104 | CY45: 2.48492298 | CZ45: 2.435770751 | DA45: 2.388798613 | DB45: 2.410260001 | DC45: 2.626792663 | DD45: 2.381719621 | DE45: 2.423475153 | DF45: 2.508629895 | DG45: 2.566610119 | DH45: 2.509491895 | DI45: 2.460759818 | DJ45: 2.572698053 | DK45: 2.643344279 | DL45: 2.470093866 | DM45: 2.485343601 | DN45: 2.338047265
A46: 2029 | B46: 9265331 | C46: 15178 | D46: 69378 | E46: 161199 | F46: 30406 | G46: 157103 | H46: 90684 | I46: 19216 | J46: 30377 | K46: 93170 | L46: 107485 | M46: 45805 | N46: 634791 | O46: 33138 | P46: 34560 | Q46: 42477 | R46: 142789 | S46: 1707756 | T46: 10973087 | U46: 84.43686813 | V46: 0.1383202375 | W46: 0.6322559914 | X46: 1.46903966 | Y46: 0.2770961353 | Z46: 1.431711969 | AA46: 0.826421954 | AB46: 0.1751193625 | AC46: 0.2768318523 | AD46: 0.8490773836 | AE46: 0.9795329245 | AF46: 0.4174303913 | AG46: 5.784981018 | AH46: 0.3019934135 | AI46: 0.3149523922 | AJ46: 0.3871016424 | AK46: 1.301265542 | AL46: 15.56313187 | AM46: 100 | AN46: 1.054384571 | AO46: 1.593870905 | AP46: 1.102949693 | AQ46: 1.329526967 | AR46: 1.071297113 | AS46: 0.9535911603 | AT46: 1.130043243 | AU46: 1.647552876 | AV46: 0.4487123567 | AW46: 0.9890978745 | AX46: 1.48088371 | AY46: 0.9409924558 | AZ46: 1.2082958 | BA46: 1.147240116 | BB46: 1.313566485 | BC46: 1.644926184 | BD46: 0.8630232464 | BE46: 1.161035824 | BF46: 1.070975374 | BH46: 2048 | BI46: 4762360 | BJ46: 7245 | BK46: 32516 | BL46: 77679 | BM46: 14363 | BN46: 74841 | BO46: 43445 | BP46: 9150 | BQ46: 13415 | BR46: 43957 | BS46: 52352 | BT46: 20312 | BU46: 298494 | BV46: 15841 | BW46: 16118 | BX46: 20139 | BY46: 64964 | BZ46: 804831 | CA46: 5567191 | CB46: 10908480 | CC46: 18820 | CD46: 79829 | CE46: 191139 | CF46: 34648 | CG46: 177038 | CH46: 103694 | CI46: 23800 | CJ46: 31639 | CK46: 105493 | CL46: 130052 | CM46: 51621 | CN46: 741768 | CO46: 38599 | CP46: 41062 | CQ46: 52712 | CR46: 158901 | CS46: 1980815 | CT46: 12889295 | CU46: 2048 | CV46: 2.290561822 | CW46: 2.597653554 | CX46: 2.455068274 | CY46: 2.460626424 | CZ46: 2.412309406 | DA46: 2.365521572 | DB46: 2.386787893 | DC46: 2.601092896 | DD46: 2.358479314 | DE46: 2.399913552 | DF46: 2.484183985 | DG46: 2.541404096 | DH46: 2.485034875 | DI46: 2.436651727 | DJ46: 2.547586549 | DK46: 2.617409007 | DL46: 2.445985469 | DM46: 2.461156442 | DN46: 2.315224141
A47: 2030 | B47: 9362126 | C47: 15421 | D47: 70119 | E47: 163266 | F47: 30725 | G47: 158566 | H47: 91689 | I47: 19516 | J47: 30503 | K47: 94069 | L47: 109027 | M47: 46223 | N47: 642241 | O47: 33508 | P47: 34994 | Q47: 43155 | R47: 143987 | S47: 1727009 | T47: 11089135 | U47: 84.42611619 | V47: 0.1390640478 | W47: 0.6323216374 | X47: 1.472306 | Y47: 0.2770730089 | Z47: 1.429922172 | AA47: 0.8268363583 | AB47: 0.1759920859 | AC47: 0.2750710493 | AD47: 0.8482988078 | AE47: 0.9831875976 | AF47: 0.41683143 | AG47: 5.791623963 | AH47: 0.3021696462 | AI47: 0.3155701504 | AJ47: 0.3891647094 | AK47: 1.298451142 | AL47: 15.57388381 | AM47: 100 | AN47: 1.03928165 | AO47: 1.588320589 | AP47: 1.062398431 | AQ47: 1.274114596 | AR47: 1.043669809 | AS47: 0.9269269234 | AT47: 1.102147986 | AU47: 1.549137662 | AV47: 0.4139296317 | AW47: 0.9602774083 | AX47: 1.424425503 | AY47: 0.9084254239 | AZ47: 1.16678118 | BA47: 1.110355614 | BB47: 1.247967429 | BC47: 1.58355327 | BD47: 0.8355001597 | BE47: 1.121078248 | BF47: 1.052016159 | BH47: 2049 | BI47: 4840443 | BJ47: 7369 | BK47: 32974 | BL47: 78880 | BM47: 14556 | BN47: 75830 | BO47: 44046 | BP47: 9305 | BQ47: 13546 | BR47: 44546 | BS47: 53195 | BT47: 20580 | BU47: 302880 | BV47: 16072 | BW47: 16369 | BX47: 20482 | BY47: 65791 | BZ47: 816421 | CA47: 5656864 | CB47: 10979273 | CC47: 18954 | CD47: 80165 | CE47: 192207 | CF47: 34773 | CG47: 177633 | CH47: 104104 | CI47: 23968 | CJ47: 31638 | CK47: 105862 | CL47: 130853 | CM47: 51792 | CN47: 745329 | CO47: 38780 | CP47: 41296 | CQ47: 53085 | CR47: 159356 | CS47: 1989795 | CT47: 12969068 | CU47: 2049 | CV47: 2.268237225 | CW47: 2.572126476 | CX47: 2.431157882 | CY47: 2.436701318 | CZ47: 2.388911789 | DA47: 2.342516155 | DB47: 2.363529038 | DC47: 2.575819452 | DD47: 2.335597224 | DE47: 2.376464778 | DF47: 2.459874048 | DG47: 2.516618076 | DH47: 2.46080626 | DI47: 2.412891986 | DJ47: 2.522817521 | DK47: 2.591787911 | DL47: 2.422155006 | DM47: 2.437216828 | DN47: 2.29262503
A48: 2031 | B48: 9458567 | C48: 15654 | D48: 70846 | E48: 165276 | F48: 31027 | G48: 159984 | H48: 92663 | I48: 19817 | J48: 30631 | K48: 94937 | L48: 110537 | M48: 46627 | N48: 649522 | O48: 33870 | P48: 35422 | Q48: 43820 | R48: 145153 | S48: 1745786 | T48: 11204353 | U48: 84.41868085 | V48: 0.139713556 | W48: 0.6323078182 | X48: 1.475105256 | Y48: 0.2769191581 | Z48: 1.427873613 | AA48: 0.8270267815 | AB48: 0.1768687581 | AC48: 0.2733848175 | AD48: 0.8473224648 | AE48: 0.9865540652 | AF48: 0.4161507585 | AG48: 5.797050486 | AH48: 0.3022932248 | AI48: 0.316144984 | AJ48: 0.3910979956 | AK48: 1.295505417 | AL48: 15.58131915 | AM48: 100 | AN48: 1.024849022 | AO48: 1.499625851 | AP48: 1.031470855 | AQ48: 1.223603118 | AR48: 0.9781137703 | AS48: 0.8902899803 | AT48: 1.056684021 | AU48: 1.530551323 | AV48: 0.4187528611 | AW48: 0.9184958174 | AX48: 1.375474856 | AY48: 0.870226278 | AZ48: 1.127308509 | BA48: 1.074545054 | BB48: 1.215647781 | BC48: 1.52920485 | BD48: 0.8065340808 | BE48: 1.081387354 | BF48: 1.033656338 | BH48: 2050 | BI48: 4919004 | BJ48: 7492 | BK48: 33430 | BL48: 80077 | BM48: 14749 | BN48: 76816 | BO48: 44650 | BP48: 9460 | BQ48: 13677 | BR48: 45134 | BS48: 54037 | BT48: 20847 | BU48: 307254 | BV48: 16302 | BW48: 16618 | BX48: 20824 | BY48: 66614 | BZ48: 827981 | CA48: 5746985 | CB48: 11048723 | CC48: 19084 | CD48: 80478 | CE48: 193218 | CF48: 34890 | CG48: 178187 | CH48: 104498 | CI48: 24128 | CJ48: 31629 | CK48: 106210 | CL48: 131636 | CM48: 51956 | CN48: 748720 | CO48: 38954 | CP48: 41518 | CQ48: 53444 | CR48: 159780 | CS48: 1998330 | CT48: 13047053 | CU48: 2050 | CV48: 2.246130111 | CW48: 2.5472504 | CX48: 2.40735866 | CY48: 2.412902581 | CZ48: 2.365584107 | DA48: 2.319659967 | DB48: 2.340380739 | DC48: 2.550528541 | DD48: 2.312568546 | DE48: 2.353214871 | DF48: 2.436034569 | DG48: 2.492253082 | DH48: 2.436811238 | DI48: 2.389522758 | DJ48: 2.498375256 | DK48: 2.566461775 | DL48: 2.39859489 | DM48: 2.413497411 | DN48: 2.270243093
A49: 2032 | B49: 9554539 | C49: 15887 | D49: 71548 | E49: 167223 | F49: 31322 | G49: 161365 | H49: 93612 | I49: 20109 | J49: 30745 | K49: 95788 | L49: 112018 | M49: 47026 | N49: 656627 | O49: 34221 | P49: 35835 | Q49: 44477 | R49: 146283 | S49: 1764086 | T49: 11318625 | U49: 84.41430828 | V49: 0.1403615722 | W49: 0.6321262521 | X49: 1.477414439 | Y49: 0.2767297264 | Z49: 1.425659035 | AA49: 0.827061591 | AB49: 0.1776629228 | AC49: 0.2716319341 | AD49: 0.846286541 | AE49: 0.9896785166 | AF49: 0.4154744945 | AG49: 5.801296536 | AH49: 0.3023423782 | AI49: 0.3166020608 | AJ49: 0.3929540912 | AK49: 1.292409635 | AL49: 15.58569172 | AM49: 100 | AN49: 1.009543786 | AO49: 1.477468936 | AP49: 0.9860045892 | AQ49: 1.171144728 | AR49: 0.9462932889 | AS49: 0.8595069546 | AT49: 1.01893245 | AU49: 1.462732086 | AV49: 0.3714811363 | AW49: 0.8923902451 | AX49: 1.330926613 | AY49: 0.8520867759 | AZ49: 1.08794174 | BA49: 1.030982388 | BB49: 1.159197341 | BC49: 1.488186746 | BD49: 0.7754743153 | BE49: 1.042782519 | BF49: 1.014723546
A50: 2033 | B50: 9649768 | C50: 16112 | D50: 72233 | E50: 169109 | F50: 31612 | G50: 162703 | H50: 94524 | I50: 20396 | J50: 30860 | K50: 96608 | L50: 113453 | M50: 47409 | N50: 663545 | O50: 34570 | P50: 36243 | Q50: 45114 | R50: 147382 | S50: 1781873 | T50: 11431641 | U50: 84.41279778 | V50: 0.1409421447 | W50: 0.6318690379 | X50: 1.479306427 | Y50: 0.2765307273 | Z50: 1.423268978 | AA50: 0.826862915 | AB50: 0.1784170794 | AC50: 0.2699524941 | AD50: 0.8450930186 | AE50: 0.9924471911 | AF50: 0.4147173621 | AG50: 5.804459745 | AH50: 0.3024062775 | AI50: 0.3170410967 | AJ50: 0.3946415042 | AK50: 1.289246225 | AL50: 15.58720222 | AM50: 100 | AN50: 0.9917544074 | AO50: 1.406317124 | AP50: 0.9528452058 | AQ50: 1.121522643 | AR50: 0.9216069298 | AS50: 0.825757312 | AT50: 0.9695190115 | AU50: 1.417132715 | AV50: 0.373346753 | AW50: 0.8524137354 | AX50: 1.272908158 | AY50: 0.811144385 | AZ50: 1.048054848 | BA50: 1.014676322 | BB50: 1.132118976 | BC50: 1.4220418 | BD50: 0.7484753925 | BE50: 1.003234904 | BF50: 0.9935438089
A51: 2034 | B51: 9744007 | C51: 16332 | D51: 72898 | E51: 170944 | F51: 31883 | G51: 163992 | H51: 95395 | I51: 20673 | J51: 30968 | K51: 97405 | L51: 114842 | M51: 47786 | N51: 670266 | O51: 34908 | P51: 36632 | Q51: 45738 | R51: 148442 | S51: 1799104 | T51: 11543111 | U51: 84.41404575 | V51: 0.1414869873 | W51: 0.6315281903 | X51: 1.480917926 | Y51: 0.2762080344 | Z51: 1.420691528 | AA51: 0.8264236565 | AB51: 0.1790938335 | AC51: 0.2682812285 | AD51: 0.8438366399 | AE51: 0.9948964365 | AF51: 0.4139785193 | AG51: 5.806632198 | AH51: 0.3024141412 | AI51: 0.3173494563 | AJ51: 0.3962363352 | AK51: 1.285979144 | AL51: 15.58595425 | AM51: 100 | AN51: 0.9718555747 | AO51: 1.356203748 | AP51: 0.9164198607 | AQ51: 1.079254005 | AR51: 0.8536157038 | AS51: 0.7891193247 | AT51: 0.917239567 | AU51: 1.348969785 | AV51: 0.349356634 | AW51: 0.8215990509 | AX51: 1.216861639 | AY51: 0.7920625473 | AZ51: 1.007797489 | BA51: 0.9729775368 | BB51: 1.067591615 | BC51: 1.373684261 | BD51: 0.716645395 | BE51: 0.9623704921 | BF51: 0.9703771749
A52: 2035 | B52: 9836993 | C52: 16545 | D52: 73536 | E52: 172711 | F52: 32150 | G52: 165235 | H52: 96228 | I52: 20946 | J52: 31058 | K52: 98170 | L52: 116199 | M52: 48141 | N52: 676763 | O52: 35234 | P52: 37022 | Q52: 46344 | R52: 149454 | S52: 1815736 | T52: 11652729 | U52: 84.41793334 | V52: 0.1419839078 | W52: 0.6310624747 | X52: 1.482150662 | Y52: 0.2759010357 | Z52: 1.417994017 | AA52: 0.825797974 | AB52: 0.1797518847 | AC52: 0.2665298403 | AD52: 0.842463598 | AE52: 0.99718272 | AF52: 0.4131306924 | AG52: 5.807764001 | AH52: 0.3023669391 | AI52: 0.3177109843 | AJ52: 0.3977094121 | AK52: 1.282566513 | AL52: 15.58206666 | AM52: 100 | AN52: 0.9497645573 | AO52: 1.295756792 | AP52: 0.871387843 | AQ52: 1.02836599 | AR52: 0.8339498303 | AS52: 0.7551056907 | AT52: 0.8694209434 | AU52: 1.311919631 | AV52: 0.2902010872 | AW52: 0.7823125671 | AX52: 1.174696789 | AY52: 0.7401495317 | AZ52: 0.9646489246 | BA52: 0.9295496204 | BB52: 1.059015518 | BC52: 1.316237156 | BD52: 0.6794343617 | BE52: 0.920213197 | BF52: 0.9451592703
A53: 2036 | B53: 9928620 | C53: 16758 | D53: 74158 | E53: 174427 | F53: 32405 | G53: 166428 | H53: 97014 | I53: 21212 | J53: 31146 | K53: 98902 | L53: 117506 | M53: 48494 | N53: 683045 | O53: 35553 | P53: 37393 | Q53: 46936 | R53: 150428 | S53: 1831805 | T53: 11760425 | U53: 84.42398978 | V53: 0.1424948503 | W53: 0.6305724496 | X53: 1.483169188 | Y53: 0.2755427631 | Z53: 1.415152939 | AA53: 0.8249191675 | AB53: 0.1803676313 | AC53: 0.2648373677 | AD53: 0.8409730091 | AE53: 0.999164571 | AF53: 0.4123490435 | AG53: 5.807995885 | AH53: 0.3023105032 | AI53: 0.3179561963 | AJ53: 0.399101223 | AK53: 1.279103434 | AL53: 15.57601022 | AM53: 100 | AN53: 0.9271420658 | AO53: 1.279181482 | AP53: 0.8422869951 | AQ53: 0.9886638614 | AR53: 0.7900281196 | AS53: 0.7194080409 | AT53: 0.8134922373 | AU53: 1.261936192 | AV53: 0.2829401926 | AW53: 0.7428791167 | AX53: 1.118515758 | AY53: 0.7305874065 | AZ53: 0.9239605431 | BA53: 0.9013015369 | BB53: 0.997119059 | BC53: 1.269313783 | BD53: 0.6495911225 | BE53: 0.8810924377 | BF53: 0.9199679766
A54: 2037 | B54: 10018936 | C54: 16960 | D54: 74753 | E54: 176088 | F54: 32648 | G54: 167576 | H54: 97761 | I54: 21466 | J54: 31226 | K54: 99610 | L54: 118772 | M54: 48830 | N54: 689112 | O54: 35864 | P54: 37755 | Q54: 47512 | R54: 151362 | S54: 1847295 | T54: 11866231 | U54: 84.43233576 | V54: 0.1429265956 | W54: 0.6299641394 | X54: 1.483942121 | Y54: 0.2751336966 | Z54: 1.41220915 | AA54: 0.8238588984 | AB54: 0.1808998999 | AC54: 0.2631501106 | AD54: 0.8394409312 | AE54: 1.000924388 | AF54: 0.4115038718 | AG54: 5.807336803 | AH54: 0.3022358152 | AI54: 0.3181717936 | AJ54: 0.4003967224 | AK54: 1.275569303 | AL54: 15.56766424 | AM54: 100 | AN54: 0.9055406804 | AO54: 1.198187417 | AP54: 0.7991393067 | AQ54: 0.9477554074 | AR54: 0.7470866224 | AS54: 0.6874196241 | AT54: 0.7670426518 | AU54: 1.190322878 | AV54: 0.2565255046 | AW54: 0.7133100286 | AX54: 1.07162928 | AY54: 0.6904799123 | AZ54: 0.8843069031 | BA54: 0.8709465979 | BB54: 0.9634396128 | BC54: 1.219733909 | BD54: 0.6189754346 | BE54: 0.8420587387 | BF54: 0.895655376
A55: 2038 | B55: 10107880 | C55: 17163 | D55: 75325 | E55: 177699 | F55: 32880 | G55: 168670 | H55: 98458 | I55: 21720 | J55: 31301 | K55: 100283 | L55: 119995 | M55: 49157 | N55: 694973 | O55: 36167 | P55: 38112 | Q55: 48068 | R55: 152254 | S55: 1862225 | T55: 11970105 | U55: 84.44270121 | V55: 0.1433822009 | W55: 0.6292760172 | X55: 1.484523319 | Y55: 0.2746843073 | Z55: 1.409093738 | AA55: 0.8225324673 | AB55: 0.1814520424 | AC55: 0.2614931114 | AD55: 0.8377787831 | AE55: 1.002455701 | AF55: 0.4106647352 | AG55: 5.805905629 | AH55: 0.3021443839 | AI55: 0.3183931971 | AJ55: 0.4015670706 | AK55: 1.271952084 | AL55: 15.55729879 | AM55: 100 | AN55: 0.8838415277 | AO55: 1.189827359 | AP55: 0.7622739772 | AQ55: 0.9107237603 | AR55: 0.7080972084 | AS55: 0.6507163566 | AT55: 0.7104336803 | AU55: 1.176320701 | AV55: 0.2398964798 | AW55: 0.673362792 | AX55: 1.024438633 | AY55: 0.6674379538 | AZ55: 0.8469183659 | BA55: 0.8413094007 | BB55: 0.9411275918 | BC55: 1.163436434 | BD55: 0.5875860076 | BE55: 0.8049602438 | BF55: 0.8715656428
A56: 2039 | B56: 10195380 | C56: 17352 | D56: 75875 | E56: 179261 | F56: 33103 | G56: 169727 | H56: 99116 | I56: 21962 | J56: 31365 | K56: 100940 | L56: 121179 | M56: 49463 | N56: 700610 | O56: 36461 | P56: 38453 | Q56: 48609 | R56: 153103 | S56: 1876579 | T56: 12071959 | U56: 84.45505821 | V56: 0.1437380627 | W56: 0.6285226781 | X56: 1.484937117 | Y56: 0.2742139863 | Z56: 1.405960706 | AA56: 0.8210432126 | AB56: 0.1819257338 | AC56: 0.2598169858 | AD56: 0.8361526079 | AE56: 1.003805596 | AF56: 0.4097346586 | AG56: 5.803614807 | AH56: 0.3020305155 | AI56: 0.3185315656 | AJ56: 0.4026604133 | AK56: 1.268253148 | AL56: 15.54494179 | AM56: 100 | AN56: 0.8619358834 | AO56: 1.095186957 | AP56: 0.7275164363 | AQ56: 0.875173672 | AR56: 0.6759342529 | AS56: 0.6247120616 | AT56: 0.6660820075 | AU56: 1.108019211 | AV56: 0.2042575631 | AW56: 0.6530091835 | AX56: 0.9818716049 | AY56: 0.6205657717 | AZ56: 0.8078388252 | BA56: 0.8096095332 | BB56: 0.8907523142 | BC56: 1.11920239 | BD56: 0.5560718685 | BE56: 0.7678428997 | BF56: 0.847303371
A57: 2040 | B57: 10281378 | C57: 17539 | D57: 76407 | E57: 180781 | F57: 33315 | G57: 170724 | H57: 99737 | I57: 22194 | J57: 31421 | K57: 101555 | L57: 122321 | M57: 49759 | N57: 706040 | O57: 36742 | P57: 38792 | Q57: 49129 | R57: 153915 | S57: 1890371 | T57: 12171749 | U57: 84.46919173 | V57: 0.1440959717 | W57: 0.6277405162 | X57: 1.485250805 | Y57: 0.273707583 | Z57: 1.402625046 | AA57: 0.8194138739 | AB57: 0.1823402701 | AC57: 0.2581469598 | AD57: 0.8343501004 | AE57: 1.004958285 | AF57: 0.4088073127 | AG57: 5.800645413 | AH57: 0.3018629451 | AI57: 0.3187052247 | AJ57: 0.4036313927 | AK57: 1.264526569 | AL57: 15.53080827 | AM57: 100 | AN57: 0.8399621231 | AO57: 1.071919925 | AP57: 0.6987065632 | AQ57: 0.8443509537 | AR57: 0.6383833297 | AS57: 0.5856953571 | AT57: 0.6245840081 | AU57: 1.05082949 | AV57: 0.1783837634 | AW57: 0.6074242731 | AX57: 0.9379945569 | AY57: 0.5966436437 | AZ57: 0.7720508971 | BA57: 0.7677318695 | BB57: 0.8777323488 | BC57: 1.064079286 | BD57: 0.5289604475 | BE57: 0.7322667744 | BF57: 0.8232285554
A58: 2041 | B58: 10365697 | C58: 17720 | D58: 76911 | E58: 182250 | F58: 33516 | G58: 171678 | H58: 100322 | I58: 22425 | J58: 31474 | K58: 102149 | L58: 123419 | M58: 50043 | N58: 711248 | O58: 37013 | P58: 39119 | Q58: 49637 | R58: 154675 | S58: 1903599 | T58: 12269296 | U58: 84.48485553 | V58: 0.1444255644 | W58: 0.6268574823 | X58: 1.4854153 | Y58: 0.2731697075 | Z58: 1.399248987 | AA58: 0.8176671261 | AB58: 0.1827733229 | AC58: 0.2565265358 | AD58: 0.8325579561 | AE58: 1.005917536 | AF58: 0.4078718127 | AG58: 5.796974822 | AH58: 0.3016717504 | AI58: 0.3188365494 | AJ58: 0.4045627394 | AK58: 1.260667279 | AL58: 15.51514447 | AM58: 100 | AN58: 0.8167691429 | AO58: 1.02669724 | AP58: 0.6574594183 | AQ58: 0.8093016948 | AR58: 0.6015190737 | AS58: 0.5572411777 | AT58: 0.5848291428 | AU58: 1.035442587 | AV58: 0.1685348996 | AW58: 0.5832008047 | AX58: 0.893633358 | AY58: 0.5691284074 | AZ58: 0.7349280374 | BA58: 0.7348687399 | BB58: 0.8394242665 | BC58: 1.028703157 | BD58: 0.4925639435 | BE58: 0.697319884 | BF58: 0.7982270639
A59: 2042 | B59: 10448242 | C59: 17890 | D59: 77393 | E59: 183668 | F59: 33706 | G59: 172580 | H59: 100874 | I59: 22644 | J59: 31515 | K59: 102704 | L59: 124476 | M59: 50310 | N59: 716233 | O59: 37275 | P59: 39430 | Q59: 50123 | R59: 155401 | S59: 1916222 | T59: 12364464 | U59: 84.50218303 | V59: 0.1446888438 | W59: 0.6259308936 | X59: 1.485450562 | Y59: 0.2726038104 | Z59: 1.395774212 | AA59: 0.8158380339 | AB59: 0.1831377405 | AC59: 0.2548836731 | AD59: 0.8306385137 | AE59: 1.006723785 | AF59: 0.4068918798 | AG59: 5.792673261 | AH59: 0.3014687899 | AI59: 0.3188977703 | AJ59: 0.4053794811 | AK59: 1.256835719 | AL59: 15.49781697 | AM59: 100 | AN59: 0.7931745429 | AO59: 0.9547952344 | AP59: 0.6247428035 | AQ59: 0.7750409098 | AR59: 0.5652926303 | AS59: 0.5240267846 | AT59: 0.5487200392 | AU59: 0.971850823 | AV59: 0.1301814786 | AW59: 0.5418532879 | AX59: 0.8527855792 | AY59: 0.5321228663 | AZ59: 0.6984359532 | BA59: 0.7053658365 | BB59: 0.7918665422 | BC59: 0.9743461204 | BD59: 0.4682731502 | BE59: 0.6609234281 | BF59: 0.772667051
A60: 2043 | B60: 10529096 | C60: 18062 | D60: 77852 | E60: 185036 | F60: 33887 | G60: 173440 | H60: 101395 | I60: 22853 | J60: 31553 | K60: 103239 | L60: 125497 | M60: 50561 | N60: 721000 | O60: 37523 | P60: 39732 | Q60: 50600 | R60: 156082 | S60: 1928312 | T60: 12457408 | U60: 84.52076066 | V60: 0.1449900332 | W60: 0.624945414 | X60: 1.485349119 | Y60: 0.2720228799 | Z60: 1.392263944 | AA60: 0.813933364 | AB60: 0.183449077 | AC60: 0.2532870401 | AD60: 0.8287358012 | AE60: 1.007408604 | AF60: 0.4058709484 | AG60: 5.787720849 | AH60: 0.301210332 | AI60: 0.3189427528 | AJ60: 0.4061840152 | AK60: 1.252925167 | AL60: 15.47923934 | AM60: 100 | AN60: 0.7708737914 | AO60: 0.9568386308 | AP60: 0.5913251151 | AQ60: 0.7420620755 | AR60: 0.5355596959 | AS60: 0.4970821171 | AT60: 0.5151566995 | AU60: 0.9187483576 | AV60: 0.1205048665 | AW60: 0.5195624066 | AX60: 0.8168927666 | AY60: 0.4976663621 | AZ60: 0.6633604267 | BA60: 0.6631217647 | BB60: 0.7629960464 | BC60: 0.9471591712 | BD60: 0.4372637255 | BE60: 0.6289469597 | BF60: 0.7488914163
A61: 2044 | B61: 10608354 | C61: 18226 | D61: 78290 | E61: 186358 | F61: 34057 | G61: 174245 | H61: 101893 | I61: 23057 | J61: 31585 | K61: 103744 | L61: 126480 | M61: 50805 | N61: 725559 | O61: 37766 | P61: 40023 | Q61: 51053 | R61: 156722 | S61: 1939863 | T61: 12548217 | U61: 84.54072798 | V61: 0.1452477272 | W61: 0.6239133416 | X61: 1.485135299 | Y61: 0.2714090775 | Z61: 1.388603656 | AA61: 0.8120117782 | AB61: 0.1837472208 | AC61: 0.2517090675 | AD61: 0.8267628779 | AE61: 1.007951966 | AF61: 0.4048782389 | AG61: 5.782168096 | AH61: 0.3009670617 | AI61: 0.3189536808 | AJ61: 0.4068546153 | AK61: 1.248958318 | AL61: 15.45927202 | AM61: 100 | AN61: 0.7499331419 | AO61: 0.9038862245 | AP61: 0.5610292539 | AQ61: 0.7119154232 | AR61: 0.5004131483 | AS61: 0.4630636573 | AT61: 0.4899462794 | AU61: 0.8887011224 | AV61: 0.1013652721 | AW61: 0.4879637478 | AX61: 0.7802338998 | AY61: 0.4814246814 | AZ61: 0.6303254958 | BA61: 0.6455148662 | BB61: 0.7297380512 | BC61: 0.8912732506 | BD61: 0.4092024994 | BE61: 0.5972343203 | BF61: 0.7263117735
A62: 2045 | B62: 10686090 | C62: 18381 | D62: 78711 | E62: 187637 | F62: 34222 | G62: 175016 | H62: 102371 | I62: 23252 | J62: 31605 | K62: 104220 | L62: 127433 | M62: 51028 | N62: 729928 | O62: 37994 | P62: 40299 | Q62: 51494 | R62: 157327 | S62: 1950918 | T62: 12637008 | U62: 84.56186781 | V62: 0.145453734 | W62: 0.6228610443 | X62: 1.484821407 | Y62: 0.2708077735 | Z62: 1.384948083 | AA62: 0.8100889071 | AB62: 0.1839992505 | AC62: 0.2500987576 | AD62: 0.8247205351 | AE62: 1.008411168 | AF62: 0.4037981142 | AG62: 5.776114093 | AH62: 0.3006566111 | AI62: 0.3188966882 | AJ62: 0.407485696 | AK62: 1.244970328 | AL62: 15.43813219 | AM62: 100 | AN62: 0.7301091807 | AO62: 0.8468376338 | AP62: 0.536303602 | AQ62: 0.6839690296 | AR62: 0.4833120614 | AS62: 0.4415043491 | AT62: 0.4680226301 | AU62: 0.8421738865 | AV62: 0.06330115736 | AW62: 0.4577723368 | AX62: 0.7506543383 | AY62: 0.4379726738 | AZ62: 0.6003506898 | BA62: 0.6019025563 | BB62: 0.6872365884 | BC62: 0.8600987228 | BD62: 0.3852906702 | BE62: 0.5682679004 | BF62: 0.7051068066
A63: 2046 | B63: 10762080 | C63: 18531 | D63: 79102 | E63: 188862 | F63: 34373 | G63: 175735 | H63: 102828 | I63: 23442 | J63: 31623 | K63: 104672 | L63: 128337 | M63: 51243 | N63: 734084 | O63: 38209 | P63: 40566 | Q63: 51917 | R63: 157896 | S63: 1961420 | T63: 12723500 | U63: 84.5842732 | V63: 0.1456438873 | W63: 0.6217000039 | X63: 1.48435572 | Y63: 0.2701536527 | Z63: 1.381184423 | AA63: 0.8081738515 | AB63: 0.1842417574 | AC63: 0.248540103 | AD63: 0.8226667191 | AE63: 1.008661139 | AF63: 0.4027429559 | AG63: 5.769513106 | AH63: 0.3003025897 | AI63: 0.3188273667 | AJ63: 0.4080402405 | AK63: 1.24097929 | AL63: 15.4157268 | AM63: 100 | AN63: 0.7085948867 | AO63: 0.812748297 | AP63: 0.4955241964 | AQ63: 0.6507344364 | AR63: 0.4402660366 | AS63: 0.4099780226 | AT63: 0.4454220104 | AU63: 0.8138135462 | AV63: 0.05693680169 | AW63: 0.4327601875 | AX63: 0.7068880356 | AY63: 0.4204521648 | AZ63: 0.5677564342 | BA63: 0.5642837434 | BB63: 0.6603622588 | BC63: 0.8180993496 | BD63: 0.3610146582 | BE63: 0.5368669693 | BF63: 0.6821025458
A64: 2047 | B64: 10836151 | C64: 18680 | D64: 79477 | E64: 190032 | F64: 34510 | G64: 176408 | H64: 103270 | I64: 23628 | J64: 31634 | K64: 105094 | L64: 129212 | M64: 51440 | N64: 738024 | O64: 38410 | P64: 40821 | Q64: 52325 | R64: 158417 | S64: 1971382 | T64: 12807533 | U64: 84.60763677 | V64: 0.145851664 | W64: 0.6205488598 | X64: 1.483751789 | Y64: 0.269450799 | Z64: 1.377376892 | AA64: 0.8063223417 | AB64: 0.1844851776 | AC64: 0.2469952644 | AD64: 0.8205639603 | AE64: 1.008875011 | AF64: 0.4016386294 | AG64: 5.762421225 | AH64: 0.2999016282 | AI64: 0.318726487 | AJ64: 0.4085486253 | AK64: 1.236904875 | AL64: 15.39236323 | AM64: 100 | AN64: 0.6859014555 | AO64: 0.8008427419 | AP64: 0.4729512722 | AQ64: 0.6175889398 | AR64: 0.3977764634 | AS64: 0.3822315476 | AT64: 0.4289228208 | AU64: 0.7903164144 | AV64: 0.03477876001 | AW64: 0.402353641 | AX64: 0.6794849652 | AY64: 0.3837056605 | AZ64: 0.5352880913 | BA64: 0.5246752401 | BB64: 0.626637754 | BC64: 0.7827978807 | BD64: 0.3294208402 | BE64: 0.5066118918 | BF64: 0.6582836147
A65: 2048 | B65: 10908480 | C65: 18820 | D65: 79829 | E65: 191139 | F65: 34648 | G65: 177038 | H65: 103694 | I65: 23800 | J65: 31639 | K65: 105493 | L65: 130052 | M65: 51621 | N65: 741768 | O65: 38599 | P65: 41062 | Q65: 52712 | R65: 158901 | S65: 1980815 | T65: 12889295 | U65: 84.63209198 | V65: 0.1460126407 | W65: 0.6193434164 | X65: 1.482928275 | Y65: 0.2688122198 | Z65: 1.373527412 | AA65: 0.8044970652 | AB65: 0.1846493544 | AC65: 0.2454672657 | AD65: 0.818454384 | AE65: 1.008992346 | AF65: 0.4004951396 | AG65: 5.754915222 | AH65: 0.2994655643 | AI65: 0.3185744449 | AJ65: 0.408959528 | AK65: 1.232813742 | AL65: 15.36790802 | AM65: 100 | AN65: 0.6652609258 | AO65: 0.7466701357 | AP65: 0.4419175334 | AQ65: 0.5808433025 | AR65: 0.3990866802 | AS65: 0.3564904779 | AT65: 0.4097336669 | AU65: 0.7253131232 | AV65: 0.01580452961 | AW65: 0.3789412238 | AX65: 0.6479904184 | AY65: 0.351248651 | AZ65: 0.5060181416 | BA65: 0.4908527042 | BB65: 0.5886464734 | BC65: 0.7368865279 | BD65: 0.3050569935 | BE65: 0.4773556537 | BF65: 0.6363608451
A66: 2049 | B66: 10979273 | C66: 18954 | D66: 80165 | E66: 192207 | F66: 34773 | G66: 177633 | H66: 104104 | I66: 23968 | J66: 31638 | K66: 105862 | L66: 130853 | M66: 51792 | N66: 745329 | O66: 38780 | P66: 41296 | Q66: 53085 | R66: 159356 | S66: 1989795 | T66: 12969068 | U66: 84.65737862 | V66: 0.1461477417 | W66: 0.6181246023 | X66: 1.482041732 | Y66: 0.2681225821 | Z66: 1.369666656 | AA66: 0.8027099557 | AB66: 0.1848089624 | AC66: 0.2439496809 | AD66: 0.816265286 | AE66: 1.008962248 | AF66: 0.3993502077 | AG66: 5.746974262 | AH66: 0.2990191739 | AI66: 0.3184191802 | AJ66: 0.4093200838 | AK66: 1.228739027 | AL66: 15.34262138 | AM66: 100 | AN66: 0.646875418 | AO66: 0.7094856891 | AP66: 0.4200163681 | AQ66: 0.5572004211 | AR66: 0.3601219662 | AS66: 0.3355225311 | AT66: 0.3946145122 | AU66: 0.7034026657 | AV66: -0.003160706102 | AW66: 0.3491759125 | AX66: 0.6140185252 | AY66: 0.3307130745 | AZ66: 0.4789205824 | BA66: 0.4678280415 | BB66: 0.5682523366 | BC66: 0.7051268854 | BD66: 0.2859326331 | BE66: 0.4523242177 | BF66: 0.6170015718
A67: 2050 | B67: 11048723 | C67: 19084 | D67: 80478 | E67: 193218 | F67: 34890 | G67: 178187 | H67: 104498 | I67: 24128 | J67: 31629 | K67: 106210 | L67: 131636 | M67: 51956 | N67: 748720 | O67: 38954 | P67: 41518 | Q67: 53444 | R67: 159780 | S67: =SUM(C67:R67) -> 1998330 | T67: =S67+B67 -> 13047053 | U67: =B67/$T67*100 -> 84.68366765 | V67: =C67/$T67*100 -> 0.1462705793 | W67: =D67/$T67*100 -> 0.6168289498 | X67: =E67/$T67*100 -> 1.480932131 | Y67: =F67/$T67*100 -> 0.2674167109 | Z67: =G67/$T67*100 -> 1.365726038 | AA67: =H67/$T67*100 -> 0.8009318273 | AB67: =I67/$T67*100 -> 0.1849306506 | AC67: =J67/$T67*100 -> 0.2424225609 | AD67: =K67/$T67*100 -> 0.8140535644 | AE67: =L67/$T67*100 -> 1.008932822 | AF67: =M67/$T67*100 -> 0.3982201958 | AG67: =N67/$T67*100 -> 5.738613923 | AH67: =O67/$T67*100 -> 0.2985655075 | AI67: =P67/$T67*100 -> 0.3182174549 | AJ67: =Q67/$T67*100 -> 0.4096250701 | AK67: =R67/$T67*100 -> 1.22464437 | AL67: =S67/$T67*100 -> 15.31633235 | AM67: =T67/$T67*100 -> 100 | AN67: 0.6305633079 | AO67: 0.6835296606 | AP67: 0.3896844507 | AQ67: 0.5246168872 | AR67: 0.3359031624 | AS67: 0.3113936528 | AT67: 0.3777532991 | AU67: 0.6653384491 | AV67: -0.02845085135 | AW67: 0.3281907205 | AX67: 0.5965981984 | AY67: 0.3161509361 | AZ67: 0.4539350213 | BA67: 0.4476812993 | BB67: 0.5361425164 | BC67: 0.6739974261 | BD67: 0.2657175934 | BE67: 0.4280213399 | BF67: 0.59951469
A68: 2051 | B68: 11116655 | C68: 19206 | D68: 80780 | E68: 194183 | F68: 34998 | G68: 178703 | H68: 104881 | I68: 24284 | J68: 31617 | K68: 106537 | L68: 132379 | M68: 52105 | N68: 751945 | O68: 39114 | P68: 41726 | Q68: 53794 | R68: 160163 | S68: 2006415 | T68: 13123070 | U68: 84.71078033 | V68: 0.1463529494 | W68: 0.6155571829 | X68: 1.479707111 | Y68: 0.2666906448 | Z68: 1.361746908 | AA68: 0.7992108554 | AB68: 0.1850481633 | AC68: 0.2409268563 | AD68: 0.8118298538 | AE68: 1.008750239 | AF68: 0.3970488613 | AG68: 5.729947337 | AH68: 0.2980552569 | AI68: 0.3179591361 | AJ68: 0.4099193253 | AK68: 1.220468991 | AL68: 15.28921967 | AM68: 100 | AN68: =100*LN(B68/B67) -> 0.6129578543 | AO68: =100*LN(C68/C67) -> 0.6372442562 | AP68: =100*LN(D68/D67) -> 0.3745554987 | AQ68: =100*LN(E68/E67) -> 0.4981928265 | AR68: =100*LN(F68/F67) -> 0.3090661801 | AS68: =100*LN(G68/G67) -> 0.2891649301 | AT68: =100*LN(H68/H67) -> 0.3658441651 | AU68: =100*LN(I68/I67) -> 0.6444705443 | AV68: =100*LN(J68/J67) -> -0.0379470643 | AW68: =100*LN(K68/K67) -> 0.3074076321 | AX68: =100*LN(L68/L67) -> 0.5628482939 | AY68: =100*LN(M68/M67) -> 0.2863706899 | AZ68: =100*LN(N68/N67) -> 0.4298101128 | BA68: =100*LN(O68/O67) -> 0.4098996363 | BB68: =100*LN(P68/P67) -> 0.4997367567 | BC68: =100*LN(Q68/Q67) -> 0.6527560058 | BD68: =100*LN(R68/R67) -> 0.2394177606 | BE68: 0.4037715752 | BF68: =100*LN(T68/T67) -> 0.5809465534
A69: 2052 | B69: 11182843 | C69: 19325 | D69: 81058 | E69: 195087 | F69: 35101 | G69: 179183 | H69: 105246 | I69: 24433 | J69: 31598 | K69: 106840 | L69: 133084 | M69: 52242 | N69: 754975 | O69: 39264 | P69: 41921 | Q69: 54128 | R69: 160522 | S69: 2014007 | T69: 13196850 | U69: 84.73872932 | V69: 0.1464364602 | W69: 0.6142223334 | X69: 1.478284591 | Y69: 0.2659801392 | Z69: 1.357770983 | AA69: 0.7975084963 | AB69: 0.1851426666 | AC69: 0.239435926 | AD69: 0.8095871363 | AE69: 1.008452775 | AF69: 0.3958671956 | AG69: 5.720872784 | AH69: 0.2975255459 | AI69: 0.3176591384 | AJ69: 0.4101584848 | AK69: 1.216366027 | AL69: 15.26127068 | AM69: 100 | AN69: 0.5936294563 | AO69: 0.6176864258 | AP69: 0.3435537679 | AQ69: 0.4644599507 | AR69: 0.2938703095 | AS69: 0.2682420032 | AT69: 0.3474092973 | AU69: 0.6116980298 | AV69: -0.06011231693 | AW69: 0.2840045588 | AX69: 0.5311487156 | AY69: 0.262585563 | AZ69: 0.4021453141 | BA69: 0.3827609358 | BB69: 0.4662458982 | BC69: 0.6189675253 | BD69: 0.2238958167 | BE69: =100*LN(S69/S68) -> 0.3776722456 | BF69: 0.5606414704
A70: 2053 | B70: 11247418 | C70: 19440 | D70: 81322 | E70: 195939 | F70: 35194 | G70: 179622 | H70: 105596 | I70: 24570 | J70: 31582 | K70: 107125 | L70: 133766 | M70: 52373 | N70: 757835 | O70: 39401 | P70: 42110 | Q70: 54443 | R70: 160842 | S70: 2021160 | T70: 13268578 | U70: 84.76732021 | V70: 0.1465115553 | W70: 0.6128916 | X70: 1.476714385 | Y70: 0.2652431934 | Z70: 1.35373964 | AA70: 0.7958350925 | AB70: 0.1851743269 | AC70: 0.2380209846 | AD70: 0.8073585579 | AE70: 1.008141189 | AF70: 0.3947144901 | AG70: 5.711501263 | AH70: 0.2969496807 | AI70: 0.3173663372 | AJ70: 0.4103152576 | AK70: 1.212202242 | AL70: 15.23267979 | AM70: 100 | AN70: 0.5757862417 | AO70: 0.5933204559 | AP70: 0.3251634839 | AQ70: 0.4357773387 | AR70: 0.2645993435 | AS70: 0.2447012829 | AT70: 0.3320024677 | AU70: 0.5591508966 | AV70: -0.05064894062 | AW70: 0.2663988676 | AX70: 0.5111496983 | AY70: 0.2504422281 | AZ70: 0.3781047729 | BA70: 0.3483128164 | BB70: 0.4498347484 | BC70: 0.5802670766 | BD70: 0.1991511842 | BE70: 0.3545334056 | BF70: 0.5420518846
A71: 2054 | B71: 11310514 | C71: 19546 | D71: 81566 | E71: 196741 | F71: 35279 | G71: 180026 | H71: 105927 | I71: 24709 | J71: 31552 | K71: 107384 | L71: 134409 | M71: 52493 | N71: 760535 | O71: 39534 | P71: 42281 | Q71: 54746 | R71: 161135 | S71: 2027863 | T71: 13338377 | U71: 84.7967785 | V71: 0.1465395677 | W71: 0.6115136797 | X71: 1.474999545 | Y71: 0.2644924491 | Z71: 1.349684448 | AA71: 0.7941520921 | AB71: 0.1852474255 | AC71: 0.2365505189 | AD71: 0.8050754601 | AE71: 1.007686317 | AF71: 0.3935486304 | AG71: 5.701855631 | AH71: 0.296392882 | AI71: 0.3169875915 | AJ71: 0.4104397409 | AK71: 1.208055523 | AL71: 15.2032215 | AM71: 100 | AN71: 0.5594144405 | AO71: 0.5437862884 | AP71: 0.299592582 | AQ71: 0.4084756622 | AR71: 0.2412272536 | AS71: 0.2246642105 | AT71: 0.3129685851 | AU71: 0.5641363203 | AV71: -0.09503596242 | AW71: 0.2414818267 | AX71: 0.4795385343 | AY71: 0.2288636019 | AZ71: 0.3556449147 | BA71: 0.3369864467 | BB71: 0.4052570393 | BC71: 0.5550023863 | BD71: 0.1820006279 | BE71: 0.331092519 | BF71: 0.5246685321
A72: 2055 | B72: 11372277 | C72: 19648 | D72: 81794 | E72: 197505 | F72: 35357 | G72: 180403 | H72: 106234 | I72: 24841 | J72: 31524 | K72: 107623 | L72: 135026 | M72: 52600 | N72: 763075 | O72: 39655 | P72: 42446 | Q72: 55037 | R72: 161404 | S72: 2034172 | T72: 13406449 | U72: 84.82691427 | V72: 0.1465563327 | W72: 0.6101093586 | X72: 1.473208901 | Y72: 0.2637312834 | Z72: 1.345643429 | AA72: 0.7924096828 | AB72: 0.1852914221 | AC72: 0.2351405656 | AD72: 0.8027703682 | AE72: 1.007171996 | AF72: 0.3923484884 | AG72: 5.691850243 | AH72: 0.2957904811 | AI72: 0.3166088201 | AJ72: 0.4105263072 | AK72: 1.20392805 | AL72: 15.17308573 | AM72: 100 | AN72: 0.5445815962 | AO72: 0.5204890048 | AP72: 0.2791382812 | AQ72: 0.3875757554 | AR72: 0.2208506476 | AS72: 0.2091952298 | AT72: 0.2894030611 | AU72: 0.5327964168 | AV72: -0.08878179288 | AW72: 0.2223184347 | AX72: 0.4579962355 | AY72: 0.2036292369 | AZ72: 0.3334189659 | BA72: 0.3055982376 | BB72: 0.3894867246 | BC72: 0.5301379659 | BD72: 0.1668015728 | BE72: 0.3106327283 | BF72: 0.5090490923
A73: 2056 | B73: 11432540 | C73: 19749 | D73: 82011 | E73: 198214 | F73: 35433 | G73: 180742 | H73: 106520 | I73: 24962 | J73: 31490 | K73: 107848 | L73: 135613 | M73: 52702 | N73: 765472 | O73: 39772 | P73: 42604 | Q73: 55316 | R73: 161639 | S73: 2040087 | T73: 13472627 | U73: 84.85754115 | V73: 0.1465861112 | W73: 0.608723154 | X73: 1.471234971 | Y73: 0.2629999331 | Z73: 1.341549796 | AA73: 0.7906401625 | AB73: 0.1852793817 | AC73: 0.2337331836 | AD73: 0.8004971859 | AE73: 1.006581716 | AF73: 0.39117835 | AG73: 5.681683312 | AH73: 0.2952059758 | AI73: 0.3162263752 | AJ73: 0.4105806536 | AK73: 1.199758592 | AL73: 15.14245885 | AM73: 100 | AN73: 0.5285123777 | AO73: 0.5127305189 | AP73: 0.2649493324 | AQ73: 0.3583354646 | AR73: 0.2147196757 | AS73: 0.187736283 | AT73: 0.2688552716 | AU73: 0.4859154592 | AV73: -0.1079125378 | AW73: 0.2088448857 | AX73: 0.433788863 | AY73: 0.1937285748 | AZ73: 0.3136314375 | BA73: 0.2946103583 | BB73: 0.3715465767 | BC73: 0.5056511277 | BD73: 0.1454914927 | BE73: 0.2903597516 | BF73: 0.492413755
A74: 2057 | B74: 11491140 | C74: 19846 | D74: 82207 | E74: 198883 | F74: 35496 | G74: 181048 | H74: 106778 | I74: 25084 | J74: 31451 | K74: 108044 | L74: 136162 | M74: 52790 | N74: 767696 | O74: 39878 | P74: 42751 | Q74: 55579 | R74: 161843 | S74: 2045536 | T74: 13536676 | U74: 84.88893433 | V74: 0.1466091085 | W74: 0.6072908888 | X74: 1.469215929 | Y74: 0.262220947 | Z74: 1.337462757 | AA74: 0.788805169 | AB74: 0.1853039845 | AC74: 0.2323391651 | AD74: 0.7981575388 | AE74: 1.005874707 | AF74: 0.3899775691 | AG74: 5.671229776 | AH74: 0.2945922618 | AI74: 0.3158160837 | AJ74: 0.4105808546 | AK74: 1.195588932 | AL74: 15.11106567 | AM74: 100 | AN74: 0.5112628308 | AO74: 0.4899618338 | AP74: 0.2387071978 | AQ74: 0.3369456999 | AR74: 0.1776424779 | AS74: 0.1691589447 | AT74: 0.2419151852 | AU74: 0.4875524185 | AV74: -0.123925597 | AW74: 0.1815723175 | AX74: 0.4040112201 | AY74: 0.1668373344 | AZ74: 0.2901184423 | BA74: 0.2661646267 | BB74: 0.3444441341 | BC74: 0.4743234467 | BD74: 0.1261275911 | BE74: 0.2667403836 | BF74: 0.4742745124
A75: 2058 | B75: 11548200 | C75: 19935 | D75: 82387 | E75: 199498 | F75: 35552 | G75: 181326 | H75: 107020 | I75: 25193 | J75: 31411 | K75: 108222 | L75: 136685 | M75: 52871 | N75: 769773 | O75: 39981 | P75: 42888 | Q75: 55831 | R75: 162022 | S75: 2050595 | T75: 13598795 | U75: 84.92075952 | V75: 0.146593871 | W75: 0.605840444 | X75: 1.467027042 | Y75: 0.2614349286 | Z75: 1.333397555 | AA75: 0.7869814936 | AB75: 0.1852590616 | AC75: 0.2309837011 | AD75: 0.795820512 | AE75: 1.005125822 | AF75: 0.388791801 | AG75: 5.660597134 | AH75: 0.2940039908 | AI75: 0.3153808849 | AJ75: 0.4105584355 | AK75: 1.191443801 | AL75: 15.07924048 | AM75: 100 | AN75: 0.4953277018 | AO75: 0.4474505341 | AP75: 0.2187200891 | AQ75: 0.3087499095 | AR75: 0.1576399381 | AS75: 0.1534326715 | AT75: 0.2263820086 | AU75: 0.4335985471 | AV75: -0.1272629105 | AW75: 0.1646121352 | AX75: 0.3833655056 | AY75: 0.1533205551 | AZ75: 0.2701844738 | BA75: 0.2579547881 | BB75: 0.3199479603 | BC75: 0.452383861 | BD75: 0.1105398967 | BE75: 0.2470137099 | BF75: 0.457844336
A76: 2059 | B76: 11603848 | C76: 20020 | D76: 82555 | E76: 200082 | F76: 35606 | G76: 181570 | H76: 107228 | I76: 25301 | J76: 31364 | K76: 108390 | L76: 137172 | M76: 52945 | N76: 771701 | O76: 40075 | P76: 43015 | Q76: 56071 | R76: 162177 | S76: 2055272 | T76: 13659120 | U76: 84.95311557 | V76: 0.1465687394 | W76: 0.6043947194 | X76: 1.464823503 | Y76: 0.2606756511 | Z76: 1.329295006 | AA76: 0.7850286109 | AB76: 0.1852315523 | AC76: 0.2296194777 | AD76: 0.7935357475 | AE76: 1.004252104 | AF76: 0.387616479 | AG76: 5.649712427 | AH76: 0.2933937179 | AI76: 0.3149177985 | AJ76: 0.4105022871 | AK76: 1.187316606 | AL76: 15.04688443 | AM76: 100 | AN76: 0.4807186575 | AO76: 0.4254793054 | AP76: 0.2037080405 | AQ76: 0.2923071304 | AR76: 0.1517749525 | AS76: 0.1344738089 | AT76: 0.1941675678 | AU76: 0.4277742492 | AV76: -0.149741167 | AW76: 0.1551160912 | AX76: 0.3556604457 | AY76: 0.1398654496 | AZ76: 0.2501503114 | BA76: 0.234835723 | BB76: 0.2956825548 | BC76: 0.4289474147 | BD76: 0.09562028989 | BE76: 0.2278204347 | BF76: 0.4426244523
A77: 2060 | B77: 11658223 | C77: 20102 | D77: 82706 | E77: 200625 | F77: 35653 | G77: 181781 | H77: 107411 | I77: 25400 | J77: 31310 | K77: 108533 | L77: 137638 | M77: 53009 | N77: 773499 | O77: 40160 | P77: 43138 | Q77: 56300 | R77: 162306 | S77: 2059571 | T77: 13717794 | U77: 84.98613553 | V77: 0.1465395967 | W77: 0.6029103513 | X77: 1.462516495 | Y77: 0.2599033052 | Z77: 1.325147469 | AA77: 0.7830049059 | AB77: 0.1851609668 | AC77: 0.2282436957 | AD77: 0.7911840636 | AE77: 1.003353746 | AF77: 0.386425106 | AG77: 5.638654437 | AH77: 0.2927584421 | AI77: 0.314467472 | AJ77: 0.4104158438 | AK77: 1.183178578 | AL77: 15.01386447 | AM77: 100 | AN77: 0.4675000694 | AO77: 0.4087538715 | AP77: 0.1827412905 | AQ77: 0.2710211363 | AR77: 0.131913181 | AS77: 0.1161411548 | AT77: 0.1705189125 | AU77: 0.390525338 | AV77: -0.172320303 | AW77: 0.1318440375 | AX77: 0.3391437332 | AY77: 0.1208071574 | AZ77: 0.2327207884 | BA77: 0.2118776888 | BB77: 0.2855387127 | BC77: 0.407579032 | BD77: 0.07951110338 | BE77: 0.20895094 | BF77: 0.42863918
A78: 2061 | B78: 11711256 | C78: 20183 | D78: 82847 | E78: 201141 | F78: 35693 | G78: 181971 | H78: 107572 | I78: 25500 | J78: 31255 | K78: 108661 | L78: 138075 | M78: 53067 | N78: 775167 | O78: 40245 | P78: 43248 | Q78: 56516 | R78: 162412 | S78: 2063553 | T78: 13774809 | U78: 85.01937123 | V78: 0.1465210879 | W78: 0.6014384664 | X78: 1.460208995 | Y78: 0.2591179304 | Z78: 1.321041911 | AA78: 0.7809327883 | AB78: 0.1851205342 | AC78: 0.2268996978 | AD78: 0.788838524 | AE78: 1.002373245 | AF78: 0.385246721 | AG78: 5.627424671 | AH78: 0.2921637607 | AI78: 0.3139644259 | AJ78: 0.4102851807 | AK78: 1.179050831 | AL78: 14.98062877 | AM78: 100 | AN78: 0.4538662675 | AO78: 0.4021353315 | AP78: 0.170338241 | AQ78: 0.2568660781 | AR78: 0.1121296336 | AS78: 0.1044667891 | AT78: 0.1497793129 | AU78: 0.392927814 | AV78: -0.1758171955 | AW78: 0.1178669897 | AX78: 0.3169965623 | AY78: 0.1093555673 | AZ78: 0.2154112824 | BA78: 0.2114297162 | BB78: 0.2546710334 | BC78: 0.3829248758 | BD78: 0.06528742094 | BE78: 0.193154571 | BF78: 0.4147667046
A79: 2062 | B79: 11762800 | C79: 20248 | D79: 82970 | E79: 201615 | F79: 35729 | G79: 182129 | H79: 107716 | I79: 25592 | J79: 31206 | K79: 108770 | L79: 138482 | M79: 53113 | N79: 776693 | O79: 40320 | P79: 43355 | Q79: 56720 | R79: 162495 | S79: 2067153 | T79: 13829953 | U79: 85.05307285 | V79: 0.1464068605 | W79: 0.5999297322 | X79: 1.457814065 | Y79: 0.2583450573 | Z79: 1.316916984 | AA79: 0.7788602029 | AB79: 0.1850476281 | AC79: 0.2256406801 | AD79: 0.7864813423 | AE79: 1.001319383 | AF79: 0.384043243 | AG79: 5.616020532 | AH79: 0.2915411209 | AI79: 0.3134862425 | AJ79: 0.410124315 | AK79: 1.174949763 | AL79: 14.94692715 | AM79: 100 | AN79: 0.4391578757 | AO79: 0.3215357325 | AP79: 0.1483563477 | AQ79: 0.2353783526 | AR79: 0.100809283 | AS79: 0.08678934903 | AT79: 0.133774313 | AU79: 0.3601350483 | AV79: -0.1568979365 | AW79: 0.1002617006 | AX79: 0.2943337495 | AY79: 0.08664532469 | AZ79: 0.1966672885 | BA79: 0.1861851217 | BB79: 0.2471047295 | BC79: 0.360309832 | BD79: 0.05109154423 | BE79: 0.1743043882 | BF79: 0.3995258018
A80: 2063 | B80: 11812857 | C80: 20320 | D80: 83083 | E80: 202055 | F80: 35760 | G80: 182263 | H80: 107825 | I80: 25677 | J80: 31142 | K80: 108863 | L80: 138858 | M80: 53149 | N80: 778080 | O80: 40389 | P80: 43452 | Q80: 56915 | R80: 162551 | S80: 2070382 | T80: 13883239 | U80: 85.08718319 | V80: 0.1463635395 | W80: 0.598441041 | X80: 1.45538804 | Y80: 0.2575767802 | Z80: 1.312827648 | AA80: 0.7766559374 | AB80: 0.184949636 | AC80: 0.224313649 | AD80: 0.7841325789 | AE80: 1.000184467 | AF80: 0.3828285316 | AG80: 5.604455848 | AH80: 0.2909191436 | AI80: 0.3129817185 | AJ80: 0.4099547663 | AK80: 1.17084349 | AL80: 14.91281681 | AM80: 100 | AN80: 0.4246505217 | AO80: 0.3549599467 | AP80: 0.1361011453 | AQ80: 0.2179999377 | AR80: 0.08672663471 | AS80: 0.0735471723 | AT80: 0.1011408589 | AU80: 0.331584692 | AV80: -0.20529936 | AW80: 0.08546498524 | AX80: 0.2711474943 | AY80: 0.06775705591 | AZ80: 0.1784183759 | BA80: 0.1709846902 | BB80: 0.2234843742 | BC80: 0.3432044553 | BD80: 0.03445666186 | BE80: 0.1560833035 | BF80: 0.3845537942
A81: 2064 | B81: 11861437 | C81: 20388 | D81: 83180 | E81: 202468 | F81: 35783 | G81: 182361 | H81: 107916 | I81: 25754 | J81: 31083 | K81: 108942 | L81: 139207 | M81: 53180 | N81: 779334 | O81: 40453 | P81: 43541 | Q81: 57095 | R81: 162583 | S81: 2073268 | T81: 13934705 | U81: 85.12155083 | V81: 0.1463109553 | W81: 0.5969268815 | X81: 1.452976579 | Y81: 0.2567905097 | Z81: 1.308682172 | AA81: 0.7744405066 | AB81: 0.1848191261 | AC81: 0.2230617727 | AD81: 0.7818034182 | AE81: 0.9989949554 | AF81: 0.3816370709 | AG81: 5.592755641 | AH81: 0.2903039569 | AI81: 0.3124644548 | AJ81: 0.4097323912 | AK81: 1.166748776 | AL81: 14.87844917 | AM81: 100 | AN81: 0.410403522 | AO81: 0.3340869768 | AP81: 0.1166826185 | AQ81: 0.20419118 | AR81: 0.06429699843 | AS81: 0.05375400542 | AT81: 0.08436041865 | AU81: 0.2994305284 | AV81: -0.1896344482 | AW81: 0.07254195585 | AX81: 0.2510205767 | AY81: 0.05830958794 | AZ81: 0.161036214 | BA81: 0.1583335726 | BB81: 0.2046142357 | BC81: 0.3157620376 | BD81: 0.01968419181 | BE81: 0.1392975018 | BF81: 0.370020579
A82: 2065 | B82: 11908538 | C82: 20449 | D82: 83268 | E82: 202847 | F82: 35796 | G82: 182438 | H82: 107989 | I82: 25836 | J82: 31015 | K82: 109003 | L82: 139535 | M82: 53204 | N82: 780462 | O82: 40508 | P82: 43630 | Q82: 57268 | R82: 162595 | S82: 2075843 | T82: 13984381 | U82: 85.15598939 | V82: 0.1462274233 | W82: 0.5954357222 | X82: 1.450525411 | Y82: 0.2559712868 | Z82: 1.304584021 | AA82: 0.7722115123 | AB82: 0.184748971 | AC82: 0.2217831451 | AD82: 0.7794624589 | AE82: 0.9977917507 | AF82: 0.3804530211 | AG82: 5.580954924 | AH82: 0.289666021 | AI82: 0.3119909276 | AJ82: 0.4095140142 | AK82: 1.162690004 | AL82: 14.84401061 | AM82: 100 | AN82: 0.3963072039 | AO82: 0.298748906 | AP82: 0.1057387391 | AQ82: 0.1870150922 | AR82: 0.0363235031 | AS82: 0.04221502863 | AT82: 0.06762233647 | AU82: 0.3178913319 | AV82: -0.2190087513 | AW82: 0.05597742696 | AX82: 0.2353431857 | AY82: 0.04511956762 | AZ82: 0.1446343235 | BA82: 0.1358679079 | BB82: 0.2041964207 | BC82: 0.3025456344 | BD82: 0.007380573105 | BE82: 0.1241229907 | BF82: 0.3558572972
A83: 2066 | B83: 11954015 | C83: 20506 | D83: 83337 | E83: 203189 | F83: 35812 | G83: 182485 | H83: 108037 | I83: 25904 | J83: 30943 | K83: 109043 | L83: 139832 | M83: 53218 | N83: 781441 | O83: 40557 | P83: 43705 | Q83: 57422 | R83: 162584 | S83: 2078015 | T83: 14032030 | U83: 85.19091678 | V83: 0.1461370878 | W83: 0.5939055147 | X83: 1.448037098 | Y83: 0.255216102 | Z83: 1.300488953 | AA83: 0.7699313642 | AB83: 0.1846062188 | AC83: 0.2205169174 | AD83: 0.7771006761 | AE83: 0.9965201044 | AF83: 0.3792608767 | AG83: 5.568980397 | AH83: 0.2890315941 | AI83: 0.3114659818 | AJ83: 0.4092209039 | AK83: 1.158663429 | AL83: 14.80908322 | AM83: 100 | AN83: 0.3811583367 | AO83: 0.278354471 | AP83: 0.08283065208 | AQ83: 0.1684580091 | AR83: 0.04468774513 | AS83: 0.02575885886 | AT83: 0.04443909603 | AU83: 0.2628528765 | AV83: -0.2324156119 | AW83: 0.0366895063 | AX83: 0.2126236183 | AY83: 0.02631034952 | AZ83: 0.1253599139 | BA83: 0.120890658 | BB83: 0.1717524897 | BC83: 0.2685501658 | BD83: -0.00676550454 | BE83: 0.1045774891 | BF83: 0.3401509633
A84: 2067 | B84: 11997807 | C84: 20558 | D84: 83389 | E84: 203493 | F84: 35821 | G84: 182503 | H84: 108068 | I84: 25970 | J84: 30871 | K84: 109066 | L84: 140101 | M84: 53226 | N84: 782287 | O84: 40603 | P84: 43773 | Q84: 57572 | R84: 162537 | S84: 2079838 | T84: 14077645 | U84: 85.22595221 | V84: 0.146032948 | W84: 0.5923504961 | X84: 1.445504557 | Y84: 0.2544530708 | Z84: 1.296402914 | AA84: 0.7676568062 | AB84: 0.1844768781 | AC84: 0.2192909396 | AD84: 0.7747460602 | AE84: 0.9952019674 | AF84: 0.3780888068 | AG84: 5.556945071 | AH84: 0.2884218206 | AI84: 0.3109397914 | AJ84: 0.4089604476 | AK84: 1.154575215 | AL84: 14.77404779 | AM84: 100 | AN84: 0.3656677876 | AO84: 0.2532633343 | AP84: 0.06237779553 | AQ84: 0.1495025876 | AR84: 0.02512808356 | AS84: 0.009863337981 | AT84: 0.02868975749 | AU84: 0.2544628739 | AV84: -0.2329570407 | AW84: 0.02109037232 | AX84: 0.1921889043 | AY84: 0.01503137803 | AZ84: 0.1082029717 | BA84: 0.1133563453 | BB84: 0.1554676918 | BC84: 0.2608833245 | BD84: -0.02891231285 | BE84: 0.08768949344 | BF84: 0.324550462
A85: 2068 | B85: 12040055 | C85: 20608 | D85: 83431 | E85: 203768 | F85: 35819 | G85: 182487 | H85: 108082 | I85: 26028 | J85: 30793 | K85: 109079 | L85: 140346 | M85: 53221 | N85: 783005 | O85: 40637 | P85: 43833 | Q85: 57706 | R85: 162477 | S85: 2081320 | T85: 14121375 | U85: 85.26120863 | V85: 0.1459347974 | W85: 0.5908135716 | X85: 1.442975631 | Y85: 0.253650937 | Z85: 1.292275009 | AA85: 0.7653787255 | AB85: 0.184316329 | AC85: 0.218059502 | AD85: 0.7724389445 | AE85: 0.9938550601 | AF85: 0.3768825628 | AG85: 5.544821237 | AH85: 0.2877694276 | AI85: 0.3104017845 | AJ85: 0.4086429261 | AK85: 1.150574926 | AL85: 14.73879137 | AM85: 100 | AN85: 0.3515124889 | AO85: 0.2429190331 | AP85: 0.05035367568 | AQ85: 0.1350485521 | AR85: -0.005583472922 | AS85: -0.008767363495 | AT85: 0.01295396717 | AU85: 0.2230855958 | AV85: -0.2529840477 | AW85: 0.01191867796 | AX85: 0.1747211147 | AY85: -0.009394346489 | AZ85: 0.09174007794 | BA85: 0.08370261444 | BB85: 0.1369769408 | BC85: 0.2324815843 | BD85: -0.03692148688 | BE85: 0.071230175 | BF85: 0.310152871
A86: 2069 | B86: 12080915 | C86: 20650 | D86: 83462 | E86: 204012 | F86: 35813 | G86: 182457 | H86: 108087 | I86: 26087 | J86: 30715 | K86: 109068 | L86: 140565 | M86: 53208 | N86: 783599 | O86: 40670 | P86: 43891 | Q86: 57830 | R86: 162393 | S86: 2082507 | T86: 14163422 | U86: 85.29658299 | V86: 0.1457980988 | W86: 0.589278495 | X86: 1.440414612 | Y86: 0.2528555599 | Z86: 1.288226814 | AA86: 0.7631418452 | AB86: 0.1841857144 | AC86: 0.2168614336 | AD86: 0.7700681375 | AE86: 0.9924508357 | AF86: 0.3756719245 | AG86: 5.532554209 | AH86: 0.28714812 | AI86: 0.3098897992 | AJ86: 0.408305281 | AK86: 1.146566134 | AL86: 14.70341701 | AM86: 100 | AN86: 0.3387926695 | AO86: 0.2035969485 | AP86: 0.03714955134 | AQ86: 0.1196723866 | AR86: -0.01675228952 | AS86: -0.01644087864 | AT86: 0.004626010206 | AU86: 0.226422432 | AV86: -0.2536256806 | AW86: -0.01008494273 | AX86: 0.155921302 | AY86: -0.02442943195 | AZ86: 0.07583282418 | BA86: 0.08117382713 | BB86: 0.1322329316 | BC86: 0.2146517927 | BD86: -0.05171299404 | BE86: 0.05701485831 | BF86: 0.2973118808
A87: 2070 | B87: 12120544 | C87: 20691 | D87: 83482 | E87: 204225 | F87: 35807 | G87: 182405 | H87: 108080 | I87: 26134 | J87: 30634 | K87: 109048 | L87: 140766 | M87: 53194 | N87: 784089 | O87: 40691 | P87: 43936 | Q87: 57950 | R87: 162291 | S87: 2083423 | T87: 14203967 | U87: 85.33210476 | V87: 0.1456705722 | W87: 0.5877372145 | X87: 1.437802552 | Y87: 0.252091546 | Z87: 1.284183496 | AA87: 0.7609141869 | AB87: 0.1839908527 | AC87: 0.2156721429 | AD87: 0.7677291844 | AE87: 0.991032998 | AF87: 0.3745010109 | AG87: 5.520211361 | AH87: 0.2864763062 | AI87: 0.3093220366 | AJ87: 0.4079846144 | AK87: 1.142575169 | AL87: 14.66789524 | AM87: 100 | AN87: 0.3274929451 | AO87: 0.198350371 | AP87: 0.02396013046 | AQ87: 0.1043511584 | AR87: -0.01675509638 | AS87: -0.02850392771 | AT87: -0.00647647421 | AU87: 0.1800042615 | AV87: -0.2640631374 | AW87: -0.01833886561 | AX87: 0.1428922047 | AY87: -0.02631529498 | AZ87: 0.06251244074 | BA87: 0.05162178554 | BB87: 0.1024741912 | BC87: 0.2072897616 | BD87: -0.06283032324 | BE87: 0.04397577563 | BF87: 0.2858566053
A88: 2071 | B88: 12158800 | C88: 20731 | D88: 83493 | E88: 204415 | F88: 35789 | G88: 182320 | H88: 108066 | I88: 26183 | J88: 30553 | K88: 109014 | L88: 140948 | M88: 53174 | N88: 784468 | O88: 40716 | P88: 43979 | Q88: 58057 | R88: 162171 | S88: 2084077 | T88: 14242877 | U88: 85.36758409 | V88: 0.1455534581 | W88: 0.5862088116 | X88: 1.435208631 | Y88: 0.2512764802 | Z88: 1.280078456 | AA88: 0.7587371568 | AB88: 0.1838322412 | AC88: 0.2145142446 | AD88: 0.7653931154 | AE88: 0.9896034348 | AF88: 0.3733374935 | AG88: 5.507791719 | AH88: 0.2858692103 | AI88: 0.3087789075 | AJ88: 0.4076212973 | AK88: 1.138611251 | AL88: 14.63241591 | AM88: 100 | AN88: 0.3151323336 | AO88: 0.1931341434 | AP88: 0.01317562511 | AQ88: 0.09299139276 | AR88: -0.05028213973 | AS88: -0.04661046078 | AT88: -0.0129542069 | AU88: 0.1873196641 | AV88: -0.2647622773 | AW88: -0.03118379202 | AX88: 0.129209074 | AY88: -0.03760529527 | AZ88: 0.04832467132 | BA88: 0.06141978156 | BB88: 0.09782176745 | BC88: 0.184471679 | BD88: -0.0739686037 | BE88: 0.03138572311 | BF88: 0.2735630305
A89: 2072 | B89: 12195523 | C89: 20763 | D89: 83492 | E89: 204564 | F89: 35774 | G89: 182224 | H89: 108043 | I89: 26229 | J89: 30461 | K89: 108963 | L89: 141104 | M89: 53144 | N89: 784731 | O89: 40727 | P89: 44012 | Q89: 58151 | R89: 162034 | S89: 2084416 | T89: 14279939 | U89: 85.40318695 | V89: 0.1453997808 | W89: 0.5846803687 | X89: 1.432527128 | Y89: 0.2505192774 | Z89: 1.276083882 | AA89: 0.7566068735 | AB89: 0.1836772552 | AC89: 0.2133132361 | AD89: 0.763049478 | AE89: 0.9881274703 | AF89: 0.3721584525 | AG89: 5.495338601 | AH89: 0.2852042995 | AI89: 0.3082085995 | AJ89: 0.4072216275 | AK89: 1.134696724 | AL89: 14.59681305 | AM89: 100 | AN89: 0.3015729719 | AO89: 0.1542391977 | AP89: -0.001197712369 | AQ89: 0.07286438012 | AR89: -0.0419211051 | AS89: -0.05266854054 | AT89: -0.02128555505 | AU89: 0.1755323659 | AV89: -0.30157036 | AW89: -0.04679392865 | AX89: 0.1106179115 | AY89: -0.05643447167 | AZ89: 0.03352028678 | BA89: 0.02701275755 | BB89: 0.07500767476 | BC89: 0.1617789145 | BD89: -0.08451443263 | BE89: 0.01626487082 | BF89: 0.25987631
A90: 2073 | B90: 12230877 | C90: 20798 | D90: 83476 | E90: 204686 | F90: 35751 | G90: 182097 | H90: 108006 | I90: 26265 | J90: 30371 | K90: 108902 | L90: 141238 | M90: 53110 | N90: 784885 | O90: 40732 | P90: 44039 | Q90: 58239 | R90: 161868 | S90: 2084463 | T90: 14315340 | U90: 85.43895569 | V90: 0.1452847086 | W90: 0.5831227201 | X90: 1.429836804 | Y90: 0.2497390911 | Z90: 1.272041041 | AA90: 0.7544773648 | AB90: 0.1834745106 | AC90: 0.2121570288 | AD90: 0.7607363849 | AE90: 0.9866199476 | AF90: 0.3710006189 | AG90: 5.482824718 | AH90: 0.2845339335 | AI90: 0.3076350265 | AJ90: 0.4068293174 | AK90: 1.13073109 | AL90: 14.56104431 | AM90: 100 | AN90: 0.2894738863 | AO90: 0.168427171 | AP90: -0.01916534911 | AQ90: 0.05962126017 | AR90: -0.06431317943 | AS90: -0.06971873987 | AT90: -0.03425148958 | AU90: 0.1371585539 | AV90: -0.2958971123 | AW90: -0.05599798186 | AX90: 0.09492035196 | AY90: -0.06399759286 | AZ90: 0.01962263388 | BA90: 0.01227611438 | BB90: 0.06132809587 | BC90: 0.151215769 | BD90: -0.1025001479 | BE90: 0.00225480279 | BF90: 0.2476004384
A91: 2074 | B91: 12265028 | C91: 20823 | D91: 83452 | E91: 204781 | F91: 35721 | G91: 181952 | H91: 107957 | I91: 26301 | J91: 30281 | K91: 108831 | L91: 141363 | M91: 53068 | N91: 784937 | O91: 40730 | P91: 44061 | Q91: 58320 | R91: 161691 | S91: 2084269 | T91: 14349297 | U91: 85.47476577 | V91: 0.1451151231 | W91: 0.5815755294 | X91: 1.42711521 | Y91: 0.2489390247 | Z91: 1.268020308 | AA91: 0.7523504462 | AB91: 0.1832912093 | AC91: 0.2110277598 | AD91: 0.7584413369 | AE91: 0.9851562763 | AF91: 0.3698299645 | AG91: 5.470212234 | AH91: 0.2838466581 | AI91: 0.3070603389 | AJ91: 0.4064310607 | AK91: 1.126821753 | AL91: 14.52523423 | AM91: 100 | AN91: 0.2788304586 | AO91: 0.1201316788 | AP91: -0.0287549125 | AQ91: 0.04640178657 | AR91: -0.08394896396 | AS91: -0.07965961047 | AT91: -0.04537814426 | AU91: 0.1369706869 | AV91: -0.2967752623 | AW91: -0.06521749346 | AX91: 0.08846395317 | AY91: -0.07911243796 | AZ91: 0.006624954934 | BA91: -0.00491026491 | BB91: 0.04994324735 | BC91: 0.1389854289 | BD91: -0.1094081869 | BE91: -0.009307386521 | BF91: 0.2369261881
A92: 2075 | B92: 12298135 | C92: 20853 | D92: 83419 | E92: 204851 | F92: 35696 | G92: 181792 | H92: 107909 | I92: 26332 | J92: 30189 | K92: 108746 | L92: 141461 | M92: 53019 | N92: 784912 | O92: 40728 | P92: 44083 | Q92: 58387 | R92: 161505 | S92: 2083882 | T92: 14382017 | U92: 85.51050246 | V92: 0.1449935708 | W92: 0.5800229551 | X92: 1.424355151 | Y92: 0.2481988444 | Z92: 1.264022981 | AA92: 0.7503050511 | AB92: 0.1830897572 | AC92: 0.2099079705 | AD92: 0.7561248189 | AE92: 0.9835963899 | AF92: 0.3686478746 | AG92: 5.457593326 | AH92: 0.2831869827 | AI92: 0.306514726 | AJ92: 0.4059722638 | AK92: 1.12296488 | AL92: 14.48949754 | AM92: 100 | AN92: 0.2695664239 | AO92: 0.1439677761 | AP92: -0.03955151036 | AQ92: 0.03417701775 | AR92: -0.0700113447 | AS92: -0.08797396538 | AT92: -0.04447203431 | AU92: 0.1177968331 | AV92: -0.3042833504 | AW92: -0.07813326255 | AX92: 0.06930105219 | AY92: -0.09237701789 | AZ92: -0.003185019706 | BA92: -0.004910506029 | BB92: 0.04991831652 | BC92: 0.1148174614 | BD92: -0.1151004471 | BE92: -0.0185693849 | BF92: 0.2277655254
A93: 2076 | B93: 12329990 | C93: 20873 | D93: 83378 | E93: 204895 | F93: 35664 | G93: 181613 | H93: 107854 | I93: 26357 | J93: 30096 | K93: 108652 | L93: 141550 | M93: 52974 | N93: 784793 | O93: 40715 | P93: 44090 | Q93: 58448 | R93: 161292 | S93: 2083244 | T93: 14413234 | U93: 85.54631112 | V93: 0.1448182969 | W93: 0.5784822476 | X93: 1.421575477 | Y93: 0.2474392631 | Z93: 1.260043374 | AA93: 0.7482984041 | AB93: 0.1828666627 | AC93: 0.2088080996 | AD93: 0.7538349825 | AE93: 0.982083549 | AF93: 0.3675372231 | AG93: 5.444947331 | AH93: 0.2824834454 | AI93: 0.3058994255 | AJ93: 0.4055162082 | AK93: 1.119054891 | AL93: 14.45368888 | AM93: 100 | AN93: 0.258688128 | AO93: 0.09586349773 | AP93: -0.04916155665 | AQ93: 0.02147671981 | AR93: -0.08968610467 | AS93: -0.09851268666 | AT93: -0.05098186546 | AU93: 0.09489647507 | AV93: -0.3085347061 | AW93: -0.08647734189 | AX93: 0.06289508389 | AY93: -0.08491127283 | AZ93: -0.01516208462 | BA93: -0.03192416809 | BB93: 0.01587787648 | BC93: 0.1044207738 | BD93: -0.1319715059 | BE93: -0.03062062462 | BF93: 0.21682056
A94: 2077 | B94: 12360443 | C94: 20892 | D94: 83326 | E94: 204909 | F94: 35625 | G94: 181414 | H94: 107788 | I94: 26382 | J94: 29999 | K94: 108542 | L94: 141616 | M94: 52914 | N94: 784570 | O94: 40701 | P94: 44094 | Q94: 58504 | R94: 161070 | S94: 2082346 | T94: 14442789 | U94: 85.58210606 | V94: 0.1446535015 | W94: 0.5769384293 | X94: 1.41876337 | Y94: 0.2466628848 | Z94: 1.256087034 | AA94: 0.7463101483 | AB94: 0.1826655503 | AC94: 0.2077091897 | AD94: 0.7515307466 | AE94: 0.9805308379 | AF94: 0.3663696811 | AG94: 5.43226104 | AH94: 0.2818084513 | AI94: 0.3053011437 | AJ94: 0.4050741169 | AK94: 1.115227814 | AL94: 14.41789394 | AM94: 100 | AN94: 0.2466786665 | AO94: 0.09098528103 | AP94: -0.06238602755 | AQ94: 0.00683253458 | AR94: -0.1094138055 | AS94: -0.1096337297 | AT94: -0.06121256718 | AU94: 0.09480650703 | AV94: -0.3228224785 | AW94: -0.1012919412 | AX94: 0.04661576686 | AY94: -0.1133273013 | AZ94: -0.02841917409 | BA94: -0.03439127478 | BB94: 0.009071940494 | BC94: 0.09576579157 | BD94: -0.1377333774 | BE94: -0.04311514162 | BF94: 0.2048446547
A95: 2078 | B95: 12389777 | C95: 20910 | D95: 83265 | E95: 204894 | F95: 35584 | G95: 181194 | H95: 107710 | I95: 26402 | J95: 29903 | K95: 108422 | L95: 141663 | M95: 52849 | N95: 784263 | O95: 40681 | P95: 44096 | Q95: 58549 | R95: 160837 | S95: 2081222 | T95: 14470999 | U95: 85.6179798 | V95: 0.1444958983 | W95: 0.5753922034 | X95: 1.415893955 | Y95: 0.2458987109 | Z95: 1.252118116 | AA95: 0.7443162701 | AB95: 0.1824476665 | AC95: 0.2066408822 | AD95: 0.7492364556 | AE95: 0.9789441627 | AF95: 0.3652062999 | AG95: 5.419549818 | AH95: 0.2811208818 | AI95: 0.3047198055 | AJ95: 0.4045954257 | AK95: 1.111443654 | AL95: 14.3820202 | AM95: 100 | AN95: 0.2370404282 | AO95: 0.08612028665 | AP95: -0.07323325117 | AQ95: -0.007320590629 | AR95: -0.1151539961 | AS95: -0.1213431733 | AT95: -0.07239046618 | AU95: 0.07578054318 | AV95: -0.3205237962 | AW95: -0.1106174409 | AX95: 0.03318283419 | AY95: -0.1229163473 | AZ95: -0.03913737204 | BA95: -0.04915091888 | BB95: 0.00453566164 | BC95: 0.07688825099 | BD95: -0.1447623324 | BE95: -0.0539921542 | BF95: 0.1951318793
A96: 2079 | B96: 12418280 | C96: 20923 | D96: 83201 | E96: 204859 | F96: 35539 | G96: 180969 | H96: 107623 | I96: 26420 | J96: 29804 | K96: 108299 | L96: 141696 | M96: 52784 | N96: 783888 | O96: 40653 | P96: 44088 | Q96: 58590 | R96: 160585 | S96: 2079921 | T96: 14498201 | U96: 85.65393734 | V96: 0.1443144567 | W96: 0.5738711996 | X96: 1.412995999 | Y96: 0.2451269644 | Z96: 1.248216934 | AA96: 0.742319685 | AB96: 0.1822295056 | AC96: 0.2055703325 | AD96: 0.7469823325 | AE96: 0.9773350501 | AF96: 0.3640727563 | AG96: 5.406794953 | AH96: 0.2804003062 | AI96: 0.3040929009 | AJ96: 0.4041191042 | AK96: 1.10762018 | AL96: 14.34606266 | AM96: 100 | AN96: 0.229788351 | AO96: 0.06215189166 | AP96: -0.07689258245 | AQ96: -0.01708346252 | AR96: -0.1265413608 | AS96: -0.1242534599 | AT96: -0.08080508304 | AU96: 0.06815342356 | AV96: -0.331619712 | AW96: -0.1135100089 | AX96: 0.02329200777 | AY96: -0.1230676175 | AZ96: -0.04782702777 | BA96: -0.06885189738 | BB96: -0.01814388103 | BC96: 0.07000230781 | BD96: -0.1568032379 | BE96: -0.062530898 | BF96: 0.1877995112
A97: 2080 | B97: 12446248 | C97: 20939 | D97: 83128 | E97: 204817 | F97: 35492 | G97: 180734 | H97: 107533 | I97: 26434 | J97: 29701 | K97: 108168 | L97: 141723 | M97: 52714 | N97: 783474 | O97: 40631 | P97: 44085 | Q97: 58624 | R97: 160339 | S97: 2078536 | T97: 14524784 | U97: 85.68972867 | V97: 0.1441604915 | W97: 0.5723183216 | X97: 1.410120798 | Y97: 0.2443547525 | Z97: 1.244314545 | AA97: 0.7403414743 | AB97: 0.1819923794 | AC97: 0.2044849686 | AD97: 0.7447133121 | AE97: 0.9757322381 | AF97: 0.362924502 | AG97: 5.394049233 | AH97: 0.2797356573 | AI97: 0.3035157012 | AJ97: 0.4036135753 | AK97: 1.103899376 | AL97: 14.31027133 | AM97: 100 | AN97: 0.2249631426 | AO97: 0.07644164531 | AP97: -0.08777784354 | AQ97: -0.02050400812 | AR97: -0.1323366047 | AS97: -0.1299408814 | AT97: -0.08366023281 | AU97: 0.05297612414 | AV97: -0.3461897416 | AW97: -0.1210346298 | AX97: 0.01905306284 | AY97: -0.132703957 | AZ97: -0.05282761859 | BA97: -0.05413119565 | BB97: -0.006804804194 | BC97: 0.0580135495 | BD97: -0.1533073551 | BE97: -0.06661124793 | BF97: 0.1831858951
A98: 2081 | B98: 12473527 | C98: 20945 | D98: 83053 | E98: 204753 | F98: 35446 | G98: 180490 | H98: 107435 | I98: 26446 | J98: 29601 | K98: 108034 | L98: 141742 | M98: 52642 | N98: 783008 | O98: 40599 | P98: 44073 | Q98: 58655 | R98: 160075 | S98: 2076997 | T98: 14550524 | U98: 85.7256206 | V98: 0.143946706 | W98: 0.5707904403 | X98: 1.407186435 | Y98: 0.2436063471 | Z98: 1.240436427 | AA98: 0.7383582887 | AB98: 0.1817529046 | AC98: 0.2034359725 | AD98: 0.7424749789 | AE98: 0.974136739 | AF98: 0.361787658 | AG98: 5.381304481 | AH98: 0.2790208792 | AI98: 0.3028963081 | AJ98: 0.4031126302 | AK98: 1.100132201 | AL98: 14.2743794 | AM98: 100 | AN98: 0.2189346485 | AO98: 0.02865055888 | AP98: -0.09026303259 | AQ98: -0.03125228924 | AR98: -0.129690734 | AS98: -0.1350962489 | AT98: -0.09117636745 | AU98: 0.0453857799 | AV98: -0.3372570732 | AW98: -0.1239581661 | AX98: 0.01340553509 | AY98: -0.13667947 | AZ98: -0.05949637643 | BA98: -0.07878862897 | BB98: -0.02722384826 | BC98: 0.0528653906 | BD98: -0.1647868444 | BE98: -0.07406992414 | BF98: 0.1770575
A99: 2082 | B99: 12499892 | C99: 20956 | D99: 82972 | E99: 204667 | F99: 35396 | G99: 180230 | H99: 107324 | I99: 26455 | J99: 29504 | K99: 107892 | L99: 141738 | M99: 52567 | N99: 782474 | O99: 40569 | P99: 44059 | Q99: 58678 | R99: 159802 | S99: 2075283 | T99: 14575175 | U99: 85.76152259 | V99: 0.1437787196 | W99: 0.5692693227 | X99: 1.404216416 | Y99: 0.2428512865 | Z99: 1.236554621 | AA99: 0.7363479341 | AB99: 0.1815072546 | AC99: 0.202426386 | AD99: 0.7402449713 | AE99: 0.9724617372 | AF99: 0.3606611927 | AG99: 5.368539314 | AH99: 0.2783431417 | AI99: 0.3022879657 | AJ99: 0.4025886482 | AK99: 1.0963985 | AL99: 14.23847741 | AM99: 100 | AN99: 0.2111445757 | AO99: 0.0525047147 | AP99: -0.09757567406 | AQ99: -0.04201064983 | AR99: -0.1411592228 | AS99: -0.1441561571 | AT99: -0.1033716956 | AU99: 0.03402582215 | AV99: -0.3282297169 | AW99: -0.1315265605 | AX99: -0.002822068576 | AY99: -0.1425733781 | AZ99: -0.06822180271 | BA99: -0.07392076031 | BB99: -0.0317705263 | BC99: 0.03920465733 | BD99: -0.1706906506 | BE99: -0.08255705768 | BF99: 0.1692732311
A100: 2083 | B100: 12525579 | C100: 20964 | D100: 82887 | E100: 204571 | F100: 35343 | G100: 179962 | H100: 107209 | I100: 26463 | J100: 29403 | K100: 107738 | L100: 141728 | M100: 52494 | N100: 781889 | O100: 40534 | P100: 44040 | Q100: 58696 | R100: 159527 | S100: 2073448 | T100: 14599027 | U100: 85.79735485 | V100: 0.1435986111 | W100: 0.5677570156 | X100: 1.401264619 | Y100: 0.2420914764 | Z100: 1.23269859 | AA100: 0.7343571596 | AB100: 0.1812655049 | AC100: 0.2014038333 | AD100: 0.7379806887 | AE100: 0.9708044242 | AF100: 0.3595719085 | AG100: 5.355761038 | AH100: 0.2776486406 | AI100: 0.3016639397 | AJ100: 0.4020541917 | AK100: 1.092723508 | AL100: 14.20264515 | AM100: 100 | AN100: 0.2052869176 | AO100: 0.03816793939 | AP100: -0.102496708 | AQ100: -0.04691646512 | AR100: -0.1498466473 | AS100: -0.1488095513 | AT100: -0.1072096237 | AU100: 0.03023545886 | AV100: -0.3429137419 | AW100: -0.1428372918 | AX100: -0.007055519889 | AY100: -0.1389669083 | AZ100: -0.07479082889 | BA100: -0.08631000622 | BB100: -0.0431332939 | BC100: 0.03067118807 | BD100: -0.1722362003 | BE100: -0.08846079052 | BF100: 0.1635143632
A101: 2084 | B101: 12550805 | C101: 20968 | D101: 82792 | E101: 204466 | F101: 35293 | G101: 179688 | H101: 107086 | I101: 26466 | J101: 29303 | K101: 107588 | L101: 141701 | M101: 52415 | N101: 781275 | O101: 40497 | P101: 44019 | Q101: 58714 | R101: 159247 | S101: 2071518 | T101: 14622323 | U101: 85.83318123 | V101: 0.143397188 | W101: 0.5662027846 | X101: 1.398314071 | Y101: 0.241363838 | Z101: 1.228860831 | AA101: 0.7323460164 | AB101: 0.1809972328 | AC101: 0.2003990748 | AD101: 0.7357791235 | AE101: 0.9690731083 | AF101: 0.3584587757 | AG101: 5.343029285 | AH101: 0.2769532584 | AI101: 0.3010397185 | AJ101: 0.4015367462 | AK101: 1.089067722 | AL101: 14.16681877 | AM101: 100 | AN101: 0.20119335 | AO101: 0.01907850812 | AP101: -0.1146796038 | AQ101: -0.05134009995 | AR101: -0.141570894 | AS101: -0.1523703896 | AT101: -0.1147950382 | AU101: 0.01133594061 | AV101: -0.3406810095 | AW101: -0.1393236528 | AX101: -0.0190523906 | AY101: -0.1506067448 | AZ101: -0.07855861977 | BA101: -0.09132308023 | BB101: -0.0476952961 | BC101: 0.03066178373 | BD101: -0.1756730925 | BE101: -0.09312501668 | BF101: 0.1594450971
A102: 2085 | B102: 12575805 | C102: 20972 | D102: 82702 | E102: 204350 | F102: 35245 | G102: 179421 | H102: 106959 | I102: 26477 | J102: 29206 | K102: 107438 | L102: 141679 | M102: 52336 | N102: 780641 | O102: 40463 | P102: 43994 | Q102: 58724 | R102: 158962 | S102: 2069569 | T102: 14645374 | U102: 85.86878696 | V102: 0.1431988012 | W102: 0.5646970846 | X102: 1.395321144 | Y102: 0.2406561963 | Z102: 1.225103572 | AA102: 0.7303261767 | AB102: 0.1807874623 | AC102: 0.1994213326 | AD102: 0.7335968341 | AE102: 0.9673976233 | AF102: 0.3573551621 | AG102: 5.330290643 | AH102: 0.2762851942 | AI102: 0.3003951965 | AJ102: 0.4009730308 | AK102: 1.085407583 | AL102: 14.13121304 | AM102: 100 | AN102: 0.1989922894 | AO102: 0.01907486892 | AP102: -0.1087652832 | AQ102: -0.05674924813 | AR102: -0.1360968766 | AS102: -0.1487013966 | AT102: -0.1186666494 | AU102: 0.04155412484 | AV102: -0.3315732242 | AW102: -0.1395180344 | AX102: -0.01552685443 | AY102: -0.1508339109 | AZ102: -0.08118234717 | BA102: -0.0839920998 | BB102: -0.05680979099 | BC102: 0.01703026282 | BD102: -0.1791276024 | BE102: -0.09412988155 | BF102: 0.1575184051
A103: 2086 | B103: 12600440 | C103: 20978 | D103: 82609 | E103: 204236 | F103: 35188 | G103: 179138 | H103: 106819 | I103: 26477 | J103: 29103 | K103: 107276 | L103: 141645 | M103: 52252 | N103: 779975 | O103: 40425 | P103: 43972 | Q103: 58728 | R103: 158679 | S103: 2067500 | T103: 14667940 | U103: 85.90463283 | V103: 0.1430194015 | W103: 0.5631942863 | X103: 1.392397296 | Y103: 0.2398973544 | Z103: 1.221289424 | AA103: 0.7282481385 | AB103: 0.1805093285 | AC103: 0.1984123197 | AD103: 0.7313637771 | AE103: 0.9656775253 | AF103: 0.3562327089 | AG103: 5.317549704 | AH103: 0.2756010728 | AI103: 0.2997830643 | AJ103: 0.4003834213 | AK103: 1.081808352 | AL103: 14.09536717 | AM103: 100 | AN103: 0.1957004141 | AO103: 0.02860548291 | AP103: -0.1125152105 | AQ103: -0.0558022071 | AR103: -0.1618559835 | AS103: -0.1578541098 | AT103: -0.1309770136 | AU103: 0 | AV103: -0.3532905971 | AW103: -0.150898433 | AX103: -0.02400079073 | AY103: -0.1606303172 | AZ103: -0.0853509179 | BA103: -0.09395708336 | BB103: -0.05001932669 | BC103: 0.006811293127 | BD103: -0.1781886311 | BE103: -0.1000225122 | BF103: 0.1539641984
A104: 2087 | B104: 12624545 | C104: 20983 | D104: 82512 | E104: 204104 | F104: 35130 | G104: 178855 | H104: 106676 | I104: 26479 | J104: 29005 | K104: 107119 | L104: 141605 | M104: 52170 | N104: 779277 | O104: 40387 | P104: 43946 | Q104: 58738 | R104: 158386 | S104: 2065372 | T104: 14689917 | U104: 85.94020647 | V104: 0.1428394728 | W104: 0.5616913969 | X104: 1.389415611 | Y104: 0.2391436248 | Z104: 1.21753581 | AA104: 0.7261851786 | AB104: 0.1802528905 | AC104: 0.1974483586 | AD104: 0.7292008525 | AE104: 0.963960518 | AF104: 0.3551415573 | AG104: 5.304842771 | AH104: 0.2749300762 | AI104: 0.2991575786 | AJ104: 0.3998524975 | AK104: 1.078195336 | AL104: 14.05979353 | AM104: 100 | AN104: 0.1911200925 | AO104: 0.02383165331 | AP104: -0.1174896121 | AQ104: -0.06465200793 | AR104: -0.1649649113 | AS104: -0.158103683 | AT104: -0.1339610027 | AU104: 0.007553440596 | AV104: -0.3373032729 | AW104: -0.1464586656 | AX104: -0.02824360125 | AY104: -0.157055059 | AZ104: -0.08953011401 | BA104: -0.09404544573 | BB104: -0.05914602415 | BC104: 0.01702620337 | BD104: -0.1848201999 | BE104: -0.1029792448 | BF104: 0.1497180404
A105: 2088 | B105: 12648338 | C105: 20979 | D105: 82409 | E105: 203972 | F105: 35078 | G105: 178564 | H105: 106524 | I105: 26478 | J105: 28904 | K105: 106951 | L105: 141553 | M105: 52087 | N105: 778552 | O105: 40348 | P105: 43920 | Q105: 58737 | R105: 158097 | S105: 2063153 | T105: 14711491 | U105: 85.97590822 | V105: 0.142602813 | W105: 0.5601675588 | X105: 1.386480813 | Y105: 0.2384394621 | Z105: 1.213772282 | AA105: 0.7240870419 | AB105: 0.1799817571 | AC105: 0.1964722678 | AD105: 0.7269895349 | AE105: 0.962193431 | AF105: 0.3540565671 | AG105: 5.292135243 | AH105: 0.2742617998 | AI105: 0.2985421396 | AJ105: 0.3992593273 | AK105: 1.074649741 | AL105: 14.02409178 | AM105: 100 | AN105: 0.1882888235 | AO105: -0.01906486827 | AP105: -0.1249083057 | AQ105: -0.0646938338 | AR105: -0.1481312942 | AS105: -0.1628341327 | AT105: -0.1425891424 | AU105: -0.00377664898 | AV105: -0.3488235073 | AW105: -0.1569580366 | AX105: -0.03672861129 | AY105: -0.1592219564 | AZ105: -0.09307825857 | BA105: -0.09661238133 | BB105: -0.05918102738 | BC105: -0.001702489892 | BD105: -0.1826322933 | BE105: -0.1074960289 | BF105: 0.1467549028
A106: 2089 | B106: 12672039 | C106: 20978 | D106: 82309 | E106: 203835 | F106: 35019 | G106: 178277 | H106: 106381 | I106: 26481 | J106: 28809 | K106: 106793 | L106: 141505 | M106: 52003 | N106: 777820 | O106: 40309 | P106: 43893 | Q106: 58745 | R106: 157805 | S106: 2060962 | T106: 14733001 | U106: 86.0112546 | V106: 0.1423878272 | W106: 0.5586709727 | X106: 1.383526683 | Y106: 0.2376908819 | Z106: 1.210052181 | AA106: 0.7220592736 | AB106: 0.1797393484 | AC106: 0.1955406098 | AD106: 0.7248557168 | AE106: 0.9604628412 | AF106: 0.3529695002 | AG106: 5.279440353 | AH106: 0.2735966691 | AI106: 0.2979230097 | AJ106: 0.3987307135 | AK106: 1.071098821 | AL106: 13.9887454 | AM106: 100 | AN106: 0.1872089576 | AO106: -0.004766785043 | AP106: -0.1214196533 | AQ106: -0.06718864814 | AR106: -0.1683381997 | AS106: -0.1608559901 | AT106: -0.1343322341 | AU106: 0.01132951907 | AV106: -0.3292155521 | AW106: -0.1478404341 | AX106: -0.03391531097 | AY106: -0.1613988245 | AZ106: -0.09406492201 | BA106: -0.09670581112 | BB106: -0.06149431371 | BC106: 0.01361910763 | BD106: -0.1848675115 | BE106: -0.1062531091 | BF106: 0.1461054504
A107: 2090 | B107: 12695863 | C107: 20978 | D107: 82210 | E107: 203694 | F107: 34970 | G107: 177994 | H107: 106225 | I107: 26477 | J107: 28711 | K107: 106629 | L107: 141445 | M107: 51924 | N107: 777095 | O107: 40274 | P107: 43864 | Q107: 58744 | R107: 157513 | S107: 2058747 | T107: 14754610 | U107: 86.0467542 | V107: 0.1421792918 | W107: 0.5571817893 | X107: 1.380544792 | Y107: 0.2370106699 | Z107: 1.206361944 | AA107: 0.7199444784 | AB107: 0.1794489993 | AC107: 0.1945900298 | AD107: 0.7226826056 | AE107: 0.9586495339 | AF107: 0.3519171296 | AG107: 5.266794581 | AH107: 0.2729587566 | AI107: 0.2972901351 | AJ107: 0.3981399712 | AK107: 1.067551091 | AL107: 13.9532458 | AM107: 100 | AN107: 0.1878279647 | AO107: 0 | AP107: -0.1203508555 | AQ107: -0.06919753226 | AR107: -0.1400220263 | AS107: -0.1588678616 | AT107: -0.1467503532 | AU107: -0.01510631069 | AV107: -0.3407513728 | AW107: -0.1536861545 | AX107: -0.04241032048 | AY107: -0.1520298194 | AZ107: -0.0932526926 | BA107: -0.08686696251 | BB107: -0.06609159624 | BC107: -0.001702287023 | BD107: -0.1852099046 | BE107: -0.1075318773 | BF107: 0.1465632727
A108: 2091 | B108: 12719723 | C108: 20980 | D108: 82110 | E108: 203560 | F108: 34910 | G108: 177714 | H108: 106076 | I108: 26477 | J108: 28615 | K108: 106471 | L108: 141393 | M108: 51841 | N108: 776371 | O108: 40229 | P108: 43835 | Q108: 58741 | R108: 157233 | S108: 2056556 | T108: 14776279 | U108: 86.08204407 | V108: 0.141984325 | W108: 0.5556879374 | X108: 1.377613403 | Y108: 0.2362570441 | Z108: 1.202697919 | AA108: 0.717880327 | AB108: 0.1791858424 | AC108: 0.193654979 | AD108: 0.7205535304 | AE108: 0.9568917858 | AF108: 0.3508393419 | AG108: 5.254171229 | AH108: 0.2722539281 | AI108: 0.2966579069 | AJ108: 0.3975358072 | AK108: 1.064090628 | AL108: 13.91795593 | AM108: 100 | AN108: 0.187758858 | AO108: 0.009533342874 | AP108: -0.1217137443 | AQ108: -0.06580659973 | AR108: -0.1717229958 | AS108: -0.1574325333 | AT108: -0.1403667665 | AU108: 0 | AV108: -0.3349268735 | AW108: -0.1482872163 | AX108: -0.03677016567 | AY108: -0.1599769049 | AZ108: -0.09321092994 | BA108: -0.1117970875 | BB108: -0.06613530612 | BC108: -0.005107034942 | BD108: -0.1779212914 | BE108: -0.1064806264 | BF108: 0.1467548362
A109: 2092 | B109: 12743478 | C109: 20980 | D109: 82015 | E109: 203423 | F109: 34858 | G109: 177432 | H109: 105926 | I109: 26475 | J109: 28527 | K109: 106318 | L109: 141331 | M109: 51760 | N109: 775636 | O109: 40192 | P109: 43809 | Q109: 58739 | R109: 156947 | S109: 2054368 | T109: 14797846 | U109: 86.11711461 | V109: 0.1417773911 | W109: 0.5542360692 | X109: 1.374679801 | Y109: 0.2355613107 | Z109: 1.199039374 | AA109: 0.7158203971 | AB109: 0.178911174 | AC109: 0.192778057 | AD109: 0.7184694313 | AE109: 0.9550781918 | AF109: 0.349780637 | AG109: 5.241546641 | AH109: 0.2716070974 | AI109: 0.296049844 | AJ109: 0.3969429064 | AK109: 1.060607064 | AL109: 13.88288539 | AM109: 100 | AN109: 0.1865830372 | AO109: 0 | AP109: -0.1157654356 | AQ109: -0.06732468195 | AR109: -0.1490655017 | AS109: -0.1588079603 | AT109: -0.1415081226 | AU109: -0.007554011184 | AV109: -0.3080048636 | AW109: -0.1438044508 | AX109: -0.0438590293 | AY109: -0.1563691789 | AZ109: -0.09471607473 | BA109: -0.09201577352 | BB109: -0.05933093141 | BC109: -0.003404834866 | BD109: -0.1820612891 | BE109: -0.1064480981 | BF109: 0.1458504948
A110: 2093 | B110: 12767281 | C110: 20979 | D110: 81919 | E110: 203286 | F110: 34804 | G110: 177157 | H110: 105783 | I110: 26476 | J110: 28436 | K110: 106157 | L110: 141273 | M110: 51680 | N110: 774901 | O110: 40156 | P110: 43777 | Q110: 58736 | R110: 156663 | S110: 2052183 | T110: 14819464 | U110: 86.15211049 | V110: 0.1415638244 | W110: 0.5527797767 | X110: 1.371750017 | Y110: 0.2348532983 | Z110: 1.195434599 | AA110: 0.7138112418 | AB110: 0.1786569339 | AC110: 0.1918827833 | AD110: 0.7163349498 | AE110: 0.9532935874 | AF110: 0.3487305614 | AG110: 5.228940804 | AH110: 0.2709679648 | AI110: 0.2954020469 | AJ110: 0.3963436194 | AK110: 1.057143497 | AL110: 13.84788951 | AM110: 100 | AN110: 0.1866115148 | AO110: -0.004766557831 | AP110: -0.1171203179 | AQ110: -0.06737003862 | AR110: -0.1550343396 | AS110: -0.1551091856 | AT110: -0.1350911126 | AU110: 0.003777076921 | AV110: -0.3195059158 | AW110: -0.1515472699 | AX110: -0.04104683643 | AY110: -0.1546790718 | AZ110: -0.09480587113 | BA110: -0.08961020165 | BB110: -0.073071042 | BC110: -0.005107469676 | BD110: -0.1811167231 | BE110: -0.106415345 | BF110: 0.1459822235
A111: 2094 | B111: 12791297 | C111: 20974 | D111: 81821 | E111: 203148 | F111: 34751 | G111: 176888 | H111: 105640 | I111: 26474 | J111: 28337 | K111: 106001 | L111: 141215 | M111: 51602 | N111: 774185 | O111: 40114 | P111: 43750 | Q111: 58731 | R111: 156391 | S111: 2050022 | T111: 14841319 | U111: 86.18706329 | V111: 0.1413216709 | W111: 0.5513054466 | X111: 1.368800172 | Y111: 0.2341503474 | Z111: 1.191861721 | AA111: 0.7117965728 | AB111: 0.1783803717 | AC111: 0.1909331644 | AD111: 0.7142289712 | AE111: 0.9514989874 | AF111: 0.3476914687 | AG111: 5.216416412 | AH111: 0.2702859497 | AI111: 0.2947851198 | AJ111: 0.3957262828 | AK111: 1.05375405 | AL111: 13.81293671 | AM111: 100 | AN111: 0.1879291334 | AO111: -0.02383619776 | AP111: -0.1197019808 | AQ111: -0.06790770718 | AR111: -0.1523974129 | AS111: -0.1519581137 | AT111: -0.1352738555 | AU111: -0.00755429651 | AV111: -0.3487576853 | AW111: -0.1470602363 | AX111: -0.04106369178 | AY111: -0.1510428048 | AZ111: -0.09244161409 | BA111: -0.1046468265 | BB111: -0.06169525028 | BC111: -0.008513029196 | BD111: -0.1737719808 | BE111: -0.1053579819 | BF111: 0.1473663319
A112: 2095 | B112: 12815689 | C112: 20975 | D112: 81725 | E112: 203017 | F112: 34698 | G112: 176615 | H112: 105502 | I112: 26472 | J112: 28252 | K112: 105854 | L112: 141159 | M112: 51521 | N112: 773484 | O112: 40079 | P112: 43724 | Q112: 58731 | R112: 156121 | S112: 2047929 | T112: 14863618 | U112: 86.22186738 | V112: 0.1411163823 | W112: 0.5498324836 | X112: 1.365865296 | Y112: 0.2334424902 | Z112: 1.188236942 | AA112: 0.7098002653 | AB112: 0.1780993026 | AC112: 0.1900748526 | AD112: 0.712168464 | AE112: 0.9496947513 | AF112: 0.3466248931 | AG112: 5.203874319 | AH112: 0.2696449815 | AI112: 0.2941679475 | AJ112: 0.3951325983 | AK112: 1.050356649 | AL112: 13.77813262 | AM112: 100 | AN112: 0.1905105691 | AO112: 0.004767694106 | AP112: -0.1173981767 | AQ112: -0.06450580653 | AR112: -0.1526300171 | AS112: -0.1544541655 | AT112: -0.1307177347 | AU112: -0.007554867227 | AV112: -0.3004119667 | AW112: -0.1387741838 | AX112: -0.03966370894 | AY112: -0.1570939881 | AZ112: -0.09058785153 | BA112: -0.08728941983 | BB112: -0.0594462372 | BC112: 0 | BD112: -0.1727934077 | BE112: -0.1021486192 | BF112: 0.1501366873
A113: 2096 | B113: 12840362 | C113: 20975 | D113: 81636 | E113: 202896 | F113: 34644 | G113: 176357 | H113: 105368 | I113: 26473 | J113: 28162 | K113: 105704 | L113: 141106 | M113: 51448 | N113: 772805 | O113: 40043 | P113: 43698 | Q113: 58729 | R113: 155859 | S113: 2045903 | T113: 14886265 | U113: 86.2564384 | V113: 0.140901697 | W113: 0.5483981375 | X113: 1.362974527 | Y113: 0.2327245955 | Z113: 1.184696094 | AA113: 0.7078202625 | AB113: 0.1778350715 | AC113: 0.1891811008 | AD113: 0.7100773767 | AE113: 0.9478939143 | AF113: 0.3456071755 | AG113: 5.19139623 | AH113: 0.2689929274 | AI113: 0.2935457618 | AJ113: 0.3945180339 | AK113: 1.046998693 | AL113: 13.7435616 | AM113: 100 | AN113: 0.1923367521 | AO113: 0 | AP113: -0.1089611459 | AQ113: -0.05961868853 | AR113: -0.1557497935 | AS113: -0.146187259 | AT113: -0.1270925386 | AU113: 0.003777504958 | AV113: -0.3190700052 | AW113: -0.1418051079 | AX113: -0.03755336342 | AY113: -0.1417902713 | AZ113: -0.08782317453 | BA113: -0.08986296503 | BB113: -0.05948159678 | BC113: -0.00340541461 | BD113: -0.1679595241 | BE113: -0.09897817817 | BF113: 0.1522493677
A114: 2097 | B114: 12865222 | C114: 20973 | D114: 81544 | E114: 202772 | F114: 34598 | G114: 176098 | H114: 105242 | I114: 26466 | J114: 28077 | K114: 105557 | L114: 141058 | M114: 51376 | N114: 772137 | O114: 40007 | P114: 43669 | Q114: 58725 | R114: 155600 | S114: 2043899 | T114: 14909121 | U114: 86.29094901 | V114: 0.1406722771 | W114: 0.5469403595 | X114: 1.360053353 | Y114: 0.2320592877 | Z114: 1.181142738 | AA114: 0.7058900387 | AB114: 0.1775154954 | AC114: 0.1883209614 | AD114: 0.7080028393 | AE114: 0.9461188222 | AF114: 0.3445944265 | AG114: 5.17895723 | AH114: 0.2683390926 | AI114: 0.2929012381 | AJ114: 0.3938864001 | AK114: 1.04365643 | AL114: 13.70905099 | AM114: 100 | AN114: 0.1934210695 | AO114: -0.009535615531 | AP114: -0.1127589285 | AQ114: -0.06113373688 | AR114: -0.1328673544 | AS114: -0.1469691431 | AT114: -0.1196524524 | AU114: -0.0264455318 | AV114: -0.3022815652 | AW114: -0.1391643737 | AX114: -0.03402276723 | AY114: -0.1400451485 | AZ114: -0.08647574364 | BA114: -0.0899437912 | BB114: -0.06638662439 | BC114: -0.006811177144 | BD114: -0.1663140636 | BE114: -0.09799986211 | BF114: 0.1534197576
A115: 2098 | B115: 12890438 | C115: 20972 | D115: 81454 | E115: 202650 | F115: 34549 | G115: 175853 | H115: 105117 | I115: 26467 | J115: 27994 | K115: 105415 | L115: 141003 | M115: 51296 | N115: 771493 | O115: 39971 | P115: 43641 | Q115: 58724 | R115: 155351 | S115: 2041950 | T115: 14932388 | U115: 86.32536203 | V115: 0.1404463908 | W115: 0.545485424 | X115: 1.35711716 | Y115: 0.2313695572 | Z115: 1.177661604 | AA115: 0.7039530449 | AB115: 0.1772455953 | AC115: 0.1874716891 | AD115: 0.7059487069 | AE115: 0.9442762939 | AF115: 0.3435217462 | AG115: 5.16657483 | AH115: 0.2676798915 | AI115: 0.2922573402 | AJ115: 0.3932659666 | AK115: 1.040362734 | AL115: 13.67463797 | AM115: 100 | AN115: 0.1958094497 | AO115: -0.004768148767 | AP115: -0.1104308141 | AQ115: -0.06018420494 | AR115: -0.141727069 | AS115: -0.1392239485 | AT115: -0.1188444656 | AU115: 0.003778361325 | AV115: -0.2960534345 | AW115: -0.1346150403 | AX115: -0.03899865681 | AY115: -0.155836092 | AZ115: -0.08343968922 | BA115: -0.09002476289 | BB115: -0.06413927605 | BC115: -0.001702866776 | BD115: -0.1601538848 | BE115: -0.09540245603 | BF115: 0.1559371861
A116: 2099 | B116: 12916171 | C116: 20975 | D116: 81366 | E116: 202535 | F116: 34503 | G116: 175609 | H116: 105000 | I116: 26464 | J116: 27913 | K116: 105281 | L116: 140963 | M116: 51229 | N116: 770878 | O116: 39935 | P116: 43623 | Q116: 58723 | R116: 155100 | S116: 2040097 | T116: 14956268 | U116: 86.35958516 | V116: 0.1402422048 | W116: 0.5440260899 | X116: 1.354181404 | Y116: 0.2306925765 | Z116: 1.174149861 | AA116: 0.702046794 | AB116: 0.1769425367 | AC116: 0.1866307825 | AD116: 0.703925605 | AE116: 0.9425011641 | AF116: 0.3425252877 | AG116: 5.154213605 | AH116: 0.2670117973 | AI116: 0.2916703552 | AJ116: 0.3926313703 | AK116: 1.037023407 | AL116: 13.64041484 | AM116: 100 | AN116: 0.1994295998 | AO116: 0.0143037643 | AP116: -0.1080948392 | AQ116: -0.05676419566 | AR116: -0.1332329456 | AS116: -0.1388486034 | AT116: -0.1113665359 | AU116: -0.01133551228 | AV116: -0.2897671371 | AW116: -0.127197496 | AX116: -0.02837221528 | AY116: -0.1306998479 | AZ116: -0.07974735425 | BA116: -0.0901058805 | BB116: -0.041254126 | BC116: -0.001702895774 | BD116: -0.1617002713 | BE116: -0.09078778991 | BF116: 0.1597931006
A117: 2100 | B117: 12942601 | C117: 20974 | D117: 81293 | E117: 202434 | F117: 34458 | G117: 175383 | H117: 104895 | I117: 26468 | J117: 27834 | K117: 105151 | L117: 140931 | M117: 51164 | N117: 770306 | O117: 39905 | P117: 43599 | Q117: 58731 | R117: 154872 | S117: 2038398 | T117: 14980999 | U117: 86.39344412 | V117: 0.1400040144 | W117: 0.5426407144 | X117: 1.351271701 | Y117: 0.2300113631 | Z117: 1.170702968 | AA117: 0.7001869501 | AB117: 0.1766771362 | AC117: 0.1857953532 | AD117: 0.7018957814 | AE117: 0.9407316561 | AF117: 0.3415259556 | AG117: 5.141886733 | AH117: 0.266370754 | AI117: 0.2910286557 | AJ117: 0.3920366058 | AK117: 1.033789536 | AL117: 13.60655588 | AM117: 100 | AN117: 0.2044181309 | AO117: -0.004767694106 | AP117: -0.0897583348 | AQ117: -0.04988036225 | AR117: -0.1305085668 | AS117: -0.1287778817 | AT117: -0.1000500334 | AU117: 0.01511373085 | AV117: -0.283423513 | AW117: -0.1235553685 | AX117: -0.02270356952 | AY117: -0.1269618211 | AZ117: -0.0742286484 | BA117: -0.07515030414 | BB117: -0.05503198873 | BC117: 0.0136223543 | BD117: -0.1471100881 | BE117: -0.08331505118 | BF117: 0.16521886
U120: =(U36+U38)/2 -> 84.64122106 | V120: =(V36+V38)/2 -> 0.1307355117 | W120: 0.6277467978 | X120: 1.420638192 | Y120: 0.2752026558 | Z120: 1.443001745 | AA120: 0.8241405228 | AB120: 0.1647578379 | AC120: 0.292666129 | AD120: 0.8517900042 | AE120: 0.9355104416 | AF120: 0.4201645178 | AG120: 5.681098335 | AH120: 0.2974132312 | AI120: 0.3044637716 | AJ120: 0.3638279421 | AK120: 1.325621302

Sheet EstruMunic
U5: Grafico etario-ternario | AL5: Año | AM5: Muni
AE6: BOGOTÁ D.C | AF6: 1 | AH6: 1985 | AI6: =VLOOKUP(CONCATENATE(AH6,"-",$Z$11),DataSetEtarioMun3,7,FALSE) -> 0.5641029817 | AJ6: =IF(AI6=MIN($AI$6:$AI$121),1,"") ->  | AL6: 1985 | AM6: 1
U7: The ternary plot is designed to plot three variables that sum to a constant. | AE7: BOJACÁ | AF7: 2 | AH7: 1986 | AI7: 0.5564606364 | AJ7: =IF(AI7=MIN($AI$6:$AI$121),1,"") -> 
U8: Enter the names of your three variables below. | AE8: CAJICÁ | AF8: 3 | AH8: 1987 | AI8: 0.5504380762
AE9: CHÍA | AF9: 4 | AH9: 1988 | AI9: 0.5450965024
U10: Name of first variable | V10: Name of second variable | W10: Name of third variable | AE10: COTA | AF10: 5 | AH10: 1989 | AI10: 0.5396012564 | AL10: Edad | AM10: Total | AN10: Hombres | AO10: Mujeres | AP10: % Hom | AQ10: % Muj | AS10: ANO | AT10: Tasa Bruta de Natalidad | AU10: Tasa Bruta de Mortalidad | AV10: Tasa de Migración | AW10: Tasa de crecimiento | AX10: Crecimiento vegetativo
U11: JÓVENES | V11: ADULTOS | W11: ADULTOS MAYORES | Y11: BOGOTÁ D.C | Z11: =VLOOKUP(Y11,$AE$6:$AF$24,2,FALSE) -> 1 | AE11: FACATATIVÁ | AF11: 6 | AH11: 1990 | AI11: 0.5332080835 | AL11: 0-4 | AM11: =VLOOKUP(CONCATENATE($AL$6,"-",$AM$6,"-",AL11),DataSetEstrMuni2,7,FALSE) -> 498427 | AN11: =VLOOKUP(CONCATENATE($AL$6,"-",$AM$6,"-",AL11),DataSetEstrMuni2,10,FALSE) -> -248703 | AO11: =VLOOKUP(CONCATENATE($AL$6,"-",$AM$6,"-",AL11),DataSetEstrMuni2,9,FALSE) -> 249724 | AP11: =AN11/SUM($AM$11:$AM$31)*100 -> -5.885554675 | AQ11: =AO11/SUM($AM$11:$AM$31)*100 -> 5.909716633 | AS11: 2000 | AT11: =VLOOKUP(CONCATENATE($AS11,"-",$Z$11),DinaPoblaMun,10,FALSE) -> 19.45935517 | AU11: =VLOOKUP(CONCATENATE($AS11,"-",$Z$11),DinaPoblaMun,11,FALSE) -> 3.948353142 | AV11: =VLOOKUP(CONCATENATE($AS11,"-",$Z$11),DinaPoblaMun,12,FALSE) -> 1.865020139 | AW11: =VLOOKUP(CONCATENATE($AS11,"-",$Z$11),DinaPoblaMun,13,FALSE) -> 17.37602217 | AX11: =AT11-AU11 -> 15.51100203
AE12: FUNZA | AF12: 7 | AH12: 1991 | AI12: 0.5261205662 | AL12: 5-9 | AM12: 458070 | AN12: -227738 | AO12: 230332 | AP12: =AN12/SUM($AM$11:$AM$31)*100 -> -5.389418104 | AQ12: =AO12/SUM($AM$11:$AM$31)*100 -> 5.450805095 | AS12: 2001 | AT12: 18.58243403 | AU12: 3.936747552 | AV12: 2.208065623 | AW12: 16.85375211 | AX12: =AT12-AU12 -> 14.64568648
U13: For this plot, the three variables must be normalized to sum to 100. | AE13: GACHANCIPÁ | AF13: 8 | AH13: 1992 | AI13: 0.5188382144 | AL13: 10-14 | AM13: 416948 | AN13: -206645 | AO13: 210303 | AP13: -4.890252413 | AQ13: 4.976818956 | AS13: 2002 | AT13: 17.65040665 | AU13: 3.829016699 | AV13: 2.603032019 | AW13: 16.42442197 | AX13: 13.82138995
U14: Enter variable values and info in the columns below. | AE14: LA CALERA | AF14: 9 | AH14: 1993 | AI14: 0.5112211989 | AL14: 15-19 | AM14: 479199 | AN14: -236321 | AO14: 242878 | AP14: -5.592534736 | AQ14: 5.747706093 | AS14: 2003 | AT14: 17.15727398 | AU14: 3.871857671 | AV14: 2.779752694 | AW14: 16.065169 | AX14: 13.28541631
U15: Then plot the calculated Cartesian x, y coordinates on the ternary diagram. | AE15: MADRID | AF15: 10 | AH15: 1994 | AI15: 0.5031484493 | AL15: 20-24 | AM15: 476137 | AN15: -236414 | AO15: 239723 | AP15: -5.59473558 | AQ15: 5.673043041 | AS15: 2004 | AT15: 16.85392174 | AU15: 3.893501688 | AV15: 2.791637295 | AW15: 15.75205735 | AX15: 12.96042005
AE16: MOSQUERA | AF16: 11 | AH16: 1995 | AI16: 0.4945144068 | AL16: 25-29 | AM16: 404748 | AN16: -202187 | AO16: 202561 | AP16: -4.784753876 | AQ16: 4.793604583 | AS16: 2005 | AT16: 16.4108328 | AU16: 3.871425572 | AV16: 2.82582927 | AW16: 15.3652365 | AX16: 12.53940723
U17: =U11 -> JÓVENES | V17: ADULTOS | W17: ADULTOS MAYORES | X17: Info | Z17: X | AA17: Y | AE17: SIBATÉ | AF17: 12 | AH17: 1996 | AI17: 0.4850412515 | AL17: 30-34 | AM17: 362176 | AN17: -180013 | AO17: 182163 | AP17: -4.260006328 | AQ17: 4.310886062 | AS17: 2006 | AT17: 16.36896534 | AU17: 3.837029691 | AV17: 2.58811245 | AW17: 15.1200481 | AX17: 12.53193565
U18: =VLOOKUP(CONCATENATE($X18,"-",$Z$11),DataSetEtarioMun3,4,FALSE) -> 32.50256588 | V18: =VLOOKUP(CONCATENATE($X18,"-",$Z$11),DataSetEtarioMun3,5,FALSE) -> 63.93440916 | W18: =VLOOKUP(CONCATENATE($X18,"-",$Z$11),DataSetEtarioMun3,6,FALSE) -> 3.563024963 | X18: 1985 | Z18: =IF(V18="", "", V18 +W18/2) -> 65.71592164 | AA18: =IF(W18="", "", SQRT(3)/2*W18) -> 3.085670133 | AE18: SOACHA | AF18: 13 | AH18: 1997 | AI18: 0.4749239564 | AL18: 35-39 | AM18: 273014 | AN18: -131755 | AO18: 141259 | AP18: -3.117981111 | AQ18: 3.342893202 | AS18: 2007 | AT18: 16.62754736 | AU18: 3.867676336 | AV18: 2.108300611 | AW18: 14.86817164 | AX18: 12.75987103
U19: 31.0030894 | V19: 65.222719 | W19: 3.774191606 | X19: 1990 | Z19: =IF(V19="", "", V19 +W19/2) -> 67.1098148 | AA19: =IF(W19="", "", SQRT(3)/2*W19) -> 3.268545809 | AE19: SOPÓ | AF19: 14 | AH19: 1998 | AI19: 0.4646566558 | AL19: 40-44 | AM19: 203711 | AN19: -96884 | AO19: 106827 | AP19: -2.292759151 | AQ19: 2.528060173 | AS19: 2008 | AT19: 16.39429036 | AU19: 3.870831407 | AV19: 2.087895378 | AW19: 14.61135433 | AX19: 12.52345895
U20: 29.11148131 | V20: 66.91136569 | W20: 3.977153003 | X20: 1995 | Z20: 68.89994219 | AA20: 3.444315535 | AE20: TABIO | AF20: 15 | AH20: 1999 | AI20: 0.4546855613 | AL20: 45-49 | AM20: 164739 | AN20: -76856 | AO20: 87883 | AP20: -1.818796678 | AQ20: 2.079750552 | AS20: 2009 | AT20: 15.95116093 | AU20: 3.70833257 | AV20: 2.108519247 | AW20: 14.3513476 | AX20: 12.24282836
U21: 26.5631024 | V21: 69.18433504 | W21: 4.252562558 | X21: 2000 | Z21: 71.31061632 | AA21: 3.682827206 | AE21: TOCANCIPÁ | AF21: 16 | AH21: 2000 | AI21: 0.4454139068 | AL21: 50-54 | AM21: 135818 | AN21: -62165 | AO21: 73653 | AP21: -1.47113427 | AQ21: 1.742997706 | AS21: 2010 | AT21: 15.06657856 | AU21: 3.901256175 | AV21: 2.960842676 | AW21: 14.12616506 | AX21: 11.16532238
U22: 24.23655158 | V22: 71.15773638 | W22: 4.605712038 | X22: 2005 | Z22: 73.4605924 | AA22: 3.988663628 | AE22: ZIPAQUIRÁ | AF22: 17 | AH22: 2001 | AI22: 0.4367587835 | AL22: 55-59 | AM22: 111678 | AN22: -50745 | AO22: 60933 | AP22: -1.200880054 | AQ22: 1.441978999 | AS22: 2011 | AT22: 14.32911201 | AU22: 3.852136451 | AV22: 3.388010719 | AW22: 13.86498628 | AX22: 10.47697556
U23: 21.97579695 | V23: 72.84368646 | W23: 5.18051659 | X23: 2010 | Z23: 75.43394475 | AA23: 4.486458972 | AE23: REGIÓN | AF23: 18 | AH23: 2002 | AI23: 0.4283969289 | AL23: 60-64 | AM23: 90425 | AN23: -40793 | AO23: 49632 | AP23: -0.9653660466 | AQ23: 1.174540917 | AS23: 2012 | AT23: 13.9276443 | AU23: 3.854533111 | AV23: 3.533586173 | AW23: 13.60669736 | AX23: 10.07311118
U24: 20.14484723 | V24: 73.65606165 | W24: 6.199091129 | X24: 2015 | Z24: 76.75560721 | AA24: 5.368570398 | AE24: REGIÓN-BTÁ | AF24: 19 | AH24: 2003 | AI24: 0.4203655257 | AL24: 65-69 | AM24: 58865 | AN24: -25287 | AO24: 33578 | AP24: -0.59841667 | AQ24: 0.7946231243 | AS24: 2013 | AT24: 13.45466192 | AU24: 3.720567927 | AV24: 3.619321779 | AW24: 13.35341577 | AX24: 9.734093996
U25: 18.40377787 | V25: 73.96257231 | W25: 7.633649815 | X25: 2020 | Z25: 77.77939722 | AA25: 6.610934663 | AH25: 2004 | AI25: 0.4126739582 | AL25: 70-74 | AM25: 42746 | AN25: -17714 | AO25: 25032 | AP25: -0.4192016804 | AQ25: 0.5923820969 | AS25: 2014 | AT25: 13.35451587 | AU25: 3.827130411 | AV25: 3.580500833 | AW25: 13.1078863 | AX25: 9.527385463
U26: 16.92852634 | V26: 73.76536817 | W26: 9.306105487 | X26: 2025 | Z26: 78.41842092 | AA26: 8.059323762 | AH26: 2005 | AI26: 0.4053285712 | AL26: 75-79 | AM26: 27903 | AN26: -10819 | AO26: 17084 | AP26: -0.2560315558 | AQ26: 0.404292735 | AS26: 2015 | AT26: 13.04706577 | AU26: 3.915579348 | AV26: 3.715421531 | AW26: 12.84690796 | AX26: 9.131486424
U27: 15.81126979 | V27: 72.90249031 | W27: 11.2862399 | X27: 2030 | Z27: 78.54561026 | AA27: 9.774170466 | AH27: 2006 | AI27: 0.3980703402 | AL27: 80-84 | AM27: 14050 | AN27: -5031 | AO27: 9019 | AP27: -0.1190585782 | AQ27: 0.213434569
U28: 15.02861698 | V28: 71.63128001 | W28: 13.34010302 | X28: 2035 | Z28: 78.30133151 | AA28: 11.5528681 | AH28: 2007 | AI28: 0.3908757164 | AL28: 85-89 | AM28: 5155 | AN28: -1651 | AO28: 3504 | AP28: -0.03907090292 | AQ28: 0.08292213436
U29: 14.51956148 | V29: 70.61022365 | W29: 14.87021487 | X29: 2040 | Z29: 78.04533108 | AA29: 12.87798384 | AH29: 2008 | AI29: 0.3840736929 | AL29: 90-94 | AM29: 1476 | AN29: -467 | AO29: 1009 | AP29: -0.01105155158 | AQ29: 0.02387797762
U30: 14.11406791 | V30: 69.28995545 | W30: 16.59597664 | X30: 2045 | Z30: 77.58794377 | AA30: 14.37253737 | AH30: 2009 | AI30: 0.3779590526 | AL30: 95-99 | AM30: 308 | AN30: -96 | AO30: 212 | AP30: -0.002271839298 | AQ30: 0.005016978449
U31: 13.75453073 | V31: 67.76548747 | W31: 18.4799818 | X31: 2050 | Z31: 77.00547837 | AA31: 16.0041337 | AH31: 2010 | AI31: 0.3728025703 | AL31: 100-- | AM31: 58 | AN31: -32 | AO31: 26 | AP31: -0.0007572797659 | AQ31: 0.0006152898098
U32: 13.48481927 | V32: 66.26593777 | W32: 20.24924296 | X32: 2055 | Z32: 76.39055925 | AA32: 17.53635881 | AH32: 2011 | AI32: 0.3686177003 | AL32: Total | AM32: =SUM(AM11:AM31) -> 4225651 | AN32: =-SUM(AN11:AN31) -> 2058316 | AO32: =SUM(AO11:AO31) -> 2167335
U33: 13.33207471 | V33: 64.79176115 | W33: 21.87616415 | X33: 2060 | Z33: 75.72984322 | AA33: 18.94531389 | AH33: 2012 | AI33: 0.3651454938 | AL33: % | AN33: =AN32/AM32*100 -> 48.71003308 | AO33: =AO32/AM32*100 -> 51.28996692
U34: 13.28503969 | V34: 63.64057452 | W34: 23.07438579 | X34: 2065 | Z34: 75.17776741 | AA34: 19.98300427 | AH34: 2013 | AI34: 0.3622474908
U35: 13.30901484 | V35: 62.56947708 | W35: 24.12150808 | X35: 2070 | Z35: 74.63023112 | AA35: 20.88983877 | AH35: 2014 | AI35: 0.3597933185
U36: 13.36448982 | V36: 61.80623322 | W36: 24.82927696 | X36: 2075 | Z36: 74.2208717 | AA36: 21.5027846 | AH36: 2015 | AI36: 0.3576615117
U37: 13.43818635 | V37: 61.32926164 | W37: 25.23255201 | X37: 2080 | Z37: 73.94553764 | AA37: 21.85203104 | AH37: 2016 | AI37: 0.3558153427
U38: 13.53262077 | V38: 61.07189957 | W38: 25.39547965 | X38: 2085 | Z38: 73.7696394 | AA38: 21.99313052 | AH38: 2017 | AI38: =VLOOKUP(CONCATENATE(AH38,"-",$Z$11),DataSetEtarioMun3,7,FALSE) -> 0.3543105072
C39: Edad | D39: Total | E39: Hombres | F39: Mujeres | G39: % Hom | H39: % Muj | U39: 13.65089557 | V39: 61.00653418 | W39: 25.34257025 | X39: 2090 | Z39: 73.6778193 | AA39: 21.94730964 | AH39: 2018 | AI39: 0.353165871
C40: 0-4 | D40: =VLOOKUP(CONCATENATE($AL$6,"-",$Z$11,"-",C40),DataSetEstrMuni2,7,FALSE) -> 498427 | E40: =VLOOKUP(CONCATENATE($AL$6,"-",$Z$11,"-",C40),DataSetEstrMuni2,10,FALSE) -> -248703 | F40: =VLOOKUP(CONCATENATE($AL$6,"-",$Z$11,"-",C40),DataSetEstrMuni2,9,FALSE) -> 249724 | G40: =E40/SUM($D$40:$D$60)*100 -> -5.885554675 | H40: =F40/SUM($D$40:$D$60)*100 -> 5.909716633 | U40: 13.78394092 | V40: 60.94522893 | W40: 25.27083015 | X40: 2095 | Z40: 73.58064401 | AA40: 21.88518089 | AH40: 2019 | AI40: 0.3523999667
C41: 5-9 | D41: 458070 | E41: -227738 | F41: 230332 | G41: -5.389418104 | H41: 5.450805095 | U41: 13.91612861 | V41: 60.82617397 | W41: 25.25769743 | X41: 2100 | Z41: 73.45502268 | AA41: 21.87380761 | AH41: 2020 | AI41: 0.3520351831
C42: 10-14 | D42: 416948 | E42: -206645 | F42: 210303 | G42: -4.890252413 | H42: 4.976818956 | AH42: 2021 | AI42: 0.3519696219 | AJ42: 1
C43: 15-19 | D43: 479199 | E43: -236321 | F43: 242878 | G43: -5.592534736 | H43: 5.747706093 | U43: COLOMBIA | AH43: 2022 | AI43: 0.3522246977
C44: 20-24 | D44: 476137 | E44: -236414 | F44: 239723 | G44: -5.59473558 | H44: 5.673043041 | U44: JÓVENES | V44: ADULTOS | W44: ADULTOS MAYORES | X44: Info | Z44: X | AA44: Y | AH44: 2023 | AI44: 0.3528660488
C45: 25-29 | D45: 404748 | E45: -202187 | F45: 202561 | G45: -4.784753876 | H45: 4.793604583 | U45: 49.65268451 | V45: 46.45326682 | W45: 3.894048671 | X45: 1985 | Z45: =IF(V45="", "", V45 +W45/2) -> 48.40029115 | AA45: =IF(W45="", "", SQRT(3)/2*W45) -> 3.372345072 | AH45: 2024 | AI45: 0.3539789039
C46: 30-34 | D46: 362176 | E46: -180013 | F46: 182163 | G46: -4.260006328 | H46: 4.310886062 | U46: 46.59422603 | V46: 49.25867493 | W46: 4.147099038 | X46: 1990 | Z46: =IF(V46="", "", V46 +W46/2) -> 51.33222445 | AA46: =IF(W46="", "", SQRT(3)/2*W46) -> 3.591493119 | AH46: 2025 | AI46: 0.3556497104
C47: 35-39 | D47: 273014 | E47: -131755 | F47: 141259 | G47: -3.117981111 | H47: 3.342893202 | U47: 44.58560192 | V47: 51.01660731 | W47: 4.39779077 | X47: 1995 | Z47: 53.2155027 | AA47: 3.808598527 | AH47: 2026 | AI47: 0.3579423555
C48: 40-44 | D48: 203711 | E48: -96884 | F48: 106827 | G48: -2.292759151 | H48: 2.528060173 | U48: 41.81690508 | V48: 53.44067244 | W48: 4.742422475 | X48: 2000 | Z48: 55.81188368 | AA48: 4.107058339 | AH48: 2027 | AI48: 0.3607952048
C49: 45-49 | D49: 164739 | E49: -76856 | F49: 87883 | G49: -1.818796678 | H49: 2.079750552 | U49: 38.71851345 | V49: 56.10105728 | W49: 5.180429267 | X49: 2005 | Z49: 58.69127191 | AA49: 4.486383347 | AH49: 2028 | AI49: 0.3641057474
C50: 50-54 | D50: 135818 | E50: -62165 | F50: 73653 | G50: -1.47113427 | H50: 1.742997706 | U50: 35.66634296 | V50: 58.47005267 | W50: 5.863604366 | X50: 2010 | Z50: 61.40185486 | AA50: 5.078030339 | AH50: 2029 | AI50: 0.3677721581
C51: 55-59 | D51: 111678 | E51: -50745 | F51: 60933 | G51: -1.200880054 | H51: 1.441978999 | U51: 32.72501319 | V51: 60.23588448 | W51: 7.039102332 | X51: 2015 | Z51: 63.75543565 | AA51: 6.096041439 | AH51: 2030 | AI51: 0.3716952545
C52: 60-64 | D52: 90425 | E52: -40793 | F52: 49632 | G52: -0.9653660466 | H52: 1.174540917 | U52: 30.27301685 | V52: 61.04459021 | W52: 8.682392936 | X52: 2020 | Z52: 65.38578668 | AA52: 7.519172848 | AH52: 2031 | AI52: 0.3760837938
C53: 65-69 | D53: 58865 | E53: -25287 | F53: 33578 | G53: -0.59841667 | H53: 0.7946231243 | U53: 27.90688509 | V53: 61.49240221 | W53: 10.6007127 | X53: 2025 | Z53: 66.79275856 | AA53: 9.180486498 | AH53: 2032 | AI53: 0.3810158754
C54: 70-74 | D54: 42746 | E54: -17714 | F54: 25032 | G54: -0.4192016804 | H54: 0.5923820969 | U54: 25.9933843 | V54: 61.15476632 | W54: 12.85184939 | X54: 2030 | Z54: 67.58069101 | AA54: 11.13002806 | AH54: 2033 | AI54: 0.3861890592
C55: 75-79 | D55: 27903 | E55: -10819 | F55: 17084 | G55: -0.2560315558 | H55: 0.404292735 | U55: 24.53433298 | V55: 60.28075396 | W55: 15.18491306 | X55: 2035 | Z55: 67.87321049 | AA55: 13.15052046 | AH55: 2034 | AI55: 0.3913001822
C56: 80-84 | D56: 14050 | E56: -5031 | F56: 9019 | G56: -0.1190585782 | H56: 0.213434569 | U56: 23.44111874 | V56: 59.62433988 | W56: 16.93454137 | X56: 2040 | Z56: 68.09161057 | AA56: 14.66574303 | AH56: 2035 | AI56: 0.3960381553
C57: 85-89 | D57: 5155 | E57: -1651 | F57: 3504 | G57: -0.03907090292 | H57: 0.08292213436 | U57: 22.67391179 | V57: 58.46238932 | W57: 18.86369889 | X57: 2045 | Z57: 67.89423877 | AA57: 16.33644245 | AH57: 2036 | AI57: 0.4002362257
C58: 90-94 | D58: 1476 | E58: -467 | F58: 1009 | G58: -0.01105155158 | H58: 0.02387797762 | U58: 22.04982336 | V58: 56.99241164 | W58: 20.957765 | X58: 2050 | Z58: 67.47129414 | AA58: 18.1499569 | AH58: 2037 | AI58: 0.4041025732
C59: 95-99 | D59: 308 | E59: -96 | F59: 212 | G59: -0.002271839298 | H59: 0.005016978449 | U59: 21.51691363 | V59: 55.57866637 | W59: 22.90442 | X59: 2055 | Z59: 67.03087637 | AA59: 19.83580958 | AH59: 2038 | AI59: 0.4078868507
C60: 100-- | D60: 58 | E60: -32 | F60: 26 | G60: -0.0007572797659 | H60: 0.0006152898098 | U60: 21.13035399 | V60: 54.20113621 | W60: 24.6685098 | X60: 2060 | Z60: 66.53539111 | AA60: 21.36355616 | AH60: 2039 | AI60: 0.4118418303
C61: Total | D61: =SUM(D40:D60) -> 4225651 | E61: =-SUM(E40:E60) -> 2058316 | F61: =SUM(F40:F60) -> 2167335 | U61: 20.90489942 | V61: 53.12115444 | W61: 25.97394614 | X61: 2065 | Z61: 66.10812751 | AA61: 22.49409719 | AH61: 2040 | AI61: 0.41622551
C62: % | E62: =E61/D61*100 -> 48.71003308 | F62: =F61/D61*100 -> 51.28996692 | U62: 20.81888248 | V62: 52.07451143 | W62: 27.10660609 | X62: 2070 | Z62: 65.62781447 | AA62: 23.47500949 | AH62: 2041 | AI62: 0.4210846541
U63: 20.82201623 | V63: 51.29870258 | W63: 27.87928119 | X63: 2075 | Z63: 65.23834318 | AA63: 24.14416575 | AH63: 2042 | AI63: 0.4262592712
U64: 20.87817843 | V64: 50.80392035 | W64: 28.31790122 | X64: 2080 | Z64: 64.96287096 | AA64: 24.52402184 | AH64: 2043 | AI64: 0.4317047438
U65: 20.96937007 | V65: 50.54227429 | W65: 28.48835565 | X65: 2085 | Z65: 64.78645211 | AA65: 24.6716397 | AH65: 2044 | AI65: 0.4373715514
U66: 21.09361633 | V66: 50.48328745 | W66: 28.42309622 | X66: 2090 | Z66: 64.69483556 | AA66: 24.61512338 | AH66: 2045 | AI66: 0.4432106263
U67: 21.24283167 | V67: 50.43379917 | W67: 28.32336917 | X67: 2095 | Z67: 64.59548375 | AA67: 24.52875722 | AH67: 2046 | AI67: 0.4493132647
U68: 21.39902692 | V68: 50.32305443 | W68: 28.27791865 | X68: 2100 | Z68: 64.46201376 | AA68: 24.48939592 | AH68: 2047 | AI68: 0.4557301515
AH69: 2048 | AI69: 0.462344869
AH70: 2049 | AI70: =VLOOKUP(CONCATENATE(AH70,"-",$Z$11),DataSetEtarioMun3,7,FALSE) -> 0.4690364677
AH71: 2050 | AI71: 0.4756774242 | AJ71: =IF(AI71=MIN($AI$6:$AI$121),1,"") -> 
AH72: 2051 | AI72: 0.4822738309
AH73: 2052 | AI73: 0.4889159879
AH74: 2053 | AI74: 0.4956004625
AH75: 2054 | AI75: 0.502320455
AH76: 2055 | AI76: 0.5090709249
AH77: 2056 | AI77: 0.5159634738
AH78: 2057 | AI78: 0.5230114942
AH79: 2058 | AI79: 0.530050909
AH80: 2059 | AI80: 0.5369088787
AH81: 2060 | AI81: 0.5434061095
AH82: 2061 | AI82: 0.5494391394
AH83: 2062 | AI83: 0.555112783
AH84: 2063 | AI84: 0.5605597792
AH85: 2064 | AI85: 0.5659162973
AH86: 2065 | AI86: 0.5713245953
AH87: 2066 | AI87: 0.5768762482
AH88: 2067 | AI88: 0.5824788364
AH89: 2068 | AI89: 0.5879980343
AH90: 2069 | AI90: 0.5932945054
AH91: 2070 | AI91: 0.5982233617
AH92: 2071 | AI92: 0.6027587043
AH93: 2072 | AI93: 0.6069864479
AH94: 2073 | AI94: 0.6109203082
AH95: 2074 | AI95: 0.6145732244
AH96: 2075 | AI96: 0.617959788
AH97: 2076 | AI97: 0.6210406248
AH98: 2077 | AI98: 0.6237945958
AH99: 2078 | AI99: 0.6262659409
AH100: 2079 | AI100: 0.628500236
AH101: 2080 | AI101: 0.6305430284
AH102: 2081 | AI102: =VLOOKUP(CONCATENATE(AH102,"-",$Z$11),DataSetEtarioMun3,7,FALSE) -> 0.6323747229
AH103: 2082 | AI103: 0.6339561505
AH104: 2083 | AI104: 0.6353090043
AH105: 2084 | AI105: 0.6364543972
AH106: 2085 | AI106: 0.6374142724
AH107: 2086 | AI107: 0.6381033454
AH108: 2087 | AI108: 0.6385013811
AH109: 2088 | AI109: 0.6387287805
AH110: 2089 | AI110: 0.6389097869
AH111: 2090 | AI111: 0.6391686784
AH112: 2091 | AI112: 0.6394822474
AH113: 2092 | AI113: 0.6397633157
AH114: 2093 | AI114: 0.6400538134
AH115: 2094 | AI115: 0.6403916843
AH116: 2095 | AI116: 0.64081753
AH117: 2096 | AI117: 0.6413060081
AH118: 2097 | AI118: 0.6418305948
AH119: 2098 | AI119: 0.6424319143
AH120: 2099 | AI120: 0.6431508132
AH121: 2100 | AI121: 0.6440290993

Sheet DataEstru (hidden)
A1: Endpoints of constant-A segments | G1: Endpoints of constant-B segments | M1: Endpoints of constant-C segments
A2: A | B2: B | C2: C | D2: X | E2: Y | G2: A | H2: B | I2: C | J2: X | K2: Y | M2: A | N2: B | O2: C | P2: X | Q2: Y | S2: ANO-Mun-Edad | T2: ANO | U2: id | V2: id_terna | W2: Edad | X2: Mun | Y2: TOTAL | Z2: HOMBRE | AA2: MUJERES | AB2: HOMBRES | AD2: llave | AE2: ANO | AF2: Mun | AG2: 1 | AH2: 2 | AI2: 3 | AJ2: BONO | AL2: Mun | AM2: Num-Mun | AO2: LLAVE | AP2: ANO | AQ2: MUN | AR2: CODPTORE | AS2: CODMUNRE | AT2: DEF_T | AU2: NAC_T | AV2: MIG_T | AW2: POBLACION | AX2: TBN | AY2: TBM | AZ2: TM | BA2: TC
A3: 0 | B3: 0 | C3: 100 | D3: =B3+C3/2 -> 50 | E3: =SQRT(3)/2*C3 -> 86.60254038 | G3: 100 | H3: 0 | I3: 0 | J3: =H3+I3/2 -> 0 | K3: =SQRT(3)/2*I3 -> 0 | M3: 0 | N3: 100 | O3: 0 | P3: =N3+O3/2 -> 100 | Q3: =O3*SQRT(3)/2 -> 0 | S3: 1985-1-0-4 | T3: 1985 | U3: 1 | V3: 1 | W3: 0-4 | X3: 1 | Y3: 498427 | Z3: 248703 | AA3: 249724 | AB3: -248703 | AD3: 1985-1 | AE3: 1985 | AF3: 1 | AG3: 32.50256588 | AH3: 63.93440916 | AI3: 3.563024963 | AJ3: 0.5641029817 | AL3: 1 | AM3: BOGOTÁ D.C | AO3: 2000-1 | AP3: 2000 | AQ3: 1 | AR3: 11 | AS3: 001 | AT3: 24886 | AU3: 122650 | AV3: 11755 | AW3: 6302881 | AX3: 19.45935517 | AY3: 3.948353142 | AZ3: 1.865020139 | BA3: 17.37602217
A4: 0 | B4: 100 | C4: 0 | D4: =B4+C4/2 -> 100 | E4: =SQRT(3)/2*C4 -> 0 | G4: 0 | H4: 0 | I4: 100 | J4: =H4+I4/2 -> 50 | K4: =SQRT(3)/2*I4 -> 86.60254038 | M4: 100 | N4: 0 | O4: 0 | P4: =N4+O4/2 -> 0 | Q4: =O4*SQRT(3)/2 -> 0 | S4: 1985-1-5-9 | T4: 1985 | U4: 2 | V4: 1 | W4: 5-9 | X4: 1 | Y4: 458070 | Z4: 227738 | AA4: 230332 | AB4: -227738 | AD4: 1985-2 | AE4: 1985 | AF4: 2 | AG4: 43.01049618 | AH4: 54.72328244 | AI4: 2.266221374 | AJ4: 0.8273757629 | AL4: 2 | AM4: BOJACÁ | AO4: 2000-2 | AP4: 2000 | AQ4: 2 | AR4: 25 | AS4: 099 | AT4: 16 | AU4: 127 | AV4: 219 | AW4: 7331 | AX4: 17.3236939 | AY4: 2.182512618 | AZ4: 29.87314145 | BA4: 45.01432274
A5: 10 | B5: 0 | C5: 90 | D5: =B5+C5/2 -> 45 | E5: =SQRT(3)/2*C5 -> 77.94228634 | G5: 90 | H5: 10 | I5: 0 | J5: =H5+I5/2 -> 10 | K5: =SQRT(3)/2*I5 -> 0 | M5: 0 | N5: 90 | O5: 10 | P5: =N5+O5/2 -> 95 | Q5: =O5*SQRT(3)/2 -> 8.660254038 | S5: 1985-1-10-14 | T5: 1985 | U5: 3 | V5: 1 | W5: 10-14 | X5: 1 | Y5: 416948 | Z5: 206645 | AA5: 210303 | AB5: -206645 | AD5: 1985-3 | AE5: 1985 | AF5: 3 | AG5: 36.51606893 | AH5: 60.29131558 | AI5: 3.192615489 | AJ5: 0.6586136667 | AL5: 3 | AM5: CAJICÁ | AO5: 2000-3 | AP5: 2000 | AQ5: 3 | AR5: 25 | AS5: 126 | AT5: 125 | AU5: 741 | AV5: 572 | AW5: 39514 | AX5: 18.75284709 | AY5: 3.163435744 | AZ5: 14.47588197 | BA5: 30.06529331
A6: 10 | B6: 90 | C6: 0 | D6: =B6+C6/2 -> 90 | E6: =SQRT(3)/2*C6 -> 0 | G6: 0 | H6: 10 | I6: 90 | J6: =H6+I6/2 -> 55 | K6: =SQRT(3)/2*I6 -> 77.94228634 | M6: 90 | N6: 0 | O6: 10 | P6: =N6+O6/2 -> 5 | Q6: =O6*SQRT(3)/2 -> 8.660254038 | S6: 1985-1-15-19 | T6: 1985 | U6: 4 | V6: 1 | W6: 15-19 | X6: 1 | Y6: 479199 | Z6: 236321 | AA6: 242878 | AB6: -236321 | AD6: 1985-4 | AE6: 1985 | AF6: 4 | AG6: 34.69713345 | AH6: 62.1017961 | AI6: 3.201070454 | AJ6: 0.6102593851 | AL6: 4 | AM6: CHÍA | AO6: 2000-4 | AP6: 2000 | AQ6: 4 | AR6: 25 | AS6: 175 | AT6: 274 | AU6: 1482 | AV6: 2633 | AW6: 80553 | AX6: 18.39782503 | AY6: 3.40148722 | AZ6: 32.68655419 | BA6: 47.68289201
A7: 20 | B7: 0 | C7: 80 | D7: 40 | E7: 69.2820323 | G7: 80 | H7: 20 | I7: 0 | J7: 20 | K7: 0 | M7: 0 | N7: 80 | O7: 20 | P7: 90 | Q7: 17.32050808 | S7: 1985-1-20-24 | T7: 1985 | U7: 5 | V7: 2 | W7: 20-24 | X7: 1 | Y7: 476137 | Z7: 236414 | AA7: 239723 | AB7: -236414 | AD7: 1985-5 | AE7: 1985 | AF7: 5 | AG7: 35.3288908 | AH7: 61.27472055 | AI7: 3.39638865 | AJ7: 0.6319943869 | AL7: 5 | AM7: COTA | AO7: 2000-5 | AP7: 2000 | AQ7: 5 | AR7: 25 | AS7: 214 | AT7: 38 | AU7: 271 | AV7: 475 | AW7: 16751 | AX7: 16.17813862 | AY7: 2.268521282 | AZ7: 28.35651603 | BA7: 42.26613337
A8: 20 | B8: 80 | C8: 0 | D8: 80 | E8: 0 | G8: 0 | H8: 20 | I8: 80 | J8: 60 | K8: 69.2820323 | M8: 80 | N8: 0 | O8: 20 | P8: 10 | Q8: 17.32050808 | S8: 1985-1-25-29 | T8: 1985 | U8: 6 | V8: 2 | W8: 25-29 | X8: 1 | Y8: 404748 | Z8: 202187 | AA8: 202561 | AB8: -202187 | AD8: 1985-6 | AE8: 1985 | AF8: 6 | AG8: 36.79958065 | AH8: 60.26317692 | AI8: 2.937242426 | AJ8: 0.6593881224 | AL8: 6 | AM8: FACATATIVÁ | AO8: 2000-6 | AP8: 2000 | AQ8: 6 | AR8: 25 | AS8: 269 | AT8: 200 | AU8: 2231 | AV8: 654 | AW8: 94382 | AX8: 23.63798182 | AY8: 2.119048124 | AZ8: 6.929287364 | BA8: 28.44822106
A9: 30 | B9: 0 | C9: 70 | D9: 35 | E9: 60.62177826 | G9: 70 | H9: 30 | I9: 0 | J9: 30 | K9: 0 | M9: 0 | N9: 70 | O9: 30 | P9: 85 | Q9: 25.98076211 | S9: 1985-1-30-34 | T9: 1985 | U9: 7 | V9: 2 | W9: 30-34 | X9: 1 | Y9: 362176 | Z9: 180013 | AA9: 182163 | AB9: -180013 | AD9: 1985-7 | AE9: 1985 | AF9: 7 | AG9: 36.74159095 | AH9: 60.75561932 | AI9: 2.502789734 | AJ9: 0.6459382872 | AL9: 7 | AM9: FUNZA | AO9: 2000-7 | AP9: 2000 | AQ9: 7 | AR9: 25 | AS9: 286 | AT9: 169 | AU9: 949 | AV9: 893 | AW9: 53390 | AX9: 17.77486421 | AY9: 3.165386777 | AZ9: 16.72597865 | BA9: 31.33545608
A10: 30 | B10: 70 | C10: 0 | D10: 70 | E10: 0 | G10: 0 | H10: 30 | I10: 70 | J10: 65 | K10: 60.62177826 | M10: 70 | N10: 0 | O10: 30 | P10: 15 | Q10: 25.98076211 | S10: 1985-1-35-39 | T10: 1985 | U10: 8 | V10: 2 | W10: 35-39 | X10: 1 | Y10: 273014 | Z10: 131755 | AA10: 141259 | AB10: -131755 | AD10: 1985-8 | AE10: 1985 | AF10: 8 | AG10: 43.66165071 | AH10: 54.0127679 | AI10: 2.325581395 | AJ10: 0.8514140988 | AL10: 8 | AM10: GACHANCIPÁ | AO10: 2000-8 | AP10: 2000 | AQ10: 8 | AR10: 25 | AS10: 295 | AT10: 31 | AU10: 181 | AV10: 300 | AW10: 8820 | AX10: 20.52154195 | AY10: 3.514739229 | AZ10: 34.01360544 | BA10: 51.02040816
A11: 40 | B11: 0 | C11: 60 | D11: 30 | E11: 51.96152423 | G11: 60 | H11: 40 | I11: 0 | J11: 40 | K11: 0 | M11: 0 | N11: 60 | O11: 40 | P11: 80 | Q11: 34.64101615 | S11: 1985-1-40-44 | T11: 1985 | U11: 9 | V11: 2 | W11: 40-44 | X11: 1 | Y11: 203711 | Z11: 96884 | AA11: 106827 | AB11: -96884 | AD11: 1985-9 | AE11: 1985 | AF11: 9 | AG11: 35.07125478 | AH11: 61.20959333 | AI11: 3.719151894 | AJ11: 0.6337308348 | AL11: 9 | AM11: LA CALERA | AO11: 2000-9 | AP11: 2000 | AQ11: 9 | AR11: 25 | AS11: 377 | AT11: 91 | AU11: 394 | AV11: 109 | AW11: 21700 | AX11: 18.15668203 | AY11: 4.193548387 | AZ11: 5.023041475 | BA11: 18.98617512
A12: 40 | B12: 60 | C12: 0 | D12: 60 | E12: 0 | G12: 0 | H12: 40 | I12: 60 | J12: 70 | K12: 51.96152423 | M12: 60 | N12: 0 | O12: 40 | P12: 20 | Q12: 34.64101615 | S12: 1985-1-45-49 | T12: 1985 | U12: 10 | V12: 2 | W12: 45-49 | X12: 1 | Y12: 164739 | Z12: 76856 | AA12: 87883 | AB12: -76856 | AD12: 1985-10 | AE12: 1985 | AF12: 10 | AG12: 37.71491137 | AH12: 59.9769183 | AI12: 2.308170331 | AJ12: 0.6673080718 | AL12: 10 | AM12: MADRID | AO12: 2000-10 | AP12: 2000 | AQ12: 10 | AR12: 25 | AS12: 430 | AT12: 158 | AU12: 1349 | AV12: 485 | AW12: 54234 | AX12: 24.87369547 | AY12: 2.913301619 | AZ12: 8.942729653 | BA12: 30.9031235
A13: 50 | B13: 0 | C13: 50 | D13: 25 | E13: 43.30127019 | G13: 50 | H13: 50 | I13: 0 | J13: 50 | K13: 0 | M13: 0 | N13: 50 | O13: 50 | P13: 75 | Q13: 43.30127019 | S13: 1985-1-50-54 | T13: 1985 | U13: 11 | V13: 2 | W13: 50-54 | X13: 1 | Y13: 135818 | Z13: 62165 | AA13: 73653 | AB13: -62165 | AD13: 1985-11 | AE13: 1985 | AF13: 11 | AG13: 38.61626075 | AH13: 59.31176542 | AI13: 2.071973828 | AJ13: 0.6860061287 | AL13: 11 | AM13: MOSQUERA | AO13: 2000-11 | AP13: 2000 | AQ13: 11 | AR13: 25 | AS13: 473 | AT13: 85 | AU13: 596 | AV13: 3346 | AW13: 47097 | AX13: 12.65473385 | AY13: 1.804785867 | AZ13: 71.04486485 | BA13: 81.89481283
A14: 50 | B14: 50 | C14: 0 | D14: 50 | E14: 0 | G14: 0 | H14: 50 | I14: 50 | J14: 75 | K14: 43.30127019 | M14: 50 | N14: 0 | O14: 50 | P14: 25 | Q14: 43.30127019 | S14: 1985-1-55-59 | T14: 1985 | U14: 12 | V14: 2 | W14: 55-59 | X14: 1 | Y14: 111678 | Z14: 50745 | AA14: 60933 | AB14: -50745 | AD14: 1985-12 | AE14: 1985 | AF14: 12 | AG14: 39.2423061 | AH14: 57.33155988 | AI14: 3.426134018 | AJ14: 0.74424 | AL14: 12 | AM14: SIBATÉ | AO14: 2000-12 | AP14: 2000 | AQ14: 12 | AR14: 25 | AS14: 740 | AT14: 103 | AU14: 464 | AV14: 378 | AW14: 28142 | AX14: 16.48781181 | AY14: 3.66000995 | AZ14: 13.43188117 | BA14: 26.25968304
A15: 60 | B15: 0 | C15: 40 | D15: 20 | E15: 34.64101615 | G15: 40 | H15: 60 | I15: 0 | J15: 60 | K15: 0 | M15: 0 | N15: 40 | O15: 60 | P15: 70 | Q15: 51.96152423 | S15: 1985-1-60-64 | T15: 1985 | U15: 13 | V15: 2 | W15: 60-64 | X15: 1 | Y15: 90425 | Z15: 40793 | AA15: 49632 | AB15: -40793 | AD15: 1985-13 | AE15: 1985 | AF15: 13 | AG15: 39.23258284 | AH15: 58.5438056 | AI15: 2.223611561 | AJ15: 0.7081226438 | AL15: 13 | AM15: SOACHA | AO15: 2000-13 | AP15: 2000 | AQ15: 13 | AR15: 25 | AS15: 754 | AT15: 949 | AU15: 5434 | AV15: 7520 | AW15: 344761 | AX15: 15.76164357 | AY15: 2.752631533 | AZ15: 21.81221194 | BA15: 34.82122398
A16: 60 | B16: 40 | C16: 0 | D16: 40 | E16: 0 | G16: 0 | H16: 60 | I16: 40 | J16: 80 | K16: 34.64101615 | M16: 40 | N16: 0 | O16: 60 | P16: 30 | Q16: 51.96152423 | S16: 1985-1-65-69 | T16: 1985 | U16: 14 | V16: 3 | W16: 65-69 | X16: 1 | Y16: 58865 | Z16: 25287 | AA16: 33578 | AB16: -25287 | AD16: 1985-14 | AE16: 1985 | AF16: 14 | AG16: 38.7392128 | AH16: 57.89307514 | AI16: 3.367712061 | AJ16: 0.727322305 | AL16: 14 | AM16: SOPÓ | AO16: 2000-14 | AP16: 2000 | AQ16: 14 | AR16: 25 | AS16: 758 | AT16: 59 | AU16: 338 | AV16: 541 | AW16: 17605 | AX16: 19.19909117 | AY16: 3.351320648 | AZ16: 30.72990628 | BA16: 46.5776768
A17: 70 | B17: 0 | C17: 30 | D17: 15 | E17: 25.98076211 | G17: 30 | H17: 70 | I17: 0 | J17: 70 | K17: 0 | M17: 0 | N17: 30 | O17: 70 | P17: 65 | Q17: 60.62177826 | S17: 1985-1-70-74 | T17: 1985 | U17: 15 | V17: 3 | W17: 70-74 | X17: 1 | Y17: 42746 | Z17: 17714 | AA17: 25032 | AB17: -17714 | AD17: 1985-15 | AE17: 1985 | AF17: 15 | AG17: 36.78033658 | AH17: 59.47741364 | AI17: 3.742249779 | AJ17: 0.6813104989 | AL17: 15 | AM17: TABIO | AO17: 2000-15 | AP17: 2000 | AQ17: 15 | AR17: 25 | AS17: 785 | AT17: 55 | AU17: 280 | AV17: 756 | AW17: 16557 | AX17: 16.9112762 | AY17: 3.321857824 | AZ17: 45.66044573 | BA17: 59.24986411
A18: 70 | B18: 30 | C18: 0 | D18: 30 | E18: 0 | G18: 0 | H18: 70 | I18: 30 | J18: 85 | K18: 25.98076211 | M18: 30 | N18: 0 | O18: 70 | P18: 35 | Q18: 60.62177826 | S18: 1985-1-75-79 | T18: 1985 | U18: 16 | V18: 3 | W18: 75-79 | X18: 1 | Y18: 27903 | Z18: 10819 | AA18: 17084 | AB18: -10819 | AD18: 1985-16 | AE18: 1985 | AF18: 16 | AG18: 42.2007941 | AH18: 55.97277368 | AI18: 1.826432218 | AJ18: 0.7865828942 | AL18: 16 | AM18: TOCANCIPÁ | AO18: 2000-16 | AP18: 2000 | AQ18: 16 | AR18: 25 | AS18: 817 | AT18: 56 | AU18: 412 | AV18: 509 | AW18: 19952 | AX18: 20.64955894 | AY18: 2.806736167 | AZ18: 25.51122694 | BA18: 43.35404972
A19: 80 | B19: 0 | C19: 20 | D19: 10 | E19: 17.32050808 | G19: 20 | H19: 80 | I19: 0 | J19: 80 | K19: 0 | M19: 0 | N19: 20 | O19: 80 | P19: 60 | Q19: 69.2820323 | S19: 1985-1-80-84 | T19: 1985 | U19: 17 | V19: 3 | W19: 80-84 | X19: 1 | Y19: 14050 | Z19: 5031 | AA19: 9019 | AB19: -5031 | AD19: 1985-17 | AE19: 1985 | AF19: 17 | AG19: 36.32769675 | AH19: 60.34517126 | AI19: 3.327131989 | AJ19: 0.6571334196 | AL19: 17 | AM19: ZIPAQUIRÁ | AO19: 2000-17 | AP19: 2000 | AQ19: 17 | AR19: 25 | AS19: 899 | AT19: 338 | AU19: 2061 | AV19: 487 | AW19: 90650 | AX19: 22.73579702 | AY19: 3.728626586 | AZ19: 5.372311087 | BA19: 24.37948152
A20: 80 | B20: 20 | C20: 0 | D20: 20 | E20: 0 | G20: 0 | H20: 80 | I20: 20 | J20: 90 | K20: 17.32050808 | M20: 20 | N20: 0 | O20: 80 | P20: 40 | Q20: 69.2820323 | S20: 1985-1-85-89 | T20: 1985 | U20: 18 | V20: 3 | W20: 85-89 | X20: 1 | Y20: 5155 | Z20: 1651 | AA20: 3504 | AB20: -1651 | AD20: 1986-1 | AE20: 1986 | AF20: 1 | AG20: 32.1517633 | AH20: 64.24833219 | AI20: 3.599904516 | AJ20: 0.5564606364 | AL20: 18 | AM20: REGIÓN | AO20: 2001-1 | AP20: 2001 | AQ20: 1 | AR20: 11 | AS20: 001 | AT20: 25244 | AU20: 119158 | AV20: 14159 | AW20: 6412400 | AX20: 18.58243403 | AY20: 3.936747552 | AZ20: 2.208065623 | BA20: 16.85375211
A21: 90 | B21: 0 | C21: 10 | D21: 5 | E21: 8.660254038 | G21: 10 | H21: 90 | I21: 0 | J21: 90 | K21: 0 | M21: 0 | N21: 10 | O21: 90 | P21: 55 | Q21: 77.94228634 | S21: 1985-1-90-94 | T21: 1985 | U21: 19 | V21: 3 | W21: 90-94 | X21: 1 | Y21: 1476 | Z21: 467 | AA21: 1009 | AB21: -467 | AD21: 1986-2 | AE21: 1986 | AF21: 2 | AG21: 42.61456153 | AH21: 55.05931612 | AI21: 2.326122354 | AJ21: 0.8162230672 | AL21: 19 | AM21: REGIÓN-BTÁ | AO21: 2001-2 | AP21: 2001 | AQ21: 2 | AR21: 25 | AS21: 099 | AT21: 12 | AU21: 128 | AV21: 209 | AW21: 7661 | AX21: 16.70800157 | AY21: 1.566375147 | AZ21: 27.28103381 | BA21: 42.42266023
A22: 90 | B22: 10 | C22: 0 | D22: 10 | E22: 0 | G22: 0 | H22: 90 | I22: 10 | J22: 95 | K22: 8.660254038 | M22: 10 | N22: 0 | O22: 90 | P22: 45 | Q22: 77.94228634 | S22: 1985-1-95-99 | T22: 1985 | U22: 20 | V22: 3 | W22: 95-99 | X22: 1 | Y22: 308 | Z22: 96 | AA22: 212 | AB22: -96 | AD22: 1986-3 | AE22: 1986 | AF22: 3 | AG22: 36.15403383 | AH22: 60.61320755 | AI22: 3.232758621 | AJ22: 0.6498054475 | AO22: 2001-3 | AP22: 2001 | AQ22: 3 | AR22: 25 | AS22: 126 | AT22: 121 | AU22: 688 | AV22: 616 | AW22: 40702 | AX22: 16.90334627 | AY22: 2.972826888 | AZ22: 15.13439143 | BA22: 29.06491082
S23: 1985-1-100-- | T23: 1985 | U23: 21 | V23: 3 | W23: 100-- | X23: 1 | Y23: 58 | Z23: 32 | AA23: 26 | AB23: -32 | AD23: 1986-4 | AE23: 1986 | AF23: 4 | AG23: 34.34775133 | AH23: 62.41740967 | AI23: 3.234838995 | AJ23: 0.60211711 | AO23: 2001-4 | AP23: 2001 | AQ23: 4 | AR23: 25 | AS23: 175 | AT23: 301 | AU23: 1369 | AV23: 2585 | AW23: 84394 | AX23: 16.22153234 | AY23: 3.566604261 | AZ23: 30.63013958 | BA23: 43.28506766
S24: 1986-1-0-4 | T24: 1986 | U24: 1 | V24: 1 | W24: 0-4 | X24: 1 | Y24: 506396 | Z24: 252768 | AA24: 253628 | AB24: -252768 | AD24: 1986-5 | AE24: 1986 | AF24: 5 | AG24: 34.96932515 | AH24: 61.58885307 | AI24: 3.441821774 | AJ24: 0.6236704373 | AO24: 2001-5 | AP24: 2001 | AQ24: 5 | AR24: 25 | AS24: 214 | AT24: 54 | AU24: 266 | AV24: 467 | AW24: 17459 | AX24: 15.23569506 | AY24: 3.092960651 | AZ24: 26.74838192 | BA24: 38.89111633
S25: 1986-1-5-9 | T25: 1986 | U25: 2 | V25: 1 | W25: 5-9 | X25: 1 | Y25: 470295 | Z25: 233914 | AA25: 236381 | AB25: -233914 | AD25: 1986-6 | AE25: 1986 | AF25: 6 | AG25: 36.43875232 | AH25: 60.59354128 | AI25: 2.967706397 | AJ25: 0.6503409091 | AO25: 2001-6 | AP25: 2001 | AQ25: 6 | AR25: 25 | AS25: 269 | AT25: 297 | AU25: 2063 | AV25: 873 | AW25: 97067 | AX25: 21.25336108 | AY25: 3.05974224 | AZ25: 8.993787796 | BA25: 27.18740664
S26: 1986-1-10-14 | T26: 1986 | U26: 3 | V26: 1 | W26: 10-14 | X26: 1 | Y26: 425431 | Z26: 210927 | AA26: 214504 | AB26: -210927 | AD26: 1986-7 | AE26: 1986 | AF26: 7 | AG26: 36.37119369 | AH26: 61.09178238 | AI26: 2.537023923 | AJ26: 0.6368813628 | AO26: 2001-7 | AP26: 2001 | AQ26: 7 | AR26: 25 | AS26: 286 | AT26: 191 | AU26: 980 | AV26: 840 | AW26: 55063 | AX26: 17.79779525 | AY26: 3.468753973 | AZ26: 15.25525307 | BA26: 29.58429435
S27: 1986-1-15-19 | T27: 1986 | U27: 4 | V27: 1 | W27: 15-19 | X27: 1 | Y27: 482991 | Z27: 238224 | AA27: 244767 | AB27: -238224 | AD27: 1986-8 | AE27: 1986 | AF27: 8 | AG27: 43.27472527 | AH27: 54.35164835 | AI27: 2.373626374 | AJ27: 0.8398706025 | AO27: 2001-8 | AP27: 2001 | AQ27: 8 | AR27: 25 | AS27: 295 | AT27: 25 | AU27: 203 | AV27: 262 | AW27: 9270 | AX27: 21.89859763 | AY27: 2.696871629 | AZ27: 28.26321467 | BA27: 47.46494067
S28: 1986-1-20-24 | T28: 1986 | U28: 5 | V28: 2 | W28: 20-24 | X28: 1 | Y28: 492409 | Z28: 244492 | AA28: 247917 | AB28: -244492 | AD28: 1986-9 | AE28: 1986 | AF28: 9 | AG28: 34.70688674 | AH28: 61.5367103 | AI28: 3.75640296 | AJ28: 0.6250462449 | AO28: 2001-9 | AP28: 2001 | AQ28: 9 | AR28: 25 | AS28: 377 | AT28: 89 | AU28: 420 | AV28: 84 | AW28: 22112 | AX28: 18.99421129 | AY28: 4.024963821 | AZ28: 3.798842258 | BA28: 18.76808973
S29: 1986-1-25-29 | T29: 1986 | U29: 6 | V29: 2 | W29: 25-29 | X29: 1 | Y29: 421873 | Z29: 210759 | AA29: 211114 | AB29: -210759 | AD29: 1986-10 | AE29: 1986 | AF29: 10 | AG29: 37.35296655 | AH29: 60.30887809 | AI29: 2.338155359 | AJ29: 0.6581306629 | AO29: 2001-10 | AP29: 2001 | AQ29: 10 | AR29: 25 | AS29: 430 | AT29: 186 | AU29: 1222 | AV29: 616 | AW29: 55910 | AX29: 21.85655518 | AY29: 3.326775174 | AZ29: 11.01770703 | BA29: 29.54748703
S30: 1986-1-30-34 | T30: 1986 | U30: 7 | V30: 2 | W30: 30-34 | X30: 1 | Y30: 378299 | Z30: 188100 | AA30: 190199 | AB30: -188100 | AD30: 1986-11 | AE30: 1986 | AF30: 11 | AG30: 38.25544038 | AH30: 59.659332 | AI30: 2.085227617 | AJ30: 0.6761837025 | AO30: 2001-11 | AP30: 2001 | AQ30: 11 | AR30: 25 | AS30: 473 | AT30: 107 | AU30: 656 | AV30: 3085 | AW30: 50954 | AX30: 12.87435726 | AY30: 2.099933273 | AZ30: 60.54480512 | BA30: 71.31922911
S31: 1986-1-35-39 | T31: 1986 | U31: 8 | V31: 2 | W31: 35-39 | X31: 1 | Y31: 289597 | Z31: 139861 | AA31: 149736 | AB31: -139861 | AD31: 1986-12 | AE31: 1986 | AF31: 12 | AG31: 38.86749198 | AH31: 57.67079321 | AI31: 3.46171481 | AJ31: 0.733979965 | AO31: 2001-12 | AP31: 2001 | AQ31: 12 | AR31: 25 | AS31: 740 | AT31: 119 | AU31: 415 | AV31: 425 | AW31: 28881 | AX31: 14.36930854 | AY31: 4.120355943 | AZ31: 14.71555694 | BA31: 24.96450954
S32: 1986-1-40-44 | T32: 1986 | U32: 9 | V32: 2 | W32: 40-44 | X32: 1 | Y32: 216338 | Z32: 102924 | AA32: 113414 | AB32: -102924 | AD32: 1986-13 | AE32: 1986 | AF32: 13 | AG32: 38.86466696 | AH32: 58.88750798 | AI32: 2.247825065 | AJ32: 0.6981530283 | AO32: 2001-13 | AP32: 2001 | AQ32: 13 | AR32: 25 | AS32: 754 | AT32: 831 | AU32: 5211 | AV32: 7299 | AW32: 356766 | AX32: 14.60621248 | AY32: 2.329257833 | AZ32: 20.45878811 | BA32: 32.73574276
S33: 1986-1-45-49 | T33: 1986 | U33: 10 | V33: 2 | W33: 45-49 | X33: 1 | Y33: 171448 | Z33: 80009 | AA33: 91439 | AB33: -80009 | AD33: 1986-14 | AE33: 1986 | AF33: 14 | AG33: 38.37340153 | AH33: 58.20971867 | AI33: 3.416879795 | AJ33: 0.7179261863 | AO33: 2001-14 | AP33: 2001 | AQ33: 14 | AR33: 25 | AS33: 758 | AT33: 55 | AU33: 317 | AV33: 525 | AW33: 18425 | AX33: 17.20488467 | AY33: 2.985074627 | AZ33: 28.49389417 | BA33: 42.71370421
S34: 1986-1-50-54 | T34: 1986 | U34: 11 | V34: 2 | W34: 50-54 | X34: 1 | Y34: 140314 | Z34: 64203 | AA34: 76111 | AB34: -64203 | AD34: 1986-15 | AE34: 1986 | AF34: 15 | AG34: 36.43862736 | AH34: 59.78882534 | AI34: 3.772547294 | AJ34: 0.6725533481 | AO34: 2001-15 | AP34: 2001 | AQ34: 15 | AR34: 25 | AS34: 785 | AT34: 52 | AU34: 263 | AV34: 733 | AW34: 17538 | AX34: 14.99600867 | AY34: 2.964990307 | AZ34: 41.79495952 | BA34: 53.82597788
S35: 1986-1-55-59 | T35: 1986 | U35: 12 | V35: 2 | W35: 55-59 | X35: 1 | Y35: 115173 | Z35: 52285 | AA35: 62888 | AB35: -52285 | AD35: 1986-16 | AE35: 1986 | AF35: 16 | AG35: 41.83157895 | AH35: 56.32631579 | AI35: 1.842105263 | AJ35: 0.7753690899 | AO35: 2001-16 | AP35: 2001 | AQ35: 16 | AR35: 25 | AS35: 817 | AT35: 67 | AU35: 396 | AV35: 529 | AW35: 20817 | AX35: 19.02291396 | AY35: 3.218523322 | AZ35: 25.41192295 | BA35: 41.21631359
S36: 1986-1-60-64 | T36: 1986 | U36: 13 | V36: 2 | W36: 60-64 | X36: 1 | Y36: 93395 | Z36: 42095 | AA36: 51300 | AB36: -42095 | AD36: 1986-17 | AE36: 1986 | AF36: 17 | AG36: 35.96949856 | AH36: 60.66504722 | AI36: 3.365454224 | AJ36: 0.648395651 | AO36: 2001-17 | AP36: 2001 | AQ36: 17 | AR36: 25 | AS36: 899 | AT36: 387 | AU36: 1839 | AV36: 731 | AW36: 92860 | AX36: 19.80400603 | AY36: 4.167564075 | AZ36: 7.872065475 | BA36: 23.50850743
S37: 1986-1-65-69 | T37: 1986 | U37: 14 | V37: 3 | W37: 65-69 | X37: 1 | Y37: 61346 | Z37: 26349 | AA37: 34997 | AB37: -26349 | AD37: 1987-1 | AE37: 1987 | AF37: 1 | AG37: 31.8601676 | AH37: 64.4979 | AI37: 3.641932396 | AJ37: 0.5504380762 | AO37: 2002-1 | AP37: 2002 | AQ37: 1 | AR37: 11 | AS37: 001 | AT37: 24967 | AU37: 115089 | AV37: 16973 | AW37: 6520473 | AX37: 17.65040665 | AY37: 3.829016699 | AZ37: 2.603032019 | BA37: 16.42442197
S38: 1986-1-70-74 | T38: 1986 | U38: 15 | V38: 3 | W38: 70-74 | X38: 1 | Y38: 44130 | Z38: 18290 | AA38: 25840 | AB38: -18290 | AD38: 1987-2 | AE38: 1987 | AF38: 2 | AG38: 42.37057221 | AH38: 55.3133515 | AI38: 2.316076294 | AJ38: 0.8078817734 | AO38: 2002-2 | AP38: 2002 | AQ38: 2 | AR38: 25 | AS38: 099 | AT38: 19 | AU38: 127 | AV38: 205 | AW38: 7986 | AX38: 15.90282995 | AY38: 2.379163536 | AZ38: 25.66992236 | BA38: 39.19358878
S39: 1986-1-75-79 | T39: 1986 | U39: 16 | V39: 3 | W39: 75-79 | X39: 1 | Y39: 29244 | Z39: 11335 | AA39: 17909 | AB39: -11335 | AD39: 1987-3 | AE39: 1987 | AF39: 3 | AG39: 35.85297111 | AH39: 60.88232991 | AI39: 3.264698974 | AJ39: 0.6425126985 | AO39: 2002-3 | AP39: 2002 | AQ39: 3 | AR39: 25 | AS39: 126 | AT39: 161 | AU39: 683 | AV39: 650 | AW39: 41885 | AX39: 16.30655366 | AY39: 3.843858183 | AZ39: 15.51868211 | BA39: 27.98137758
S40: 1986-1-80-84 | T40: 1986 | U40: 17 | V40: 3 | W40: 80-84 | X40: 1 | Y40: 14867 | Z40: 5316 | AA40: 9551 | AB40: -5316 | AD40: 1987-4 | AE40: 1987 | AF40: 4 | AG40: 34.05540023 | AH40: 62.66475577 | AI40: 3.279843996 | AJ40: 0.5957933413 | AO40: 2002-4 | AP40: 2002 | AQ40: 4 | AR40: 25 | AS40: 175 | AT40: 345 | AU40: 1398 | AV40: 2408 | AW40: 88047 | AX40: 15.8778834 | AY40: 3.918361784 | AZ40: 27.3490295 | BA40: 39.30855111
S41: 1986-1-85-89 | T41: 1986 | U41: 18 | V41: 3 | W41: 85-89 | X41: 1 | Y41: 5463 | Z41: 1751 | AA41: 3712 | AB41: -1751 | AD41: 1987-5 | AE41: 1987 | AF41: 5 | AG41: 34.69408326 | AH41: 61.82844471 | AI41: 3.477472029 | AJ41: 0.6173785458 | AO41: 2002-5 | AP41: 2002 | AQ41: 5 | AR41: 25 | AS41: 214 | AT41: 58 | AU41: 286 | AV41: 414 | AW41: 18138 | AX41: 15.76800088 | AY41: 3.197706473 | AZ41: 22.82500827 | BA41: 35.39530268
S42: 1986-1-90-94 | T42: 1986 | U42: 19 | V42: 3 | W42: 90-94 | X42: 1 | Y42: 1559 | Z42: 488 | AA42: 1071 | AB42: -488 | AD42: 1987-6 | AE42: 1987 | AF42: 6 | AG42: 36.14053556 | AH42: 60.85104283 | AI42: 3.008421607 | AJ42: 0.6433572104 | AO42: 2002-6 | AP42: 2002 | AQ42: 6 | AR42: 25 | AS42: 269 | AT42: 387 | AU42: 2150 | AV42: 835 | AW42: 99706 | AX42: 21.56339639 | AY42: 3.881411349 | AZ42: 8.374621387 | BA42: 26.05660642
S43: 1986-1-95-99 | T43: 1986 | U43: 20 | V43: 3 | W43: 95-99 | X43: 1 | Y43: 321 | Z43: 98 | AA43: 223 | AB43: -98 | AD43: 1987-7 | AE43: 1987 | AF43: 7 | AG43: 36.06171626 | AH43: 61.3618086 | AI43: 2.576475144 | AJ43: 0.629678171 | AO43: 2002-7 | AP43: 2002 | AQ43: 7 | AR43: 25 | AS43: 286 | AT43: 205 | AU43: 962 | AV43: 832 | AW43: 56692 | AX43: 16.9688845 | AY43: 3.61603048 | AZ43: 14.675792 | BA43: 28.02864602
S44: 1986-1-100-- | T44: 1986 | U44: 21 | V44: 3 | W44: 100-- | X44: 1 | Y44: 60 | Z44: 32 | AA44: 28 | AB44: -32 | AD44: 1987-8 | AE44: 1987 | AF44: 8 | AG44: 42.98152474 | AH44: 54.64005097 | AI44: 2.378424294 | AJ44: 0.8301593471 | AO44: 2002-8 | AP44: 2002 | AQ44: 8 | AR44: 25 | AS44: 295 | AT44: 23 | AU44: 179 | AV44: 265 | AW44: 9710 | AX44: 18.4346035 | AY44: 2.36869207 | AZ44: 27.29145211 | BA44: 43.35736354
S45: 1987-1-0-4 | T45: 1987 | U45: 1 | V45: 1 | W45: 0-4 | X45: 1 | Y45: 513430 | Z45: 256376 | AA45: 257054 | AB45: -256376 | AD45: 1987-9 | AE45: 1987 | AF45: 9 | AG45: 34.40667525 | AH45: 61.80209442 | AI45: 3.79123033 | AJ45: 0.6180681406 | AO45: 2002-9 | AP45: 2002 | AQ45: 9 | AR45: 25 | AS45: 377 | AT45: 90 | AU45: 378 | AV45: 128 | AW45: 22527 | AX45: 16.77986416 | AY45: 3.995205753 | AZ45: 5.682070404 | BA45: 18.46672881
S46: 1987-1-5-9 | T46: 1987 | U46: 2 | V46: 1 | W46: 5-9 | X46: 1 | Y46: 483357 | Z46: 240519 | AA46: 242838 | AB46: -240519 | AD46: 1987-10 | AE46: 1987 | AF46: 10 | AG46: 37.05673263 | AH46: 60.57824176 | AI46: 2.365025609 | AJ46: 0.6507577158 | AO46: 2002-10 | AP46: 2002 | AQ46: 10 | AR46: 25 | AS46: 430 | AT46: 152 | AU46: 1168 | AV46: 613 | AW46: 57562 | AX46: 20.29116431 | AY46: 2.640630972 | AZ46: 10.64938675 | BA46: 28.29992009
S47: 1987-1-10-14 | T47: 1987 | U47: 3 | V47: 1 | W47: 10-14 | X47: 1 | Y47: 437682 | Z47: 217094 | AA47: 220588 | AB47: -217094 | AD47: 1987-11 | AE47: 1987 | AF47: 11 | AG47: 37.94124758 | AH47: 59.94318182 | AI47: 2.1155706 | AJ47: 0.6682464455 | AO47: 2002-11 | AP47: 2002 | AQ47: 11 | AR47: 25 | AS47: 473 | AT47: 125 | AU47: 665 | AV47: 2775 | AW47: 54588 | AX47: 12.18216458 | AY47: 2.28988056 | AZ47: 50.83534843 | BA47: 60.72763245
S48: 1987-1-15-19 | T48: 1987 | U48: 4 | V48: 1 | W48: 15-19 | X48: 1 | Y48: 482749 | Z48: 238129 | AA48: 244620 | AB48: -238129 | AD48: 1987-12 | AE48: 1987 | AF48: 12 | AG48: 38.5666468 | AH48: 57.9302123 | AI48: 3.503140905 | AJ48: 0.7262149755 | AO48: 2002-12 | AP48: 2002 | AQ48: 12 | AR48: 25 | AS48: 740 | AT48: 186 | AU48: 477 | AV48: 413 | AW48: 29602 | AX48: 16.1137761 | AY48: 6.283359232 | AZ48: 13.95176002 | BA48: 23.78217688
S49: 1987-1-20-24 | T49: 1987 | U49: 5 | V49: 2 | W49: 20-24 | X49: 1 | Y49: 509252 | Z49: 252836 | AA49: 256416 | AB49: -252836 | AD49: 1987-13 | AE49: 1987 | AF49: 13 | AG49: 38.56280956 | AH49: 59.16346994 | AI49: 2.273720501 | AJ49: 0.6902321669 | AO49: 2002-13 | AP49: 2002 | AQ49: 13 | AR49: 25 | AS49: 754 | AT49: 1017 | AU49: 5391 | AV49: 7012 | AW49: 368445 | AX49: 14.63176322 | AY49: 2.760249155 | AZ49: 19.03133439 | BA49: 30.90284846
S50: 1987-1-25-29 | T50: 1987 | U50: 6 | V50: 2 | W50: 25-29 | X50: 1 | Y50: 440653 | Z50: 220148 | AA50: 220505 | AB50: -220148 | AD50: 1987-14 | AE50: 1987 | AF50: 14 | AG50: 38.06727707 | AH50: 58.47929936 | AI50: 3.453423567 | AJ50: 0.7100068074 | AO50: 2002-14 | AP50: 2002 | AQ50: 14 | AR50: 25 | AS50: 758 | AT50: 68 | AU50: 339 | AV50: 466 | AW50: 19212 | AX50: 17.64522174 | AY50: 3.539454508 | AZ50: 24.25567354 | BA50: 38.36144077
S51: 1987-1-30-34 | T51: 1987 | U51: 7 | V51: 2 | W51: 30-34 | X51: 1 | Y51: 394063 | Z51: 196000 | AA51: 198063 | AB51: -196000 | AD51: 1987-15 | AE51: 1987 | AF51: 15 | AG51: 36.14023591 | AH51: 60.03713412 | AI51: 3.822629969 | AJ51: 0.6656358013 | AO51: 2002-15 | AP51: 2002 | AQ51: 15 | AR51: 25 | AS51: 785 | AT51: 59 | AU51: 260 | AV51: 680 | AW51: 18482 | AX51: 14.06774159 | AY51: 3.192295206 | AZ51: 36.79255492 | BA51: 47.6680013
S52: 1987-1-35-39 | T52: 1987 | U52: 8 | V52: 2 | W52: 35-39 | X52: 1 | Y52: 307323 | Z52: 148553 | AA52: 158770 | AB52: -148553 | AD52: 1987-16 | AE52: 1987 | AF52: 16 | AG52: 41.52259332 | AH52: 56.62082515 | AI52: 1.856581532 | AJ52: 0.7661346287 | AO52: 2002-16 | AP52: 2002 | AQ52: 16 | AR52: 25 | AS52: 817 | AT52: 51 | AU52: 440 | AV52: 458 | AW52: 21675 | AX52: 20.29988466 | AY52: 2.352941176 | AZ52: 21.13033449 | BA52: 39.07727797
S53: 1987-1-40-44 | T53: 1987 | U53: 9 | V53: 2 | W53: 40-44 | X53: 1 | Y53: 231024 | Z53: 109944 | AA53: 121080 | AB53: -109944 | AD53: 1987-17 | AE53: 1987 | AF53: 17 | AG53: 35.67235942 | AH53: 60.92447469 | AI53: 3.403165881 | AJ53: 0.6413764829 | AO53: 2002-17 | AP53: 2002 | AQ53: 17 | AR53: 25 | AS53: 899 | AT53: 398 | AU53: 1927 | AV53: 638 | AW53: 95043 | AX53: 20.27503341 | AY53: 4.187578254 | AZ53: 6.712751071 | BA53: 22.80020622
S54: 1987-1-45-49 | T54: 1987 | U54: 10 | V54: 2 | W54: 45-49 | X54: 1 | Y54: 178681 | Z54: 83421 | AA54: 95260 | AB54: -83421 | AD54: 1988-1 | AE54: 1988 | AF54: 1 | AG54: 31.59265762 | AH54: 64.72087656 | AI54: 3.686465828 | AJ54: 0.5450965024 | AO54: 2003-1 | AP54: 2003 | AQ54: 1 | AR54: 11 | AS54: 001 | AT54: 25661 | AU54: 113711 | AV54: 18423 | AW54: 6627568 | AX54: 17.15727398 | AY54: 3.871857671 | AZ54: 2.779752694 | BA54: 16.065169
S55: 1987-1-50-54 | T55: 1987 | U55: 11 | V55: 2 | W55: 50-54 | X55: 1 | Y55: 145032 | Z55: 66352 | AA55: 78680 | AB55: -66352 | AD55: 1988-2 | AE55: 1988 | AF55: 2 | AG55: 42.09477414 | AH55: 55.51372896 | AI55: 2.3914969 | AJ55: 0.8013562026 | AO55: 2003-2 | AP55: 2003 | AQ55: 2 | AR55: 25 | AS55: 099 | AT55: 25 | AU55: 86 | AV55: 239 | AW55: 8299 | AX55: 10.3626943 | AY55: 3.012411134 | AZ55: 28.79865044 | BA55: 36.14893361
S56: 1987-1-55-59 | T56: 1987 | U56: 12 | V56: 2 | W56: 55-59 | X56: 1 | Y56: 118971 | Z56: 53966 | AA56: 65005 | AB56: -53966 | AD56: 1988-3 | AE56: 1988 | AF56: 3 | AG56: 35.58323896 | AH56: 61.10607777 | AI56: 3.310683277 | AJ56: 0.6364984247 | AO56: 2003-3 | AP56: 2003 | AQ56: 3 | AR56: 25 | AS56: 126 | AT56: 162 | AU56: 606 | AV56: 723 | AW56: 43057 | AX56: 14.07436654 | AY56: 3.762454421 | AZ56: 16.79169473 | BA56: 27.10360685
S57: 1987-1-60-64 | T57: 1987 | U57: 13 | V57: 2 | W57: 60-64 | X57: 1 | Y57: 96199 | Z57: 43315 | AA57: 52884 | AB57: -43315 | AD57: 1988-4 | AE57: 1988 | AF57: 4 | AG57: 33.79536914 | AH57: 62.88562364 | AI57: 3.319007223 | AJ57: 0.5901885712 | AO57: 2003-4 | AP57: 2003 | AQ57: 4 | AR57: 25 | AS57: 175 | AT57: 371 | AU57: 1437 | AV57: 2213 | AW57: 91508 | AX57: 15.70354505 | AY57: 4.054290335 | AZ57: 24.18367793 | BA57: 35.83293264
S58: 1987-1-65-69 | T58: 1987 | U58: 14 | V58: 3 | W58: 65-69 | X58: 1 | Y58: 64308 | Z58: 27621 | AA58: 36687 | AB58: -27621 | AD58: 1988-5 | AE58: 1988 | AF58: 5 | AG58: 34.44368467 | AH58: 62.03966006 | AI58: 3.51665527 | AJ58: 0.6118721461 | AO58: 2003-5 | AP58: 2003 | AQ58: 5 | AR58: 25 | AS58: 214 | AT58: 59 | AU58: 257 | AV58: 395 | AW58: 18780 | AX58: 13.68477103 | AY58: 3.141640043 | AZ58: 21.03301384 | BA58: 31.57614483
S59: 1987-1-70-74 | T59: 1987 | U59: 15 | V59: 3 | W59: 70-74 | X59: 1 | Y59: 45422 | Z59: 18834 | AA59: 26588 | AB59: -18834 | AD59: 1988-6 | AE59: 1988 | AF59: 6 | AG59: 35.8739517 | AH59: 61.08203544 | AI59: 3.044012863 | AJ59: 0.6371425622 | AO59: 2003-6 | AP59: 2003 | AQ59: 6 | AR59: 25 | AS59: 269 | AT59: 355 | AU59: 1818 | AV59: 1112 | AW59: 102304 | AX59: 17.77056616 | AY59: 3.470050047 | AZ59: 10.86956522 | BA59: 25.17008133
S60: 1987-1-75-79 | T60: 1987 | U60: 16 | V60: 3 | W60: 75-79 | X60: 1 | Y60: 30650 | Z60: 11885 | AA60: 18765 | AB60: -11885 | AD60: 1988-7 | AE60: 1988 | AF60: 7 | AG60: 35.78452577 | AH60: 61.61144274 | AI60: 2.604031491 | AJ60: 0.6230751229 | AO60: 2003-7 | AP60: 2003 | AQ60: 7 | AR60: 25 | AS60: 286 | AT60: 228 | AU60: 982 | AV60: 803 | AW60: 58281 | AX60: 16.84940203 | AY60: 3.912081124 | AZ60: 13.77807519 | BA60: 26.7153961
S61: 1987-1-80-84 | T61: 1987 | U61: 17 | V61: 3 | W61: 80-84 | X61: 1 | Y61: 15752 | Z61: 5616 | AA61: 10136 | AB61: -5616 | AD61: 1988-8 | AE61: 1988 | AF61: 8 | AG61: 42.70192702 | AH61: 54.85854859 | AI61: 2.439524395 | AJ61: 0.8228699552 | AO61: 2003-8 | AP61: 2003 | AQ61: 8 | AR61: 25 | AS61: 295 | AT61: 32 | AU61: 157 | AV61: 268 | AW61: 10131 | AX61: 15.49698944 | AY61: 3.158622051 | AZ61: 26.45345968 | BA61: 38.79182707
S62: 1987-1-85-89 | T62: 1987 | U62: 18 | V62: 3 | W62: 85-89 | X62: 1 | Y62: 5795 | Z62: 1862 | AA62: 3933 | AB62: -1862 | AD62: 1988-9 | AE62: 1988 | AF62: 9 | AG62: 34.13127413 | AH62: 62.02426917 | AI62: 3.844456702 | AJ62: 0.6122721209 | AO62: 2003-9 | AP62: 2003 | AQ62: 9 | AR62: 25 | AS62: 377 | AT62: 105 | AU62: 360 | AV62: 159 | AW62: 22943 | AX62: 15.69106045 | AY62: 4.576559299 | AZ62: 6.930218367 | BA62: 18.04471952
S63: 1987-1-90-94 | T63: 1987 | U63: 19 | V63: 3 | W63: 90-94 | X63: 1 | Y63: 1650 | Z63: 510 | AA63: 1140 | AB63: -510 | AD63: 1988-10 | AE63: 1988 | AF63: 10 | AG63: 36.78330063 | AH63: 60.81589274 | AI63: 2.400806627 | AJ63: 0.6443070305 | AO63: 2003-10 | AP63: 2003 | AQ63: 10 | AR63: 25 | AS63: 430 | AT63: 179 | AU63: 909 | AV63: 887 | AW63: 59191 | AX63: 15.35706442 | AY63: 3.024108395 | AZ63: 14.98538629 | BA63: 27.31834232
S64: 1987-1-95-99 | T64: 1987 | U64: 20 | V64: 3 | W64: 95-99 | X64: 1 | Y64: 336 | Z64: 101 | AA64: 235 | AB64: -101 | AD64: 1988-11 | AE64: 1988 | AF64: 11 | AG64: 37.66148325 | AH64: 60.20334928 | AI64: 2.135167464 | AJ64: 0.6610371548 | AO64: 2003-11 | AP64: 2003 | AQ64: 11 | AR64: 25 | AS64: 473 | AT64: 134 | AU64: 683 | AV64: 2360 | AW64: 57903 | AX64: 11.79558917 | AY64: 2.314215153 | AZ64: 40.75781911 | BA64: 50.23919313
S65: 1987-1-100-- | T65: 1987 | U65: 21 | V65: 3 | W65: 100-- | X65: 1 | Y65: 61 | Z65: 32 | AA65: 29 | AB65: -32 | AD65: 1988-12 | AE65: 1988 | AF65: 12 | AG65: 38.28071301 | AH65: 58.1679879 | AI65: 3.551299088 | AJ65: 0.7191586576 | AO65: 2003-12 | AP65: 2003 | AQ65: 12 | AR65: 25 | AS65: 740 | AT65: 154 | AU65: 386 | AV65: 458 | AW65: 30306 | AX65: 12.7367518 | AY65: 5.081502013 | AZ65: 15.11251897 | BA65: 22.76776876
S66: 1988-1-0-4 | T66: 1988 | U66: 1 | V66: 1 | W66: 0-4 | X66: 1 | Y66: 519860 | Z66: 259696 | AA66: 260164 | AB66: -259696 | AD66: 1988-13 | AE66: 1988 | AF66: 13 | AG66: 38.28632865 | AH66: 59.40878837 | AI66: 2.304882982 | AJ66: 0.6832526423 | AO66: 2003-13 | AP66: 2003 | AQ66: 13 | AR66: 25 | AS66: 754 | AT66: 1051 | AU66: 5215 | AV66: 7006 | AW66: 379831 | AX66: 13.72979035 | AY66: 2.767020069 | AZ66: 18.4450453 | BA66: 29.40781558
S67: 1988-1-5-9 | T67: 1988 | U67: 2 | V67: 1 | W67: 5-9 | X67: 1 | Y67: 496530 | Z67: 247196 | AA67: 249334 | AB67: -247196 | AD67: 1988-14 | AE67: 1988 | AF67: 14 | AG67: 37.76487663 | AH67: 58.73246251 | AI67: 3.502660861 | AJ67: 0.7026359143 | AO67: 2003-14 | AP67: 2003 | AQ67: 14 | AR67: 25 | AS67: 758 | AT67: 70 | AU67: 292 | AV67: 453 | AW67: 19949 | AX67: 14.63732518 | AY67: 3.508947817 | AZ67: 22.70790516 | BA67: 33.83628252
S68: 1988-1-10-14 | T68: 1988 | U68: 3 | V68: 1 | W68: 10-14 | X68: 1 | Y68: 452183 | Z68: 224398 | AA68: 227785 | AB68: -224398 | AD68: 1988-15 | AE68: 1988 | AF68: 15 | AG68: 35.8866169 | AH68: 60.27263875 | AI68: 3.840744347 | AJ68: 0.6591276252 | AO68: 2003-15 | AP68: 2003 | AQ68: 15 | AR68: 25 | AS68: 785 | AT68: 78 | AU68: 247 | AV68: 627 | AW68: 19363 | AX68: 12.75628777 | AY68: 4.0283014 | AZ68: 32.38134587 | BA68: 41.10933223
S69: 1988-1-15-19 | T69: 1988 | U69: 4 | V69: 1 | W69: 15-19 | X69: 1 | Y69: 481202 | Z69: 237396 | AA69: 243806 | AB69: -237396 | AD69: 1988-16 | AE69: 1988 | AF69: 16 | AG69: 41.2371134 | AH69: 56.87592047 | AI69: 1.886966127 | AJ69: 0.7582133031 | AO69: 2003-16 | AP69: 2003 | AQ69: 16 | AR69: 25 | AS69: 817 | AT69: 57 | AU69: 391 | AV69: 492 | AW69: 22522 | AX69: 17.36080277 | AY69: 2.530858716 | AZ69: 21.84530681 | BA69: 36.67525087
S70: 1988-1-20-24 | T70: 1988 | U70: 5 | V70: 2 | W70: 20-24 | X70: 1 | Y70: 525379 | Z70: 260815 | AA70: 264564 | AB70: -260815 | AD70: 1988-17 | AE70: 1988 | AF70: 17 | AG70: 35.40513069 | AH70: 61.14962756 | AI70: 3.445241743 | AJ70: 0.6353329364 | AO70: 2003-17 | AP70: 2003 | AQ70: 17 | AR70: 25 | AS70: 899 | AT70: 380 | AU70: 1540 | AV70: 1003 | AW70: 97210 | AX70: 15.84199156 | AY70: 3.909062854 | AZ70: 10.31786853 | BA70: 22.25079724
S71: 1988-1-25-29 | T71: 1988 | U71: 6 | V71: 2 | W71: 25-29 | X71: 1 | Y71: 460178 | Z71: 229895 | AA71: 230283 | AB71: -229895 | AD71: 1989-1 | AE71: 1989 | AF71: 1 | AG71: 31.31690809 | AH71: 64.95188256 | AI71: 3.731209353 | AJ71: 0.5396012564 | AO71: 2004-1 | AP71: 2004 | AQ71: 1 | AR71: 11 | AS71: 001 | AT71: 26219 | AU71: 113495 | AV71: 18799 | AW71: 6734041 | AX71: 16.85392174 | AY71: 3.893501688 | AZ71: 2.791637295 | BA71: 15.75205735
S72: 1988-1-30-34 | T72: 1988 | U72: 7 | V72: 2 | W72: 30-34 | X72: 1 | Y72: 409954 | Z72: 203953 | AA72: 206001 | AB72: -203953 | AD72: 1989-2 | AE72: 1989 | AF72: 2 | AG72: 41.82681926 | AH72: 55.77629022 | AI72: 2.39689052 | AJ72: 0.7928765002 | AO72: 2004-2 | AP72: 2004 | AQ72: 2 | AR72: 25 | AS72: 099 | AT72: 30 | AU72: 115 | AV72: 195 | AW72: 8599 | AX72: 13.3736481 | AY72: 3.488777765 | AZ72: 22.67705547 | BA72: 32.56192581
S73: 1988-1-35-39 | T73: 1988 | U73: 8 | V73: 2 | W73: 35-39 | X73: 1 | Y73: 325645 | Z73: 157548 | AA73: 168097 | AB73: -157548 | AD73: 1989-3 | AE73: 1989 | AF73: 3 | AG73: 35.29647582 | AH73: 61.35063231 | AI73: 3.352891869 | AJ73: 0.6299750505 | AO73: 2004-3 | AP73: 2004 | AQ73: 3 | AR73: 25 | AS73: 126 | AT73: 136 | AU73: 713 | AV73: 590 | AW73: 44224 | AX73: 16.12246744 | AY73: 3.075253256 | AZ73: 13.34117221 | BA73: 26.3883864
S74: 1988-1-40-44 | T74: 1988 | U74: 9 | V74: 2 | W74: 40-44 | X74: 1 | Y74: 247167 | Z74: 117665 | AA74: 129502 | AB74: -117665 | AD74: 1989-4 | AE74: 1989 | AF74: 4 | AG74: 33.52152739 | AH74: 63.11468345 | AI74: 3.363789165 | AJ74: 0.5844173581 | AO74: 2004-4 | AP74: 2004 | AQ74: 4 | AR74: 25 | AS74: 175 | AT74: 357 | AU74: 1497 | AV74: 1980 | AW74: 94787 | AX74: 15.79330499 | AY74: 3.766339266 | AZ74: 20.88894047 | BA74: 32.91590619
S75: 1988-1-45-49 | T75: 1988 | U75: 10 | V75: 2 | W75: 45-49 | X75: 1 | Y75: 186819 | Z75: 87266 | AA75: 99553 | AB75: -87266 | AD75: 1989-5 | AE75: 1989 | AF75: 5 | AG75: 34.16019693 | AH75: 62.29880704 | AI75: 3.540996023 | AJ75: 0.6051671733 | AO75: 2004-5 | AP75: 2004 | AQ75: 5 | AR75: 25 | AS75: 214 | AT75: 64 | AU75: 277 | AV75: 323 | AW75: 19373 | AX75: 14.29825014 | AY75: 3.30356682 | AZ75: 16.67268879 | BA75: 27.66737212
S76: 1988-1-50-54 | T76: 1988 | U76: 11 | V76: 2 | W76: 50-54 | X76: 1 | Y76: 150146 | Z76: 68693 | AA76: 81453 | AB76: -68693 | AD76: 1989-6 | AE76: 1989 | AF76: 6 | AG76: 35.59550494 | AH76: 61.31792573 | AI76: 3.086569334 | AJ76: 0.6308444686 | AO76: 2004-6 | AP76: 2004 | AQ76: 6 | AR76: 25 | AS76: 269 | AT76: 403 | AU76: 2282 | AV76: 705 | AW76: 104879 | AX76: 21.75840731 | AY76: 3.842523289 | AZ76: 6.722032056 | BA76: 24.63791607
S77: 1988-1-55-59 | T77: 1988 | U77: 12 | V77: 2 | W77: 55-59 | X77: 1 | Y77: 123049 | Z77: 55781 | AA77: 67268 | AB77: -55781 | AD77: 1989-7 | AE77: 1989 | AF77: 7 | AG77: 35.50188469 | AH77: 61.85955605 | AI77: 2.638559263 | AJ77: 0.6165651095 | AO77: 2004-7 | AP77: 2004 | AQ77: 7 | AR77: 25 | AS77: 286 | AT77: 214 | AU77: 997 | AV77: 770 | AW77: 59838 | AX77: 16.66165313 | AY77: 3.576322738 | AZ77: 12.86807714 | BA77: 25.95340753
S78: 1988-1-60-64 | T78: 1988 | U78: 13 | V78: 2 | W78: 60-64 | X78: 1 | Y78: 98987 | Z78: 44526 | AA78: 54461 | AB78: -44526 | AD78: 1989-8 | AE78: 1989 | AF78: 8 | AG78: 42.42484177 | AH78: 55.1028481 | AI78: 2.472310127 | AJ78: 0.8147882268 | AO78: 2004-8 | AP78: 2004 | AQ78: 8 | AR78: 25 | AS78: 295 | AT78: 32 | AU78: 208 | AV78: 186 | AW78: 10524 | AX78: 19.76434816 | AY78: 3.040668947 | AZ78: 17.67388826 | BA78: 34.39756746
S79: 1988-1-65-69 | T79: 1988 | U79: 14 | V79: 3 | W79: 65-69 | X79: 1 | Y79: 67522 | Z79: 29003 | AA79: 38519 | AB79: -29003 | AD79: 1989-9 | AE79: 1989 | AF79: 9 | AG79: 33.85343047 | AH79: 62.24855931 | AI79: 3.898010221 | AJ79: 0.6064628821 | AO79: 2004-9 | AP79: 2004 | AQ79: 9 | AR79: 25 | AS79: 377 | AT79: 99 | AU79: 379 | AV79: 131 | AW79: 23357 | AX79: 16.22639894 | AY79: 4.238558034 | AZ79: 5.608596994 | BA79: 17.5964379
S80: 1988-1-70-74 | T80: 1988 | U80: 15 | V80: 3 | W80: 70-74 | X80: 1 | Y80: 46755 | Z80: 19400 | AA80: 27355 | AB80: -19400 | AD80: 1989-10 | AE80: 1989 | AF80: 10 | AG80: 36.50612635 | AH80: 61.06189996 | AI80: 2.431973691 | AJ80: 0.6376824183 | AO80: 2004-10 | AP80: 2004 | AQ80: 10 | AR80: 25 | AS80: 430 | AT80: 174 | AU80: 1090 | AV80: 712 | AW80: 60808 | AX80: 17.92527299 | AY80: 2.861465597 | AZ80: 11.70898566 | BA80: 26.77279305
S81: 1988-1-75-79 | T81: 1988 | U81: 16 | V81: 3 | W81: 75-79 | X81: 1 | Y81: 32087 | Z81: 12454 | AA81: 19633 | AB81: -12454 | AD81: 1989-11 | AE81: 1989 | AF81: 11 | AG81: 37.3743278 | AH81: 60.46294131 | AI81: 2.162730886 | AJ81: 0.6539056458 | AO81: 2004-11 | AP81: 2004 | AQ81: 11 | AR81: 25 | AS81: 473 | AT81: 129 | AU81: 843 | AV81: 1711 | AW81: 60812 | AX81: 13.86239558 | AY81: 2.12129185 | AZ81: 28.13589423 | BA81: 39.87699796
S82: 1988-1-80-84 | T82: 1988 | U82: 17 | V82: 3 | W82: 80-84 | X82: 1 | Y82: 16685 | Z82: 5930 | AA82: 10755 | AB82: -5930 | AD82: 1989-12 | AE82: 1989 | AF82: 12 | AG82: 37.98336228 | AH82: 58.42398757 | AI82: 3.592650151 | AJ82: 0.7116257237 | AO82: 2004-12 | AP82: 2004 | AQ82: 12 | AR82: 25 | AS82: 740 | AT82: 149 | AU82: 394 | AV82: 434 | AW82: 30996 | AX82: 12.71131759 | AY82: 4.80707188 | AZ82: 14.00180668 | BA82: 21.90605239
S83: 1988-1-85-89 | T83: 1988 | U83: 18 | V83: 3 | W83: 85-89 | X83: 1 | Y83: 6150 | Z83: 1981 | AA83: 4169 | AB83: -1981 | AD83: 1989-13 | AE83: 1989 | AF83: 13 | AG83: 38.0012864 | AH83: 59.66329073 | AI83: 2.335422877 | AJ83: 0.6760724858 | AO83: 2004-13 | AP83: 2004 | AQ83: 13 | AR83: 25 | AS83: 754 | AT83: 1043 | AU83: 5600 | AV83: 6438 | AW83: 391001 | AX83: 14.32221401 | AY83: 2.667512359 | AZ83: 16.46543103 | BA83: 28.12013269
S84: 1988-1-90-94 | T84: 1988 | U84: 19 | V84: 3 | W84: 90-94 | X84: 1 | Y84: 1751 | Z84: 536 | AA84: 1215 | AB84: -536 | AD84: 1989-14 | AE84: 1989 | AF84: 14 | AG84: 37.4882585 | AH84: 58.96111215 | AI84: 3.550629344 | AJ84: 0.6960331368 | AO84: 2004-14 | AP84: 2004 | AQ84: 14 | AR84: 25 | AS84: 758 | AT84: 67 | AU84: 359 | AV84: 307 | AW84: 20624 | AX84: 17.40690458 | AY84: 3.248642358 | AZ84: 14.88557021 | BA84: 29.04383243
S85: 1988-1-95-99 | T85: 1988 | U85: 20 | V85: 3 | W85: 95-99 | X85: 1 | Y85: 351 | Z85: 103 | AA85: 248 | AB85: -103 | AD85: 1989-15 | AE85: 1989 | AF85: 15 | AG85: 35.59846384 | AH85: 60.49711969 | AI85: 3.904416471 | AJ85: 0.6529712573 | AO85: 2004-15 | AP85: 2004 | AQ85: 15 | AR85: 25 | AS85: 785 | AT85: 70 | AU85: 310 | AV85: 451 | AW85: 20159 | AX85: 15.37774691 | AY85: 3.472394464 | AZ85: 22.37214148 | BA85: 34.27749392
S86: 1988-1-100-- | T86: 1988 | U86: 21 | V86: 3 | W86: 100-- | X86: 1 | Y86: 63 | Z86: 32 | AA86: 31 | AB86: -32 | AD86: 1989-16 | AE86: 1989 | AF86: 16 | AG86: 40.96656851 | AH86: 57.1280097 | AI86: 1.905421791 | AJ86: 0.7504548211 | AO86: 2004-16 | AP86: 2004 | AQ86: 16 | AR86: 25 | AS86: 817 | AT86: 54 | AU86: 436 | AV86: 424 | AW86: 23348 | AX86: 18.67397636 | AY86: 2.312831934 | AZ86: 18.16001371 | BA86: 34.52115813
S87: 1989-1-0-4 | T87: 1989 | U87: 1 | V87: 1 | W87: 0-4 | X87: 1 | Y87: 526032 | Z87: 262902 | AA87: 263130 | AB87: -262902 | AD87: 1989-17 | AE87: 1989 | AF87: 17 | AG87: 35.12779647 | AH87: 61.38214981 | AI87: 3.490053716 | AJ87: 0.6291381176 | AO87: 2004-17 | AP87: 2004 | AQ87: 17 | AR87: 25 | AS87: 899 | AT87: 383 | AU87: 1775 | AV87: 797 | AW87: 99373 | AX87: 17.86199471 | AY87: 3.854165618 | AZ87: 8.020287201 | BA87: 22.02811629
S88: 1989-1-5-9 | T88: 1989 | U88: 2 | V88: 1 | W88: 5-9 | X88: 1 | Y88: 509054 | Z88: 253570 | AA88: 255484 | AB88: -253570 | AD88: 1990-1 | AE88: 1990 | AF88: 1 | AG88: 31.0030894 | AH88: 65.222719 | AI88: 3.774191606 | AJ88: 0.5332080835 | AO88: 2005-1 | AP88: 2005 | AQ88: 1 | AR88: 11 | AS88: 001 | AT88: 26481 | AU88: 112252 | AV88: 19329 | AW88: 6840116 | AX88: 16.4108328 | AY88: 3.871425572 | AZ88: 2.82582927 | BA88: 15.3652365
S89: 1989-1-10-14 | T89: 1989 | U89: 3 | V89: 1 | W89: 10-14 | X89: 1 | Y89: 467353 | Z89: 232061 | AA89: 235292 | AB89: -232061 | AD89: 1990-2 | AE89: 1990 | AF89: 2 | AG89: 41.5145794 | AH89: 56.05202433 | AI89: 2.433396266 | AJ89: 0.7840568862 | AO89: 2005-2 | AP89: 2005 | AQ89: 2 | AR89: 25 | AS89: 099 | AT89: 31 | AU89: 134 | AV89: 160 | AW89: 8879 | AX89: 15.09178962 | AY89: 3.491384165 | AZ89: 18.0200473 | BA89: 29.62045275
S90: 1989-1-15-19 | T90: 1989 | U90: 4 | V90: 1 | W90: 15-19 | X90: 1 | Y90: 481207 | Z90: 237446 | AA90: 243761 | AB90: -237446 | AD90: 1990-3 | AE90: 1990 | AF90: 3 | AG90: 34.97710461 | AH90: 61.63085594 | AI90: 3.392039451 | AJ90: 0.6225638681 | AO90: 2005-3 | AP90: 2005 | AQ90: 3 | AR90: 25 | AS90: 126 | AT90: 160 | AU90: 743 | AV90: 574 | AW90: 45391 | AX90: 16.3688837 | AY90: 3.524927849 | AZ90: 12.64567866 | BA90: 25.48963451
S91: 1989-1-20-24 | T91: 1989 | U91: 5 | V91: 2 | W91: 20-24 | X91: 1 | Y91: 539435 | Z91: 267762 | AA91: 271673 | AB91: -267762 | AD91: 1990-4 | AE91: 1990 | AF91: 4 | AG91: 33.20821647 | AH91: 63.39094209 | AI91: 3.400841445 | AJ91: 0.5775124443 | AO91: 2005-4 | AP91: 2005 | AQ91: 4 | AR91: 25 | AS91: 175 | AT91: 328 | AU91: 1677 | AV91: 1557 | AW91: 97907 | AX91: 17.12849949 | AY91: 3.350117969 | AZ91: 15.90284658 | BA91: 29.6812281
S92: 1989-1-25-29 | T92: 1989 | U92: 6 | V92: 2 | W92: 25-29 | X92: 1 | Y92: 479487 | Z92: 239516 | AA92: 239971 | AB92: -239516 | AD92: 1990-5 | AE92: 1990 | AF92: 5 | AG92: 33.85531136 | AH92: 62.54578755 | AI92: 3.598901099 | AJ92: 0.5988286969 | AO92: 2005-5 | AP92: 2005 | AQ92: 5 | AR92: 25 | AS92: 214 | AT92: 47 | AU92: 269 | AV92: 255 | AW92: 19909 | AX92: 13.51147722 | AY92: 2.360741373 | AZ92: 12.80827766 | BA92: 23.95901351
S93: 1989-1-30-34 | T93: 1989 | U93: 7 | V93: 2 | W93: 30-34 | X93: 1 | Y93: 426467 | Z93: 212203 | AA93: 214264 | AB93: -212203 | AD93: 1990-6 | AE93: 1990 | AF93: 6 | AG93: 35.27790336 | AH93: 61.60106174 | AI93: 3.1210349 | AJ93: 0.6233486434 | AO93: 2005-6 | AP93: 2005 | AQ93: 6 | AR93: 25 | AS93: 269 | AT93: 398 | AU93: 2145 | AV93: 787 | AW93: 107463 | AX93: 19.96035845 | AY93: 3.703600309 | AZ93: 7.323450862 | BA93: 23.580209
S94: 1989-1-35-39 | T94: 1989 | U94: 8 | V94: 2 | W94: 35-39 | X94: 1 | Y94: 343981 | Z94: 166546 | AA94: 177435 | AB94: -166546 | AD94: 1990-7 | AE94: 1990 | AF94: 7 | AG94: 35.17828201 | AH94: 62.15018909 | AI94: 2.671528903 | AJ94: 0.6090055633 | AO94: 2005-7 | AP94: 2005 | AQ94: 7 | AR94: 25 | AS94: 286 | AT94: 241 | AU94: 994 | AV94: 744 | AW94: 61391 | AX94: 16.1912984 | AY94: 3.925656855 | AZ94: 12.11904025 | BA94: 24.38468179
S95: 1989-1-40-44 | T95: 1989 | U95: 9 | V95: 2 | W95: 40-44 | X95: 1 | Y95: 264132 | Z95: 125790 | AA95: 138342 | AB95: -125790 | AD95: 1990-8 | AE95: 1990 | AF95: 8 | AG95: 42.14231355 | AH95: 55.34627093 | AI95: 2.511415525 | AJ95: 0.8068064627 | AO95: 2005-8 | AP95: 2005 | AQ95: 8 | AR95: 25 | AS95: 295 | AT95: 47 | AU95: 160 | AV95: 217 | AW95: 10886 | AX95: 14.69777696 | AY95: 4.317471982 | AZ95: 19.93386 | BA95: 30.31416498
S96: 1989-1-45-49 | T96: 1989 | U96: 10 | V96: 2 | W96: 45-49 | X96: 1 | Y96: 196256 | Z96: 91725 | AA96: 104531 | AB96: -91725 | AD96: 1990-9 | AE96: 1990 | AF96: 9 | AG96: 33.52632143 | AH96: 62.53886566 | AI96: 3.934812909 | AJ96: 0.5990056575 | AO96: 2005-9 | AP96: 2005 | AQ96: 9 | AR96: 25 | AS96: 377 | AT96: 93 | AU96: 341 | AV96: 159 | AW96: 23768 | AX96: 14.3470212 | AY96: 3.912823965 | AZ96: 6.689666779 | BA96: 17.12386402
S97: 1989-1-50-54 | T97: 1989 | U97: 11 | V97: 2 | W97: 50-54 | X97: 1 | Y97: 155830 | Z97: 71308 | AA97: 84522 | AB97: -71308 | AD97: 1990-10 | AE97: 1990 | AF97: 10 | AG97: 36.19325066 | AH97: 61.34213308 | AI97: 2.464616257 | AJ97: 0.630200891 | AO97: 2005-10 | AP97: 2005 | AQ97: 10 | AR97: 25 | AS97: 430 | AT97: 199 | AU97: 1172 | AV97: 617 | AW97: 62436 | AX97: 18.77122173 | AY97: 3.187263758 | AZ97: 9.88211929 | BA97: 25.46607726
S98: 1989-1-55-59 | T98: 1989 | U98: 12 | V98: 2 | W98: 55-59 | X98: 1 | Y98: 127378 | Z98: 57719 | AA98: 69659 | AB98: -57719 | AD98: 1990-11 | AE98: 1990 | AF98: 11 | AG98: 37.04036883 | AH98: 60.76127291 | AI98: 2.198358259 | AJ98: 0.6457851393 | AO98: 2005-11 | AP98: 2005 | AQ98: 11 | AR98: 25 | AS98: 473 | AT98: 131 | AU98: 963 | AV98: 1088 | AW98: 63237 | AX98: 15.2284264 | AY98: 2.071572023 | AZ98: 17.20511726 | BA98: 30.36197163
S99: 1989-1-60-64 | T99: 1989 | U99: 13 | V99: 2 | W99: 60-64 | X99: 1 | Y99: 101915 | Z99: 45805 | AA99: 56110 | AB99: -45805 | AD99: 1990-12 | AE99: 1990 | AF99: 12 | AG99: 37.64721932 | AH99: 58.71947615 | AI99: 3.633304534 | AJ99: 0.7030124681 | AO99: 2005-12 | AP99: 2005 | AQ99: 12 | AR99: 25 | AS99: 740 | AT99: 170 | AU99: 400 | AV99: 431 | AW99: 31675 | AX99: 12.62825572 | AY99: 5.367008682 | AZ99: 13.60694554 | BA99: 20.86819258
S100: 1989-1-65-69 | T100: 1989 | U100: 14 | V100: 3 | W100: 65-69 | X100: 1 | Y100: 70752 | Z100: 30392 | AA100: 40360 | AB100: -30392 | AD100: 1990-13 | AE100: 1990 | AF100: 13 | AG100: 37.67375994 | AH100: 59.96239444 | AI100: 2.363845618 | AJ100: 0.6677119206 | AO100: 2005-13 | AP100: 2005 | AQ100: 13 | AR100: 25 | AS100: 754 | AT100: 1176 | AU100: 5574 | AV100: 6461 | AW100: 401996 | AX100: 13.86580961 | AY100: 2.925402243 | AZ100: 16.07229923 | BA100: 27.01270659
S101: 1989-1-70-74 | T101: 1989 | U101: 15 | V101: 3 | W101: 70-74 | X101: 1 | Y101: 48265 | Z101: 20042 | AA101: 28223 | AB101: -20042 | AD101: 1990-14 | AE101: 1990 | AF101: 14 | AG101: 37.16677281 | AH101: 59.25757438 | AI101: 3.575652807 | AJ101: 0.687547981 | AO101: 2005-14 | AP101: 2005 | AQ101: 14 | AR101: 25 | AS101: 758 | AT101: 56 | AU101: 317 | AV101: 264 | AW101: 21223 | AX101: 14.93662536 | AY101: 2.638646751 | AZ101: 12.43933468 | BA101: 24.73731329
S102: 1989-1-75-79 | T102: 1989 | U102: 16 | V102: 3 | W102: 75-79 | X102: 1 | Y102: 33521 | Z102: 13027 | AA102: 20494 | AB102: -13027 | AD102: 1990-15 | AE102: 1990 | AF102: 15 | AG102: 35.28059358 | AH102: 60.76915038 | AI102: 3.950256035 | AJ102: 0.6455717971 | AO102: 2005-15 | AP102: 2005 | AQ102: 15 | AR102: 25 | AS102: 785 | AT102: 52 | AU102: 250 | AV102: 389 | AW102: 20850 | AX102: 11.99040767 | AY102: 2.494004796 | AZ102: 18.65707434 | BA102: 28.15347722
S103: 1989-1-80-84 | T103: 1989 | U103: 17 | V103: 3 | W103: 80-84 | X103: 1 | Y103: 17644 | Z103: 6255 | AA103: 11389 | AB103: -6255 | AD103: 1990-16 | AE103: 1990 | AF103: 16 | AG103: 40.65565729 | AH103: 57.39862655 | AI103: 1.945716154 | AJ103: 0.7422019655 | AO103: 2005-16 | AP103: 2005 | AQ103: 16 | AR103: 25 | AS103: 817 | AT103: 56 | AU103: 451 | AV103: 387 | AW103: 24154 | AX103: 18.67185559 | AY103: 2.31845657 | AZ103: 16.02219094 | BA103: 32.37558996
S104: 1989-1-85-89 | T104: 1989 | U104: 18 | V104: 3 | W104: 85-89 | X104: 1 | Y104: 6531 | Z104: 2107 | AA104: 4424 | AB104: -2107 | AD104: 1990-17 | AE104: 1990 | AF104: 17 | AG104: 34.81002657 | AH104: 61.65625224 | AI104: 3.533721181 | AJ104: 0.6218955314 | AO104: 2005-17 | AP104: 2005 | AQ104: 17 | AR104: 25 | AS104: 899 | AT104: 404 | AU104: 1826 | AV104: 737 | AW104: 101562 | AX104: 17.97916544 | AY104: 3.977865737 | AZ104: 7.25665111 | BA104: 21.25795081
S105: 1989-1-90-94 | T105: 1989 | U105: 19 | V105: 3 | W105: 90-94 | X105: 1 | Y105: 1859 | Z105: 564 | AA105: 1295 | AB105: -564 | AD105: 1991-1 | AE105: 1991 | AF105: 1 | AG105: 30.66058199 | AH105: 65.52562243 | AI105: 3.813795587 | AJ105: 0.5261205662 | AO105: 2006-1 | AP105: 2006 | AQ105: 1 | AR105: 11 | AS105: 001 | AT105: 26649 | AU105: 113686 | AV105: 17975 | AW105: 6945216 | AX105: 16.36896534 | AY105: 3.837029691 | AZ105: 2.58811245 | BA105: 15.1200481
S106: 1989-1-95-99 | T106: 1989 | U106: 20 | V106: 3 | W106: 95-99 | X106: 1 | Y106: 369 | Z106: 106 | AA106: 263 | AB106: -106 | AD106: 1991-2 | AE106: 1991 | AF106: 2 | AG106: 41.15251476 | AH106: 56.38362859 | AI106: 2.463856648 | AJ106: 0.7735644637 | AO106: 2006-2 | AP106: 2006 | AQ106: 2 | AR106: 25 | AS106: 099 | AT106: 31 | AU106: 109 | AV106: 172 | AW106: 9142 | AX106: 11.92299278 | AY106: 3.390942901 | AZ106: 18.81426384 | BA106: 27.34631372
S107: 1989-1-100-- | T107: 1989 | U107: 21 | V107: 3 | W107: 100-- | X107: 1 | Y107: 65 | Z107: 32 | AA107: 33 | AB107: -32 | AD107: 1991-3 | AE107: 1991 | AF107: 3 | AG107: 34.62980638 | AH107: 61.93414235 | AI107: 3.436051268 | AJ107: 0.6146183059 | AO107: 2006-3 | AP107: 2006 | AQ107: 3 | AR107: 25 | AS107: 126 | AT107: 166 | AU107: 755 | AV107: 545 | AW107: 46548 | AX107: 16.2198161 | AY107: 3.566211223 | AZ107: 11.70834407 | BA107: 24.36194896
S108: 1990-1-0-4 | T108: 1990 | U108: 1 | V108: 1 | W108: 0-4 | X108: 1 | Y108: 532320 | Z108: 266184 | AA108: 266136 | AB108: -266184 | AD108: 1991-4 | AE108: 1991 | AF108: 4 | AG108: 32.85984848 | AH108: 63.69554924 | AI108: 3.444602273 | AJ108: 0.5699684074 | AO108: 2006-4 | AP108: 2006 | AQ108: 4 | AR108: 25 | AS108: 175 | AT108: 384 | AU108: 1671 | AV108: 1468 | AW108: 100813 | AX108: 16.57524327 | AY108: 3.809032565 | AZ108: 14.56161408 | BA108: 27.32782478
S109: 1990-1-5-9 | T109: 1990 | U109: 2 | V109: 1 | W109: 5-9 | X109: 1 | Y109: 520139 | Z109: 259251 | AA109: 260888 | AB109: -259251 | AD109: 1991-5 | AE109: 1991 | AF109: 5 | AG109: 33.51040283 | AH109: 62.85967242 | AI109: 3.629924745 | AJ109: 0.5908450704 | AO109: 2006-5 | AP109: 2006 | AQ109: 5 | AR109: 25 | AS109: 214 | AT109: 66 | AU109: 290 | AV109: 265 | AW109: 20386 | AX109: 14.22544884 | AY109: 3.237515942 | AZ109: 12.99911704 | BA109: 23.98704994
S110: 1990-1-10-14 | T110: 1990 | U110: 3 | V110: 1 | W110: 10-14 | X110: 1 | Y110: 481541 | Z110: 239267 | AA110: 242274 | AB110: -239267 | AD110: 1991-6 | AE110: 1991 | AF110: 6 | AG110: 34.93217259 | AH110: 61.90536562 | AI110: 3.16246179 | AJ110: 0.6153688618 | AO110: 2006-6 | AP110: 2006 | AQ110: 6 | AR110: 25 | AS110: 269 | AT110: 431 | AU110: 2329 | AV110: 591 | AW110: 109997 | AX110: 21.17330473 | AY110: 3.918288681 | AZ110: 5.372873806 | BA110: 22.62788985
S111: 1990-1-15-19 | T111: 1990 | U111: 4 | V111: 1 | W111: 15-19 | X111: 1 | Y111: 485765 | Z111: 239773 | AA111: 245992 | AB111: -239773 | AD111: 1991-7 | AE111: 1991 | AF111: 7 | AG111: 34.82271171 | AH111: 62.4728907 | AI111: 2.704397586 | AJ111: 0.6006942992 | AO111: 2006-7 | AP111: 2006 | AQ111: 7 | AR111: 25 | AS111: 286 | AT111: 210 | AU111: 1022 | AV111: 580 | AW111: 62888 | AX111: 16.25111309 | AY111: 3.339269813 | AZ111: 9.222745198 | BA111: 22.13458847
S112: 1990-1-20-24 | T112: 1990 | U112: 5 | V112: 2 | W112: 20-24 | X112: 1 | Y112: 550009 | Z112: 272983 | AA112: 277026 | AB112: -272983 | AD112: 1991-8 | AE112: 1991 | AF112: 8 | AG112: 41.79322964 | AH112: 55.68161025 | AI112: 2.52516011 | AJ112: 0.7959250739 | AO112: 2006-8 | AP112: 2006 | AQ112: 8 | AR112: 25 | AS112: 295 | AT112: 29 | AU112: 210 | AV112: 157 | AW112: 11216 | AX112: 18.7232525 | AY112: 2.585592011 | AZ112: 13.9978602 | BA112: 30.13552068
S113: 1990-1-25-29 | T113: 1990 | U113: 6 | V113: 2 | W113: 25-29 | X113: 1 | Y113: 497570 | Z113: 248502 | AA113: 249068 | AB113: -248502 | AD113: 1991-9 | AE113: 1991 | AF113: 9 | AG113: 33.16221223 | AH113: 62.8473141 | AI113: 3.99047367 | AJ113: 0.5911578947 | AO113: 2006-9 | AP113: 2006 | AQ113: 9 | AR113: 25 | AS113: 377 | AT113: 95 | AU113: 397 | AV113: 80 | AW113: 24175 | AX113: 16.42192347 | AY113: 3.929679421 | AZ113: 3.309203723 | BA113: 15.80144778
S114: 1990-1-30-34 | T114: 1990 | U114: 7 | V114: 2 | W114: 30-34 | X114: 1 | Y114: 444112 | Z114: 220999 | AA114: 223113 | AB114: -220999 | AD114: 1991-10 | AE114: 1991 | AF114: 10 | AG114: 35.85222292 | AH114: 61.64809017 | AI114: 2.499686913 | AJ114: 0.6221102669 | AO114: 2006-10 | AP114: 2006 | AQ114: 10 | AR114: 25 | AS114: 430 | AT114: 216 | AU114: 1274 | AV114: 454 | AW114: 64026 | AX114: 19.89816637 | AY114: 3.373629463 | AZ114: 7.090869334 | BA114: 23.61540624
S115: 1990-1-35-39 | T115: 1990 | U115: 8 | V115: 2 | W115: 35-39 | X115: 1 | Y115: 361713 | Z115: 175230 | AA115: 186483 | AB115: -175230 | AD115: 1991-11 | AE115: 1991 | AF115: 11 | AG115: 36.68403147 | AH115: 61.08866681 | AI115: 2.227301722 | AJ115: 0.6369648451 | AO115: 2006-11 | AP115: 2006 | AQ115: 11 | AR115: 25 | AS115: 473 | AT115: 166 | AU115: 1101 | AV115: 930 | AW115: 65157 | AX115: 16.89764722 | AY115: 2.547692497 | AZ115: 14.273217 | BA115: 28.62317172
S116: 1990-1-40-44 | T116: 1990 | U116: 9 | V116: 2 | W116: 40-44 | X116: 1 | Y116: 281244 | Z116: 134007 | AA116: 147237 | AB116: -134007 | AD116: 1991-12 | AE116: 1991 | AF116: 12 | AG116: 37.27613119 | AH116: 59.04723237 | AI116: 3.676636442 | AJ116: 0.6935594774 | AO116: 2006-12 | AP116: 2006 | AQ116: 12 | AR116: 25 | AS116: 740 | AT116: 159 | AU116: 400 | AV116: 419 | AW116: 32336 | AX116: 12.37011381 | AY116: 4.917120238 | AZ116: 12.95769421 | BA116: 20.41068778
S117: 1990-1-45-49 | T117: 1990 | U117: 10 | V117: 2 | W117: 45-49 | X117: 1 | Y117: 207396 | Z117: 96984 | AA117: 110412 | AB117: -96984 | AD117: 1991-13 | AE117: 1991 | AF117: 13 | AG117: 37.31232262 | AH117: 60.29718445 | AI117: 2.390492931 | AJ117: 0.6584522297 | AO117: 2006-13 | AP117: 2006 | AQ117: 13 | AR117: 25 | AS117: 754 | AT117: 1231 | AU117: 6191 | AV117: 5789 | AW117: 412855 | AX117: 14.99557956 | AY117: 2.981676375 | AZ117: 14.02187209 | BA117: 26.03577527
S118: 1990-1-50-54 | T118: 1990 | U118: 11 | V118: 2 | W118: 50-54 | X118: 1 | Y118: 162268 | Z118: 74282 | AA118: 87986 | AB118: -74282 | AD118: 1991-14 | AE118: 1991 | AF118: 14 | AG118: 36.80647147 | AH118: 59.57091357 | AI118: 3.622614965 | AJ118: 0.6786715867 | AO118: 2006-14 | AP118: 2006 | AQ118: 14 | AR118: 25 | AS118: 758 | AT118: 48 | AU118: 318 | AV118: 272 | AW118: 21748 | AX118: 14.62203421 | AY118: 2.207099503 | AZ118: 12.50689719 | BA118: 24.92183189
S119: 1990-1-55-59 | T119: 1990 | U119: 12 | V119: 2 | W119: 55-59 | X119: 1 | Y119: 131928 | Z119: 59770 | AA119: 72158 | AB119: -59770 | AD119: 1991-15 | AE119: 1991 | AF119: 15 | AG119: 34.92370295 | AH119: 61.07833164 | AI119: 3.997965412 | AJ119: 0.6372418388 | AO119: 2006-15 | AP119: 2006 | AQ119: 15 | AR119: 25 | AS119: 785 | AT119: 62 | AU119: 250 | AV119: 407 | AW119: 21437 | AX119: 11.66207958 | AY119: 2.892195736 | AZ119: 18.98586556 | BA119: 27.75574941
S120: 1990-1-60-64 | T120: 1990 | U120: 13 | V120: 2 | W120: 60-64 | X120: 1 | Y120: 105146 | Z120: 47230 | AA120: 57916 | AB120: -47230 | AD120: 1991-16 | AE120: 1991 | AF120: 16 | AG120: 40.30335861 | AH120: 57.73100139 | AI120: 1.965639994 | AJ120: 0.7321715818 | AO120: 2006-16 | AP120: 2006 | AQ120: 16 | AR120: 25 | AS120: 817 | AT120: 60 | AU120: 464 | AV120: 345 | AW120: 24936 | AX120: 18.60763555 | AY120: 2.406159769 | AZ120: 13.83541867 | BA120: 30.03689445
S121: 1990-1-65-69 | T121: 1990 | U121: 14 | V121: 3 | W121: 65-69 | X121: 1 | Y121: 73747 | Z121: 31678 | AA121: 42069 | AB121: -31678 | AD121: 1991-17 | AE121: 1991 | AF121: 17 | AG121: 34.46059486 | AH121: 61.96577606 | AI121: 3.573629082 | AJ121: 0.6137940386 | AO121: 2006-17 | AP121: 2006 | AQ121: 17 | AR121: 25 | AS121: 899 | AT121: 443 | AU121: 1640 | AV121: 912 | AW121: 103721 | AX121: 15.81164856 | AY121: 4.27107336 | AZ121: 8.792819198 | BA121: 20.33339439
S122: 1990-1-70-74 | T122: 1990 | U122: 15 | V122: 3 | W122: 70-74 | X122: 1 | Y122: 50098 | Z122: 20821 | AA122: 29277 | AB122: -20821 | AD122: 1992-1 | AE122: 1992 | AF122: 1 | AG122: 30.30847676 | AH122: 65.83979719 | AI122: 3.851726051 | AJ122: 0.5188382144 | AO122: 2007-1 | AP122: 2007 | AQ122: 1 | AR122: 11 | AS122: 001 | AT122: 27268 | AU122: 117228 | AV122: 14864 | AW122: 7050228 | AX122: 16.62754736 | AY122: 3.867676336 | AZ122: 2.108300611 | BA122: 14.86817164
S123: 1990-1-75-79 | T123: 1990 | U123: 16 | V123: 3 | W123: 75-79 | X123: 1 | Y123: 34917 | Z123: 13589 | AA123: 21328 | AB123: -13589 | AD123: 1992-2 | AE123: 1992 | AF123: 2 | AG123: 40.79180618 | AH123: 56.66732322 | AI123: 2.540870593 | AJ123: 0.7646854362 | AO123: 2007-2 | AP123: 2007 | AQ123: 2 | AR123: 25 | AS123: 099 | AT123: 30 | AU123: 102 | AV123: 189 | AW123: 9392 | AX123: 10.86030664 | AY123: 3.194207836 | AZ123: 20.12350937 | BA123: 27.78960818
S124: 1990-1-80-84 | T124: 1990 | U124: 17 | V124: 3 | W124: 80-84 | X124: 1 | Y124: 18611 | Z124: 6592 | AA124: 12019 | AB124: -6592 | AD124: 1992-3 | AE124: 1992 | AF124: 3 | AG124: 34.27817192 | AH124: 62.24715393 | AI124: 3.474674146 | AJ124: 0.6064991518 | AO124: 2007-3 | AP124: 2007 | AQ124: 3 | AR124: 25 | AS124: 126 | AT124: 174 | AU124: 833 | AV124: 476 | AW124: 47682 | AX124: 17.46990479 | AY124: 3.64917579 | AZ124: 9.982802735 | BA124: 23.80353173
S125: 1990-1-85-89 | T125: 1990 | U125: 18 | V125: 3 | W125: 85-89 | X125: 1 | Y125: 6935 | Z125: 2237 | AA125: 4698 | AB125: -2237 | AD125: 1992-4 | AE125: 1992 | AF125: 4 | AG125: 32.50762913 | AH125: 64.0131108 | AI125: 3.479260069 | AJ125: 0.5621799776 | AO125: 2007-4 | AP125: 2007 | AQ125: 4 | AR125: 25 | AS125: 175 | AT125: 371 | AU125: 1729 | AV125: 1429 | AW125: 103568 | AX125: 16.69434574 | AY125: 3.582187548 | AZ125: 13.79769813 | BA125: 26.90985633
S126: 1990-1-90-94 | T126: 1990 | U126: 19 | V126: 3 | W126: 90-94 | X126: 1 | Y126: 1977 | Z126: 596 | AA126: 1381 | AB126: -596 | AD126: 1992-5 | AE126: 1992 | AF126: 5 | AG126: 33.15129277 | AH126: 63.17091902 | AI126: 3.677788207 | AJ126: 0.5830068891 | AO126: 2007-5 | AP126: 2007 | AQ126: 5 | AR126: 25 | AS126: 214 | AT126: 63 | AU126: 278 | AV126: 287 | AW126: 20875 | AX126: 13.31736527 | AY126: 3.017964072 | AZ126: 13.74850299 | BA126: 24.04790419
S127: 1990-1-95-99 | T127: 1990 | U127: 20 | V127: 3 | W127: 95-99 | X127: 1 | Y127: 390 | Z127: 110 | AA127: 280 | AB127: -110 | AD127: 1992-6 | AE127: 1992 | AF127: 6 | AG127: 34.57596162 | AH127: 62.22909795 | AI127: 3.194940436 | AJ127: 0.6069652831 | AO127: 2007-6 | AP127: 2007 | AQ127: 6 | AR127: 25 | AS127: 269 | AT127: 443 | AU127: 2250 | AV127: 650 | AW127: 112486 | AX127: 20.0024892 | AY127: 3.938267873 | AZ127: 5.77849688 | BA127: 21.8427182
S128: 1990-1-100-- | T128: 1990 | U128: 21 | V128: 3 | W128: 100-- | X128: 1 | Y128: 68 | Z128: 33 | AA128: 35 | AB128: -33 | AD128: 1992-7 | AE128: 1992 | AF128: 7 | AG128: 34.46300596 | AH128: 62.79903099 | AI128: 2.737963056 | AJ128: 0.5923812585 | AO128: 2007-7 | AP128: 2007 | AQ128: 7 | AR128: 25 | AS128: 286 | AT128: 218 | AU128: 1115 | AV128: 467 | AW128: 64280 | AX128: 17.34598631 | AY128: 3.39141257 | AZ128: 7.26509023 | BA128: 21.21966397
S129: 1991-1-0-4 | T129: 1991 | U129: 1 | V129: 1 | W129: 0-4 | X129: 1 | Y129: 539735 | Z129: 270056 | AA129: 269679 | AB129: -270056 | AD129: 1992-8 | AE129: 1992 | AF129: 8 | AG129: 41.42156863 | AH129: 56.02240896 | AI129: 2.556022409 | AJ129: 0.785 | AO129: 2007-8 | AP129: 2007 | AQ129: 8 | AR129: 25 | AS129: 295 | AT129: 37 | AU129: 237 | AV129: 141 | AW129: 11554 | AX129: 20.51237667 | AY129: 3.202354163 | AZ129: 12.20356586 | BA129: 29.51358837
S130: 1991-1-5-9 | T130: 1991 | U130: 2 | V130: 1 | W130: 5-9 | X130: 1 | Y130: 530038 | Z130: 264375 | AA130: 265663 | AB130: -264375 | AD130: 1992-9 | AE130: 1992 | AF130: 9 | AG130: 32.78808466 | AH130: 63.18264959 | AI130: 4.029265743 | AJ130: 0.5827129859 | AO130: 2007-9 | AP130: 2007 | AQ130: 9 | AR130: 25 | AS130: 377 | AT130: 89 | AU130: 367 | AV130: 108 | AW130: 24557 | AX130: 14.94482225 | AY130: 3.6242212 | AZ130: 4.397931343 | BA130: 15.71853239
S131: 1991-1-10-14 | T131: 1991 | U131: 3 | V131: 1 | W131: 10-14 | X131: 1 | Y131: 495737 | Z131: 246522 | AA131: 249215 | AB131: -246522 | AD131: 1992-10 | AE131: 1992 | AF131: 10 | AG131: 35.5066657 | AH131: 61.96789782 | AI131: 2.525436488 | AJ131: 0.6137387829 | AO131: 2007-10 | AP131: 2007 | AQ131: 10 | AR131: 25 | AS131: 430 | AT131: 193 | AU131: 1232 | AV131: 465 | AW131: 65538 | AX131: 18.79825445 | AY131: 2.944856419 | AZ131: 7.095120388 | BA131: 22.94851842
S132: 1991-1-15-19 | T132: 1991 | U132: 4 | V132: 1 | W132: 15-19 | X132: 1 | Y132: 496755 | Z132: 245307 | AA132: 251448 | AB132: -245307 | AD132: 1992-11 | AE132: 1992 | AF132: 11 | AG132: 36.30265365 | AH132: 61.44816021 | AI132: 2.24918615 | AJ132: 0.6273880238 | AO132: 2007-11 | AP132: 2007 | AQ132: 11 | AR132: 25 | AS132: 473 | AT132: 169 | AU132: 1257 | AV132: 781 | AW132: 67022 | AX132: 18.75503566 | AY132: 2.521560085 | AZ132: 11.6528901 | BA132: 27.88636567
S133: 1991-1-20-24 | T133: 1991 | U133: 5 | V133: 2 | W133: 20-24 | X133: 1 | Y133: 555302 | Z133: 275558 | AA133: 279744 | AB133: -275558 | AD133: 1992-12 | AE133: 1992 | AF133: 12 | AG133: 36.89791917 | AH133: 59.37263289 | AI133: 3.729447935 | AJ133: 0.6842776735 | AO133: 2007-12 | AP133: 2007 | AQ133: 12 | AR133: 25 | AS133: 740 | AT133: 133 | AU133: 453 | AV133: 345 | AW133: 32996 | AX133: 13.72893684 | AY133: 4.030791611 | AZ133: 10.45581283 | BA133: 20.15395806
S134: 1991-1-25-29 | T134: 1991 | U134: 6 | V134: 2 | W134: 25-29 | X134: 1 | Y134: 515734 | Z134: 257483 | AA134: 258251 | AB134: -257483 | AD134: 1992-13 | AE134: 1992 | AF134: 13 | AG134: 36.94003304 | AH134: 60.64264881 | AI134: 2.41731815 | AJ134: 0.649004487 | AO134: 2007-13 | AP134: 2007 | AQ134: 13 | AR134: 25 | AS134: 754 | AT134: 1213 | AU134: 6928 | AV134: 5039 | AW134: 423604 | AX134: 16.3548975 | AY134: 2.863523479 | AZ134: 11.89554395 | BA134: 25.38691797
S135: 1991-1-30-34 | T135: 1991 | U135: 7 | V135: 2 | W135: 30-34 | X135: 1 | Y135: 464027 | Z135: 230904 | AA135: 233123 | AB135: -230904 | AD135: 1992-14 | AE135: 1992 | AF135: 14 | AG135: 36.43135263 | AH135: 59.88657525 | AI135: 3.682072118 | AJ135: 0.6698233216 | AO135: 2007-14 | AP135: 2007 | AQ135: 14 | AR135: 25 | AS135: 758 | AT135: 71 | AU135: 325 | AV135: 297 | AW135: 22290 | AX135: 14.58052939 | AY135: 3.185284881 | AZ135: 13.3243607 | BA135: 24.7196052
S136: 1991-1-35-39 | T136: 1991 | U136: 8 | V136: 2 | W136: 35-39 | X136: 1 | Y136: 378819 | Z136: 183582 | AA136: 195237 | AB136: -183582 | AD136: 1992-15 | AE136: 1992 | AF136: 15 | AG136: 34.57687021 | AH136: 61.37836246 | AI136: 4.044767328 | AJ136: 0.6292386436 | AO136: 2007-15 | AP136: 2007 | AQ136: 15 | AR136: 25 | AS136: 785 | AT136: 71 | AU136: 288 | AV136: 388 | AW136: 22032 | AX136: 13.07189542 | AY136: 3.22258533 | AZ136: 17.610748 | BA136: 27.4600581
S137: 1991-1-40-44 | T137: 1991 | U137: 9 | V137: 2 | W137: 40-44 | X137: 1 | Y137: 299167 | Z137: 142640 | AA137: 156527 | AB137: -142640 | AD137: 1992-16 | AE137: 1992 | AF137: 16 | AG137: 39.9471288 | AH137: 58.04817154 | AI137: 2.004699662 | AJ137: 0.7227071474 | AO137: 2007-16 | AP137: 2007 | AQ137: 16 | AR137: 25 | AS137: 817 | AT137: 59 | AU137: 471 | AV137: 337 | AW137: 25685 | AX137: 18.3375511 | AY137: 2.297060541 | AZ137: 13.12049835 | BA137: 29.1609889
S138: 1991-1-45-49 | T138: 1991 | U138: 10 | V138: 2 | W138: 45-49 | X138: 1 | Y138: 220943 | Z138: 103370 | AA138: 117573 | AB138: -103370 | AD138: 1992-17 | AE138: 1992 | AF138: 17 | AG138: 34.10136362 | AH138: 62.28416211 | AI138: 3.614474277 | AJ138: 0.6055445979 | AO138: 2007-17 | AP138: 2007 | AQ138: 17 | AR138: 25 | AS138: 899 | AT138: 404 | AU138: 1811 | AV138: 681 | AW138: 105830 | AX138: 17.11235 | AY138: 3.817443069 | AZ138: 6.434848342 | BA138: 19.72975527
S139: 1991-1-50-54 | T139: 1991 | U139: 11 | V139: 2 | W139: 50-54 | X139: 1 | Y139: 169408 | Z139: 77598 | AA139: 91810 | AB139: -77598 | AD139: 1993-1 | AE139: 1993 | AF139: 1 | AG139: 29.93819509 | AH139: 66.17164984 | AI139: 3.890155068 | AJ139: 0.5112211989 | AO139: 2008-1 | AP139: 2008 | AQ139: 1 | AR139: 11 | AS139: 001 | AT139: 27696 | AU139: 117302 | AV139: 14939 | AW139: 7155052 | AX139: 16.39429036 | AY139: 3.870831407 | AZ139: 2.087895378 | BA139: 14.61135433
S140: 1991-1-55-59 | T140: 1991 | U140: 12 | V140: 2 | W140: 55-59 | X140: 1 | Y140: 136728 | Z140: 61949 | AA140: 74779 | AB140: -61949 | AD140: 1993-2 | AE140: 1993 | AF140: 2 | AG140: 40.36784224 | AH140: 57.09139173 | AI140: 2.540766022 | AJ140: 0.751577549 | AO140: 2008-2 | AP140: 2008 | AQ140: 2 | AR140: 25 | AS140: 099 | AT140: 24 | AU140: 136 | AV140: 143 | AW140: 9653 | AX140: 14.08888428 | AY140: 2.486273697 | AZ140: 14.81404745 | BA140: 26.41665803
S141: 1991-1-60-64 | T141: 1991 | U141: 13 | V141: 2 | W141: 60-64 | X141: 1 | Y141: 108814 | Z141: 48863 | AA141: 59951 | AB141: -48863 | AD141: 1993-3 | AE141: 1993 | AF141: 3 | AG141: 33.90176918 | AH141: 62.58223159 | AI141: 3.515999234 | AJ141: 0.5978976374 | AO141: 2008-3 | AP141: 2008 | AQ141: 3 | AR141: 25 | AS141: 126 | AT141: 124 | AU141: 779 | AV141: 487 | AW141: 48817 | AX141: 15.95755577 | AY141: 2.540098736 | AZ141: 9.976032939 | BA141: 23.39348997
S142: 1991-1-65-69 | T142: 1991 | U142: 14 | V142: 3 | W142: 65-69 | X142: 1 | Y142: 76486 | Z142: 32851 | AA142: 43635 | AB142: -32851 | AD142: 1993-4 | AE142: 1993 | AF142: 4 | AG142: 32.12600685 | AH142: 64.35606264 | AI142: 3.517930502 | AJ142: 0.5538551597 | AO142: 2008-4 | AP142: 2008 | AQ142: 4 | AR142: 25 | AS142: 175 | AT142: 376 | AU142: 1661 | AV142: 1520 | AW142: 106355 | AX142: 15.6175074 | AY142: 3.535329792 | AZ142: 14.29175873 | BA142: 26.37393635
S143: 1991-1-70-74 | T143: 1991 | U143: 15 | V143: 3 | W143: 70-74 | X143: 1 | Y143: 52447 | Z143: 21819 | AA143: 30628 | AB143: -21819 | AD143: 1993-5 | AE143: 1993 | AF143: 5 | AG143: 32.77800574 | AH143: 63.50430858 | AI143: 3.717685679 | AJ143: 0.574696304 | AO143: 2008-5 | AP143: 2008 | AQ143: 5 | AR143: 25 | AS143: 214 | AT143: 52 | AU143: 327 | AV143: 221 | AW143: 21377 | AX143: 15.29681433 | AY143: 2.432520934 | AZ143: 10.33821397 | BA143: 23.20250737
S144: 1991-1-75-79 | T144: 1991 | U144: 16 | V144: 3 | W144: 75-79 | X144: 1 | Y144: 36224 | Z144: 14122 | AA144: 22102 | AB144: -14122 | AD144: 1993-6 | AE144: 1993 | AF144: 6 | AG144: 34.20242765 | AH144: 62.56818692 | AI144: 3.229385426 | AJ144: 0.5982563172 | AO144: 2008-6 | AP144: 2008 | AQ144: 6 | AR144: 25 | AS144: 269 | AT144: 434 | AU144: 2197 | AV144: 690 | AW144: 114943 | AX144: 19.11382163 | AY144: 3.775784519 | AZ144: 6.002975388 | BA144: 21.3410125
S145: 1991-1-80-84 | T145: 1991 | U145: 17 | V145: 3 | W145: 80-84 | X145: 1 | Y145: 19612 | Z145: 6952 | AA145: 12660 | AB145: -6952 | AD145: 1993-7 | AE145: 1993 | AF145: 7 | AG145: 34.08151355 | AH145: 63.14867954 | AI145: 2.769806916 | AJ145: 0.5835643869 | AO145: 2008-7 | AP145: 2008 | AQ145: 7 | AR145: 25 | AS145: 286 | AT145: 222 | AU145: 1081 | AV145: 523 | AW145: 65644 | AX145: 16.46761319 | AY145: 3.381878009 | AZ145: 7.96721711 | BA145: 21.05295229
S146: 1991-1-85-89 | T146: 1991 | U146: 18 | V146: 3 | W146: 85-89 | X146: 1 | Y146: 7375 | Z146: 2372 | AA146: 5003 | AB146: -2372 | AD146: 1993-8 | AE146: 1993 | AF146: 8 | AG146: 41.03805073 | AH146: 56.34178905 | AI146: 2.620160214 | AJ146: 0.7748815166 | AO146: 2008-8 | AP146: 2008 | AQ146: 8 | AR146: 25 | AS146: 295 | AT146: 40 | AU146: 224 | AV146: 163 | AW146: 11895 | AX146: 18.83144178 | AY146: 3.362757461 | AZ146: 13.70323665 | BA146: 29.17192098
S147: 1991-1-90-94 | T147: 1991 | U147: 19 | V147: 3 | W147: 90-94 | X147: 1 | Y147: 2102 | Z147: 631 | AA147: 1471 | AB147: -631 | AD147: 1993-9 | AE147: 1993 | AF147: 9 | AG147: 32.3925494 | AH147: 63.54161292 | AI147: 4.065837676 | AJ147: 0.573771823 | AO147: 2008-9 | AP147: 2008 | AQ147: 9 | AR147: 25 | AS147: 377 | AT147: 89 | AU147: 392 | AV147: 73 | AW147: 24943 | AX147: 15.7158321 | AY147: 3.568135349 | AZ147: 2.926672814 | BA147: 15.07436956
S148: 1991-1-95-99 | T148: 1991 | U148: 20 | V148: 3 | W148: 95-99 | X148: 1 | Y148: 414 | Z148: 115 | AA148: 299 | AB148: -115 | AD148: 1993-10 | AE148: 1993 | AF148: 10 | AG148: 35.14560827 | AH148: 62.30155002 | AI148: 2.55284171 | AJ148: 0.6050965018 | AO148: 2008-10 | AP148: 2008 | AQ148: 10 | AR148: 25 | AS148: 430 | AT148: 186 | AU148: 1261 | AV148: 428 | AW148: 67042 | AX148: 18.80910474 | AY148: 2.774380239 | AZ148: 6.384057755 | BA148: 22.41878226
S149: 1991-1-100-- | T149: 1991 | U149: 21 | V149: 3 | W149: 100-- | X149: 1 | Y149: 70 | Z149: 33 | AA149: 37 | AB149: -33 | AD149: 1993-11 | AE149: 1993 | AF149: 11 | AG149: 35.91011236 | AH149: 61.82022472 | AI149: 2.269662921 | AJ149: 0.6175936023 | AO149: 2008-11 | AP149: 2008 | AQ149: 11 | AR149: 25 | AS149: 473 | AT149: 199 | AU149: 1286 | AV149: 810 | AW149: 68891 | AX149: 18.66716988 | AY149: 2.888621155 | AZ149: 11.7577042 | BA149: 27.53625292
S150: 1992-1-0-4 | T150: 1992 | U150: 1 | V150: 1 | W150: 0-4 | X150: 1 | Y150: 546796 | Z150: 273775 | AA150: 273021 | AB150: -273775 | AD150: 1993-12 | AE150: 1993 | AF150: 12 | AG150: 36.49772409 | AH150: 59.73389356 | AI150: 3.768382353 | AJ150: 0.674091442 | AO150: 2008-12 | AP150: 2008 | AQ150: 12 | AR150: 25 | AS150: 740 | AT150: 150 | AU150: 448 | AV150: 371 | AW150: 33661 | AX150: 13.30917085 | AY150: 4.456195597 | AZ150: 11.02165711 | BA150: 19.87463236
S151: 1992-1-5-9 | T151: 1992 | U151: 2 | V151: 1 | W151: 5-9 | X151: 1 | Y151: 538003 | Z151: 268565 | AA151: 269438 | AB151: -268565 | AD151: 1993-13 | AE151: 1993 | AF151: 13 | AG151: 36.54497184 | AH151: 61.01026604 | AI151: 2.444762122 | AJ151: 0.6390684141 | AO151: 2008-13 | AP151: 2008 | AQ151: 13 | AR151: 25 | AS151: 754 | AT151: 1255 | AU151: 7052 | AV151: 4993 | AW151: 434358 | AX151: 16.23545555 | AY151: 2.889321712 | AZ151: 11.49512614 | BA151: 24.84125997
S152: 1992-1-10-14 | T152: 1992 | U152: 3 | V152: 1 | W152: 10-14 | X152: 1 | Y152: 509940 | Z152: 253823 | AA152: 256117 | AB152: -253823 | AD152: 1993-14 | AE152: 1993 | AF152: 14 | AG152: 36.07009573 | AH152: 60.20606847 | AI152: 3.723835794 | AJ152: 0.6609621345 | AO152: 2008-14 | AP152: 2008 | AQ152: 14 | AR152: 25 | AS152: 758 | AT152: 71 | AU152: 348 | AV152: 266 | AW152: 22841 | AX152: 15.23576026 | AY152: 3.10844534 | AZ152: 11.64572479 | BA152: 23.77303971
S153: 1992-1-15-19 | T153: 1992 | U153: 4 | V153: 1 | W153: 15-19 | X153: 1 | Y153: 511251 | Z153: 252597 | AA153: 258654 | AB153: -252597 | AD153: 1993-15 | AE153: 1993 | AF153: 15 | AG153: 34.18434391 | AH153: 61.74206871 | AI153: 4.073587385 | AJ153: 0.6196412283 | AO153: 2008-15 | AP153: 2008 | AQ153: 15 | AR153: 25 | AS153: 785 | AT153: 58 | AU153: 278 | AV153: 392 | AW153: 22637 | AX153: 12.28077926 | AY153: 2.562176967 | AZ153: 17.31678226 | BA153: 27.03538455
S154: 1992-1-20-24 | T154: 1992 | U154: 5 | V154: 2 | W154: 20-24 | X154: 1 | Y154: 554808 | Z154: 275226 | AA154: 279582 | AB154: -275226 | AD154: 1993-16 | AE154: 1993 | AF154: 16 | AG154: 39.58551392 | AH154: 58.38392296 | AI154: 2.030563115 | AJ154: 0.7128002868 | AO154: 2008-16 | AP154: 2008 | AQ154: 16 | AR154: 25 | AS154: 817 | AT154: 46 | AU154: 554 | AV154: 249 | AW154: 26434 | AX154: 20.9578573 | AY154: 1.740183098 | AZ154: 9.419686767 | BA154: 28.63736097
S155: 1992-1-25-29 | T155: 1992 | U155: 6 | V155: 2 | W155: 25-29 | X155: 1 | Y155: 533521 | Z155: 266232 | AA155: 267289 | AB155: -266232 | AD155: 1993-17 | AE155: 1993 | AF155: 17 | AG155: 33.72226066 | AH155: 62.62173381 | AI155: 3.656005535 | AJ155: 0.5968896726 | AO155: 2008-17 | AP155: 2008 | AQ155: 17 | AR155: 25 | AS155: 899 | AT155: 398 | AU155: 1910 | AV155: 573 | AW155: 107918 | AX155: 17.69862303 | AY155: 3.687985322 | AZ155: 5.309586909 | BA155: 19.32022461
S156: 1992-1-30-34 | T156: 1992 | U156: 7 | V156: 2 | W156: 30-34 | X156: 1 | Y156: 484941 | Z156: 241288 | AA156: 243653 | AB156: -241288 | AD156: 1994-1 | AE156: 1994 | AF156: 1 | AG156: 29.54166234 | AH156: 66.52702868 | AI156: 3.931308975 | AJ156: 0.5031484493 | AO156: 2009-1 | AP156: 2009 | AQ156: 1 | AR156: 11 | AS156: 001 | AT156: 26921 | AU156: 115799 | AV156: 15307 | AW156: 7259597 | AX156: 15.95116093 | AY156: 3.70833257 | AZ156: 2.108519247 | BA156: 14.3513476
S157: 1992-1-35-39 | T157: 1992 | U157: 8 | V157: 2 | W157: 35-39 | X157: 1 | Y157: 394877 | Z157: 191410 | AA157: 203467 | AB157: -191410 | AD157: 1994-2 | AE157: 1994 | AF157: 2 | AG157: 39.96363636 | AH157: 57.45454545 | AI157: 2.581818182 | AJ157: 0.7405063291 | AO157: 2009-2 | AP157: 2009 | AQ157: 2 | AR157: 25 | AS157: 099 | AT157: 25 | AU157: 123 | AV157: 162 | AW157: 9908 | AX157: 12.41421074 | AY157: 2.523213565 | AZ157: 16.3504239 | BA157: 26.24142107
S158: 1992-1-40-44 | T158: 1992 | U158: 9 | V158: 2 | W158: 40-44 | X158: 1 | Y158: 317757 | Z158: 151620 | AA158: 166137 | AB158: -151620 | AD158: 1994-3 | AE158: 1994 | AF158: 3 | AG158: 33.49501066 | AH158: 62.93984986 | AI158: 3.565139485 | AJ158: 0.5888185343 | AO158: 2009-3 | AP158: 2009 | AQ158: 3 | AR158: 25 | AS158: 126 | AT158: 88 | AU158: 763 | AV158: 466 | AW158: 49959 | AX158: 15.27252347 | AY158: 1.761444384 | AZ158: 9.327648672 | BA158: 22.83872776
S159: 1992-1-45-49 | T159: 1992 | U159: 10 | V159: 2 | W159: 45-49 | X159: 1 | Y159: 236251 | Z159: 110585 | AA159: 125666 | AB159: -110585 | AD159: 1994-4 | AE159: 1994 | AF159: 4 | AG159: 31.72436127 | AH159: 64.72192395 | AI159: 3.553714782 | AJ159: 0.5450714982 | AO159: 2009-4 | AP159: 2009 | AQ159: 4 | AR159: 25 | AS159: 175 | AT159: 348 | AU159: 1584 | AV159: 1602 | AW159: 109160 | AX159: 14.51080982 | AY159: 3.187980945 | AZ159: 14.67570539 | BA159: 25.99853426
S160: 1992-1-50-54 | T160: 1992 | U160: 11 | V160: 2 | W160: 50-54 | X160: 1 | Y160: 176788 | Z160: 81043 | AA160: 95745 | AB160: -81043 | AD160: 1994-5 | AE160: 1994 | AF160: 5 | AG160: 32.37098804 | AH160: 63.8687854 | AI160: 3.760226558 | AJ160: 0.5657100628 | AO160: 2009-5 | AP160: 2009 | AQ160: 5 | AR160: 25 | AS160: 214 | AT160: 77 | AU160: 291 | AV160: 284 | AW160: 21873 | AX160: 13.30407352 | AY160: 3.520321858 | AZ160: 12.98404426 | BA160: 22.76779591
S161: 1992-1-55-59 | T161: 1992 | U161: 12 | V161: 2 | W161: 55-59 | X161: 1 | Y161: 141510 | Z161: 64133 | AA161: 77377 | AB161: -64133 | AD161: 1994-6 | AE161: 1994 | AF161: 6 | AG161: 33.80106617 | AH161: 62.92992978 | AI161: 3.269004049 | AJ161: 0.5890689908 | AO161: 2009-6 | AP161: 2009 | AQ161: 6 | AR161: 25 | AS161: 269 | AT161: 412 | AU161: 2172 | AV161: 693 | AW161: 117396 | AX161: 18.50148216 | AY161: 3.50948925 | AZ161: 5.903097209 | BA161: 20.89509012
S162: 1992-1-60-64 | T162: 1992 | U162: 13 | V162: 2 | W162: 60-64 | X162: 1 | Y162: 112584 | Z162: 50550 | AA162: 62034 | AB162: -50550 | AD162: 1994-7 | AE162: 1994 | AF162: 7 | AG162: 33.68192027 | AH162: 63.5200262 | AI162: 2.798053528 | AJ162: 0.5743066554 | AO162: 2009-7 | AP162: 2009 | AQ162: 7 | AR162: 25 | AS162: 286 | AT162: 206 | AU162: 1067 | AV162: 510 | AW162: 67026 | AX162: 15.91919554 | AY162: 3.07343419 | AZ162: 7.608987557 | BA162: 20.4547489
S163: 1992-1-65-69 | T163: 1992 | U163: 14 | V163: 3 | W163: 65-69 | X163: 1 | Y163: 78963 | Z163: 33909 | AA163: 45054 | AB163: -33909 | AD163: 1994-8 | AE163: 1994 | AF163: 8 | AG163: 40.61460478 | AH163: 56.72421986 | AI163: 2.661175352 | AJ163: 0.7629153868 | AO163: 2009-8 | AP163: 2009 | AQ163: 8 | AR163: 25 | AS163: 295 | AT163: 31 | AU163: 203 | AV163: 170 | AW163: 12242 | AX163: 16.5822578 | AY163: 2.53226597 | AZ163: 13.88661983 | BA163: 27.93661166
S164: 1992-1-70-74 | T164: 1992 | U164: 15 | V164: 3 | W164: 70-74 | X164: 1 | Y164: 55119 | Z164: 22958 | AA164: 32161 | AB164: -22958 | AD164: 1994-9 | AE164: 1994 | AF164: 9 | AG164: 31.97393208 | AH164: 63.91222443 | AI164: 4.113843491 | AJ164: 0.5646459014 | AO164: 2009-9 | AP164: 2009 | AQ164: 9 | AR164: 25 | AS164: 377 | AT164: 99 | AU164: 371 | AV164: 97 | AW164: 25319 | AX164: 14.65302737 | AY164: 3.910107034 | AZ164: 3.831114973 | BA164: 14.57403531
S165: 1992-1-75-79 | T165: 1992 | U165: 16 | V165: 3 | W165: 75-79 | X165: 1 | Y165: 37386 | Z165: 14605 | AA165: 22781 | AB165: -14605 | AD165: 1994-10 | AE165: 1994 | AF165: 10 | AG165: 34.7525605 | AH165: 62.66427989 | AI165: 2.583159612 | AJ165: 0.5958054601 | AO165: 2009-10 | AP165: 2009 | AQ165: 10 | AR165: 25 | AS165: 430 | AT165: 185 | AU165: 1241 | AV165: 443 | AW165: 68545 | AX165: 18.10489459 | AY165: 2.69895689 | AZ165: 6.462907579 | BA165: 21.86884528
S166: 1992-1-80-84 | T166: 1992 | U166: 17 | V166: 3 | W166: 80-84 | X166: 1 | Y166: 20620 | Z166: 7320 | AA166: 13300 | AB166: -7320 | AD166: 1994-11 | AE166: 1994 | AF166: 11 | AG166: 35.48868541 | AH166: 62.2120931 | AI166: 2.299221492 | AJ166: 0.6074045257 | AO166: 2009-11 | AP166: 2009 | AQ166: 11 | AR166: 25 | AS166: 473 | AT166: 167 | AU166: 1247 | AV166: 832 | AW166: 70788 | AX166: 17.61598011 | AY166: 2.359156919 | AZ166: 11.75340453 | BA166: 27.01022772
S167: 1992-1-85-89 | T167: 1992 | U167: 18 | V167: 3 | W167: 85-89 | X167: 1 | Y167: 7835 | Z167: 2509 | AA167: 5326 | AB167: -2509 | AD167: 1994-12 | AE167: 1994 | AF167: 12 | AG167: 36.06003592 | AH167: 60.11288805 | AI167: 3.827076028 | AJ167: 0.6635367762 | AO167: 2009-12 | AP167: 2009 | AQ167: 12 | AR167: 25 | AS167: 740 | AT167: 127 | AU167: 389 | AV167: 412 | AW167: 34330 | AX167: 11.3311972 | AY167: 3.69938829 | AZ167: 12.00116516 | BA167: 19.63297408
S168: 1992-1-90-94 | T168: 1992 | U168: 19 | V168: 3 | W168: 90-94 | X168: 1 | Y168: 2233 | Z168: 669 | AA168: 1564 | AB168: -669 | AD168: 1994-13 | AE168: 1994 | AF168: 13 | AG168: 36.12092161 | AH168: 61.40534345 | AI168: 2.473734942 | AJ168: 0.62852277 | AO168: 2009-13 | AP168: 2009 | AQ168: 13 | AR168: 25 | AS168: 754 | AT168: 1264 | AU168: 6910 | AV168: 5198 | AW168: 445148 | AX168: 15.52292721 | AY168: 2.839505063 | AZ168: 11.67701528 | BA168: 24.36043743
S169: 1992-1-95-99 | T169: 1992 | U169: 20 | V169: 3 | W169: 95-99 | X169: 1 | Y169: 438 | Z169: 119 | AA169: 319 | AB169: -119 | AD169: 1994-14 | AE169: 1994 | AF169: 14 | AG169: 35.64847077 | AH169: 60.58846303 | AI169: 3.763066202 | AJ169: 0.6504792332 | AO169: 2009-14 | AP169: 2009 | AQ169: 14 | AR169: 25 | AS169: 758 | AT169: 49 | AU169: 355 | AV169: 247 | AW169: 23384 | AX169: 15.18132056 | AY169: 2.09544988 | AZ169: 10.56277797 | BA169: 23.64864865
S170: 1992-1-100-- | T170: 1992 | U170: 21 | V170: 3 | W170: 100-- | X170: 1 | Y170: 72 | Z170: 33 | AA170: 39 | AB170: -33 | AD170: 1994-15 | AE170: 1994 | AF170: 15 | AG170: 33.76611827 | AH170: 62.10760338 | AI170: 4.126278346 | AJ170: 0.6101088202 | AO170: 2009-15 | AP170: 2009 | AQ170: 15 | AR170: 25 | AS170: 785 | AT170: 65 | AU170: 296 | AV170: 385 | AW170: 23249 | AX170: 12.7317304 | AY170: 2.795819175 | AZ170: 16.55985204 | BA170: 26.49576326
S171: 1993-1-0-4 | T171: 1993 | U171: 1 | V171: 1 | W171: 0-4 | X171: 1 | Y171: 552885 | Z171: 277017 | AA171: 275868 | AB171: -277017 | AD171: 1994-16 | AE171: 1994 | AF171: 16 | AG171: 39.19654714 | AH171: 58.75166003 | AI171: 2.051792829 | AJ171: 0.702079566 | AO171: 2009-16 | AP171: 2009 | AQ171: 16 | AR171: 25 | AS171: 817 | AT171: 68 | AU171: 537 | AV171: 281 | AW171: 27191 | AX171: 19.74918171 | AY171: 2.50082748 | AZ171: 10.33430179 | BA171: 27.58265603
S172: 1993-1-5-9 | T172: 1993 | U172: 2 | V172: 1 | W172: 5-9 | X172: 1 | Y172: 544418 | Z172: 271996 | AA172: 272422 | AB172: -271996 | AD172: 1994-17 | AE172: 1994 | AF172: 17 | AG172: 33.31605076 | AH172: 62.98461419 | AI172: 3.699335053 | AJ172: 0.5876893316 | AO172: 2009-17 | AP172: 2009 | AQ172: 17 | AR172: 25 | AS172: 899 | AT172: 359 | AU172: 1870 | AV172: 555 | AW172: 110003 | AX172: 16.99953638 | AY172: 3.263547358 | AZ172: 5.045316946 | BA172: 18.78130596
S173: 1993-1-10-14 | T173: 1993 | U173: 3 | V173: 1 | W173: 10-14 | X173: 1 | Y173: 523397 | Z173: 260777 | AA173: 262620 | AB173: -260777 | AD173: 1995-1 | AE173: 1995 | AF173: 1 | AG173: 29.11148131 | AH173: 66.91136569 | AI173: 3.977153003 | AJ173: 0.4945144068 | AO173: 2010-1 | AP173: 2010 | AQ173: 1 | AR173: 11 | AS173: 001 | AT173: 28728 | AU173: 110947 | AV173: 21803 | AW173: 7363782 | AX173: 15.06657856 | AY173: 3.901256175 | AZ173: 2.960842676 | BA173: 14.12616506
S174: 1993-1-15-19 | T174: 1993 | U174: 4 | V174: 1 | W174: 15-19 | X174: 1 | Y174: 527528 | Z174: 260795 | AA174: 266733 | AB174: -260795 | AD174: 1995-2 | AE174: 1995 | AF174: 2 | AG174: 39.49609036 | AH174: 57.89748045 | AI174: 2.606429192 | AJ174: 0.7271908764 | AO174: 2010-2 | AP174: 2010 | AQ174: 2 | AR174: 25 | AS174: 099 | AT174: 36 | AU174: 126 | AV174: 175 | AW174: 10168 | AX174: 12.39181747 | AY174: 3.540519276 | AZ174: 17.21085759 | BA174: 26.06215578
S175: 1993-1-20-24 | T175: 1993 | U175: 5 | V175: 2 | W175: 20-24 | X175: 1 | Y175: 551882 | Z175: 273684 | AA175: 278198 | AB175: -273684 | AD175: 1995-3 | AE175: 1995 | AF175: 3 | AG175: 33.04851816 | AH175: 63.34249522 | AI175: 3.608986616 | AJ175: 0.5787189888 | AO175: 2010-3 | AP175: 2010 | AQ175: 3 | AR175: 25 | AS175: 126 | AT175: 160 | AU175: 733 | AV175: 571 | AW175: 51100 | AX175: 14.3444227 | AY175: 3.13111546 | AZ175: 11.1741683 | BA175: 22.38747554
S176: 1993-1-25-29 | T176: 1993 | U176: 6 | V176: 2 | W176: 25-29 | X176: 1 | Y176: 549662 | Z176: 274149 | AA176: 275513 | AB176: -274149 | AD176: 1995-4 | AE176: 1995 | AF176: 4 | AG176: 31.28343542 | AH176: 65.11725632 | AI176: 3.59930826 | AJ176: 0.5356912385 | AO176: 2010-4 | AP176: 2010 | AQ176: 4 | AR176: 25 | AS176: 175 | AT176: 381 | AU176: 1643 | AV176: 1621 | AW176: 111998 | AX176: 14.66990482 | AY176: 3.401846462 | AZ176: 14.47347274 | BA176: 25.7415311
S177: 1993-1-30-34 | T177: 1993 | U177: 7 | V177: 2 | W177: 30-34 | X177: 1 | Y177: 505887 | Z177: 251680 | AA177: 254207 | AB177: -251680 | AD177: 1995-5 | AE177: 1995 | AF177: 5 | AG177: 31.92961348 | AH177: 64.24274327 | AI177: 3.827643255 | AJ177: 0.5565960435 | AO177: 2010-5 | AP177: 2010 | AQ177: 5 | AR177: 25 | AS177: 214 | AT177: 66 | AU177: 342 | AV177: 232 | AW177: 22371 | AX177: 15.28764919 | AY177: 2.950248089 | AZ177: 10.37056904 | BA177: 22.70797014
S178: 1993-1-35-39 | T178: 1993 | U178: 8 | V178: 2 | W178: 35-39 | X178: 1 | Y178: 410420 | Z178: 198981 | AA178: 211439 | AB178: -198981 | AD178: 1995-6 | AE178: 1995 | AF178: 6 | AG178: 33.36274278 | AH178: 63.32434481 | AI178: 3.312912405 | AJ178: 0.5791714908 | AO178: 2010-6 | AP178: 2010 | AQ178: 6 | AR178: 25 | AS178: 269 | AT178: 480 | AU178: 2159 | AV178: 792 | AW178: 119849 | AX178: 18.0143347 | AY178: 4.005039675 | AZ178: 6.608315464 | BA178: 20.61761049
S179: 1993-1-40-44 | T179: 1993 | U179: 9 | V179: 2 | W179: 40-44 | X179: 1 | Y179: 336447 | Z179: 160666 | AA179: 175781 | AB179: -160666 | AD179: 1995-7 | AE179: 1995 | AF179: 7 | AG179: 33.24325542 | AH179: 63.92154213 | AI179: 2.83520245 | AJ179: 0.5644178263 | AO179: 2010-7 | AP179: 2010 | AQ179: 7 | AR179: 25 | AS179: 286 | AT179: 236 | AU179: 1072 | AV179: 550 | AW179: 68397 | AX179: 15.67320204 | AY179: 3.450443733 | AZ179: 8.041288361 | BA179: 20.26404667
S180: 1993-1-45-49 | T180: 1993 | U180: 10 | V180: 2 | W180: 45-49 | X180: 1 | Y180: 252683 | Z180: 118340 | AA180: 134343 | AB180: -118340 | AD180: 1995-8 | AE180: 1995 | AF180: 8 | AG180: 40.16196761 | AH180: 57.10857828 | AI180: 2.729454109 | AJ180: 0.7510504202 | AO180: 2010-8 | AP180: 2010 | AQ180: 8 | AR180: 25 | AS180: 295 | AT180: 28 | AU180: 201 | AV180: 187 | AW180: 12584 | AX180: 15.9726637 | AY180: 2.22504768 | AZ180: 14.86013986 | BA180: 28.60775588
S181: 1993-1-50-54 | T181: 1993 | U181: 11 | V181: 2 | W181: 50-54 | X181: 1 | Y181: 184790 | Z181: 84788 | AA181: 100002 | AB181: -84788 | AD181: 1995-9 | AE181: 1995 | AF181: 9 | AG181: 31.51737297 | AH181: 64.32014461 | AI181: 4.162482426 | AJ181: 0.5547228728 | AO181: 2010-9 | AP181: 2010 | AQ181: 9 | AR181: 25 | AS181: 377 | AT181: 75 | AU181: 362 | AV181: 102 | AW181: 25688 | AX181: 14.09218312 | AY181: 2.919651199 | AZ181: 3.970725631 | BA181: 15.14325755
S182: 1993-1-55-59 | T182: 1993 | U182: 12 | V182: 2 | W182: 55-59 | X182: 1 | Y182: 146454 | Z182: 66402 | AA182: 80052 | AB182: -66402 | AD182: 1995-10 | AE182: 1995 | AF182: 10 | AG182: 34.32283223 | AH182: 63.0570039 | AI182: 2.62016387 | AJ182: 0.5858666574 | AO182: 2010-10 | AP182: 2010 | AQ182: 10 | AR182: 25 | AS182: 430 | AT182: 210 | AU182: 1179 | AV182: 551 | AW182: 70044 | AX182: 16.83227685 | AY182: 2.99811547 | AZ182: 7.866483924 | BA182: 21.70064531
S183: 1993-1-60-64 | T183: 1993 | U183: 13 | V183: 2 | W183: 60-64 | X183: 1 | Y183: 116440 | Z183: 52283 | AA183: 64157 | AB183: -52283 | AD183: 1995-11 | AE183: 1995 | AF183: 11 | AG183: 35.03898811 | AH183: 62.63250566 | AI183: 2.328506235 | AJ183: 0.5966150316 | AO183: 2010-11 | AP183: 2010 | AQ183: 11 | AR183: 25 | AS183: 473 | AT183: 194 | AU183: 1202 | AV183: 946 | AW183: 72700 | AX183: 16.53370014 | AY183: 2.668500688 | AZ183: 13.01237964 | BA183: 26.87757909
S184: 1993-1-65-69 | T184: 1993 | U184: 14 | V184: 3 | W184: 65-69 | X184: 1 | Y184: 81304 | Z184: 34908 | AA184: 46396 | AB184: -34908 | AD184: 1995-12 | AE184: 1995 | AF184: 12 | AG184: 35.59455975 | AH184: 60.53737054 | AI184: 3.868069708 | AJ184: 0.6518722089 | AO184: 2010-12 | AP184: 2010 | AQ184: 12 | AR184: 25 | AS184: 740 | AT184: 167 | AU184: 461 | AV184: 383 | AW184: 35004 | AX184: 13.16992344 | AY184: 4.770883328 | AZ184: 10.94160667 | BA184: 19.34064678
S185: 1993-1-70-74 | T185: 1993 | U185: 15 | V185: 3 | W185: 70-74 | X185: 1 | Y185: 57921 | Z185: 24153 | AA185: 33768 | AB185: -24153 | AD185: 1995-13 | AE185: 1995 | AF185: 13 | AG185: 35.65657566 | AH185: 61.83718084 | AI185: 2.5062435 | AJ185: 0.6171500486 | AO185: 2010-13 | AP185: 2010 | AQ185: 13 | AR185: 25 | AS185: 754 | AT185: 1315 | AU185: 6449 | AV185: 5812 | AW185: 455992 | AX185: 14.14279198 | AY185: 2.883822523 | AZ185: 12.74583765 | BA185: 24.0048071
S186: 1993-1-75-79 | T186: 1993 | U186: 16 | V186: 3 | W186: 75-79 | X186: 1 | Y186: 38524 | Z186: 15083 | AA186: 23441 | AB186: -15083 | AD186: 1995-14 | AE186: 1995 | AF186: 14 | AG186: 35.18845701 | AH186: 60.99087161 | AI186: 3.820671378 | AJ186: 0.6395896198 | AO186: 2010-14 | AP186: 2010 | AQ186: 14 | AR186: 25 | AS186: 758 | AT186: 67 | AU186: 308 | AV186: 311 | AW186: 23937 | AX186: 12.8671095 | AY186: 2.799014079 | AZ186: 12.99243848 | BA186: 23.0605339
S187: 1993-1-80-84 | T187: 1993 | U187: 17 | V187: 3 | W187: 80-84 | X187: 1 | Y187: 21621 | Z187: 7691 | AA187: 13930 | AB187: -7691 | AD187: 1995-15 | AE187: 1995 | AF187: 15 | AG187: 33.31380263 | AH187: 62.50104629 | AI187: 4.185151084 | AJ187: 0.5999732155 | AO187: 2010-15 | AP187: 2010 | AQ187: 15 | AR187: 25 | AS187: 785 | AT187: 77 | AU187: 284 | AV187: 415 | AW187: 23865 | AX187: 11.90027237 | AY187: 3.226482296 | AZ187: 17.38948251 | BA187: 26.06327257
S188: 1993-1-85-89 | T188: 1993 | U188: 18 | V188: 3 | W188: 85-89 | X188: 1 | Y188: 8311 | Z188: 2649 | AA188: 5662 | AB188: -2649 | AD188: 1995-16 | AE188: 1995 | AF188: 16 | AG188: 38.75434714 | AH188: 59.16534935 | AI188: 2.080303509 | AJ188: 0.690178476 | AO188: 2010-16 | AP188: 2010 | AQ188: 16 | AR188: 25 | AS188: 817 | AT188: 78 | AU188: 564 | AV188: 305 | AW188: 27941 | AX188: 20.18539064 | AY188: 2.791596579 | AZ188: 10.91585842 | BA188: 28.30965248
S189: 1993-1-90-94 | T189: 1993 | U189: 19 | V189: 3 | W189: 90-94 | X189: 1 | Y189: 2372 | Z189: 710 | AA189: 1662 | AB189: -710 | AD189: 1995-17 | AE189: 1995 | AF189: 17 | AG189: 32.86974519 | AH189: 63.38326792 | AI189: 3.746986887 | AJ189: 0.5777034426 | AO189: 2010-17 | AP189: 2010 | AQ189: 17 | AR189: 25 | AS189: 899 | AT189: 409 | AU189: 1791 | AV189: 710 | AW189: 112069 | AX189: 15.98122585 | AY189: 3.649537339 | AZ189: 6.335382666 | BA189: 18.66707118
S190: 1993-1-95-99 | T190: 1993 | U190: 20 | V190: 3 | W190: 95-99 | X190: 1 | Y190: 465 | Z190: 124 | AA190: 341 | AB190: -124 | AD190: 1996-1 | AE190: 1996 | AF190: 1 | AG190: 28.63485304 | AH190: 67.33819677 | AI190: 4.026950192 | AJ190: 0.4850412515 | AO190: 2011-1 | AP190: 2011 | AQ190: 1 | AR190: 11 | AS190: 001 | AT190: 28767 | AU190: 107007 | AV190: 25301 | AW190: 7467804 | AX190: 14.32911201 | AY190: 3.852136451 | AZ190: 3.388010719 | BA190: 13.86498628
S191: 1993-1-100-- | T191: 1993 | U191: 21 | V191: 3 | W191: 100-- | X191: 1 | Y191: 75 | Z191: 34 | AA191: 41 | AB191: -34 | AD191: 1996-2 | AE191: 1996 | AF191: 2 | AG191: 38.98080741 | AH191: 58.37193911 | AI191: 2.647253475 | AJ191: 0.7131519274 | AO191: 2011-2 | AP191: 2011 | AQ191: 2 | AR191: 25 | AS191: 099 | AT191: 33 | AU191: 103 | AV191: 205 | AW191: 10433 | AX191: 9.872519889 | AY191: 3.163040353 | AZ191: 19.64919007 | BA191: 26.35866961
S192: 1994-1-0-4 | T192: 1994 | U192: 1 | V192: 1 | W192: 0-4 | X192: 1 | Y192: 557397 | Z192: 279464 | AA192: 277933 | AB192: -279464 | AD192: 1996-3 | AE192: 1996 | AF192: 3 | AG192: 32.55733449 | AH192: 63.78479735 | AI192: 3.657868167 | AJ192: 0.5677716973 | AO192: 2011-3 | AP192: 2011 | AQ192: 3 | AR192: 25 | AS192: 126 | AT192: 181 | AU192: 765 | AV192: 569 | AW192: 52244 | AX192: 14.6428298 | AY192: 3.464512671 | AZ192: 10.89120282 | BA192: 22.06951994
S193: 1994-1-5-9 | T193: 1994 | U193: 2 | V193: 1 | W193: 5-9 | X193: 1 | Y193: 549721 | Z193: 274868 | AA193: 274853 | AB193: -274868 | AD193: 1996-4 | AE193: 1996 | AF193: 4 | AG193: 30.79334496 | AH193: 65.55953146 | AI193: 3.647123589 | AJ193: 0.5253312185 | AO193: 2011-4 | AP193: 2011 | AQ193: 4 | AR193: 25 | AS193: 175 | AT193: 399 | AU193: 1661 | AV193: 1643 | AW193: 114881 | AX193: 14.4584396 | AY193: 3.473159182 | AZ193: 14.30175573 | BA193: 25.28703615
S194: 1994-1-10-14 | T194: 1994 | U194: 3 | V194: 1 | W194: 10-14 | X194: 1 | Y194: 535355 | Z194: 266987 | AA194: 268368 | AB194: -266987 | AD194: 1996-5 | AE194: 1996 | AF194: 5 | AG194: 31.4400459 | AH194: 64.68732071 | AI194: 3.872633391 | AJ194: 0.5458980044 | AO194: 2011-5 | AP194: 2011 | AQ194: 5 | AR194: 25 | AS194: 214 | AT194: 64 | AU194: 318 | AV194: 252 | AW194: 22879 | AX194: 13.89920888 | AY194: 2.797325058 | AZ194: 11.01446742 | BA194: 22.11635124
S195: 1994-1-15-19 | T195: 1994 | U195: 4 | V195: 1 | W195: 15-19 | X195: 1 | Y195: 543801 | Z195: 269021 | AA195: 274780 | AB195: -269021 | AD195: 1996-6 | AE195: 1996 | AF195: 6 | AG195: 32.87533029 | AH195: 63.76651453 | AI195: 3.358155177 | AJ195: 0.5682212009 | AO195: 2011-6 | AP195: 2011 | AQ195: 6 | AR195: 25 | AS195: 269 | AT195: 486 | AU195: 2022 | AV195: 923 | AW195: 122320 | AX195: 16.53041203 | AY195: 3.973185088 | AZ195: 7.545781557 | BA195: 20.1030085
S196: 1994-1-20-24 | T196: 1994 | U196: 5 | V196: 2 | W196: 20-24 | X196: 1 | Y196: 550066 | Z196: 272728 | AA196: 277338 | AB196: -272728 | AD196: 1996-7 | AE196: 1996 | AF196: 7 | AG196: 32.75534031 | AH196: 64.36694629 | AI196: 2.877713396 | AJ196: 0.5535924222 | AO196: 2011-7 | AP196: 2011 | AQ196: 7 | AR196: 25 | AS196: 286 | AT196: 203 | AU196: 968 | AV196: 624 | AW196: 69783 | AX196: 13.87157331 | AY196: 2.909017956 | AZ196: 8.942005933 | BA196: 19.90456128
S197: 1994-1-25-29 | T197: 1994 | U197: 6 | V197: 2 | W197: 25-29 | X197: 1 | Y197: 562876 | Z197: 280625 | AA197: 282251 | AB197: -280625 | AD197: 1996-8 | AE197: 1996 | AF197: 8 | AG197: 39.62077261 | AH197: 57.60577331 | AI197: 2.773454082 | AJ197: 0.7359371162 | AO197: 2011-8 | AP197: 2011 | AQ197: 8 | AR197: 25 | AS197: 295 | AT197: 37 | AU197: 181 | AV197: 224 | AW197: 12944 | AX197: 13.98331273 | AY197: 2.858467244 | AZ197: 17.3053152 | BA197: 28.43016069
S198: 1994-1-30-34 | T198: 1994 | U198: 7 | V198: 2 | W198: 30-34 | X198: 1 | Y198: 525881 | Z198: 261597 | AA198: 264284 | AB198: -261597 | AD198: 1996-9 | AE198: 1996 | AF198: 9 | AG198: 31.00790514 | AH198: 64.77272727 | AI198: 4.219367589 | AJ198: 0.5438596491 | AO198: 2011-9 | AP198: 2011 | AQ198: 9 | AR198: 25 | AS198: 377 | AT198: 92 | AU198: 325 | AV198: 139 | AW198: 26077 | AX198: 12.46309008 | AY198: 3.528013192 | AZ198: 5.330367757 | BA198: 14.26544464
S199: 1994-1-35-39 | T199: 1994 | U199: 8 | V199: 2 | W199: 35-39 | X199: 1 | Y199: 426021 | Z199: 206581 | AA199: 219440 | AB199: -206581 | AD199: 1996-10 | AE199: 1996 | AF199: 10 | AG199: 33.83579285 | AH199: 63.49779382 | AI199: 2.666413326 | AJ199: 0.5748578648 | AO199: 2011-10 | AP199: 2011 | AQ199: 10 | AR199: 25 | AS199: 430 | AT199: 201 | AU199: 1177 | AV199: 546 | AW199: 71564 | AX199: 16.44681684 | AY199: 2.808674753 | AZ199: 7.629534403 | BA199: 21.26767649
S200: 1994-1-40-44 | T200: 1994 | U200: 9 | V200: 2 | W200: 40-44 | X200: 1 | Y200: 354658 | Z200: 169490 | AA200: 185168 | AB200: -169490 | AD200: 1996-11 | AE200: 1996 | AF200: 11 | AG200: 34.53494684 | AH200: 63.10227019 | AI200: 2.362782975 | AJ200: 0.5847290391 | AO200: 2011-11 | AP200: 2011 | AQ200: 11 | AR200: 25 | AS200: 473 | AT200: 202 | AU200: 1248 | AV200: 952 | AW200: 74654 | AX200: 16.71712165 | AY200: 2.705816165 | AZ200: 12.75216331 | BA200: 26.7634688
... 2050 more rows

Sheet EstruLoc
AG2: regDataP
AG3: Nomb_Map2 | AH3: Color
AC4: Año | AD4: 2005 | AG4: Loc_1
AB5: USAQUÉN | AC5: local | AD5: =VLOOKUP($AB$5,$AB$8:$AC$27,2,FALSE) -> 1 | AE5: ="Loc_"&AD5 -> Loc_1 | AG5: Loc_2 | AI5: Bogota
AG6: Loc_3 | AI6: 1
AA7: Mun | AB7: Num-Loc | AC7: Mun | AE7: AÑO | AG7: Loc_4
G8: Edad | H8: Total | I8: Hombres | J8: Mujeres | K8: % Hom | L8: % Muj | AA8: 1 | AB8: USAQUÉN | AC8: 1 | AE8: 1985 | AG8: Loc_5
G9: 0-4 | H9: =VLOOKUP(CONCATENATE($AD$4,"-",$AD$5,"-",$G9),DataSetEstLoc,6,FALSE) -> 28475 | I9: =VLOOKUP(CONCATENATE($AD$4,"-",$AD$5,"-",$G9),DataSetEstLoc,9,FALSE) -> -14547 | J9: =VLOOKUP(CONCATENATE($AD$4,"-",$AD$5,"-",$G9),DataSetEstLoc,8,FALSE) -> 13928 | K9: =I9/SUM($H$9:$H$29)*100 -> -3.421245731 | L9: =J9/SUM($H$9:$H$29)*100 -> 3.275665811 | AA9: 2 | AB9: CHAPINERO | AC9: 2 | AE9: 1986 | AG9: Loc_6 | AI9: Edad | AJ9: Total | AK9: Hombres | AL9: Mujeres | AM9: % Hom | AN9: % Muj
G10: 5-9 | H10: 28468 | I10: -14331 | J10: 14137 | K10: -3.37044563 | L10: 3.324819613 | AA10: 3 | AB10: SANTA.FE | AC10: 3 | AE10: 1987 | AG10: Loc_7 | AI10: 0-4 | AJ10: =VLOOKUP(CONCATENATE($AD$4,"-",$AI$6,"-",AI10),DataSetEstrMuni,7,FALSE) -> 542375 | AK10: =VLOOKUP(CONCATENATE($AD$4,"-",$AI$6,"-",AI10),DataSetEstrMuni,10,FALSE) -> -277847 | AL10: =VLOOKUP(CONCATENATE($AD$4,"-",$AI$6,"-",AI10),DataSetEstrMuni,9,FALSE) -> 264528 | AM10: =AK10/SUM($AJ$10:$AJ$30)*100 -> -4.062022349 | AN10: =AL10/SUM($AJ$10:$AJ$30)*100 -> 3.867303401
G11: 10-14 | H11: 30826 | I11: -15528 | J11: 15298 | K11: -3.651962859 | L11: 3.597870159 | AA11: 4 | AB11: SAN.CRISTÓBAL | AC11: 4 | AE11: 1988 | AG11: Loc_8 | AI11: 5-9 | AJ11: 544641 | AK11: -278432 | AL11: 266209 | AM11: =AK11/SUM($AJ$10:$AJ$30)*100 -> -4.070574837 | AN11: =AL11/SUM($AJ$10:$AJ$30)*100 -> 3.891879011
G12: 15-19 | H12: 34443 | I12: -17644 | J12: 16799 | K12: -4.149615707 | L12: 3.950883828 | AA12: 5 | AB12: USME | AC12: 5 | AE12: 1989 | AG12: Loc_9 | AI12: 10-14 | AJ12: 570792 | AK12: -291386 | AL12: 279406 | AM12: -4.259957618 | AN12: 4.084814364
G13: 20-24 | H13: 44007 | I13: -23244 | J13: 20763 | K13: -5.466655378 | L13: 4.883159766 | AA13: 6 | AB13: TUNJUELITO | AC13: 6 | AE13: 1990 | AG13: Loc_10 | AI13: 15-19 | AJ13: 630187 | AK13: -319826 | AL13: 310361 | AM13: -4.675740101 | AN13: 4.537365234
G14: 25-29 | H14: 41435 | I14: -21884 | J14: 19551 | K14: -5.146802886 | L14: 4.598114752 | AA14: 7 | AB14: BOSA | AC14: 7 | AE14: 1991 | AG14: Loc_11 | AI14: 20-24 | AJ14: 676419 | AK14: -344257 | AL14: 332162 | AM14: -5.032912458 | AN14: 4.856087946
G15: 30-34 | H15: 36361 | I15: -18379 | J15: 17982 | K15: -4.322477163 | L15: 4.229108458 | AA15: 8 | AB15: KENNEDY | AC15: 8 | AE15: 1992 | AG15: Loc_12 | AI15: 25-29 | AJ15: 624158 | AK15: -318159 | AL15: 305999 | AM15: -4.651369166 | AN15: 4.473594377
G16: 35-39 | H16: 35291 | I16: -17432 | J16: 17859 | K16: -4.099756348 | L16: 4.200180623 | AA16: 9 | AB16: FONTIBÓN | AC16: 9 | AE16: 1993 | AG16: Loc_13 | AI16: 30-34 | AJ16: 593555 | AK16: -300621 | AL16: 292934 | AM16: -4.394969968 | AN16: 4.282588816
G17: 40-44 | H17: 31088 | I17: -15204 | J17: 15884 | K17: -3.575762707 | L17: 3.735688953 | AA17: 10 | AB17: ENGATIVÁ | AC17: 10 | AE17: 1994 | AG17: Loc_14 | AI17: 35-39 | AJ17: 589333 | AK17: -291328 | AL17: 298005 | AM17: -4.259109679 | AN17: 4.356724997
G18: 45-49 | H18: 28385 | I18: -13730 | J18: 14655 | K18: -3.229099051 | L18: 3.446645782 | AA18: 11 | AB18: SUBA | AC18: 11 | AE18: 1995 | AG18: Loc_15 | AI18: 40-44 | AJ18: 527123 | AK18: -257614 | AL18: 269509 | AM18: -3.766223229 | AN18: 3.940123814
G19: 50-54 | H19: 24860 | I19: -11810 | J19: 13050 | K19: -2.777542592 | L19: 3.069172805 | AA19: 12 | AB19: BARRIOS.UNIDOS | AC19: 12 | AE19: 1996 | AG19: Loc_16 | AI19: 45-49 | AJ19: 437424 | AK19: -210315 | AL19: 227109 | AM19: -3.074729007 | AN19: 3.320251195
G20: 55-59 | H20: 20564 | I20: -9569 | J20: 10995 | K20: -2.250491538 | L20: 2.585866283 | AA20: 13 | AB20: TEUSAQUILLO | AC20: 13 | AE20: 1997 | AG20: Loc_17 | AI20: 50-54 | AJ20: 352420 | AK20: -166264 | AL20: 186156 | AM20: -2.430719367 | AN20: 2.721533191
G21: 60-64 | H21: 13670 | I21: -6285 | J21: 7385 | K21: -1.478141845 | L21: 1.736846066 | AA21: 14 | AB21: LOS.MÁRTIRES | AC21: 14 | AE21: 1998 | AG21: Loc_18 | AI21: 55-59 | AJ21: 259230 | AK21: -120828 | AL21: 138402 | AM21: -1.766461529 | AN21: 2.023387034
